Workbook

Sheet Random
B2: Table8
B3: Rand1 | C3: Rand2 | D3: Rand3 | E3: Rand4 | F3: Rand5 | G3: Rand6 | H3: Rand7 | I3: Rand8
B4: =RAND() -> 0.9807191948 | C4: =RAND() -> 0.9832394279 | D4: 0.9267093416 | E4: 0.8484649322 | F4: 0.5823876086 | G4: 0.05313468565 | H4: 0.5333094694 | I4: 0.7941358467
B5: =RAND() -> 0.1873416028 | C5: 0.3458999602 | D5: 0.9965157918 | E5: 0.1368721973 | F5: 0.8834841471 | G5: 0.5128625829 | H5: 0.7012124867 | I5: 0.08940264587
B6: 0.4880580819 | C6: 0.05860136502 | D6: 0.3632765112 | E6: 0.353845518 | F6: 0.067456966 | G6: 0.1484654983 | H6: 0.7090103047 | I6: 0.3188431731
B7: 0.2556732884 | C7: 0.9509300754 | D7: 0.9507825034 | E7: 0.3594072514 | F7: 0.4678947134 | G7: 0.8315435363 | H7: 0.8170306118 | I7: 0.7630999917
B8: 0.05154986212 | C8: 0.8840840217 | D8: 0.5840884108 | E8: 0.2045127529 | F8: 0.6744872755 | G8: 0.9792123207 | H8: 0.8834443002 | I8: 0.1490339391
B9: 0.7538677478 | C9: 0.7371973739 | D9: 0.09616497061 | E9: 0.5786400846 | F9: 0.9353928486 | G9: 0.5034144954 | H9: 0.6930099083 | I9: 0.9299755101
B10: 0.206755178 | C10: 0.1262917085 | D10: 0.1774521842 | E10: 0.8306467814 | F10: 0.5632011944 | G10: 0.8967493324 | H10: 0.4257802542 | I10: 0.5651796781
B11: 0.3660780674 | C11: 0.83993292 | D11: 0.3359670859 | E11: 0.8974661308 | F11: 0.2039399711 | G11: 0.1191745387 | H11: 0.6218176678 | I11: 0.06630305405
B12: 0.6343798827 | C12: 0.2985432336 | D12: 0.6181521649 | E12: 0.8347109835 | F12: 0.3616490719 | G12: 0.4381343238 | H12: 0.5887022048 | I12: 0.3663763965
B13: 0.2037938971 | C13: 0.2172896599 | D13: 0.9730797689 | E13: 0.3292262662 | F13: 0.8951675345 | G13: 0.4898233351 | H13: 0.6592168425 | I13: 0.7114215514
B14: 0.2527464326 | C14: 0.9424542675 | D14: 0.362743581 | E14: 0.3397361149 | F14: 0.01825782073 | G14: 0.5191406062 | H14: 0.3250628609 | I14: 0.6283914335
B15: 0.4909324138 | C15: 0.8911155102 | D15: 0.2728274657 | E15: 0.7769894944 | F15: 0.5139452756 | G15: 0.977624972 | H15: 0.2768036559 | I15: 0.8005228912
B16: 0.8922554377 | C16: 0.2804054116 | D16: 0.03186418138 | E16: 0.5162439862 | F16: 0.6733993376 | G16: 0.2388942525 | H16: 0.587255862 | I16: 0.5316276949
B17: 0.4372186941 | C17: 0.1010331617 | D17: 0.02183450849 | E17: 0.3006536296 | F17: 0.3457012535 | G17: 0.7751759477 | H17: 0.04227820711 | I17: 0.7527526196
B18: 0.03023810514 | C18: 0.8437844638 | D18: 0.6802014722 | E18: 0.1528112016 | F18: 0.3300895473 | G18: 0.9061976724 | H18: 0.4093780335 | I18: 0.2334948907
B19: 0.8277544399 | C19: 0.1832254686 | D19: 0.9307300534 | E19: 0.7369978971 | F19: 0.7107615843 | G19: 0.3454783395 | H19: 0.9591946283 | I19: 0.978035349
B20: 0.06741453525 | C20: 0.5256091966 | D20: 0.3829380702 | E20: 0.2833158149 | F20: 0.4185811887 | G20: 0.4410349761 | H20: 0.2079849559 | I20: 0.6759709322
B23: Table5
B24: Rank1 | C24: Rank2 | D24: Rank3 | E24: Rank4 | F24: Rank5 | G24: Rank6 | H24: Rank7 | I24: Rank8
B25: =IF(RANDBETWEEN(0,1),RANK(INDEX(INDIRECT("Table8[Rand"&1*RIGHT(Table5[#Headers],1)&"]"),rowm),INDEX(Table8[],rowm,)),"") ->  | C25: =IF(RANDBETWEEN(0,1),RANK(INDEX(INDIRECT("Table8[Rand"&1*RIGHT(Table5[#Headers],1)&"]"),rowm),INDEX(Table8[],rowm,)),"") -> 1 | D25: =IF(RANDBETWEEN(0,1),RANK(INDEX(INDIRECT("Table8[Rand"&1*RIGHT(Table5[#Headers],1)&"]"),rowm),INDEX(Table8[],rowm,)),"") -> 3 | E25: =IF(RANDBETWEEN(0,1),RANK(INDEX(INDIRECT("Table8[Rand"&1*RIGHT(Table5[#Headers],1)&"]"),rowm),INDEX(Table8[],rowm,)),"") -> 4 | F25: =IF(RANDBETWEEN(0,1),RANK(INDEX(INDIRECT("Table8[Rand"&1*RIGHT(Table5[#Headers],1)&"]"),rowm),INDEX(Table8[],rowm,)),"") -> 6 | G25: =IF(RANDBETWEEN(0,1),RANK(INDEX(INDIRECT("Table8[Rand"&1*RIGHT(Table5[#Headers],1)&"]"),rowm),INDEX(Table8[],rowm,)),"") ->  | H25: =IF(RANDBETWEEN(0,1),RANK(INDEX(INDIRECT("Table8[Rand"&1*RIGHT(Table5[#Headers],1)&"]"),rowm),INDEX(Table8[],rowm,)),"") -> 7 | I25: =IF(RANDBETWEEN(0,1),RANK(INDEX(INDIRECT("Table8[Rand"&1*RIGHT(Table5[#Headers],1)&"]"),rowm),INDEX(Table8[],rowm,)),"") -> 5
B26: =IF(RANDBETWEEN(0,1),RANK(INDEX(INDIRECT("Table8[Rand"&1*RIGHT(Table5[#Headers],1)&"]"),rowm),INDEX(Table8[],rowm,)),"") -> 6 | C26: =IF(RANDBETWEEN(0,1),RANK(INDEX(INDIRECT("Table8[Rand"&1*RIGHT(Table5[#Headers],1)&"]"),rowm),INDEX(Table8[],rowm,)),"") -> 5 | D26: =IF(RANDBETWEEN(0,1),RANK(INDEX(INDIRECT("Table8[Rand"&1*RIGHT(Table5[#Headers],1)&"]"),rowm),INDEX(Table8[],rowm,)),"") ->  | E26: =IF(RANDBETWEEN(0,1),RANK(INDEX(INDIRECT("Table8[Rand"&1*RIGHT(Table5[#Headers],1)&"]"),rowm),INDEX(Table8[],rowm,)),"") -> 7 | F26: =IF(RANDBETWEEN(0,1),RANK(INDEX(INDIRECT("Table8[Rand"&1*RIGHT(Table5[#Headers],1)&"]"),rowm),INDEX(Table8[],rowm,)),"") -> 2 | G26: =IF(RANDBETWEEN(0,1),RANK(INDEX(INDIRECT("Table8[Rand"&1*RIGHT(Table5[#Headers],1)&"]"),rowm),INDEX(Table8[],rowm,)),"") -> 4 | H26: =IF(RANDBETWEEN(0,1),RANK(INDEX(INDIRECT("Table8[Rand"&1*RIGHT(Table5[#Headers],1)&"]"),rowm),INDEX(Table8[],rowm,)),"") ->  | I26: =IF(RANDBETWEEN(0,1),RANK(INDEX(INDIRECT("Table8[Rand"&1*RIGHT(Table5[#Headers],1)&"]"),rowm),INDEX(Table8[],rowm,)),"") -> 
B27: =IF(RANDBETWEEN(0,1),RANK(INDEX(INDIRECT("Table8[Rand"&1*RIGHT(Table5[#Headers],1)&"]"),rowm),INDEX(Table8[],rowm,)),"") ->  | C27: =IF(RANDBETWEEN(0,1),RANK(INDEX(INDIRECT("Table8[Rand"&1*RIGHT(Table5[#Headers],1)&"]"),rowm),INDEX(Table8[],rowm,)),"") -> 8 | D27: =IF(RANDBETWEEN(0,1),RANK(INDEX(INDIRECT("Table8[Rand"&1*RIGHT(Table5[#Headers],1)&"]"),rowm),INDEX(Table8[],rowm,)),"") ->  | E27: =IF(RANDBETWEEN(0,1),RANK(INDEX(INDIRECT("Table8[Rand"&1*RIGHT(Table5[#Headers],1)&"]"),rowm),INDEX(Table8[],rowm,)),"") ->  | F27: =IF(RANDBETWEEN(0,1),RANK(INDEX(INDIRECT("Table8[Rand"&1*RIGHT(Table5[#Headers],1)&"]"),rowm),INDEX(Table8[],rowm,)),"") ->  | G27: =IF(RANDBETWEEN(0,1),RANK(INDEX(INDIRECT("Table8[Rand"&1*RIGHT(Table5[#Headers],1)&"]"),rowm),INDEX(Table8[],rowm,)),"") -> 6 | H27: =IF(RANDBETWEEN(0,1),RANK(INDEX(INDIRECT("Table8[Rand"&1*RIGHT(Table5[#Headers],1)&"]"),rowm),INDEX(Table8[],rowm,)),"") -> 1 | I27: =IF(RANDBETWEEN(0,1),RANK(INDEX(INDIRECT("Table8[Rand"&1*RIGHT(Table5[#Headers],1)&"]"),rowm),INDEX(Table8[],rowm,)),"") -> 
B28: =IF(RANDBETWEEN(0,1),RANK(INDEX(INDIRECT("Table8[Rand"&1*RIGHT(Table5[#Headers],1)&"]"),rowm),INDEX(Table8[],rowm,)),"") ->  | C28: =IF(RANDBETWEEN(0,1),RANK(INDEX(INDIRECT("Table8[Rand"&1*RIGHT(Table5[#Headers],1)&"]"),rowm),INDEX(Table8[],rowm,)),"") ->  | D28: =IF(RANDBETWEEN(0,1),RANK(INDEX(INDIRECT("Table8[Rand"&1*RIGHT(Table5[#Headers],1)&"]"),rowm),INDEX(Table8[],rowm,)),"") -> 2 | E28: =IF(RANDBETWEEN(0,1),RANK(INDEX(INDIRECT("Table8[Rand"&1*RIGHT(Table5[#Headers],1)&"]"),rowm),INDEX(Table8[],rowm,)),"") -> 7 | F28: =IF(RANDBETWEEN(0,1),RANK(INDEX(INDIRECT("Table8[Rand"&1*RIGHT(Table5[#Headers],1)&"]"),rowm),INDEX(Table8[],rowm,)),"") -> 6 | G28: =IF(RANDBETWEEN(0,1),RANK(INDEX(INDIRECT("Table8[Rand"&1*RIGHT(Table5[#Headers],1)&"]"),rowm),INDEX(Table8[],rowm,)),"") -> 3 | H28: =IF(RANDBETWEEN(0,1),RANK(INDEX(INDIRECT("Table8[Rand"&1*RIGHT(Table5[#Headers],1)&"]"),rowm),INDEX(Table8[],rowm,)),"") -> 4 | I28: =IF(RANDBETWEEN(0,1),RANK(INDEX(INDIRECT("Table8[Rand"&1*RIGHT(Table5[#Headers],1)&"]"),rowm),INDEX(Table8[],rowm,)),"") -> 
B29: =IF(RANDBETWEEN(0,1),RANK(INDEX(INDIRECT("Table8[Rand"&1*RIGHT(Table5[#Headers],1)&"]"),rowm),INDEX(Table8[],rowm,)),"") -> 8 | C29: =IF(RANDBETWEEN(0,1),RANK(INDEX(INDIRECT("Table8[Rand"&1*RIGHT(Table5[#Headers],1)&"]"),rowm),INDEX(Table8[],rowm,)),"") ->  | D29: =IF(RANDBETWEEN(0,1),RANK(INDEX(INDIRECT("Table8[Rand"&1*RIGHT(Table5[#Headers],1)&"]"),rowm),INDEX(Table8[],rowm,)),"") -> 5 | E29: =IF(RANDBETWEEN(0,1),RANK(INDEX(INDIRECT("Table8[Rand"&1*RIGHT(Table5[#Headers],1)&"]"),rowm),INDEX(Table8[],rowm,)),"") ->  | F29: =IF(RANDBETWEEN(0,1),RANK(INDEX(INDIRECT("Table8[Rand"&1*RIGHT(Table5[#Headers],1)&"]"),rowm),INDEX(Table8[],rowm,)),"") ->  | G29: =IF(RANDBETWEEN(0,1),RANK(INDEX(INDIRECT("Table8[Rand"&1*RIGHT(Table5[#Headers],1)&"]"),rowm),INDEX(Table8[],rowm,)),"") -> 1 | H29: =IF(RANDBETWEEN(0,1),RANK(INDEX(INDIRECT("Table8[Rand"&1*RIGHT(Table5[#Headers],1)&"]"),rowm),INDEX(Table8[],rowm,)),"") -> 3 | I29: =IF(RANDBETWEEN(0,1),RANK(INDEX(INDIRECT("Table8[Rand"&1*RIGHT(Table5[#Headers],1)&"]"),rowm),INDEX(Table8[],rowm,)),"") -> 7
B30: =IF(RANDBETWEEN(0,1),RANK(INDEX(INDIRECT("Table8[Rand"&1*RIGHT(Table5[#Headers],1)&"]"),rowm),INDEX(Table8[],rowm,)),"") -> 3 | C30: =IF(RANDBETWEEN(0,1),RANK(INDEX(INDIRECT("Table8[Rand"&1*RIGHT(Table5[#Headers],1)&"]"),rowm),INDEX(Table8[],rowm,)),"") -> 4 | D30: =IF(RANDBETWEEN(0,1),RANK(INDEX(INDIRECT("Table8[Rand"&1*RIGHT(Table5[#Headers],1)&"]"),rowm),INDEX(Table8[],rowm,)),"") -> 8 | E30: =IF(RANDBETWEEN(0,1),RANK(INDEX(INDIRECT("Table8[Rand"&1*RIGHT(Table5[#Headers],1)&"]"),rowm),INDEX(Table8[],rowm,)),"") ->  | F30: =IF(RANDBETWEEN(0,1),RANK(INDEX(INDIRECT("Table8[Rand"&1*RIGHT(Table5[#Headers],1)&"]"),rowm),INDEX(Table8[],rowm,)),"") ->  | G30: =IF(RANDBETWEEN(0,1),RANK(INDEX(INDIRECT("Table8[Rand"&1*RIGHT(Table5[#Headers],1)&"]"),rowm),INDEX(Table8[],rowm,)),"") -> 7 | H30: =IF(RANDBETWEEN(0,1),RANK(INDEX(INDIRECT("Table8[Rand"&1*RIGHT(Table5[#Headers],1)&"]"),rowm),INDEX(Table8[],rowm,)),"") ->  | I30: =IF(RANDBETWEEN(0,1),RANK(INDEX(INDIRECT("Table8[Rand"&1*RIGHT(Table5[#Headers],1)&"]"),rowm),INDEX(Table8[],rowm,)),"") -> 2
B31: =IF(RANDBETWEEN(0,1),RANK(INDEX(INDIRECT("Table8[Rand"&1*RIGHT(Table5[#Headers],1)&"]"),rowm),INDEX(Table8[],rowm,)),"") ->  | C31: =IF(RANDBETWEEN(0,1),RANK(INDEX(INDIRECT("Table8[Rand"&1*RIGHT(Table5[#Headers],1)&"]"),rowm),INDEX(Table8[],rowm,)),"") ->  | D31: =IF(RANDBETWEEN(0,1),RANK(INDEX(INDIRECT("Table8[Rand"&1*RIGHT(Table5[#Headers],1)&"]"),rowm),INDEX(Table8[],rowm,)),"") -> 7 | E31: =IF(RANDBETWEEN(0,1),RANK(INDEX(INDIRECT("Table8[Rand"&1*RIGHT(Table5[#Headers],1)&"]"),rowm),INDEX(Table8[],rowm,)),"") ->  | F31: =IF(RANDBETWEEN(0,1),RANK(INDEX(INDIRECT("Table8[Rand"&1*RIGHT(Table5[#Headers],1)&"]"),rowm),INDEX(Table8[],rowm,)),"") ->  | G31: =IF(RANDBETWEEN(0,1),RANK(INDEX(INDIRECT("Table8[Rand"&1*RIGHT(Table5[#Headers],1)&"]"),rowm),INDEX(Table8[],rowm,)),"") ->  | H31: =IF(RANDBETWEEN(0,1),RANK(INDEX(INDIRECT("Table8[Rand"&1*RIGHT(Table5[#Headers],1)&"]"),rowm),INDEX(Table8[],rowm,)),"") -> 5 | I31: =IF(RANDBETWEEN(0,1),RANK(INDEX(INDIRECT("Table8[Rand"&1*RIGHT(Table5[#Headers],1)&"]"),rowm),INDEX(Table8[],rowm,)),"") -> 3
B32: =IF(RANDBETWEEN(0,1),RANK(INDEX(INDIRECT("Table8[Rand"&1*RIGHT(Table5[#Headers],1)&"]"),rowm),INDEX(Table8[],rowm,)),"") -> 4 | C32: =IF(RANDBETWEEN(0,1),RANK(INDEX(INDIRECT("Table8[Rand"&1*RIGHT(Table5[#Headers],1)&"]"),rowm),INDEX(Table8[],rowm,)),"") -> 2 | D32: =IF(RANDBETWEEN(0,1),RANK(INDEX(INDIRECT("Table8[Rand"&1*RIGHT(Table5[#Headers],1)&"]"),rowm),INDEX(Table8[],rowm,)),"") -> 5 | E32: =IF(RANDBETWEEN(0,1),RANK(INDEX(INDIRECT("Table8[Rand"&1*RIGHT(Table5[#Headers],1)&"]"),rowm),INDEX(Table8[],rowm,)),"") ->  | F32: =IF(RANDBETWEEN(0,1),RANK(INDEX(INDIRECT("Table8[Rand"&1*RIGHT(Table5[#Headers],1)&"]"),rowm),INDEX(Table8[],rowm,)),"") -> 6 | G32: =IF(RANDBETWEEN(0,1),RANK(INDEX(INDIRECT("Table8[Rand"&1*RIGHT(Table5[#Headers],1)&"]"),rowm),INDEX(Table8[],rowm,)),"") ->  | H32: =IF(RANDBETWEEN(0,1),RANK(INDEX(INDIRECT("Table8[Rand"&1*RIGHT(Table5[#Headers],1)&"]"),rowm),INDEX(Table8[],rowm,)),"") -> 3 | I32: =IF(RANDBETWEEN(0,1),RANK(INDEX(INDIRECT("Table8[Rand"&1*RIGHT(Table5[#Headers],1)&"]"),rowm),INDEX(Table8[],rowm,)),"") -> 8
B33: =IF(RANDBETWEEN(0,1),RANK(INDEX(INDIRECT("Table8[Rand"&1*RIGHT(Table5[#Headers],1)&"]"),rowm),INDEX(Table8[],rowm,)),"") ->  | C33: =IF(RANDBETWEEN(0,1),RANK(INDEX(INDIRECT("Table8[Rand"&1*RIGHT(Table5[#Headers],1)&"]"),rowm),INDEX(Table8[],rowm,)),"") ->  | D33: =IF(RANDBETWEEN(0,1),RANK(INDEX(INDIRECT("Table8[Rand"&1*RIGHT(Table5[#Headers],1)&"]"),rowm),INDEX(Table8[],rowm,)),"") ->  | E33: =IF(RANDBETWEEN(0,1),RANK(INDEX(INDIRECT("Table8[Rand"&1*RIGHT(Table5[#Headers],1)&"]"),rowm),INDEX(Table8[],rowm,)),"") ->  | F33: =IF(RANDBETWEEN(0,1),RANK(INDEX(INDIRECT("Table8[Rand"&1*RIGHT(Table5[#Headers],1)&"]"),rowm),INDEX(Table8[],rowm,)),"") ->  | G33: =IF(RANDBETWEEN(0,1),RANK(INDEX(INDIRECT("Table8[Rand"&1*RIGHT(Table5[#Headers],1)&"]"),rowm),INDEX(Table8[],rowm,)),"") ->  | H33: =IF(RANDBETWEEN(0,1),RANK(INDEX(INDIRECT("Table8[Rand"&1*RIGHT(Table5[#Headers],1)&"]"),rowm),INDEX(Table8[],rowm,)),"") ->  | I33: =IF(RANDBETWEEN(0,1),RANK(INDEX(INDIRECT("Table8[Rand"&1*RIGHT(Table5[#Headers],1)&"]"),rowm),INDEX(Table8[],rowm,)),"") -> 6
B34: =IF(RANDBETWEEN(0,1),RANK(INDEX(INDIRECT("Table8[Rand"&1*RIGHT(Table5[#Headers],1)&"]"),rowm),INDEX(Table8[],rowm,)),"") -> 8 | C34: =IF(RANDBETWEEN(0,1),RANK(INDEX(INDIRECT("Table8[Rand"&1*RIGHT(Table5[#Headers],1)&"]"),rowm),INDEX(Table8[],rowm,)),"") ->  | D34: =IF(RANDBETWEEN(0,1),RANK(INDEX(INDIRECT("Table8[Rand"&1*RIGHT(Table5[#Headers],1)&"]"),rowm),INDEX(Table8[],rowm,)),"") -> 1 | E34: =IF(RANDBETWEEN(0,1),RANK(INDEX(INDIRECT("Table8[Rand"&1*RIGHT(Table5[#Headers],1)&"]"),rowm),INDEX(Table8[],rowm,)),"") -> 6 | F34: =IF(RANDBETWEEN(0,1),RANK(INDEX(INDIRECT("Table8[Rand"&1*RIGHT(Table5[#Headers],1)&"]"),rowm),INDEX(Table8[],rowm,)),"") ->  | G34: =IF(RANDBETWEEN(0,1),RANK(INDEX(INDIRECT("Table8[Rand"&1*RIGHT(Table5[#Headers],1)&"]"),rowm),INDEX(Table8[],rowm,)),"") ->  | H34: =IF(RANDBETWEEN(0,1),RANK(INDEX(INDIRECT("Table8[Rand"&1*RIGHT(Table5[#Headers],1)&"]"),rowm),INDEX(Table8[],rowm,)),"") -> 4 | I34: =IF(RANDBETWEEN(0,1),RANK(INDEX(INDIRECT("Table8[Rand"&1*RIGHT(Table5[#Headers],1)&"]"),rowm),INDEX(Table8[],rowm,)),"") -> 
B35: =IF(RANDBETWEEN(0,1),RANK(INDEX(INDIRECT("Table8[Rand"&1*RIGHT(Table5[#Headers],1)&"]"),rowm),INDEX(Table8[],rowm,)),"") ->  | C35: =IF(RANDBETWEEN(0,1),RANK(INDEX(INDIRECT("Table8[Rand"&1*RIGHT(Table5[#Headers],1)&"]"),rowm),INDEX(Table8[],rowm,)),"") -> 1 | D35: =IF(RANDBETWEEN(0,1),RANK(INDEX(INDIRECT("Table8[Rand"&1*RIGHT(Table5[#Headers],1)&"]"),rowm),INDEX(Table8[],rowm,)),"") -> 4 | E35: =IF(RANDBETWEEN(0,1),RANK(INDEX(INDIRECT("Table8[Rand"&1*RIGHT(Table5[#Headers],1)&"]"),rowm),INDEX(Table8[],rowm,)),"") -> 5 | F35: =IF(RANDBETWEEN(0,1),RANK(INDEX(INDIRECT("Table8[Rand"&1*RIGHT(Table5[#Headers],1)&"]"),rowm),INDEX(Table8[],rowm,)),"") -> 8 | G35: =IF(RANDBETWEEN(0,1),RANK(INDEX(INDIRECT("Table8[Rand"&1*RIGHT(Table5[#Headers],1)&"]"),rowm),INDEX(Table8[],rowm,)),"") -> 3 | H35: =IF(RANDBETWEEN(0,1),RANK(INDEX(INDIRECT("Table8[Rand"&1*RIGHT(Table5[#Headers],1)&"]"),rowm),INDEX(Table8[],rowm,)),"") -> 6 | I35: =IF(RANDBETWEEN(0,1),RANK(INDEX(INDIRECT("Table8[Rand"&1*RIGHT(Table5[#Headers],1)&"]"),rowm),INDEX(Table8[],rowm,)),"") -> 
B36: =IF(RANDBETWEEN(0,1),RANK(INDEX(INDIRECT("Table8[Rand"&1*RIGHT(Table5[#Headers],1)&"]"),rowm),INDEX(Table8[],rowm,)),"") ->  | C36: =IF(RANDBETWEEN(0,1),RANK(INDEX(INDIRECT("Table8[Rand"&1*RIGHT(Table5[#Headers],1)&"]"),rowm),INDEX(Table8[],rowm,)),"") -> 2 | D36: =IF(RANDBETWEEN(0,1),RANK(INDEX(INDIRECT("Table8[Rand"&1*RIGHT(Table5[#Headers],1)&"]"),rowm),INDEX(Table8[],rowm,)),"") ->  | E36: =IF(RANDBETWEEN(0,1),RANK(INDEX(INDIRECT("Table8[Rand"&1*RIGHT(Table5[#Headers],1)&"]"),rowm),INDEX(Table8[],rowm,)),"") -> 4 | F36: =IF(RANDBETWEEN(0,1),RANK(INDEX(INDIRECT("Table8[Rand"&1*RIGHT(Table5[#Headers],1)&"]"),rowm),INDEX(Table8[],rowm,)),"") ->  | G36: =IF(RANDBETWEEN(0,1),RANK(INDEX(INDIRECT("Table8[Rand"&1*RIGHT(Table5[#Headers],1)&"]"),rowm),INDEX(Table8[],rowm,)),"") -> 1 | H36: =IF(RANDBETWEEN(0,1),RANK(INDEX(INDIRECT("Table8[Rand"&1*RIGHT(Table5[#Headers],1)&"]"),rowm),INDEX(Table8[],rowm,)),"") -> 7 | I36: =IF(RANDBETWEEN(0,1),RANK(INDEX(INDIRECT("Table8[Rand"&1*RIGHT(Table5[#Headers],1)&"]"),rowm),INDEX(Table8[],rowm,)),"") -> 3
B37: =IF(RANDBETWEEN(0,1),RANK(INDEX(INDIRECT("Table8[Rand"&1*RIGHT(Table5[#Headers],1)&"]"),rowm),INDEX(Table8[],rowm,)),"") ->  | C37: =IF(RANDBETWEEN(0,1),RANK(INDEX(INDIRECT("Table8[Rand"&1*RIGHT(Table5[#Headers],1)&"]"),rowm),INDEX(Table8[],rowm,)),"") ->  | D37: =IF(RANDBETWEEN(0,1),RANK(INDEX(INDIRECT("Table8[Rand"&1*RIGHT(Table5[#Headers],1)&"]"),rowm),INDEX(Table8[],rowm,)),"") ->  | E37: =IF(RANDBETWEEN(0,1),RANK(INDEX(INDIRECT("Table8[Rand"&1*RIGHT(Table5[#Headers],1)&"]"),rowm),INDEX(Table8[],rowm,)),"") -> 5 | F37: =IF(RANDBETWEEN(0,1),RANK(INDEX(INDIRECT("Table8[Rand"&1*RIGHT(Table5[#Headers],1)&"]"),rowm),INDEX(Table8[],rowm,)),"") -> 2 | G37: =IF(RANDBETWEEN(0,1),RANK(INDEX(INDIRECT("Table8[Rand"&1*RIGHT(Table5[#Headers],1)&"]"),rowm),INDEX(Table8[],rowm,)),"") ->  | H37: =IF(RANDBETWEEN(0,1),RANK(INDEX(INDIRECT("Table8[Rand"&1*RIGHT(Table5[#Headers],1)&"]"),rowm),INDEX(Table8[],rowm,)),"") -> 3 | I37: =IF(RANDBETWEEN(0,1),RANK(INDEX(INDIRECT("Table8[Rand"&1*RIGHT(Table5[#Headers],1)&"]"),rowm),INDEX(Table8[],rowm,)),"") -> 4
B38: =IF(RANDBETWEEN(0,1),RANK(INDEX(INDIRECT("Table8[Rand"&1*RIGHT(Table5[#Headers],1)&"]"),rowm),INDEX(Table8[],rowm,)),"") -> 3 | C38: =IF(RANDBETWEEN(0,1),RANK(INDEX(INDIRECT("Table8[Rand"&1*RIGHT(Table5[#Headers],1)&"]"),rowm),INDEX(Table8[],rowm,)),"") ->  | D38: =IF(RANDBETWEEN(0,1),RANK(INDEX(INDIRECT("Table8[Rand"&1*RIGHT(Table5[#Headers],1)&"]"),rowm),INDEX(Table8[],rowm,)),"") -> 8 | E38: =IF(RANDBETWEEN(0,1),RANK(INDEX(INDIRECT("Table8[Rand"&1*RIGHT(Table5[#Headers],1)&"]"),rowm),INDEX(Table8[],rowm,)),"") ->  | F38: =IF(RANDBETWEEN(0,1),RANK(INDEX(INDIRECT("Table8[Rand"&1*RIGHT(Table5[#Headers],1)&"]"),rowm),INDEX(Table8[],rowm,)),"") ->  | G38: =IF(RANDBETWEEN(0,1),RANK(INDEX(INDIRECT("Table8[Rand"&1*RIGHT(Table5[#Headers],1)&"]"),rowm),INDEX(Table8[],rowm,)),"") ->  | H38: =IF(RANDBETWEEN(0,1),RANK(INDEX(INDIRECT("Table8[Rand"&1*RIGHT(Table5[#Headers],1)&"]"),rowm),INDEX(Table8[],rowm,)),"") -> 7 | I38: =IF(RANDBETWEEN(0,1),RANK(INDEX(INDIRECT("Table8[Rand"&1*RIGHT(Table5[#Headers],1)&"]"),rowm),INDEX(Table8[],rowm,)),"") -> 
B39: =IF(RANDBETWEEN(0,1),RANK(INDEX(INDIRECT("Table8[Rand"&1*RIGHT(Table5[#Headers],1)&"]"),rowm),INDEX(Table8[],rowm,)),"") -> 8 | C39: =IF(RANDBETWEEN(0,1),RANK(INDEX(INDIRECT("Table8[Rand"&1*RIGHT(Table5[#Headers],1)&"]"),rowm),INDEX(Table8[],rowm,)),"") -> 2 | D39: =IF(RANDBETWEEN(0,1),RANK(INDEX(INDIRECT("Table8[Rand"&1*RIGHT(Table5[#Headers],1)&"]"),rowm),INDEX(Table8[],rowm,)),"") -> 3 | E39: =IF(RANDBETWEEN(0,1),RANK(INDEX(INDIRECT("Table8[Rand"&1*RIGHT(Table5[#Headers],1)&"]"),rowm),INDEX(Table8[],rowm,)),"") -> 7 | F39: =IF(RANDBETWEEN(0,1),RANK(INDEX(INDIRECT("Table8[Rand"&1*RIGHT(Table5[#Headers],1)&"]"),rowm),INDEX(Table8[],rowm,)),"") -> 5 | G39: =IF(RANDBETWEEN(0,1),RANK(INDEX(INDIRECT("Table8[Rand"&1*RIGHT(Table5[#Headers],1)&"]"),rowm),INDEX(Table8[],rowm,)),"") -> 1 | H39: =IF(RANDBETWEEN(0,1),RANK(INDEX(INDIRECT("Table8[Rand"&1*RIGHT(Table5[#Headers],1)&"]"),rowm),INDEX(Table8[],rowm,)),"") -> 4 | I39: =IF(RANDBETWEEN(0,1),RANK(INDEX(INDIRECT("Table8[Rand"&1*RIGHT(Table5[#Headers],1)&"]"),rowm),INDEX(Table8[],rowm,)),"") -> 
B40: =IF(RANDBETWEEN(0,1),RANK(INDEX(INDIRECT("Table8[Rand"&1*RIGHT(Table5[#Headers],1)&"]"),rowm),INDEX(Table8[],rowm,)),"") ->  | C40: =IF(RANDBETWEEN(0,1),RANK(INDEX(INDIRECT("Table8[Rand"&1*RIGHT(Table5[#Headers],1)&"]"),rowm),INDEX(Table8[],rowm,)),"") ->  | D40: =IF(RANDBETWEEN(0,1),RANK(INDEX(INDIRECT("Table8[Rand"&1*RIGHT(Table5[#Headers],1)&"]"),rowm),INDEX(Table8[],rowm,)),"") -> 3 | E40: =IF(RANDBETWEEN(0,1),RANK(INDEX(INDIRECT("Table8[Rand"&1*RIGHT(Table5[#Headers],1)&"]"),rowm),INDEX(Table8[],rowm,)),"") -> 5 | F40: =IF(RANDBETWEEN(0,1),RANK(INDEX(INDIRECT("Table8[Rand"&1*RIGHT(Table5[#Headers],1)&"]"),rowm),INDEX(Table8[],rowm,)),"") ->  | G40: =IF(RANDBETWEEN(0,1),RANK(INDEX(INDIRECT("Table8[Rand"&1*RIGHT(Table5[#Headers],1)&"]"),rowm),INDEX(Table8[],rowm,)),"") -> 7 | H40: =IF(RANDBETWEEN(0,1),RANK(INDEX(INDIRECT("Table8[Rand"&1*RIGHT(Table5[#Headers],1)&"]"),rowm),INDEX(Table8[],rowm,)),"") ->  | I40: =IF(RANDBETWEEN(0,1),RANK(INDEX(INDIRECT("Table8[Rand"&1*RIGHT(Table5[#Headers],1)&"]"),rowm),INDEX(Table8[],rowm,)),"") -> 
B41: =IF(RANDBETWEEN(0,1),RANK(INDEX(INDIRECT("Table8[Rand"&1*RIGHT(Table5[#Headers],1)&"]"),rowm),INDEX(Table8[],rowm,)),"") -> 8 | C41: =IF(RANDBETWEEN(0,1),RANK(INDEX(INDIRECT("Table8[Rand"&1*RIGHT(Table5[#Headers],1)&"]"),rowm),INDEX(Table8[],rowm,)),"") ->  | D41: =IF(RANDBETWEEN(0,1),RANK(INDEX(INDIRECT("Table8[Rand"&1*RIGHT(Table5[#Headers],1)&"]"),rowm),INDEX(Table8[],rowm,)),"") ->  | E41: =IF(RANDBETWEEN(0,1),RANK(INDEX(INDIRECT("Table8[Rand"&1*RIGHT(Table5[#Headers],1)&"]"),rowm),INDEX(Table8[],rowm,)),"") -> 6 | F41: =IF(RANDBETWEEN(0,1),RANK(INDEX(INDIRECT("Table8[Rand"&1*RIGHT(Table5[#Headers],1)&"]"),rowm),INDEX(Table8[],rowm,)),"") -> 4 | G41: =IF(RANDBETWEEN(0,1),RANK(INDEX(INDIRECT("Table8[Rand"&1*RIGHT(Table5[#Headers],1)&"]"),rowm),INDEX(Table8[],rowm,)),"") -> 3 | H41: =IF(RANDBETWEEN(0,1),RANK(INDEX(INDIRECT("Table8[Rand"&1*RIGHT(Table5[#Headers],1)&"]"),rowm),INDEX(Table8[],rowm,)),"") -> 7 | I41: =IF(RANDBETWEEN(0,1),RANK(INDEX(INDIRECT("Table8[Rand"&1*RIGHT(Table5[#Headers],1)&"]"),rowm),INDEX(Table8[],rowm,)),"") -> 
B44: Table3
B45: Auth1 | C45: Auth2 | D45: Auth3 | E45: Auth4 | F45: Auth5 | G45: Auth6 | H45: Auth7 | I45: Auth8
B46: =IFERROR(LOOKUP(INDEX(INDIRECT("Table5[Rank"&1*RIGHT(Table3[#Headers],1)&"]"),rowd),Table7[Seq],Table7[NName]),"") ->  | C46: =IFERROR(LOOKUP(INDEX(INDIRECT("Table5[Rank"&1*RIGHT(Table3[#Headers],1)&"]"),rowd),Table7[Seq],Table7[NName]),"") -> Brown | D46: =IFERROR(LOOKUP(INDEX(INDIRECT("Table5[Rank"&1*RIGHT(Table3[#Headers],1)&"]"),rowd),Table7[Seq],Table7[NName]),"") -> Johnson | E46: =IFERROR(LOOKUP(INDEX(INDIRECT("Table5[Rank"&1*RIGHT(Table3[#Headers],1)&"]"),rowd),Table7[Seq],Table7[NName]),"") -> Jones | F46: =IFERROR(LOOKUP(INDEX(INDIRECT("Table5[Rank"&1*RIGHT(Table3[#Headers],1)&"]"),rowd),Table7[Seq],Table7[NName]),"") -> Smith | G46: =IFERROR(LOOKUP(INDEX(INDIRECT("Table5[Rank"&1*RIGHT(Table3[#Headers],1)&"]"),rowd),Table7[Seq],Table7[NName]),"") ->  | H46: =IFERROR(LOOKUP(INDEX(INDIRECT("Table5[Rank"&1*RIGHT(Table3[#Headers],1)&"]"),rowd),Table7[Seq],Table7[NName]),"") -> Williams | I46: =IFERROR(LOOKUP(INDEX(INDIRECT("Table5[Rank"&1*RIGHT(Table3[#Headers],1)&"]"),rowd),Table7[Seq],Table7[NName]),"") -> Miller
B47: =IFERROR(LOOKUP(INDEX(INDIRECT("Table5[Rank"&1*RIGHT(Table3[#Headers],1)&"]"),rowd),Table7[Seq],Table7[NName]),"") -> Smith | C47: =IFERROR(LOOKUP(INDEX(INDIRECT("Table5[Rank"&1*RIGHT(Table3[#Headers],1)&"]"),rowd),Table7[Seq],Table7[NName]),"") -> Miller | D47: =IFERROR(LOOKUP(INDEX(INDIRECT("Table5[Rank"&1*RIGHT(Table3[#Headers],1)&"]"),rowd),Table7[Seq],Table7[NName]),"") ->  | E47: =IFERROR(LOOKUP(INDEX(INDIRECT("Table5[Rank"&1*RIGHT(Table3[#Headers],1)&"]"),rowd),Table7[Seq],Table7[NName]),"") -> Williams | F47: =IFERROR(LOOKUP(INDEX(INDIRECT("Table5[Rank"&1*RIGHT(Table3[#Headers],1)&"]"),rowd),Table7[Seq],Table7[NName]),"") -> Davis | G47: =IFERROR(LOOKUP(INDEX(INDIRECT("Table5[Rank"&1*RIGHT(Table3[#Headers],1)&"]"),rowd),Table7[Seq],Table7[NName]),"") -> Jones | H47: =IFERROR(LOOKUP(INDEX(INDIRECT("Table5[Rank"&1*RIGHT(Table3[#Headers],1)&"]"),rowd),Table7[Seq],Table7[NName]),"") ->  | I47: =IFERROR(LOOKUP(INDEX(INDIRECT("Table5[Rank"&1*RIGHT(Table3[#Headers],1)&"]"),rowd),Table7[Seq],Table7[NName]),"") -> 
B48: =IFERROR(LOOKUP(INDEX(INDIRECT("Table5[Rank"&1*RIGHT(Table3[#Headers],1)&"]"),rowd),Table7[Seq],Table7[NName]),"") ->  | C48: =IFERROR(LOOKUP(INDEX(INDIRECT("Table5[Rank"&1*RIGHT(Table3[#Headers],1)&"]"),rowd),Table7[Seq],Table7[NName]),"") -> Wilson | D48: =IFERROR(LOOKUP(INDEX(INDIRECT("Table5[Rank"&1*RIGHT(Table3[#Headers],1)&"]"),rowd),Table7[Seq],Table7[NName]),"") ->  | E48: =IFERROR(LOOKUP(INDEX(INDIRECT("Table5[Rank"&1*RIGHT(Table3[#Headers],1)&"]"),rowd),Table7[Seq],Table7[NName]),"") ->  | F48: =IFERROR(LOOKUP(INDEX(INDIRECT("Table5[Rank"&1*RIGHT(Table3[#Headers],1)&"]"),rowd),Table7[Seq],Table7[NName]),"") ->  | G48: =IFERROR(LOOKUP(INDEX(INDIRECT("Table5[Rank"&1*RIGHT(Table3[#Headers],1)&"]"),rowd),Table7[Seq],Table7[NName]),"") -> Smith | H48: =IFERROR(LOOKUP(INDEX(INDIRECT("Table5[Rank"&1*RIGHT(Table3[#Headers],1)&"]"),rowd),Table7[Seq],Table7[NName]),"") -> Brown | I48: =IFERROR(LOOKUP(INDEX(INDIRECT("Table5[Rank"&1*RIGHT(Table3[#Headers],1)&"]"),rowd),Table7[Seq],Table7[NName]),"") -> 
B49: =IFERROR(LOOKUP(INDEX(INDIRECT("Table5[Rank"&1*RIGHT(Table3[#Headers],1)&"]"),rowd),Table7[Seq],Table7[NName]),"") ->  | C49: =IFERROR(LOOKUP(INDEX(INDIRECT("Table5[Rank"&1*RIGHT(Table3[#Headers],1)&"]"),rowd),Table7[Seq],Table7[NName]),"") ->  | D49: =IFERROR(LOOKUP(INDEX(INDIRECT("Table5[Rank"&1*RIGHT(Table3[#Headers],1)&"]"),rowd),Table7[Seq],Table7[NName]),"") -> Davis | E49: =IFERROR(LOOKUP(INDEX(INDIRECT("Table5[Rank"&1*RIGHT(Table3[#Headers],1)&"]"),rowd),Table7[Seq],Table7[NName]),"") -> Williams | F49: =IFERROR(LOOKUP(INDEX(INDIRECT("Table5[Rank"&1*RIGHT(Table3[#Headers],1)&"]"),rowd),Table7[Seq],Table7[NName]),"") -> Smith | G49: =IFERROR(LOOKUP(INDEX(INDIRECT("Table5[Rank"&1*RIGHT(Table3[#Headers],1)&"]"),rowd),Table7[Seq],Table7[NName]),"") -> Johnson | H49: =IFERROR(LOOKUP(INDEX(INDIRECT("Table5[Rank"&1*RIGHT(Table3[#Headers],1)&"]"),rowd),Table7[Seq],Table7[NName]),"") -> Jones | I49: =IFERROR(LOOKUP(INDEX(INDIRECT("Table5[Rank"&1*RIGHT(Table3[#Headers],1)&"]"),rowd),Table7[Seq],Table7[NName]),"") -> 
B50: =IFERROR(LOOKUP(INDEX(INDIRECT("Table5[Rank"&1*RIGHT(Table3[#Headers],1)&"]"),rowd),Table7[Seq],Table7[NName]),"") -> Wilson | C50: =IFERROR(LOOKUP(INDEX(INDIRECT("Table5[Rank"&1*RIGHT(Table3[#Headers],1)&"]"),rowd),Table7[Seq],Table7[NName]),"") ->  | D50: =IFERROR(LOOKUP(INDEX(INDIRECT("Table5[Rank"&1*RIGHT(Table3[#Headers],1)&"]"),rowd),Table7[Seq],Table7[NName]),"") -> Miller | E50: =IFERROR(LOOKUP(INDEX(INDIRECT("Table5[Rank"&1*RIGHT(Table3[#Headers],1)&"]"),rowd),Table7[Seq],Table7[NName]),"") ->  | F50: =IFERROR(LOOKUP(INDEX(INDIRECT("Table5[Rank"&1*RIGHT(Table3[#Headers],1)&"]"),rowd),Table7[Seq],Table7[NName]),"") ->  | G50: =IFERROR(LOOKUP(INDEX(INDIRECT("Table5[Rank"&1*RIGHT(Table3[#Headers],1)&"]"),rowd),Table7[Seq],Table7[NName]),"") -> Brown | H50: =IFERROR(LOOKUP(INDEX(INDIRECT("Table5[Rank"&1*RIGHT(Table3[#Headers],1)&"]"),rowd),Table7[Seq],Table7[NName]),"") -> Johnson | I50: =IFERROR(LOOKUP(INDEX(INDIRECT("Table5[Rank"&1*RIGHT(Table3[#Headers],1)&"]"),rowd),Table7[Seq],Table7[NName]),"") -> Williams
B51: =IFERROR(LOOKUP(INDEX(INDIRECT("Table5[Rank"&1*RIGHT(Table3[#Headers],1)&"]"),rowd),Table7[Seq],Table7[NName]),"") -> Johnson | C51: =IFERROR(LOOKUP(INDEX(INDIRECT("Table5[Rank"&1*RIGHT(Table3[#Headers],1)&"]"),rowd),Table7[Seq],Table7[NName]),"") -> Jones | D51: =IFERROR(LOOKUP(INDEX(INDIRECT("Table5[Rank"&1*RIGHT(Table3[#Headers],1)&"]"),rowd),Table7[Seq],Table7[NName]),"") -> Wilson | E51: =IFERROR(LOOKUP(INDEX(INDIRECT("Table5[Rank"&1*RIGHT(Table3[#Headers],1)&"]"),rowd),Table7[Seq],Table7[NName]),"") ->  | F51: =IFERROR(LOOKUP(INDEX(INDIRECT("Table5[Rank"&1*RIGHT(Table3[#Headers],1)&"]"),rowd),Table7[Seq],Table7[NName]),"") ->  | G51: =IFERROR(LOOKUP(INDEX(INDIRECT("Table5[Rank"&1*RIGHT(Table3[#Headers],1)&"]"),rowd),Table7[Seq],Table7[NName]),"") -> Williams | H51: =IFERROR(LOOKUP(INDEX(INDIRECT("Table5[Rank"&1*RIGHT(Table3[#Headers],1)&"]"),rowd),Table7[Seq],Table7[NName]),"") ->  | I51: =IFERROR(LOOKUP(INDEX(INDIRECT("Table5[Rank"&1*RIGHT(Table3[#Headers],1)&"]"),rowd),Table7[Seq],Table7[NName]),"") -> Davis
B52: =IFERROR(LOOKUP(INDEX(INDIRECT("Table5[Rank"&1*RIGHT(Table3[#Headers],1)&"]"),rowd),Table7[Seq],Table7[NName]),"") ->  | C52: =IFERROR(LOOKUP(INDEX(INDIRECT("Table5[Rank"&1*RIGHT(Table3[#Headers],1)&"]"),rowd),Table7[Seq],Table7[NName]),"") ->  | D52: =IFERROR(LOOKUP(INDEX(INDIRECT("Table5[Rank"&1*RIGHT(Table3[#Headers],1)&"]"),rowd),Table7[Seq],Table7[NName]),"") -> Williams | E52: =IFERROR(LOOKUP(INDEX(INDIRECT("Table5[Rank"&1*RIGHT(Table3[#Headers],1)&"]"),rowd),Table7[Seq],Table7[NName]),"") ->  | F52: =IFERROR(LOOKUP(INDEX(INDIRECT("Table5[Rank"&1*RIGHT(Table3[#Headers],1)&"]"),rowd),Table7[Seq],Table7[NName]),"") ->  | G52: =IFERROR(LOOKUP(INDEX(INDIRECT("Table5[Rank"&1*RIGHT(Table3[#Headers],1)&"]"),rowd),Table7[Seq],Table7[NName]),"") ->  | H52: =IFERROR(LOOKUP(INDEX(INDIRECT("Table5[Rank"&1*RIGHT(Table3[#Headers],1)&"]"),rowd),Table7[Seq],Table7[NName]),"") -> Miller | I52: =IFERROR(LOOKUP(INDEX(INDIRECT("Table5[Rank"&1*RIGHT(Table3[#Headers],1)&"]"),rowd),Table7[Seq],Table7[NName]),"") -> Johnson
B53: =IFERROR(LOOKUP(INDEX(INDIRECT("Table5[Rank"&1*RIGHT(Table3[#Headers],1)&"]"),rowd),Table7[Seq],Table7[NName]),"") -> Jones | C53: =IFERROR(LOOKUP(INDEX(INDIRECT("Table5[Rank"&1*RIGHT(Table3[#Headers],1)&"]"),rowd),Table7[Seq],Table7[NName]),"") -> Davis | D53: =IFERROR(LOOKUP(INDEX(INDIRECT("Table5[Rank"&1*RIGHT(Table3[#Headers],1)&"]"),rowd),Table7[Seq],Table7[NName]),"") -> Miller | E53: =IFERROR(LOOKUP(INDEX(INDIRECT("Table5[Rank"&1*RIGHT(Table3[#Headers],1)&"]"),rowd),Table7[Seq],Table7[NName]),"") ->  | F53: =IFERROR(LOOKUP(INDEX(INDIRECT("Table5[Rank"&1*RIGHT(Table3[#Headers],1)&"]"),rowd),Table7[Seq],Table7[NName]),"") -> Smith | G53: =IFERROR(LOOKUP(INDEX(INDIRECT("Table5[Rank"&1*RIGHT(Table3[#Headers],1)&"]"),rowd),Table7[Seq],Table7[NName]),"") ->  | H53: =IFERROR(LOOKUP(INDEX(INDIRECT("Table5[Rank"&1*RIGHT(Table3[#Headers],1)&"]"),rowd),Table7[Seq],Table7[NName]),"") -> Johnson | I53: =IFERROR(LOOKUP(INDEX(INDIRECT("Table5[Rank"&1*RIGHT(Table3[#Headers],1)&"]"),rowd),Table7[Seq],Table7[NName]),"") -> Wilson
B54: =IFERROR(LOOKUP(INDEX(INDIRECT("Table5[Rank"&1*RIGHT(Table3[#Headers],1)&"]"),rowd),Table7[Seq],Table7[NName]),"") ->  | C54: =IFERROR(LOOKUP(INDEX(INDIRECT("Table5[Rank"&1*RIGHT(Table3[#Headers],1)&"]"),rowd),Table7[Seq],Table7[NName]),"") ->  | D54: =IFERROR(LOOKUP(INDEX(INDIRECT("Table5[Rank"&1*RIGHT(Table3[#Headers],1)&"]"),rowd),Table7[Seq],Table7[NName]),"") ->  | E54: =IFERROR(LOOKUP(INDEX(INDIRECT("Table5[Rank"&1*RIGHT(Table3[#Headers],1)&"]"),rowd),Table7[Seq],Table7[NName]),"") ->  | F54: =IFERROR(LOOKUP(INDEX(INDIRECT("Table5[Rank"&1*RIGHT(Table3[#Headers],1)&"]"),rowd),Table7[Seq],Table7[NName]),"") ->  | G54: =IFERROR(LOOKUP(INDEX(INDIRECT("Table5[Rank"&1*RIGHT(Table3[#Headers],1)&"]"),rowd),Table7[Seq],Table7[NName]),"") ->  | H54: =IFERROR(LOOKUP(INDEX(INDIRECT("Table5[Rank"&1*RIGHT(Table3[#Headers],1)&"]"),rowd),Table7[Seq],Table7[NName]),"") ->  | I54: =IFERROR(LOOKUP(INDEX(INDIRECT("Table5[Rank"&1*RIGHT(Table3[#Headers],1)&"]"),rowd),Table7[Seq],Table7[NName]),"") -> Smith
B55: =IFERROR(LOOKUP(INDEX(INDIRECT("Table5[Rank"&1*RIGHT(Table3[#Headers],1)&"]"),rowd),Table7[Seq],Table7[NName]),"") -> Wilson | C55: =IFERROR(LOOKUP(INDEX(INDIRECT("Table5[Rank"&1*RIGHT(Table3[#Headers],1)&"]"),rowd),Table7[Seq],Table7[NName]),"") ->  | D55: =IFERROR(LOOKUP(INDEX(INDIRECT("Table5[Rank"&1*RIGHT(Table3[#Headers],1)&"]"),rowd),Table7[Seq],Table7[NName]),"") -> Brown | E55: =IFERROR(LOOKUP(INDEX(INDIRECT("Table5[Rank"&1*RIGHT(Table3[#Headers],1)&"]"),rowd),Table7[Seq],Table7[NName]),"") -> Smith | F55: =IFERROR(LOOKUP(INDEX(INDIRECT("Table5[Rank"&1*RIGHT(Table3[#Headers],1)&"]"),rowd),Table7[Seq],Table7[NName]),"") ->  | G55: =IFERROR(LOOKUP(INDEX(INDIRECT("Table5[Rank"&1*RIGHT(Table3[#Headers],1)&"]"),rowd),Table7[Seq],Table7[NName]),"") ->  | H55: =IFERROR(LOOKUP(INDEX(INDIRECT("Table5[Rank"&1*RIGHT(Table3[#Headers],1)&"]"),rowd),Table7[Seq],Table7[NName]),"") -> Jones | I55: =IFERROR(LOOKUP(INDEX(INDIRECT("Table5[Rank"&1*RIGHT(Table3[#Headers],1)&"]"),rowd),Table7[Seq],Table7[NName]),"") -> 
B56: =IFERROR(LOOKUP(INDEX(INDIRECT("Table5[Rank"&1*RIGHT(Table3[#Headers],1)&"]"),rowd),Table7[Seq],Table7[NName]),"") ->  | C56: =IFERROR(LOOKUP(INDEX(INDIRECT("Table5[Rank"&1*RIGHT(Table3[#Headers],1)&"]"),rowd),Table7[Seq],Table7[NName]),"") -> Brown | D56: =IFERROR(LOOKUP(INDEX(INDIRECT("Table5[Rank"&1*RIGHT(Table3[#Headers],1)&"]"),rowd),Table7[Seq],Table7[NName]),"") -> Jones | E56: =IFERROR(LOOKUP(INDEX(INDIRECT("Table5[Rank"&1*RIGHT(Table3[#Headers],1)&"]"),rowd),Table7[Seq],Table7[NName]),"") -> Miller | F56: =IFERROR(LOOKUP(INDEX(INDIRECT("Table5[Rank"&1*RIGHT(Table3[#Headers],1)&"]"),rowd),Table7[Seq],Table7[NName]),"") -> Wilson | G56: =IFERROR(LOOKUP(INDEX(INDIRECT("Table5[Rank"&1*RIGHT(Table3[#Headers],1)&"]"),rowd),Table7[Seq],Table7[NName]),"") -> Johnson | H56: =IFERROR(LOOKUP(INDEX(INDIRECT("Table5[Rank"&1*RIGHT(Table3[#Headers],1)&"]"),rowd),Table7[Seq],Table7[NName]),"") -> Smith | I56: =IFERROR(LOOKUP(INDEX(INDIRECT("Table5[Rank"&1*RIGHT(Table3[#Headers],1)&"]"),rowd),Table7[Seq],Table7[NName]),"") -> 
B57: =IFERROR(LOOKUP(INDEX(INDIRECT("Table5[Rank"&1*RIGHT(Table3[#Headers],1)&"]"),rowd),Table7[Seq],Table7[NName]),"") ->  | C57: =IFERROR(LOOKUP(INDEX(INDIRECT("Table5[Rank"&1*RIGHT(Table3[#Headers],1)&"]"),rowd),Table7[Seq],Table7[NName]),"") -> Davis | D57: =IFERROR(LOOKUP(INDEX(INDIRECT("Table5[Rank"&1*RIGHT(Table3[#Headers],1)&"]"),rowd),Table7[Seq],Table7[NName]),"") ->  | E57: =IFERROR(LOOKUP(INDEX(INDIRECT("Table5[Rank"&1*RIGHT(Table3[#Headers],1)&"]"),rowd),Table7[Seq],Table7[NName]),"") -> Jones | F57: =IFERROR(LOOKUP(INDEX(INDIRECT("Table5[Rank"&1*RIGHT(Table3[#Headers],1)&"]"),rowd),Table7[Seq],Table7[NName]),"") ->  | G57: =IFERROR(LOOKUP(INDEX(INDIRECT("Table5[Rank"&1*RIGHT(Table3[#Headers],1)&"]"),rowd),Table7[Seq],Table7[NName]),"") -> Brown | H57: =IFERROR(LOOKUP(INDEX(INDIRECT("Table5[Rank"&1*RIGHT(Table3[#Headers],1)&"]"),rowd),Table7[Seq],Table7[NName]),"") -> Williams | I57: =IFERROR(LOOKUP(INDEX(INDIRECT("Table5[Rank"&1*RIGHT(Table3[#Headers],1)&"]"),rowd),Table7[Seq],Table7[NName]),"") -> Johnson
B58: =IFERROR(LOOKUP(INDEX(INDIRECT("Table5[Rank"&1*RIGHT(Table3[#Headers],1)&"]"),rowd),Table7[Seq],Table7[NName]),"") ->  | C58: =IFERROR(LOOKUP(INDEX(INDIRECT("Table5[Rank"&1*RIGHT(Table3[#Headers],1)&"]"),rowd),Table7[Seq],Table7[NName]),"") ->  | D58: =IFERROR(LOOKUP(INDEX(INDIRECT("Table5[Rank"&1*RIGHT(Table3[#Headers],1)&"]"),rowd),Table7[Seq],Table7[NName]),"") ->  | E58: =IFERROR(LOOKUP(INDEX(INDIRECT("Table5[Rank"&1*RIGHT(Table3[#Headers],1)&"]"),rowd),Table7[Seq],Table7[NName]),"") -> Miller | F58: =IFERROR(LOOKUP(INDEX(INDIRECT("Table5[Rank"&1*RIGHT(Table3[#Headers],1)&"]"),rowd),Table7[Seq],Table7[NName]),"") -> Davis | G58: =IFERROR(LOOKUP(INDEX(INDIRECT("Table5[Rank"&1*RIGHT(Table3[#Headers],1)&"]"),rowd),Table7[Seq],Table7[NName]),"") ->  | H58: =IFERROR(LOOKUP(INDEX(INDIRECT("Table5[Rank"&1*RIGHT(Table3[#Headers],1)&"]"),rowd),Table7[Seq],Table7[NName]),"") -> Johnson | I58: =IFERROR(LOOKUP(INDEX(INDIRECT("Table5[Rank"&1*RIGHT(Table3[#Headers],1)&"]"),rowd),Table7[Seq],Table7[NName]),"") -> Jones
B59: =IFERROR(LOOKUP(INDEX(INDIRECT("Table5[Rank"&1*RIGHT(Table3[#Headers],1)&"]"),rowd),Table7[Seq],Table7[NName]),"") -> Johnson | C59: =IFERROR(LOOKUP(INDEX(INDIRECT("Table5[Rank"&1*RIGHT(Table3[#Headers],1)&"]"),rowd),Table7[Seq],Table7[NName]),"") ->  | D59: =IFERROR(LOOKUP(INDEX(INDIRECT("Table5[Rank"&1*RIGHT(Table3[#Headers],1)&"]"),rowd),Table7[Seq],Table7[NName]),"") -> Wilson | E59: =IFERROR(LOOKUP(INDEX(INDIRECT("Table5[Rank"&1*RIGHT(Table3[#Headers],1)&"]"),rowd),Table7[Seq],Table7[NName]),"") ->  | F59: =IFERROR(LOOKUP(INDEX(INDIRECT("Table5[Rank"&1*RIGHT(Table3[#Headers],1)&"]"),rowd),Table7[Seq],Table7[NName]),"") ->  | G59: =IFERROR(LOOKUP(INDEX(INDIRECT("Table5[Rank"&1*RIGHT(Table3[#Headers],1)&"]"),rowd),Table7[Seq],Table7[NName]),"") ->  | H59: =IFERROR(LOOKUP(INDEX(INDIRECT("Table5[Rank"&1*RIGHT(Table3[#Headers],1)&"]"),rowd),Table7[Seq],Table7[NName]),"") -> Williams | I59: =IFERROR(LOOKUP(INDEX(INDIRECT("Table5[Rank"&1*RIGHT(Table3[#Headers],1)&"]"),rowd),Table7[Seq],Table7[NName]),"") -> 
B60: =IFERROR(LOOKUP(INDEX(INDIRECT("Table5[Rank"&1*RIGHT(Table3[#Headers],1)&"]"),rowd),Table7[Seq],Table7[NName]),"") -> Wilson | C60: =IFERROR(LOOKUP(INDEX(INDIRECT("Table5[Rank"&1*RIGHT(Table3[#Headers],1)&"]"),rowd),Table7[Seq],Table7[NName]),"") -> Davis | D60: =IFERROR(LOOKUP(INDEX(INDIRECT("Table5[Rank"&1*RIGHT(Table3[#Headers],1)&"]"),rowd),Table7[Seq],Table7[NName]),"") -> Johnson | E60: =IFERROR(LOOKUP(INDEX(INDIRECT("Table5[Rank"&1*RIGHT(Table3[#Headers],1)&"]"),rowd),Table7[Seq],Table7[NName]),"") -> Williams | F60: =IFERROR(LOOKUP(INDEX(INDIRECT("Table5[Rank"&1*RIGHT(Table3[#Headers],1)&"]"),rowd),Table7[Seq],Table7[NName]),"") -> Miller | G60: =IFERROR(LOOKUP(INDEX(INDIRECT("Table5[Rank"&1*RIGHT(Table3[#Headers],1)&"]"),rowd),Table7[Seq],Table7[NName]),"") -> Brown | H60: =IFERROR(LOOKUP(INDEX(INDIRECT("Table5[Rank"&1*RIGHT(Table3[#Headers],1)&"]"),rowd),Table7[Seq],Table7[NName]),"") -> Jones | I60: =IFERROR(LOOKUP(INDEX(INDIRECT("Table5[Rank"&1*RIGHT(Table3[#Headers],1)&"]"),rowd),Table7[Seq],Table7[NName]),"") -> 
B61: =IFERROR(LOOKUP(INDEX(INDIRECT("Table5[Rank"&1*RIGHT(Table3[#Headers],1)&"]"),rowd),Table7[Seq],Table7[NName]),"") ->  | C61: =IFERROR(LOOKUP(INDEX(INDIRECT("Table5[Rank"&1*RIGHT(Table3[#Headers],1)&"]"),rowd),Table7[Seq],Table7[NName]),"") ->  | D61: =IFERROR(LOOKUP(INDEX(INDIRECT("Table5[Rank"&1*RIGHT(Table3[#Headers],1)&"]"),rowd),Table7[Seq],Table7[NName]),"") -> Johnson | E61: =IFERROR(LOOKUP(INDEX(INDIRECT("Table5[Rank"&1*RIGHT(Table3[#Headers],1)&"]"),rowd),Table7[Seq],Table7[NName]),"") -> Miller | F61: =IFERROR(LOOKUP(INDEX(INDIRECT("Table5[Rank"&1*RIGHT(Table3[#Headers],1)&"]"),rowd),Table7[Seq],Table7[NName]),"") ->  | G61: =IFERROR(LOOKUP(INDEX(INDIRECT("Table5[Rank"&1*RIGHT(Table3[#Headers],1)&"]"),rowd),Table7[Seq],Table7[NName]),"") -> Williams | H61: =IFERROR(LOOKUP(INDEX(INDIRECT("Table5[Rank"&1*RIGHT(Table3[#Headers],1)&"]"),rowd),Table7[Seq],Table7[NName]),"") ->  | I61: =IFERROR(LOOKUP(INDEX(INDIRECT("Table5[Rank"&1*RIGHT(Table3[#Headers],1)&"]"),rowd),Table7[Seq],Table7[NName]),"") -> 
B62: =IFERROR(LOOKUP(INDEX(INDIRECT("Table5[Rank"&1*RIGHT(Table3[#Headers],1)&"]"),rowd),Table7[Seq],Table7[NName]),"") -> Wilson | C62: =IFERROR(LOOKUP(INDEX(INDIRECT("Table5[Rank"&1*RIGHT(Table3[#Headers],1)&"]"),rowd),Table7[Seq],Table7[NName]),"") ->  | D62: =IFERROR(LOOKUP(INDEX(INDIRECT("Table5[Rank"&1*RIGHT(Table3[#Headers],1)&"]"),rowd),Table7[Seq],Table7[NName]),"") ->  | E62: =IFERROR(LOOKUP(INDEX(INDIRECT("Table5[Rank"&1*RIGHT(Table3[#Headers],1)&"]"),rowd),Table7[Seq],Table7[NName]),"") -> Smith | F62: =IFERROR(LOOKUP(INDEX(INDIRECT("Table5[Rank"&1*RIGHT(Table3[#Headers],1)&"]"),rowd),Table7[Seq],Table7[NName]),"") -> Jones | G62: =IFERROR(LOOKUP(INDEX(INDIRECT("Table5[Rank"&1*RIGHT(Table3[#Headers],1)&"]"),rowd),Table7[Seq],Table7[NName]),"") -> Johnson | H62: =IFERROR(LOOKUP(INDEX(INDIRECT("Table5[Rank"&1*RIGHT(Table3[#Headers],1)&"]"),rowd),Table7[Seq],Table7[NName]),"") -> Williams | I62: =IFERROR(LOOKUP(INDEX(INDIRECT("Table5[Rank"&1*RIGHT(Table3[#Headers],1)&"]"),rowd),Table7[Seq],Table7[NName]),"") -> 
B65: Table6
B66: Bin1 | C66: Bin2 | D66: Bin3 | E66: Bin4 | F66: Bin5 | G66: Bin6 | H66: Bin7 | I66: Bin8 | J66: Bin9
B67: =IFERROR(LOOKUP(INDEX(INDIRECT("Table3[Auth"&1*RIGHT(Table6[#Headers],1)&"]"),rown),Table7[NName],Table7[Prime]),"") ->  | C67: =IFERROR(LOOKUP(INDEX(INDIRECT("Table3[Auth"&1*RIGHT(Table6[#Headers],1)&"]"),rown),Table7[NName],Table7[Prime]),"") -> 3 | D67: =IFERROR(LOOKUP(INDEX(INDIRECT("Table3[Auth"&1*RIGHT(Table6[#Headers],1)&"]"),rown),Table7[NName],Table7[Prime]),"") -> 7 | E67: =IFERROR(LOOKUP(INDEX(INDIRECT("Table3[Auth"&1*RIGHT(Table6[#Headers],1)&"]"),rown),Table7[NName],Table7[Prime]),"") -> 11 | F67: =IFERROR(LOOKUP(INDEX(INDIRECT("Table3[Auth"&1*RIGHT(Table6[#Headers],1)&"]"),rown),Table7[NName],Table7[Prime]),"") -> 17 | G67: =IFERROR(LOOKUP(INDEX(INDIRECT("Table3[Auth"&1*RIGHT(Table6[#Headers],1)&"]"),rown),Table7[NName],Table7[Prime]),"") ->  | H67: =IFERROR(LOOKUP(INDEX(INDIRECT("Table3[Auth"&1*RIGHT(Table6[#Headers],1)&"]"),rown),Table7[NName],Table7[Prime]),"") -> 19 | I67: =IFERROR(LOOKUP(INDEX(INDIRECT("Table3[Auth"&1*RIGHT(Table6[#Headers],1)&"]"),rown),Table7[NName],Table7[Prime]),"") -> 13 | J67: =PRODUCT(Table6[[#This Row],[Bin1]:[Bin8]]) -> 969969
B68: =IFERROR(LOOKUP(INDEX(INDIRECT("Table3[Auth"&1*RIGHT(Table6[#Headers],1)&"]"),rown),Table7[NName],Table7[Prime]),"") -> 17 | C68: =IFERROR(LOOKUP(INDEX(INDIRECT("Table3[Auth"&1*RIGHT(Table6[#Headers],1)&"]"),rown),Table7[NName],Table7[Prime]),"") -> 13 | D68: =IFERROR(LOOKUP(INDEX(INDIRECT("Table3[Auth"&1*RIGHT(Table6[#Headers],1)&"]"),rown),Table7[NName],Table7[Prime]),"") ->  | E68: =IFERROR(LOOKUP(INDEX(INDIRECT("Table3[Auth"&1*RIGHT(Table6[#Headers],1)&"]"),rown),Table7[NName],Table7[Prime]),"") -> 19 | F68: =IFERROR(LOOKUP(INDEX(INDIRECT("Table3[Auth"&1*RIGHT(Table6[#Headers],1)&"]"),rown),Table7[NName],Table7[Prime]),"") -> 5 | G68: =IFERROR(LOOKUP(INDEX(INDIRECT("Table3[Auth"&1*RIGHT(Table6[#Headers],1)&"]"),rown),Table7[NName],Table7[Prime]),"") -> 11 | H68: =IFERROR(LOOKUP(INDEX(INDIRECT("Table3[Auth"&1*RIGHT(Table6[#Headers],1)&"]"),rown),Table7[NName],Table7[Prime]),"") ->  | I68: =IFERROR(LOOKUP(INDEX(INDIRECT("Table3[Auth"&1*RIGHT(Table6[#Headers],1)&"]"),rown),Table7[NName],Table7[Prime]),"") ->  | J68: =PRODUCT(Table6[[#This Row],[Bin1]:[Bin8]]) -> 230945
B69: =IFERROR(LOOKUP(INDEX(INDIRECT("Table3[Auth"&1*RIGHT(Table6[#Headers],1)&"]"),rown),Table7[NName],Table7[Prime]),"") ->  | C69: =IFERROR(LOOKUP(INDEX(INDIRECT("Table3[Auth"&1*RIGHT(Table6[#Headers],1)&"]"),rown),Table7[NName],Table7[Prime]),"") -> 23 | D69: =IFERROR(LOOKUP(INDEX(INDIRECT("Table3[Auth"&1*RIGHT(Table6[#Headers],1)&"]"),rown),Table7[NName],Table7[Prime]),"") ->  | E69: =IFERROR(LOOKUP(INDEX(INDIRECT("Table3[Auth"&1*RIGHT(Table6[#Headers],1)&"]"),rown),Table7[NName],Table7[Prime]),"") ->  | F69: =IFERROR(LOOKUP(INDEX(INDIRECT("Table3[Auth"&1*RIGHT(Table6[#Headers],1)&"]"),rown),Table7[NName],Table7[Prime]),"") ->  | G69: =IFERROR(LOOKUP(INDEX(INDIRECT("Table3[Auth"&1*RIGHT(Table6[#Headers],1)&"]"),rown),Table7[NName],Table7[Prime]),"") -> 17 | H69: =IFERROR(LOOKUP(INDEX(INDIRECT("Table3[Auth"&1*RIGHT(Table6[#Headers],1)&"]"),rown),Table7[NName],Table7[Prime]),"") -> 3 | I69: =IFERROR(LOOKUP(INDEX(INDIRECT("Table3[Auth"&1*RIGHT(Table6[#Headers],1)&"]"),rown),Table7[NName],Table7[Prime]),"") ->  | J69: =PRODUCT(Table6[[#This Row],[Bin1]:[Bin8]]) -> 1173
B70: =IFERROR(LOOKUP(INDEX(INDIRECT("Table3[Auth"&1*RIGHT(Table6[#Headers],1)&"]"),rown),Table7[NName],Table7[Prime]),"") ->  | C70: =IFERROR(LOOKUP(INDEX(INDIRECT("Table3[Auth"&1*RIGHT(Table6[#Headers],1)&"]"),rown),Table7[NName],Table7[Prime]),"") ->  | D70: =IFERROR(LOOKUP(INDEX(INDIRECT("Table3[Auth"&1*RIGHT(Table6[#Headers],1)&"]"),rown),Table7[NName],Table7[Prime]),"") -> 5 | E70: =IFERROR(LOOKUP(INDEX(INDIRECT("Table3[Auth"&1*RIGHT(Table6[#Headers],1)&"]"),rown),Table7[NName],Table7[Prime]),"") -> 19 | F70: =IFERROR(LOOKUP(INDEX(INDIRECT("Table3[Auth"&1*RIGHT(Table6[#Headers],1)&"]"),rown),Table7[NName],Table7[Prime]),"") -> 17 | G70: =IFERROR(LOOKUP(INDEX(INDIRECT("Table3[Auth"&1*RIGHT(Table6[#Headers],1)&"]"),rown),Table7[NName],Table7[Prime]),"") -> 7 | H70: =IFERROR(LOOKUP(INDEX(INDIRECT("Table3[Auth"&1*RIGHT(Table6[#Headers],1)&"]"),rown),Table7[NName],Table7[Prime]),"") -> 11 | I70: =IFERROR(LOOKUP(INDEX(INDIRECT("Table3[Auth"&1*RIGHT(Table6[#Headers],1)&"]"),rown),Table7[NName],Table7[Prime]),"") ->  | J70: =PRODUCT(Table6[[#This Row],[Bin1]:[Bin8]]) -> 124355
B71: =IFERROR(LOOKUP(INDEX(INDIRECT("Table3[Auth"&1*RIGHT(Table6[#Headers],1)&"]"),rown),Table7[NName],Table7[Prime]),"") -> 23 | C71: =IFERROR(LOOKUP(INDEX(INDIRECT("Table3[Auth"&1*RIGHT(Table6[#Headers],1)&"]"),rown),Table7[NName],Table7[Prime]),"") ->  | D71: =IFERROR(LOOKUP(INDEX(INDIRECT("Table3[Auth"&1*RIGHT(Table6[#Headers],1)&"]"),rown),Table7[NName],Table7[Prime]),"") -> 13 | E71: =IFERROR(LOOKUP(INDEX(INDIRECT("Table3[Auth"&1*RIGHT(Table6[#Headers],1)&"]"),rown),Table7[NName],Table7[Prime]),"") ->  | F71: =IFERROR(LOOKUP(INDEX(INDIRECT("Table3[Auth"&1*RIGHT(Table6[#Headers],1)&"]"),rown),Table7[NName],Table7[Prime]),"") ->  | G71: =IFERROR(LOOKUP(INDEX(INDIRECT("Table3[Auth"&1*RIGHT(Table6[#Headers],1)&"]"),rown),Table7[NName],Table7[Prime]),"") -> 3 | H71: =IFERROR(LOOKUP(INDEX(INDIRECT("Table3[Auth"&1*RIGHT(Table6[#Headers],1)&"]"),rown),Table7[NName],Table7[Prime]),"") -> 7 | I71: =IFERROR(LOOKUP(INDEX(INDIRECT("Table3[Auth"&1*RIGHT(Table6[#Headers],1)&"]"),rown),Table7[NName],Table7[Prime]),"") -> 19 | J71: =PRODUCT(Table6[[#This Row],[Bin1]:[Bin8]]) -> 119301
B72: =IFERROR(LOOKUP(INDEX(INDIRECT("Table3[Auth"&1*RIGHT(Table6[#Headers],1)&"]"),rown),Table7[NName],Table7[Prime]),"") -> 7 | C72: =IFERROR(LOOKUP(INDEX(INDIRECT("Table3[Auth"&1*RIGHT(Table6[#Headers],1)&"]"),rown),Table7[NName],Table7[Prime]),"") -> 11 | D72: =IFERROR(LOOKUP(INDEX(INDIRECT("Table3[Auth"&1*RIGHT(Table6[#Headers],1)&"]"),rown),Table7[NName],Table7[Prime]),"") -> 23 | E72: =IFERROR(LOOKUP(INDEX(INDIRECT("Table3[Auth"&1*RIGHT(Table6[#Headers],1)&"]"),rown),Table7[NName],Table7[Prime]),"") ->  | F72: =IFERROR(LOOKUP(INDEX(INDIRECT("Table3[Auth"&1*RIGHT(Table6[#Headers],1)&"]"),rown),Table7[NName],Table7[Prime]),"") ->  | G72: =IFERROR(LOOKUP(INDEX(INDIRECT("Table3[Auth"&1*RIGHT(Table6[#Headers],1)&"]"),rown),Table7[NName],Table7[Prime]),"") -> 19 | H72: =IFERROR(LOOKUP(INDEX(INDIRECT("Table3[Auth"&1*RIGHT(Table6[#Headers],1)&"]"),rown),Table7[NName],Table7[Prime]),"") ->  | I72: =IFERROR(LOOKUP(INDEX(INDIRECT("Table3[Auth"&1*RIGHT(Table6[#Headers],1)&"]"),rown),Table7[NName],Table7[Prime]),"") -> 5 | J72: =PRODUCT(Table6[[#This Row],[Bin1]:[Bin8]]) -> 168245
B73: =IFERROR(LOOKUP(INDEX(INDIRECT("Table3[Auth"&1*RIGHT(Table6[#Headers],1)&"]"),rown),Table7[NName],Table7[Prime]),"") ->  | C73: =IFERROR(LOOKUP(INDEX(INDIRECT("Table3[Auth"&1*RIGHT(Table6[#Headers],1)&"]"),rown),Table7[NName],Table7[Prime]),"") ->  | D73: =IFERROR(LOOKUP(INDEX(INDIRECT("Table3[Auth"&1*RIGHT(Table6[#Headers],1)&"]"),rown),Table7[NName],Table7[Prime]),"") -> 19 | E73: =IFERROR(LOOKUP(INDEX(INDIRECT("Table3[Auth"&1*RIGHT(Table6[#Headers],1)&"]"),rown),Table7[NName],Table7[Prime]),"") ->  | F73: =IFERROR(LOOKUP(INDEX(INDIRECT("Table3[Auth"&1*RIGHT(Table6[#Headers],1)&"]"),rown),Table7[NName],Table7[Prime]),"") ->  | G73: =IFERROR(LOOKUP(INDEX(INDIRECT("Table3[Auth"&1*RIGHT(Table6[#Headers],1)&"]"),rown),Table7[NName],Table7[Prime]),"") ->  | H73: =IFERROR(LOOKUP(INDEX(INDIRECT("Table3[Auth"&1*RIGHT(Table6[#Headers],1)&"]"),rown),Table7[NName],Table7[Prime]),"") -> 13 | I73: =IFERROR(LOOKUP(INDEX(INDIRECT("Table3[Auth"&1*RIGHT(Table6[#Headers],1)&"]"),rown),Table7[NName],Table7[Prime]),"") -> 7 | J73: =PRODUCT(Table6[[#This Row],[Bin1]:[Bin8]]) -> 1729
B74: =IFERROR(LOOKUP(INDEX(INDIRECT("Table3[Auth"&1*RIGHT(Table6[#Headers],1)&"]"),rown),Table7[NName],Table7[Prime]),"") -> 11 | C74: =IFERROR(LOOKUP(INDEX(INDIRECT("Table3[Auth"&1*RIGHT(Table6[#Headers],1)&"]"),rown),Table7[NName],Table7[Prime]),"") -> 5 | D74: =IFERROR(LOOKUP(INDEX(INDIRECT("Table3[Auth"&1*RIGHT(Table6[#Headers],1)&"]"),rown),Table7[NName],Table7[Prime]),"") -> 13 | E74: =IFERROR(LOOKUP(INDEX(INDIRECT("Table3[Auth"&1*RIGHT(Table6[#Headers],1)&"]"),rown),Table7[NName],Table7[Prime]),"") ->  | F74: =IFERROR(LOOKUP(INDEX(INDIRECT("Table3[Auth"&1*RIGHT(Table6[#Headers],1)&"]"),rown),Table7[NName],Table7[Prime]),"") -> 17 | G74: =IFERROR(LOOKUP(INDEX(INDIRECT("Table3[Auth"&1*RIGHT(Table6[#Headers],1)&"]"),rown),Table7[NName],Table7[Prime]),"") ->  | H74: =IFERROR(LOOKUP(INDEX(INDIRECT("Table3[Auth"&1*RIGHT(Table6[#Headers],1)&"]"),rown),Table7[NName],Table7[Prime]),"") -> 7 | I74: =IFERROR(LOOKUP(INDEX(INDIRECT("Table3[Auth"&1*RIGHT(Table6[#Headers],1)&"]"),rown),Table7[NName],Table7[Prime]),"") -> 23 | J74: =PRODUCT(Table6[[#This Row],[Bin1]:[Bin8]]) -> 1956955
B75: =IFERROR(LOOKUP(INDEX(INDIRECT("Table3[Auth"&1*RIGHT(Table6[#Headers],1)&"]"),rown),Table7[NName],Table7[Prime]),"") ->  | C75: =IFERROR(LOOKUP(INDEX(INDIRECT("Table3[Auth"&1*RIGHT(Table6[#Headers],1)&"]"),rown),Table7[NName],Table7[Prime]),"") ->  | D75: =IFERROR(LOOKUP(INDEX(INDIRECT("Table3[Auth"&1*RIGHT(Table6[#Headers],1)&"]"),rown),Table7[NName],Table7[Prime]),"") ->  | E75: =IFERROR(LOOKUP(INDEX(INDIRECT("Table3[Auth"&1*RIGHT(Table6[#Headers],1)&"]"),rown),Table7[NName],Table7[Prime]),"") ->  | F75: =IFERROR(LOOKUP(INDEX(INDIRECT("Table3[Auth"&1*RIGHT(Table6[#Headers],1)&"]"),rown),Table7[NName],Table7[Prime]),"") ->  | G75: =IFERROR(LOOKUP(INDEX(INDIRECT("Table3[Auth"&1*RIGHT(Table6[#Headers],1)&"]"),rown),Table7[NName],Table7[Prime]),"") ->  | H75: =IFERROR(LOOKUP(INDEX(INDIRECT("Table3[Auth"&1*RIGHT(Table6[#Headers],1)&"]"),rown),Table7[NName],Table7[Prime]),"") ->  | I75: =IFERROR(LOOKUP(INDEX(INDIRECT("Table3[Auth"&1*RIGHT(Table6[#Headers],1)&"]"),rown),Table7[NName],Table7[Prime]),"") -> 17 | J75: =PRODUCT(Table6[[#This Row],[Bin1]:[Bin8]]) -> 17
B76: =IFERROR(LOOKUP(INDEX(INDIRECT("Table3[Auth"&1*RIGHT(Table6[#Headers],1)&"]"),rown),Table7[NName],Table7[Prime]),"") -> 23 | C76: =IFERROR(LOOKUP(INDEX(INDIRECT("Table3[Auth"&1*RIGHT(Table6[#Headers],1)&"]"),rown),Table7[NName],Table7[Prime]),"") ->  | D76: =IFERROR(LOOKUP(INDEX(INDIRECT("Table3[Auth"&1*RIGHT(Table6[#Headers],1)&"]"),rown),Table7[NName],Table7[Prime]),"") -> 3 | E76: =IFERROR(LOOKUP(INDEX(INDIRECT("Table3[Auth"&1*RIGHT(Table6[#Headers],1)&"]"),rown),Table7[NName],Table7[Prime]),"") -> 17 | F76: =IFERROR(LOOKUP(INDEX(INDIRECT("Table3[Auth"&1*RIGHT(Table6[#Headers],1)&"]"),rown),Table7[NName],Table7[Prime]),"") ->  | G76: =IFERROR(LOOKUP(INDEX(INDIRECT("Table3[Auth"&1*RIGHT(Table6[#Headers],1)&"]"),rown),Table7[NName],Table7[Prime]),"") ->  | H76: =IFERROR(LOOKUP(INDEX(INDIRECT("Table3[Auth"&1*RIGHT(Table6[#Headers],1)&"]"),rown),Table7[NName],Table7[Prime]),"") -> 11 | I76: =IFERROR(LOOKUP(INDEX(INDIRECT("Table3[Auth"&1*RIGHT(Table6[#Headers],1)&"]"),rown),Table7[NName],Table7[Prime]),"") ->  | J76: =PRODUCT(Table6[[#This Row],[Bin1]:[Bin8]]) -> 12903
B77: =IFERROR(LOOKUP(INDEX(INDIRECT("Table3[Auth"&1*RIGHT(Table6[#Headers],1)&"]"),rown),Table7[NName],Table7[Prime]),"") ->  | C77: =IFERROR(LOOKUP(INDEX(INDIRECT("Table3[Auth"&1*RIGHT(Table6[#Headers],1)&"]"),rown),Table7[NName],Table7[Prime]),"") -> 3 | D77: =IFERROR(LOOKUP(INDEX(INDIRECT("Table3[Auth"&1*RIGHT(Table6[#Headers],1)&"]"),rown),Table7[NName],Table7[Prime]),"") -> 11 | E77: =IFERROR(LOOKUP(INDEX(INDIRECT("Table3[Auth"&1*RIGHT(Table6[#Headers],1)&"]"),rown),Table7[NName],Table7[Prime]),"") -> 13 | F77: =IFERROR(LOOKUP(INDEX(INDIRECT("Table3[Auth"&1*RIGHT(Table6[#Headers],1)&"]"),rown),Table7[NName],Table7[Prime]),"") -> 23 | G77: =IFERROR(LOOKUP(INDEX(INDIRECT("Table3[Auth"&1*RIGHT(Table6[#Headers],1)&"]"),rown),Table7[NName],Table7[Prime]),"") -> 7 | H77: =IFERROR(LOOKUP(INDEX(INDIRECT("Table3[Auth"&1*RIGHT(Table6[#Headers],1)&"]"),rown),Table7[NName],Table7[Prime]),"") -> 17 | I77: =IFERROR(LOOKUP(INDEX(INDIRECT("Table3[Auth"&1*RIGHT(Table6[#Headers],1)&"]"),rown),Table7[NName],Table7[Prime]),"") ->  | J77: =PRODUCT(Table6[[#This Row],[Bin1]:[Bin8]]) -> 1174173
B78: =IFERROR(LOOKUP(INDEX(INDIRECT("Table3[Auth"&1*RIGHT(Table6[#Headers],1)&"]"),rown),Table7[NName],Table7[Prime]),"") ->  | C78: =IFERROR(LOOKUP(INDEX(INDIRECT("Table3[Auth"&1*RIGHT(Table6[#Headers],1)&"]"),rown),Table7[NName],Table7[Prime]),"") -> 5 | D78: =IFERROR(LOOKUP(INDEX(INDIRECT("Table3[Auth"&1*RIGHT(Table6[#Headers],1)&"]"),rown),Table7[NName],Table7[Prime]),"") ->  | E78: =IFERROR(LOOKUP(INDEX(INDIRECT("Table3[Auth"&1*RIGHT(Table6[#Headers],1)&"]"),rown),Table7[NName],Table7[Prime]),"") -> 11 | F78: =IFERROR(LOOKUP(INDEX(INDIRECT("Table3[Auth"&1*RIGHT(Table6[#Headers],1)&"]"),rown),Table7[NName],Table7[Prime]),"") ->  | G78: =IFERROR(LOOKUP(INDEX(INDIRECT("Table3[Auth"&1*RIGHT(Table6[#Headers],1)&"]"),rown),Table7[NName],Table7[Prime]),"") -> 3 | H78: =IFERROR(LOOKUP(INDEX(INDIRECT("Table3[Auth"&1*RIGHT(Table6[#Headers],1)&"]"),rown),Table7[NName],Table7[Prime]),"") -> 19 | I78: =IFERROR(LOOKUP(INDEX(INDIRECT("Table3[Auth"&1*RIGHT(Table6[#Headers],1)&"]"),rown),Table7[NName],Table7[Prime]),"") -> 7 | J78: =PRODUCT(Table6[[#This Row],[Bin1]:[Bin8]]) -> 21945
B79: =IFERROR(LOOKUP(INDEX(INDIRECT("Table3[Auth"&1*RIGHT(Table6[#Headers],1)&"]"),rown),Table7[NName],Table7[Prime]),"") ->  | C79: =IFERROR(LOOKUP(INDEX(INDIRECT("Table3[Auth"&1*RIGHT(Table6[#Headers],1)&"]"),rown),Table7[NName],Table7[Prime]),"") ->  | D79: =IFERROR(LOOKUP(INDEX(INDIRECT("Table3[Auth"&1*RIGHT(Table6[#Headers],1)&"]"),rown),Table7[NName],Table7[Prime]),"") ->  | E79: =IFERROR(LOOKUP(INDEX(INDIRECT("Table3[Auth"&1*RIGHT(Table6[#Headers],1)&"]"),rown),Table7[NName],Table7[Prime]),"") -> 13 | F79: =IFERROR(LOOKUP(INDEX(INDIRECT("Table3[Auth"&1*RIGHT(Table6[#Headers],1)&"]"),rown),Table7[NName],Table7[Prime]),"") -> 5 | G79: =IFERROR(LOOKUP(INDEX(INDIRECT("Table3[Auth"&1*RIGHT(Table6[#Headers],1)&"]"),rown),Table7[NName],Table7[Prime]),"") ->  | H79: =IFERROR(LOOKUP(INDEX(INDIRECT("Table3[Auth"&1*RIGHT(Table6[#Headers],1)&"]"),rown),Table7[NName],Table7[Prime]),"") -> 7 | I79: =IFERROR(LOOKUP(INDEX(INDIRECT("Table3[Auth"&1*RIGHT(Table6[#Headers],1)&"]"),rown),Table7[NName],Table7[Prime]),"") -> 11 | J79: =PRODUCT(Table6[[#This Row],[Bin1]:[Bin8]]) -> 5005
B80: =IFERROR(LOOKUP(INDEX(INDIRECT("Table3[Auth"&1*RIGHT(Table6[#Headers],1)&"]"),rown),Table7[NName],Table7[Prime]),"") -> 7 | C80: =IFERROR(LOOKUP(INDEX(INDIRECT("Table3[Auth"&1*RIGHT(Table6[#Headers],1)&"]"),rown),Table7[NName],Table7[Prime]),"") ->  | D80: =IFERROR(LOOKUP(INDEX(INDIRECT("Table3[Auth"&1*RIGHT(Table6[#Headers],1)&"]"),rown),Table7[NName],Table7[Prime]),"") -> 23 | E80: =IFERROR(LOOKUP(INDEX(INDIRECT("Table3[Auth"&1*RIGHT(Table6[#Headers],1)&"]"),rown),Table7[NName],Table7[Prime]),"") ->  | F80: =IFERROR(LOOKUP(INDEX(INDIRECT("Table3[Auth"&1*RIGHT(Table6[#Headers],1)&"]"),rown),Table7[NName],Table7[Prime]),"") ->  | G80: =IFERROR(LOOKUP(INDEX(INDIRECT("Table3[Auth"&1*RIGHT(Table6[#Headers],1)&"]"),rown),Table7[NName],Table7[Prime]),"") ->  | H80: =IFERROR(LOOKUP(INDEX(INDIRECT("Table3[Auth"&1*RIGHT(Table6[#Headers],1)&"]"),rown),Table7[NName],Table7[Prime]),"") -> 19 | I80: =IFERROR(LOOKUP(INDEX(INDIRECT("Table3[Auth"&1*RIGHT(Table6[#Headers],1)&"]"),rown),Table7[NName],Table7[Prime]),"") ->  | J80: =PRODUCT(Table6[[#This Row],[Bin1]:[Bin8]]) -> 3059
B81: =IFERROR(LOOKUP(INDEX(INDIRECT("Table3[Auth"&1*RIGHT(Table6[#Headers],1)&"]"),rown),Table7[NName],Table7[Prime]),"") -> 23 | C81: =IFERROR(LOOKUP(INDEX(INDIRECT("Table3[Auth"&1*RIGHT(Table6[#Headers],1)&"]"),rown),Table7[NName],Table7[Prime]),"") -> 5 | D81: =IFERROR(LOOKUP(INDEX(INDIRECT("Table3[Auth"&1*RIGHT(Table6[#Headers],1)&"]"),rown),Table7[NName],Table7[Prime]),"") -> 7 | E81: =IFERROR(LOOKUP(INDEX(INDIRECT("Table3[Auth"&1*RIGHT(Table6[#Headers],1)&"]"),rown),Table7[NName],Table7[Prime]),"") -> 19 | F81: =IFERROR(LOOKUP(INDEX(INDIRECT("Table3[Auth"&1*RIGHT(Table6[#Headers],1)&"]"),rown),Table7[NName],Table7[Prime]),"") -> 13 | G81: =IFERROR(LOOKUP(INDEX(INDIRECT("Table3[Auth"&1*RIGHT(Table6[#Headers],1)&"]"),rown),Table7[NName],Table7[Prime]),"") -> 3 | H81: =IFERROR(LOOKUP(INDEX(INDIRECT("Table3[Auth"&1*RIGHT(Table6[#Headers],1)&"]"),rown),Table7[NName],Table7[Prime]),"") -> 11 | I81: =IFERROR(LOOKUP(INDEX(INDIRECT("Table3[Auth"&1*RIGHT(Table6[#Headers],1)&"]"),rown),Table7[NName],Table7[Prime]),"") ->  | J81: =PRODUCT(Table6[[#This Row],[Bin1]:[Bin8]]) -> 6561555
B82: =IFERROR(LOOKUP(INDEX(INDIRECT("Table3[Auth"&1*RIGHT(Table6[#Headers],1)&"]"),rown),Table7[NName],Table7[Prime]),"") ->  | C82: =IFERROR(LOOKUP(INDEX(INDIRECT("Table3[Auth"&1*RIGHT(Table6[#Headers],1)&"]"),rown),Table7[NName],Table7[Prime]),"") ->  | D82: =IFERROR(LOOKUP(INDEX(INDIRECT("Table3[Auth"&1*RIGHT(Table6[#Headers],1)&"]"),rown),Table7[NName],Table7[Prime]),"") -> 7 | E82: =IFERROR(LOOKUP(INDEX(INDIRECT("Table3[Auth"&1*RIGHT(Table6[#Headers],1)&"]"),rown),Table7[NName],Table7[Prime]),"") -> 13 | F82: =IFERROR(LOOKUP(INDEX(INDIRECT("Table3[Auth"&1*RIGHT(Table6[#Headers],1)&"]"),rown),Table7[NName],Table7[Prime]),"") ->  | G82: =IFERROR(LOOKUP(INDEX(INDIRECT("Table3[Auth"&1*RIGHT(Table6[#Headers],1)&"]"),rown),Table7[NName],Table7[Prime]),"") -> 19 | H82: =IFERROR(LOOKUP(INDEX(INDIRECT("Table3[Auth"&1*RIGHT(Table6[#Headers],1)&"]"),rown),Table7[NName],Table7[Prime]),"") ->  | I82: =IFERROR(LOOKUP(INDEX(INDIRECT("Table3[Auth"&1*RIGHT(Table6[#Headers],1)&"]"),rown),Table7[NName],Table7[Prime]),"") ->  | J82: =PRODUCT(Table6[[#This Row],[Bin1]:[Bin8]]) -> 1729
B83: =IFERROR(LOOKUP(INDEX(INDIRECT("Table3[Auth"&1*RIGHT(Table6[#Headers],1)&"]"),rown),Table7[NName],Table7[Prime]),"") -> 23 | C83: =IFERROR(LOOKUP(INDEX(INDIRECT("Table3[Auth"&1*RIGHT(Table6[#Headers],1)&"]"),rown),Table7[NName],Table7[Prime]),"") ->  | D83: =IFERROR(LOOKUP(INDEX(INDIRECT("Table3[Auth"&1*RIGHT(Table6[#Headers],1)&"]"),rown),Table7[NName],Table7[Prime]),"") ->  | E83: =IFERROR(LOOKUP(INDEX(INDIRECT("Table3[Auth"&1*RIGHT(Table6[#Headers],1)&"]"),rown),Table7[NName],Table7[Prime]),"") -> 17 | F83: =IFERROR(LOOKUP(INDEX(INDIRECT("Table3[Auth"&1*RIGHT(Table6[#Headers],1)&"]"),rown),Table7[NName],Table7[Prime]),"") -> 11 | G83: =IFERROR(LOOKUP(INDEX(INDIRECT("Table3[Auth"&1*RIGHT(Table6[#Headers],1)&"]"),rown),Table7[NName],Table7[Prime]),"") -> 7 | H83: =IFERROR(LOOKUP(INDEX(INDIRECT("Table3[Auth"&1*RIGHT(Table6[#Headers],1)&"]"),rown),Table7[NName],Table7[Prime]),"") -> 19 | I83: =IFERROR(LOOKUP(INDEX(INDIRECT("Table3[Auth"&1*RIGHT(Table6[#Headers],1)&"]"),rown),Table7[NName],Table7[Prime]),"") ->  | J83: =PRODUCT(Table6[[#This Row],[Bin1]:[Bin8]]) -> 572033

Sheet Frequency
B2: Table4 | M2: Table7 | T2: For Reference
B3: Bin1 | C3: Bin2 | D3: Bin3 | E3: Bin4 | F3: Bin5 | G3: Bin6 | H3: Bin7 | I3: Bin8 | J3: Bin9 | K3: Count | M3: Seq | N3: NName | O3: Prime | P3: Combin | T3: #FilledBins | U3: Formula
B4: 3 | J4: =COUNTA(Table4[[#This Row],[Bin1]:[Bin8]]) -> 1 | K4: =CHOOSE(Table4[[#This Row],[Bin9]],0,SUMPRODUCT((MOD(Table6[Bin9],Table4[[#This Row],[Bin1]])=0)*(MOD(Table6[Bin9],Table4[[#This Row],[Bin2]])=0)),SUMPRODUCT((MOD(Table6[Bin9],Table4[[#This Row],[Bin1]])=0)*(MOD(Table6[Bin9],Table4[[#This Row],[Bin2]])=0)*(MOD(Table6[Bin9],Table4[[#This Row],[Bin3]])=0)),SUMPRODUCT((MOD(Table6[Bin9],Table4[[#This Row],[Bin1]])=0)*(MOD(Table6[Bin9],Table4[[#This Row],[Bin2]])=0)*(MOD(Table6[Bin9],Table4[[#This Row],[Bin3]])=0)*(MOD(Table6[Bin9],Table4[[#This Row],[Bin4]])=0)),SUMPRODUCT((MOD(Table6[Bin9],Table4[[#This Row],[Bin1]])=0)*(MOD(Table6[Bin9],Table4[[#This Row],[Bin2]])=0)*(MOD(Table6[Bin9],Table4[[#This Row],[Bin3]])=0)*(MOD(Table6[Bin9],Table4[[#This Row],[Bin4]])=0)*(MOD(Table6[Bin9],Table4[[#This Row],[Bin5]])=0)),SUMPRODUCT((MOD(Table6[Bin9],Table4[[#This Row],[Bin1]])=0)*(MOD(Table6[Bin9],Table4[[#This Row],[Bin2]])=0)*(MOD(Table6[Bin9],Table4[[#This Row],[Bin3]])=0)*(MOD(Table6[Bin9],Table4[[#This Row],[Bin4]])=0)*(MOD(Table6[Bin9],Table4[[#This Row],[Bin5]])=0)*(MOD(Table6[Bin9],Table4[[#This Row],[Bin6]])=0)),SUMPRODUCT((MOD(Table6[Bin9],Table4[[#This Row],[Bin1]])=0)*(MOD(Table6[Bin9],Table4[[#This Row],[Bin2]])=0)*(MOD(Table6[Bin9],Table4[[#This Row],[Bin3]])=0)*(MOD(Table6[Bin9],Table4[[#This Row],[Bin4]])=0)*(MOD(Table6[Bin9],Table4[[#This Row],[Bin5]])=0)*(MOD(Table6[Bin9],Table4[[#This Row],[Bin6]])=0)*(MOD(Table6[Bin9],Table4[[#This Row],[Bin7]])=0)),SUMPRODUCT((MOD(Table6[Bin9],Table4[[#This Row],[Bin1]])=0)*(MOD(Table6[Bin9],Table4[[#This Row],[Bin2]])=0)*(MOD(Table6[Bin9],Table4[[#This Row],[Bin3]])=0)*(MOD(Table6[Bin9],Table4[[#This Row],[Bin4]])=0)*(MOD(Table6[Bin9],Table4[[#This Row],[Bin5]])=0)*(MOD(Table6[Bin9],Table4[[#This Row],[Bin6]])=0)*(MOD(Table6[Bin9],Table4[[#This Row],[Bin7]])=0)*(MOD(Table6[Bin9],Table4[[#This Row],[Bin8]])=0))) -> 0 | M4: 1 | N4: Brown | O4: 3 | P4: =COMBIN(8,[Seq]) -> 8 | T4: 1
B5: 5 | J5: =COUNTA(Table4[[#This Row],[Bin1]:[Bin8]]) -> 1 | K5: =CHOOSE(Table4[[#This Row],[Bin9]],0,SUMPRODUCT((MOD(Table6[Bin9],Table4[[#This Row],[Bin1]])=0)*(MOD(Table6[Bin9],Table4[[#This Row],[Bin2]])=0)),SUMPRODUCT((MOD(Table6[Bin9],Table4[[#This Row],[Bin1]])=0)*(MOD(Table6[Bin9],Table4[[#This Row],[Bin2]])=0)*(MOD(Table6[Bin9],Table4[[#This Row],[Bin3]])=0)),SUMPRODUCT((MOD(Table6[Bin9],Table4[[#This Row],[Bin1]])=0)*(MOD(Table6[Bin9],Table4[[#This Row],[Bin2]])=0)*(MOD(Table6[Bin9],Table4[[#This Row],[Bin3]])=0)*(MOD(Table6[Bin9],Table4[[#This Row],[Bin4]])=0)),SUMPRODUCT((MOD(Table6[Bin9],Table4[[#This Row],[Bin1]])=0)*(MOD(Table6[Bin9],Table4[[#This Row],[Bin2]])=0)*(MOD(Table6[Bin9],Table4[[#This Row],[Bin3]])=0)*(MOD(Table6[Bin9],Table4[[#This Row],[Bin4]])=0)*(MOD(Table6[Bin9],Table4[[#This Row],[Bin5]])=0)),SUMPRODUCT((MOD(Table6[Bin9],Table4[[#This Row],[Bin1]])=0)*(MOD(Table6[Bin9],Table4[[#This Row],[Bin2]])=0)*(MOD(Table6[Bin9],Table4[[#This Row],[Bin3]])=0)*(MOD(Table6[Bin9],Table4[[#This Row],[Bin4]])=0)*(MOD(Table6[Bin9],Table4[[#This Row],[Bin5]])=0)*(MOD(Table6[Bin9],Table4[[#This Row],[Bin6]])=0)),SUMPRODUCT((MOD(Table6[Bin9],Table4[[#This Row],[Bin1]])=0)*(MOD(Table6[Bin9],Table4[[#This Row],[Bin2]])=0)*(MOD(Table6[Bin9],Table4[[#This Row],[Bin3]])=0)*(MOD(Table6[Bin9],Table4[[#This Row],[Bin4]])=0)*(MOD(Table6[Bin9],Table4[[#This Row],[Bin5]])=0)*(MOD(Table6[Bin9],Table4[[#This Row],[Bin6]])=0)*(MOD(Table6[Bin9],Table4[[#This Row],[Bin7]])=0)),SUMPRODUCT((MOD(Table6[Bin9],Table4[[#This Row],[Bin1]])=0)*(MOD(Table6[Bin9],Table4[[#This Row],[Bin2]])=0)*(MOD(Table6[Bin9],Table4[[#This Row],[Bin3]])=0)*(MOD(Table6[Bin9],Table4[[#This Row],[Bin4]])=0)*(MOD(Table6[Bin9],Table4[[#This Row],[Bin5]])=0)*(MOD(Table6[Bin9],Table4[[#This Row],[Bin6]])=0)*(MOD(Table6[Bin9],Table4[[#This Row],[Bin7]])=0)*(MOD(Table6[Bin9],Table4[[#This Row],[Bin8]])=0))) -> 0 | M5: 2 | N5: Davis | O5: 5 | P5: =COMBIN(8,[Seq]) -> 28 | T5: 2 | U5: =SUMPRODUCT((MOD(Table6[Bin9],Table4[[#This Row],[Bin1]])=0)*(MOD(Table6[Bin9],Table4[[#This Row],[Bin2]])=0)) -> 
B6: 7 | J6: =COUNTA(Table4[[#This Row],[Bin1]:[Bin8]]) -> 1 | K6: =CHOOSE(Table4[[#This Row],[Bin9]],0,SUMPRODUCT((MOD(Table6[Bin9],Table4[[#This Row],[Bin1]])=0)*(MOD(Table6[Bin9],Table4[[#This Row],[Bin2]])=0)),SUMPRODUCT((MOD(Table6[Bin9],Table4[[#This Row],[Bin1]])=0)*(MOD(Table6[Bin9],Table4[[#This Row],[Bin2]])=0)*(MOD(Table6[Bin9],Table4[[#This Row],[Bin3]])=0)),SUMPRODUCT((MOD(Table6[Bin9],Table4[[#This Row],[Bin1]])=0)*(MOD(Table6[Bin9],Table4[[#This Row],[Bin2]])=0)*(MOD(Table6[Bin9],Table4[[#This Row],[Bin3]])=0)*(MOD(Table6[Bin9],Table4[[#This Row],[Bin4]])=0)),SUMPRODUCT((MOD(Table6[Bin9],Table4[[#This Row],[Bin1]])=0)*(MOD(Table6[Bin9],Table4[[#This Row],[Bin2]])=0)*(MOD(Table6[Bin9],Table4[[#This Row],[Bin3]])=0)*(MOD(Table6[Bin9],Table4[[#This Row],[Bin4]])=0)*(MOD(Table6[Bin9],Table4[[#This Row],[Bin5]])=0)),SUMPRODUCT((MOD(Table6[Bin9],Table4[[#This Row],[Bin1]])=0)*(MOD(Table6[Bin9],Table4[[#This Row],[Bin2]])=0)*(MOD(Table6[Bin9],Table4[[#This Row],[Bin3]])=0)*(MOD(Table6[Bin9],Table4[[#This Row],[Bin4]])=0)*(MOD(Table6[Bin9],Table4[[#This Row],[Bin5]])=0)*(MOD(Table6[Bin9],Table4[[#This Row],[Bin6]])=0)),SUMPRODUCT((MOD(Table6[Bin9],Table4[[#This Row],[Bin1]])=0)*(MOD(Table6[Bin9],Table4[[#This Row],[Bin2]])=0)*(MOD(Table6[Bin9],Table4[[#This Row],[Bin3]])=0)*(MOD(Table6[Bin9],Table4[[#This Row],[Bin4]])=0)*(MOD(Table6[Bin9],Table4[[#This Row],[Bin5]])=0)*(MOD(Table6[Bin9],Table4[[#This Row],[Bin6]])=0)*(MOD(Table6[Bin9],Table4[[#This Row],[Bin7]])=0)),SUMPRODUCT((MOD(Table6[Bin9],Table4[[#This Row],[Bin1]])=0)*(MOD(Table6[Bin9],Table4[[#This Row],[Bin2]])=0)*(MOD(Table6[Bin9],Table4[[#This Row],[Bin3]])=0)*(MOD(Table6[Bin9],Table4[[#This Row],[Bin4]])=0)*(MOD(Table6[Bin9],Table4[[#This Row],[Bin5]])=0)*(MOD(Table6[Bin9],Table4[[#This Row],[Bin6]])=0)*(MOD(Table6[Bin9],Table4[[#This Row],[Bin7]])=0)*(MOD(Table6[Bin9],Table4[[#This Row],[Bin8]])=0))) -> 0 | M6: 3 | N6: Johnson | O6: 7 | P6: =COMBIN(8,[Seq]) -> 56 | T6: 3 | U6: =SUMPRODUCT((MOD(Table6[Bin9],Table4[[#This Row],[Bin1]])=0)*(MOD(Table6[Bin9],Table4[[#This Row],[Bin2]])=0)*(MOD(Table6[Bin9],Table4[[#This Row],[Bin3]])=0)) -> 
B7: 11 | J7: =COUNTA(Table4[[#This Row],[Bin1]:[Bin8]]) -> 1 | K7: =CHOOSE(Table4[[#This Row],[Bin9]],0,SUMPRODUCT((MOD(Table6[Bin9],Table4[[#This Row],[Bin1]])=0)*(MOD(Table6[Bin9],Table4[[#This Row],[Bin2]])=0)),SUMPRODUCT((MOD(Table6[Bin9],Table4[[#This Row],[Bin1]])=0)*(MOD(Table6[Bin9],Table4[[#This Row],[Bin2]])=0)*(MOD(Table6[Bin9],Table4[[#This Row],[Bin3]])=0)),SUMPRODUCT((MOD(Table6[Bin9],Table4[[#This Row],[Bin1]])=0)*(MOD(Table6[Bin9],Table4[[#This Row],[Bin2]])=0)*(MOD(Table6[Bin9],Table4[[#This Row],[Bin3]])=0)*(MOD(Table6[Bin9],Table4[[#This Row],[Bin4]])=0)),SUMPRODUCT((MOD(Table6[Bin9],Table4[[#This Row],[Bin1]])=0)*(MOD(Table6[Bin9],Table4[[#This Row],[Bin2]])=0)*(MOD(Table6[Bin9],Table4[[#This Row],[Bin3]])=0)*(MOD(Table6[Bin9],Table4[[#This Row],[Bin4]])=0)*(MOD(Table6[Bin9],Table4[[#This Row],[Bin5]])=0)),SUMPRODUCT((MOD(Table6[Bin9],Table4[[#This Row],[Bin1]])=0)*(MOD(Table6[Bin9],Table4[[#This Row],[Bin2]])=0)*(MOD(Table6[Bin9],Table4[[#This Row],[Bin3]])=0)*(MOD(Table6[Bin9],Table4[[#This Row],[Bin4]])=0)*(MOD(Table6[Bin9],Table4[[#This Row],[Bin5]])=0)*(MOD(Table6[Bin9],Table4[[#This Row],[Bin6]])=0)),SUMPRODUCT((MOD(Table6[Bin9],Table4[[#This Row],[Bin1]])=0)*(MOD(Table6[Bin9],Table4[[#This Row],[Bin2]])=0)*(MOD(Table6[Bin9],Table4[[#This Row],[Bin3]])=0)*(MOD(Table6[Bin9],Table4[[#This Row],[Bin4]])=0)*(MOD(Table6[Bin9],Table4[[#This Row],[Bin5]])=0)*(MOD(Table6[Bin9],Table4[[#This Row],[Bin6]])=0)*(MOD(Table6[Bin9],Table4[[#This Row],[Bin7]])=0)),SUMPRODUCT((MOD(Table6[Bin9],Table4[[#This Row],[Bin1]])=0)*(MOD(Table6[Bin9],Table4[[#This Row],[Bin2]])=0)*(MOD(Table6[Bin9],Table4[[#This Row],[Bin3]])=0)*(MOD(Table6[Bin9],Table4[[#This Row],[Bin4]])=0)*(MOD(Table6[Bin9],Table4[[#This Row],[Bin5]])=0)*(MOD(Table6[Bin9],Table4[[#This Row],[Bin6]])=0)*(MOD(Table6[Bin9],Table4[[#This Row],[Bin7]])=0)*(MOD(Table6[Bin9],Table4[[#This Row],[Bin8]])=0))) -> 0 | M7: 4 | N7: Jones | O7: 11 | P7: =COMBIN(8,[Seq]) -> 70 | T7: 4 | U7: =SUMPRODUCT((MOD(Table6[Bin9],Table4[[#This Row],[Bin1]])=0)*(MOD(Table6[Bin9],Table4[[#This Row],[Bin2]])=0)*(MOD(Table6[Bin9],Table4[[#This Row],[Bin3]])=0)*(MOD(Table6[Bin9],Table4[[#This Row],[Bin4]])=0)) -> 
B8: 13 | J8: =COUNTA(Table4[[#This Row],[Bin1]:[Bin8]]) -> 1 | K8: =CHOOSE(Table4[[#This Row],[Bin9]],0,SUMPRODUCT((MOD(Table6[Bin9],Table4[[#This Row],[Bin1]])=0)*(MOD(Table6[Bin9],Table4[[#This Row],[Bin2]])=0)),SUMPRODUCT((MOD(Table6[Bin9],Table4[[#This Row],[Bin1]])=0)*(MOD(Table6[Bin9],Table4[[#This Row],[Bin2]])=0)*(MOD(Table6[Bin9],Table4[[#This Row],[Bin3]])=0)),SUMPRODUCT((MOD(Table6[Bin9],Table4[[#This Row],[Bin1]])=0)*(MOD(Table6[Bin9],Table4[[#This Row],[Bin2]])=0)*(MOD(Table6[Bin9],Table4[[#This Row],[Bin3]])=0)*(MOD(Table6[Bin9],Table4[[#This Row],[Bin4]])=0)),SUMPRODUCT((MOD(Table6[Bin9],Table4[[#This Row],[Bin1]])=0)*(MOD(Table6[Bin9],Table4[[#This Row],[Bin2]])=0)*(MOD(Table6[Bin9],Table4[[#This Row],[Bin3]])=0)*(MOD(Table6[Bin9],Table4[[#This Row],[Bin4]])=0)*(MOD(Table6[Bin9],Table4[[#This Row],[Bin5]])=0)),SUMPRODUCT((MOD(Table6[Bin9],Table4[[#This Row],[Bin1]])=0)*(MOD(Table6[Bin9],Table4[[#This Row],[Bin2]])=0)*(MOD(Table6[Bin9],Table4[[#This Row],[Bin3]])=0)*(MOD(Table6[Bin9],Table4[[#This Row],[Bin4]])=0)*(MOD(Table6[Bin9],Table4[[#This Row],[Bin5]])=0)*(MOD(Table6[Bin9],Table4[[#This Row],[Bin6]])=0)),SUMPRODUCT((MOD(Table6[Bin9],Table4[[#This Row],[Bin1]])=0)*(MOD(Table6[Bin9],Table4[[#This Row],[Bin2]])=0)*(MOD(Table6[Bin9],Table4[[#This Row],[Bin3]])=0)*(MOD(Table6[Bin9],Table4[[#This Row],[Bin4]])=0)*(MOD(Table6[Bin9],Table4[[#This Row],[Bin5]])=0)*(MOD(Table6[Bin9],Table4[[#This Row],[Bin6]])=0)*(MOD(Table6[Bin9],Table4[[#This Row],[Bin7]])=0)),SUMPRODUCT((MOD(Table6[Bin9],Table4[[#This Row],[Bin1]])=0)*(MOD(Table6[Bin9],Table4[[#This Row],[Bin2]])=0)*(MOD(Table6[Bin9],Table4[[#This Row],[Bin3]])=0)*(MOD(Table6[Bin9],Table4[[#This Row],[Bin4]])=0)*(MOD(Table6[Bin9],Table4[[#This Row],[Bin5]])=0)*(MOD(Table6[Bin9],Table4[[#This Row],[Bin6]])=0)*(MOD(Table6[Bin9],Table4[[#This Row],[Bin7]])=0)*(MOD(Table6[Bin9],Table4[[#This Row],[Bin8]])=0))) -> 0 | M8: 5 | N8: Miller | O8: 13 | P8: =COMBIN(8,[Seq]) -> 56 | T8: 5 | U8: =SUMPRODUCT((MOD(Table6[Bin9],Table4[[#This Row],[Bin1]])=0)*(MOD(Table6[Bin9],Table4[[#This Row],[Bin2]])=0)*(MOD(Table6[Bin9],Table4[[#This Row],[Bin3]])=0)*(MOD(Table6[Bin9],Table4[[#This Row],[Bin4]])=0)*(MOD(Table6[Bin9],Table4[[#This Row],[Bin5]])=0)) -> 
B9: 17 | J9: =COUNTA(Table4[[#This Row],[Bin1]:[Bin8]]) -> 1 | K9: =CHOOSE(Table4[[#This Row],[Bin9]],0,SUMPRODUCT((MOD(Table6[Bin9],Table4[[#This Row],[Bin1]])=0)*(MOD(Table6[Bin9],Table4[[#This Row],[Bin2]])=0)),SUMPRODUCT((MOD(Table6[Bin9],Table4[[#This Row],[Bin1]])=0)*(MOD(Table6[Bin9],Table4[[#This Row],[Bin2]])=0)*(MOD(Table6[Bin9],Table4[[#This Row],[Bin3]])=0)),SUMPRODUCT((MOD(Table6[Bin9],Table4[[#This Row],[Bin1]])=0)*(MOD(Table6[Bin9],Table4[[#This Row],[Bin2]])=0)*(MOD(Table6[Bin9],Table4[[#This Row],[Bin3]])=0)*(MOD(Table6[Bin9],Table4[[#This Row],[Bin4]])=0)),SUMPRODUCT((MOD(Table6[Bin9],Table4[[#This Row],[Bin1]])=0)*(MOD(Table6[Bin9],Table4[[#This Row],[Bin2]])=0)*(MOD(Table6[Bin9],Table4[[#This Row],[Bin3]])=0)*(MOD(Table6[Bin9],Table4[[#This Row],[Bin4]])=0)*(MOD(Table6[Bin9],Table4[[#This Row],[Bin5]])=0)),SUMPRODUCT((MOD(Table6[Bin9],Table4[[#This Row],[Bin1]])=0)*(MOD(Table6[Bin9],Table4[[#This Row],[Bin2]])=0)*(MOD(Table6[Bin9],Table4[[#This Row],[Bin3]])=0)*(MOD(Table6[Bin9],Table4[[#This Row],[Bin4]])=0)*(MOD(Table6[Bin9],Table4[[#This Row],[Bin5]])=0)*(MOD(Table6[Bin9],Table4[[#This Row],[Bin6]])=0)),SUMPRODUCT((MOD(Table6[Bin9],Table4[[#This Row],[Bin1]])=0)*(MOD(Table6[Bin9],Table4[[#This Row],[Bin2]])=0)*(MOD(Table6[Bin9],Table4[[#This Row],[Bin3]])=0)*(MOD(Table6[Bin9],Table4[[#This Row],[Bin4]])=0)*(MOD(Table6[Bin9],Table4[[#This Row],[Bin5]])=0)*(MOD(Table6[Bin9],Table4[[#This Row],[Bin6]])=0)*(MOD(Table6[Bin9],Table4[[#This Row],[Bin7]])=0)),SUMPRODUCT((MOD(Table6[Bin9],Table4[[#This Row],[Bin1]])=0)*(MOD(Table6[Bin9],Table4[[#This Row],[Bin2]])=0)*(MOD(Table6[Bin9],Table4[[#This Row],[Bin3]])=0)*(MOD(Table6[Bin9],Table4[[#This Row],[Bin4]])=0)*(MOD(Table6[Bin9],Table4[[#This Row],[Bin5]])=0)*(MOD(Table6[Bin9],Table4[[#This Row],[Bin6]])=0)*(MOD(Table6[Bin9],Table4[[#This Row],[Bin7]])=0)*(MOD(Table6[Bin9],Table4[[#This Row],[Bin8]])=0))) -> 0 | M9: 6 | N9: Smith | O9: 17 | P9: =COMBIN(8,[Seq]) -> 28 | T9: 6 | U9: =SUMPRODUCT((MOD(Table6[Bin9],Table4[[#This Row],[Bin1]])=0)*(MOD(Table6[Bin9],Table4[[#This Row],[Bin2]])=0)*(MOD(Table6[Bin9],Table4[[#This Row],[Bin3]])=0)*(MOD(Table6[Bin9],Table4[[#This Row],[Bin4]])=0)*(MOD(Table6[Bin9],Table4[[#This Row],[Bin5]])=0)*(MOD(Table6[Bin9],Table4[[#This Row],[Bin6]])=0)) -> 
B10: 19 | J10: =COUNTA(Table4[[#This Row],[Bin1]:[Bin8]]) -> 1 | K10: =CHOOSE(Table4[[#This Row],[Bin9]],0,SUMPRODUCT((MOD(Table6[Bin9],Table4[[#This Row],[Bin1]])=0)*(MOD(Table6[Bin9],Table4[[#This Row],[Bin2]])=0)),SUMPRODUCT((MOD(Table6[Bin9],Table4[[#This Row],[Bin1]])=0)*(MOD(Table6[Bin9],Table4[[#This Row],[Bin2]])=0)*(MOD(Table6[Bin9],Table4[[#This Row],[Bin3]])=0)),SUMPRODUCT((MOD(Table6[Bin9],Table4[[#This Row],[Bin1]])=0)*(MOD(Table6[Bin9],Table4[[#This Row],[Bin2]])=0)*(MOD(Table6[Bin9],Table4[[#This Row],[Bin3]])=0)*(MOD(Table6[Bin9],Table4[[#This Row],[Bin4]])=0)),SUMPRODUCT((MOD(Table6[Bin9],Table4[[#This Row],[Bin1]])=0)*(MOD(Table6[Bin9],Table4[[#This Row],[Bin2]])=0)*(MOD(Table6[Bin9],Table4[[#This Row],[Bin3]])=0)*(MOD(Table6[Bin9],Table4[[#This Row],[Bin4]])=0)*(MOD(Table6[Bin9],Table4[[#This Row],[Bin5]])=0)),SUMPRODUCT((MOD(Table6[Bin9],Table4[[#This Row],[Bin1]])=0)*(MOD(Table6[Bin9],Table4[[#This Row],[Bin2]])=0)*(MOD(Table6[Bin9],Table4[[#This Row],[Bin3]])=0)*(MOD(Table6[Bin9],Table4[[#This Row],[Bin4]])=0)*(MOD(Table6[Bin9],Table4[[#This Row],[Bin5]])=0)*(MOD(Table6[Bin9],Table4[[#This Row],[Bin6]])=0)),SUMPRODUCT((MOD(Table6[Bin9],Table4[[#This Row],[Bin1]])=0)*(MOD(Table6[Bin9],Table4[[#This Row],[Bin2]])=0)*(MOD(Table6[Bin9],Table4[[#This Row],[Bin3]])=0)*(MOD(Table6[Bin9],Table4[[#This Row],[Bin4]])=0)*(MOD(Table6[Bin9],Table4[[#This Row],[Bin5]])=0)*(MOD(Table6[Bin9],Table4[[#This Row],[Bin6]])=0)*(MOD(Table6[Bin9],Table4[[#This Row],[Bin7]])=0)),SUMPRODUCT((MOD(Table6[Bin9],Table4[[#This Row],[Bin1]])=0)*(MOD(Table6[Bin9],Table4[[#This Row],[Bin2]])=0)*(MOD(Table6[Bin9],Table4[[#This Row],[Bin3]])=0)*(MOD(Table6[Bin9],Table4[[#This Row],[Bin4]])=0)*(MOD(Table6[Bin9],Table4[[#This Row],[Bin5]])=0)*(MOD(Table6[Bin9],Table4[[#This Row],[Bin6]])=0)*(MOD(Table6[Bin9],Table4[[#This Row],[Bin7]])=0)*(MOD(Table6[Bin9],Table4[[#This Row],[Bin8]])=0))) -> 0 | M10: 7 | N10: Williams | O10: 19 | P10: =COMBIN(8,[Seq]) -> 8 | T10: 7 | U10: =SUMPRODUCT((MOD(Table6[Bin9],Table4[[#This Row],[Bin1]])=0)*(MOD(Table6[Bin9],Table4[[#This Row],[Bin2]])=0)*(MOD(Table6[Bin9],Table4[[#This Row],[Bin3]])=0)*(MOD(Table6[Bin9],Table4[[#This Row],[Bin4]])=0)*(MOD(Table6[Bin9],Table4[[#This Row],[Bin5]])=0)*(MOD(Table6[Bin9],Table4[[#This Row],[Bin6]])=0)*(MOD(Table6[Bin9],Table4[[#This Row],[Bin7]])=0)) -> 
B11: 23 | J11: =COUNTA(Table4[[#This Row],[Bin1]:[Bin8]]) -> 1 | K11: =CHOOSE(Table4[[#This Row],[Bin9]],0,SUMPRODUCT((MOD(Table6[Bin9],Table4[[#This Row],[Bin1]])=0)*(MOD(Table6[Bin9],Table4[[#This Row],[Bin2]])=0)),SUMPRODUCT((MOD(Table6[Bin9],Table4[[#This Row],[Bin1]])=0)*(MOD(Table6[Bin9],Table4[[#This Row],[Bin2]])=0)*(MOD(Table6[Bin9],Table4[[#This Row],[Bin3]])=0)),SUMPRODUCT((MOD(Table6[Bin9],Table4[[#This Row],[Bin1]])=0)*(MOD(Table6[Bin9],Table4[[#This Row],[Bin2]])=0)*(MOD(Table6[Bin9],Table4[[#This Row],[Bin3]])=0)*(MOD(Table6[Bin9],Table4[[#This Row],[Bin4]])=0)),SUMPRODUCT((MOD(Table6[Bin9],Table4[[#This Row],[Bin1]])=0)*(MOD(Table6[Bin9],Table4[[#This Row],[Bin2]])=0)*(MOD(Table6[Bin9],Table4[[#This Row],[Bin3]])=0)*(MOD(Table6[Bin9],Table4[[#This Row],[Bin4]])=0)*(MOD(Table6[Bin9],Table4[[#This Row],[Bin5]])=0)),SUMPRODUCT((MOD(Table6[Bin9],Table4[[#This Row],[Bin1]])=0)*(MOD(Table6[Bin9],Table4[[#This Row],[Bin2]])=0)*(MOD(Table6[Bin9],Table4[[#This Row],[Bin3]])=0)*(MOD(Table6[Bin9],Table4[[#This Row],[Bin4]])=0)*(MOD(Table6[Bin9],Table4[[#This Row],[Bin5]])=0)*(MOD(Table6[Bin9],Table4[[#This Row],[Bin6]])=0)),SUMPRODUCT((MOD(Table6[Bin9],Table4[[#This Row],[Bin1]])=0)*(MOD(Table6[Bin9],Table4[[#This Row],[Bin2]])=0)*(MOD(Table6[Bin9],Table4[[#This Row],[Bin3]])=0)*(MOD(Table6[Bin9],Table4[[#This Row],[Bin4]])=0)*(MOD(Table6[Bin9],Table4[[#This Row],[Bin5]])=0)*(MOD(Table6[Bin9],Table4[[#This Row],[Bin6]])=0)*(MOD(Table6[Bin9],Table4[[#This Row],[Bin7]])=0)),SUMPRODUCT((MOD(Table6[Bin9],Table4[[#This Row],[Bin1]])=0)*(MOD(Table6[Bin9],Table4[[#This Row],[Bin2]])=0)*(MOD(Table6[Bin9],Table4[[#This Row],[Bin3]])=0)*(MOD(Table6[Bin9],Table4[[#This Row],[Bin4]])=0)*(MOD(Table6[Bin9],Table4[[#This Row],[Bin5]])=0)*(MOD(Table6[Bin9],Table4[[#This Row],[Bin6]])=0)*(MOD(Table6[Bin9],Table4[[#This Row],[Bin7]])=0)*(MOD(Table6[Bin9],Table4[[#This Row],[Bin8]])=0))) -> 0 | M11: 8 | N11: Wilson | O11: 23 | P11: =COMBIN(8,[Seq]) -> 1 | T11: 8 | U11: =SUMPRODUCT((MOD(Table6[Bin9],Table4[[#This Row],[Bin1]])=0)*(MOD(Table6[Bin9],Table4[[#This Row],[Bin2]])=0)*(MOD(Table6[Bin9],Table4[[#This Row],[Bin3]])=0)*(MOD(Table6[Bin9],Table4[[#This Row],[Bin4]])=0)*(MOD(Table6[Bin9],Table4[[#This Row],[Bin5]])=0)*(MOD(Table6[Bin9],Table4[[#This Row],[Bin6]])=0)*(MOD(Table6[Bin9],Table4[[#This Row],[Bin7]])=0)*(MOD(Table6[Bin9],Table4[[#This Row],[Bin8]])=0)) -> 
B12: 3 | C12: 5 | J12: =COUNTA(Table4[[#This Row],[Bin1]:[Bin8]]) -> 2 | K12: =CHOOSE(Table4[[#This Row],[Bin9]],0,SUMPRODUCT((MOD(Table6[Bin9],Table4[[#This Row],[Bin1]])=0)*(MOD(Table6[Bin9],Table4[[#This Row],[Bin2]])=0)),SUMPRODUCT((MOD(Table6[Bin9],Table4[[#This Row],[Bin1]])=0)*(MOD(Table6[Bin9],Table4[[#This Row],[Bin2]])=0)*(MOD(Table6[Bin9],Table4[[#This Row],[Bin3]])=0)),SUMPRODUCT((MOD(Table6[Bin9],Table4[[#This Row],[Bin1]])=0)*(MOD(Table6[Bin9],Table4[[#This Row],[Bin2]])=0)*(MOD(Table6[Bin9],Table4[[#This Row],[Bin3]])=0)*(MOD(Table6[Bin9],Table4[[#This Row],[Bin4]])=0)),SUMPRODUCT((MOD(Table6[Bin9],Table4[[#This Row],[Bin1]])=0)*(MOD(Table6[Bin9],Table4[[#This Row],[Bin2]])=0)*(MOD(Table6[Bin9],Table4[[#This Row],[Bin3]])=0)*(MOD(Table6[Bin9],Table4[[#This Row],[Bin4]])=0)*(MOD(Table6[Bin9],Table4[[#This Row],[Bin5]])=0)),SUMPRODUCT((MOD(Table6[Bin9],Table4[[#This Row],[Bin1]])=0)*(MOD(Table6[Bin9],Table4[[#This Row],[Bin2]])=0)*(MOD(Table6[Bin9],Table4[[#This Row],[Bin3]])=0)*(MOD(Table6[Bin9],Table4[[#This Row],[Bin4]])=0)*(MOD(Table6[Bin9],Table4[[#This Row],[Bin5]])=0)*(MOD(Table6[Bin9],Table4[[#This Row],[Bin6]])=0)),SUMPRODUCT((MOD(Table6[Bin9],Table4[[#This Row],[Bin1]])=0)*(MOD(Table6[Bin9],Table4[[#This Row],[Bin2]])=0)*(MOD(Table6[Bin9],Table4[[#This Row],[Bin3]])=0)*(MOD(Table6[Bin9],Table4[[#This Row],[Bin4]])=0)*(MOD(Table6[Bin9],Table4[[#This Row],[Bin5]])=0)*(MOD(Table6[Bin9],Table4[[#This Row],[Bin6]])=0)*(MOD(Table6[Bin9],Table4[[#This Row],[Bin7]])=0)),SUMPRODUCT((MOD(Table6[Bin9],Table4[[#This Row],[Bin1]])=0)*(MOD(Table6[Bin9],Table4[[#This Row],[Bin2]])=0)*(MOD(Table6[Bin9],Table4[[#This Row],[Bin3]])=0)*(MOD(Table6[Bin9],Table4[[#This Row],[Bin4]])=0)*(MOD(Table6[Bin9],Table4[[#This Row],[Bin5]])=0)*(MOD(Table6[Bin9],Table4[[#This Row],[Bin6]])=0)*(MOD(Table6[Bin9],Table4[[#This Row],[Bin7]])=0)*(MOD(Table6[Bin9],Table4[[#This Row],[Bin8]])=0))) -> 2 | M12: Total | O12: =SUBTOTAL(103,[Prime]) -> 8 | P12: =SUBTOTAL(109,[Combin]) -> 255
B13: 3 | C13: 7 | J13: =COUNTA(Table4[[#This Row],[Bin1]:[Bin8]]) -> 2 | K13: =CHOOSE(Table4[[#This Row],[Bin9]],0,SUMPRODUCT((MOD(Table6[Bin9],Table4[[#This Row],[Bin1]])=0)*(MOD(Table6[Bin9],Table4[[#This Row],[Bin2]])=0)),SUMPRODUCT((MOD(Table6[Bin9],Table4[[#This Row],[Bin1]])=0)*(MOD(Table6[Bin9],Table4[[#This Row],[Bin2]])=0)*(MOD(Table6[Bin9],Table4[[#This Row],[Bin3]])=0)),SUMPRODUCT((MOD(Table6[Bin9],Table4[[#This Row],[Bin1]])=0)*(MOD(Table6[Bin9],Table4[[#This Row],[Bin2]])=0)*(MOD(Table6[Bin9],Table4[[#This Row],[Bin3]])=0)*(MOD(Table6[Bin9],Table4[[#This Row],[Bin4]])=0)),SUMPRODUCT((MOD(Table6[Bin9],Table4[[#This Row],[Bin1]])=0)*(MOD(Table6[Bin9],Table4[[#This Row],[Bin2]])=0)*(MOD(Table6[Bin9],Table4[[#This Row],[Bin3]])=0)*(MOD(Table6[Bin9],Table4[[#This Row],[Bin4]])=0)*(MOD(Table6[Bin9],Table4[[#This Row],[Bin5]])=0)),SUMPRODUCT((MOD(Table6[Bin9],Table4[[#This Row],[Bin1]])=0)*(MOD(Table6[Bin9],Table4[[#This Row],[Bin2]])=0)*(MOD(Table6[Bin9],Table4[[#This Row],[Bin3]])=0)*(MOD(Table6[Bin9],Table4[[#This Row],[Bin4]])=0)*(MOD(Table6[Bin9],Table4[[#This Row],[Bin5]])=0)*(MOD(Table6[Bin9],Table4[[#This Row],[Bin6]])=0)),SUMPRODUCT((MOD(Table6[Bin9],Table4[[#This Row],[Bin1]])=0)*(MOD(Table6[Bin9],Table4[[#This Row],[Bin2]])=0)*(MOD(Table6[Bin9],Table4[[#This Row],[Bin3]])=0)*(MOD(Table6[Bin9],Table4[[#This Row],[Bin4]])=0)*(MOD(Table6[Bin9],Table4[[#This Row],[Bin5]])=0)*(MOD(Table6[Bin9],Table4[[#This Row],[Bin6]])=0)*(MOD(Table6[Bin9],Table4[[#This Row],[Bin7]])=0)),SUMPRODUCT((MOD(Table6[Bin9],Table4[[#This Row],[Bin1]])=0)*(MOD(Table6[Bin9],Table4[[#This Row],[Bin2]])=0)*(MOD(Table6[Bin9],Table4[[#This Row],[Bin3]])=0)*(MOD(Table6[Bin9],Table4[[#This Row],[Bin4]])=0)*(MOD(Table6[Bin9],Table4[[#This Row],[Bin5]])=0)*(MOD(Table6[Bin9],Table4[[#This Row],[Bin6]])=0)*(MOD(Table6[Bin9],Table4[[#This Row],[Bin7]])=0)*(MOD(Table6[Bin9],Table4[[#This Row],[Bin8]])=0))) -> 5
B14: 5 | C14: 7 | J14: =COUNTA(Table4[[#This Row],[Bin1]:[Bin8]]) -> 2 | K14: =CHOOSE(Table4[[#This Row],[Bin9]],0,SUMPRODUCT((MOD(Table6[Bin9],Table4[[#This Row],[Bin1]])=0)*(MOD(Table6[Bin9],Table4[[#This Row],[Bin2]])=0)),SUMPRODUCT((MOD(Table6[Bin9],Table4[[#This Row],[Bin1]])=0)*(MOD(Table6[Bin9],Table4[[#This Row],[Bin2]])=0)*(MOD(Table6[Bin9],Table4[[#This Row],[Bin3]])=0)),SUMPRODUCT((MOD(Table6[Bin9],Table4[[#This Row],[Bin1]])=0)*(MOD(Table6[Bin9],Table4[[#This Row],[Bin2]])=0)*(MOD(Table6[Bin9],Table4[[#This Row],[Bin3]])=0)*(MOD(Table6[Bin9],Table4[[#This Row],[Bin4]])=0)),SUMPRODUCT((MOD(Table6[Bin9],Table4[[#This Row],[Bin1]])=0)*(MOD(Table6[Bin9],Table4[[#This Row],[Bin2]])=0)*(MOD(Table6[Bin9],Table4[[#This Row],[Bin3]])=0)*(MOD(Table6[Bin9],Table4[[#This Row],[Bin4]])=0)*(MOD(Table6[Bin9],Table4[[#This Row],[Bin5]])=0)),SUMPRODUCT((MOD(Table6[Bin9],Table4[[#This Row],[Bin1]])=0)*(MOD(Table6[Bin9],Table4[[#This Row],[Bin2]])=0)*(MOD(Table6[Bin9],Table4[[#This Row],[Bin3]])=0)*(MOD(Table6[Bin9],Table4[[#This Row],[Bin4]])=0)*(MOD(Table6[Bin9],Table4[[#This Row],[Bin5]])=0)*(MOD(Table6[Bin9],Table4[[#This Row],[Bin6]])=0)),SUMPRODUCT((MOD(Table6[Bin9],Table4[[#This Row],[Bin1]])=0)*(MOD(Table6[Bin9],Table4[[#This Row],[Bin2]])=0)*(MOD(Table6[Bin9],Table4[[#This Row],[Bin3]])=0)*(MOD(Table6[Bin9],Table4[[#This Row],[Bin4]])=0)*(MOD(Table6[Bin9],Table4[[#This Row],[Bin5]])=0)*(MOD(Table6[Bin9],Table4[[#This Row],[Bin6]])=0)*(MOD(Table6[Bin9],Table4[[#This Row],[Bin7]])=0)),SUMPRODUCT((MOD(Table6[Bin9],Table4[[#This Row],[Bin1]])=0)*(MOD(Table6[Bin9],Table4[[#This Row],[Bin2]])=0)*(MOD(Table6[Bin9],Table4[[#This Row],[Bin3]])=0)*(MOD(Table6[Bin9],Table4[[#This Row],[Bin4]])=0)*(MOD(Table6[Bin9],Table4[[#This Row],[Bin5]])=0)*(MOD(Table6[Bin9],Table4[[#This Row],[Bin6]])=0)*(MOD(Table6[Bin9],Table4[[#This Row],[Bin7]])=0)*(MOD(Table6[Bin9],Table4[[#This Row],[Bin8]])=0))) -> 6
B15: 3 | C15: 11 | J15: =COUNTA(Table4[[#This Row],[Bin1]:[Bin8]]) -> 2 | K15: =CHOOSE(Table4[[#This Row],[Bin9]],0,SUMPRODUCT((MOD(Table6[Bin9],Table4[[#This Row],[Bin1]])=0)*(MOD(Table6[Bin9],Table4[[#This Row],[Bin2]])=0)),SUMPRODUCT((MOD(Table6[Bin9],Table4[[#This Row],[Bin1]])=0)*(MOD(Table6[Bin9],Table4[[#This Row],[Bin2]])=0)*(MOD(Table6[Bin9],Table4[[#This Row],[Bin3]])=0)),SUMPRODUCT((MOD(Table6[Bin9],Table4[[#This Row],[Bin1]])=0)*(MOD(Table6[Bin9],Table4[[#This Row],[Bin2]])=0)*(MOD(Table6[Bin9],Table4[[#This Row],[Bin3]])=0)*(MOD(Table6[Bin9],Table4[[#This Row],[Bin4]])=0)),SUMPRODUCT((MOD(Table6[Bin9],Table4[[#This Row],[Bin1]])=0)*(MOD(Table6[Bin9],Table4[[#This Row],[Bin2]])=0)*(MOD(Table6[Bin9],Table4[[#This Row],[Bin3]])=0)*(MOD(Table6[Bin9],Table4[[#This Row],[Bin4]])=0)*(MOD(Table6[Bin9],Table4[[#This Row],[Bin5]])=0)),SUMPRODUCT((MOD(Table6[Bin9],Table4[[#This Row],[Bin1]])=0)*(MOD(Table6[Bin9],Table4[[#This Row],[Bin2]])=0)*(MOD(Table6[Bin9],Table4[[#This Row],[Bin3]])=0)*(MOD(Table6[Bin9],Table4[[#This Row],[Bin4]])=0)*(MOD(Table6[Bin9],Table4[[#This Row],[Bin5]])=0)*(MOD(Table6[Bin9],Table4[[#This Row],[Bin6]])=0)),SUMPRODUCT((MOD(Table6[Bin9],Table4[[#This Row],[Bin1]])=0)*(MOD(Table6[Bin9],Table4[[#This Row],[Bin2]])=0)*(MOD(Table6[Bin9],Table4[[#This Row],[Bin3]])=0)*(MOD(Table6[Bin9],Table4[[#This Row],[Bin4]])=0)*(MOD(Table6[Bin9],Table4[[#This Row],[Bin5]])=0)*(MOD(Table6[Bin9],Table4[[#This Row],[Bin6]])=0)*(MOD(Table6[Bin9],Table4[[#This Row],[Bin7]])=0)),SUMPRODUCT((MOD(Table6[Bin9],Table4[[#This Row],[Bin1]])=0)*(MOD(Table6[Bin9],Table4[[#This Row],[Bin2]])=0)*(MOD(Table6[Bin9],Table4[[#This Row],[Bin3]])=0)*(MOD(Table6[Bin9],Table4[[#This Row],[Bin4]])=0)*(MOD(Table6[Bin9],Table4[[#This Row],[Bin5]])=0)*(MOD(Table6[Bin9],Table4[[#This Row],[Bin6]])=0)*(MOD(Table6[Bin9],Table4[[#This Row],[Bin7]])=0)*(MOD(Table6[Bin9],Table4[[#This Row],[Bin8]])=0))) -> 5
B16: 5 | C16: 11 | J16: =COUNTA(Table4[[#This Row],[Bin1]:[Bin8]]) -> 2 | K16: =CHOOSE(Table4[[#This Row],[Bin9]],0,SUMPRODUCT((MOD(Table6[Bin9],Table4[[#This Row],[Bin1]])=0)*(MOD(Table6[Bin9],Table4[[#This Row],[Bin2]])=0)),SUMPRODUCT((MOD(Table6[Bin9],Table4[[#This Row],[Bin1]])=0)*(MOD(Table6[Bin9],Table4[[#This Row],[Bin2]])=0)*(MOD(Table6[Bin9],Table4[[#This Row],[Bin3]])=0)),SUMPRODUCT((MOD(Table6[Bin9],Table4[[#This Row],[Bin1]])=0)*(MOD(Table6[Bin9],Table4[[#This Row],[Bin2]])=0)*(MOD(Table6[Bin9],Table4[[#This Row],[Bin3]])=0)*(MOD(Table6[Bin9],Table4[[#This Row],[Bin4]])=0)),SUMPRODUCT((MOD(Table6[Bin9],Table4[[#This Row],[Bin1]])=0)*(MOD(Table6[Bin9],Table4[[#This Row],[Bin2]])=0)*(MOD(Table6[Bin9],Table4[[#This Row],[Bin3]])=0)*(MOD(Table6[Bin9],Table4[[#This Row],[Bin4]])=0)*(MOD(Table6[Bin9],Table4[[#This Row],[Bin5]])=0)),SUMPRODUCT((MOD(Table6[Bin9],Table4[[#This Row],[Bin1]])=0)*(MOD(Table6[Bin9],Table4[[#This Row],[Bin2]])=0)*(MOD(Table6[Bin9],Table4[[#This Row],[Bin3]])=0)*(MOD(Table6[Bin9],Table4[[#This Row],[Bin4]])=0)*(MOD(Table6[Bin9],Table4[[#This Row],[Bin5]])=0)*(MOD(Table6[Bin9],Table4[[#This Row],[Bin6]])=0)),SUMPRODUCT((MOD(Table6[Bin9],Table4[[#This Row],[Bin1]])=0)*(MOD(Table6[Bin9],Table4[[#This Row],[Bin2]])=0)*(MOD(Table6[Bin9],Table4[[#This Row],[Bin3]])=0)*(MOD(Table6[Bin9],Table4[[#This Row],[Bin4]])=0)*(MOD(Table6[Bin9],Table4[[#This Row],[Bin5]])=0)*(MOD(Table6[Bin9],Table4[[#This Row],[Bin6]])=0)*(MOD(Table6[Bin9],Table4[[#This Row],[Bin7]])=0)),SUMPRODUCT((MOD(Table6[Bin9],Table4[[#This Row],[Bin1]])=0)*(MOD(Table6[Bin9],Table4[[#This Row],[Bin2]])=0)*(MOD(Table6[Bin9],Table4[[#This Row],[Bin3]])=0)*(MOD(Table6[Bin9],Table4[[#This Row],[Bin4]])=0)*(MOD(Table6[Bin9],Table4[[#This Row],[Bin5]])=0)*(MOD(Table6[Bin9],Table4[[#This Row],[Bin6]])=0)*(MOD(Table6[Bin9],Table4[[#This Row],[Bin7]])=0)*(MOD(Table6[Bin9],Table4[[#This Row],[Bin8]])=0))) -> 7
B17: 7 | C17: 11 | J17: =COUNTA(Table4[[#This Row],[Bin1]:[Bin8]]) -> 2 | K17: =CHOOSE(Table4[[#This Row],[Bin9]],0,SUMPRODUCT((MOD(Table6[Bin9],Table4[[#This Row],[Bin1]])=0)*(MOD(Table6[Bin9],Table4[[#This Row],[Bin2]])=0)),SUMPRODUCT((MOD(Table6[Bin9],Table4[[#This Row],[Bin1]])=0)*(MOD(Table6[Bin9],Table4[[#This Row],[Bin2]])=0)*(MOD(Table6[Bin9],Table4[[#This Row],[Bin3]])=0)),SUMPRODUCT((MOD(Table6[Bin9],Table4[[#This Row],[Bin1]])=0)*(MOD(Table6[Bin9],Table4[[#This Row],[Bin2]])=0)*(MOD(Table6[Bin9],Table4[[#This Row],[Bin3]])=0)*(MOD(Table6[Bin9],Table4[[#This Row],[Bin4]])=0)),SUMPRODUCT((MOD(Table6[Bin9],Table4[[#This Row],[Bin1]])=0)*(MOD(Table6[Bin9],Table4[[#This Row],[Bin2]])=0)*(MOD(Table6[Bin9],Table4[[#This Row],[Bin3]])=0)*(MOD(Table6[Bin9],Table4[[#This Row],[Bin4]])=0)*(MOD(Table6[Bin9],Table4[[#This Row],[Bin5]])=0)),SUMPRODUCT((MOD(Table6[Bin9],Table4[[#This Row],[Bin1]])=0)*(MOD(Table6[Bin9],Table4[[#This Row],[Bin2]])=0)*(MOD(Table6[Bin9],Table4[[#This Row],[Bin3]])=0)*(MOD(Table6[Bin9],Table4[[#This Row],[Bin4]])=0)*(MOD(Table6[Bin9],Table4[[#This Row],[Bin5]])=0)*(MOD(Table6[Bin9],Table4[[#This Row],[Bin6]])=0)),SUMPRODUCT((MOD(Table6[Bin9],Table4[[#This Row],[Bin1]])=0)*(MOD(Table6[Bin9],Table4[[#This Row],[Bin2]])=0)*(MOD(Table6[Bin9],Table4[[#This Row],[Bin3]])=0)*(MOD(Table6[Bin9],Table4[[#This Row],[Bin4]])=0)*(MOD(Table6[Bin9],Table4[[#This Row],[Bin5]])=0)*(MOD(Table6[Bin9],Table4[[#This Row],[Bin6]])=0)*(MOD(Table6[Bin9],Table4[[#This Row],[Bin7]])=0)),SUMPRODUCT((MOD(Table6[Bin9],Table4[[#This Row],[Bin1]])=0)*(MOD(Table6[Bin9],Table4[[#This Row],[Bin2]])=0)*(MOD(Table6[Bin9],Table4[[#This Row],[Bin3]])=0)*(MOD(Table6[Bin9],Table4[[#This Row],[Bin4]])=0)*(MOD(Table6[Bin9],Table4[[#This Row],[Bin5]])=0)*(MOD(Table6[Bin9],Table4[[#This Row],[Bin6]])=0)*(MOD(Table6[Bin9],Table4[[#This Row],[Bin7]])=0)*(MOD(Table6[Bin9],Table4[[#This Row],[Bin8]])=0))) -> 9
B18: 3 | C18: 13 | J18: =COUNTA(Table4[[#This Row],[Bin1]:[Bin8]]) -> 2 | K18: =CHOOSE(Table4[[#This Row],[Bin9]],0,SUMPRODUCT((MOD(Table6[Bin9],Table4[[#This Row],[Bin1]])=0)*(MOD(Table6[Bin9],Table4[[#This Row],[Bin2]])=0)),SUMPRODUCT((MOD(Table6[Bin9],Table4[[#This Row],[Bin1]])=0)*(MOD(Table6[Bin9],Table4[[#This Row],[Bin2]])=0)*(MOD(Table6[Bin9],Table4[[#This Row],[Bin3]])=0)),SUMPRODUCT((MOD(Table6[Bin9],Table4[[#This Row],[Bin1]])=0)*(MOD(Table6[Bin9],Table4[[#This Row],[Bin2]])=0)*(MOD(Table6[Bin9],Table4[[#This Row],[Bin3]])=0)*(MOD(Table6[Bin9],Table4[[#This Row],[Bin4]])=0)),SUMPRODUCT((MOD(Table6[Bin9],Table4[[#This Row],[Bin1]])=0)*(MOD(Table6[Bin9],Table4[[#This Row],[Bin2]])=0)*(MOD(Table6[Bin9],Table4[[#This Row],[Bin3]])=0)*(MOD(Table6[Bin9],Table4[[#This Row],[Bin4]])=0)*(MOD(Table6[Bin9],Table4[[#This Row],[Bin5]])=0)),SUMPRODUCT((MOD(Table6[Bin9],Table4[[#This Row],[Bin1]])=0)*(MOD(Table6[Bin9],Table4[[#This Row],[Bin2]])=0)*(MOD(Table6[Bin9],Table4[[#This Row],[Bin3]])=0)*(MOD(Table6[Bin9],Table4[[#This Row],[Bin4]])=0)*(MOD(Table6[Bin9],Table4[[#This Row],[Bin5]])=0)*(MOD(Table6[Bin9],Table4[[#This Row],[Bin6]])=0)),SUMPRODUCT((MOD(Table6[Bin9],Table4[[#This Row],[Bin1]])=0)*(MOD(Table6[Bin9],Table4[[#This Row],[Bin2]])=0)*(MOD(Table6[Bin9],Table4[[#This Row],[Bin3]])=0)*(MOD(Table6[Bin9],Table4[[#This Row],[Bin4]])=0)*(MOD(Table6[Bin9],Table4[[#This Row],[Bin5]])=0)*(MOD(Table6[Bin9],Table4[[#This Row],[Bin6]])=0)*(MOD(Table6[Bin9],Table4[[#This Row],[Bin7]])=0)),SUMPRODUCT((MOD(Table6[Bin9],Table4[[#This Row],[Bin1]])=0)*(MOD(Table6[Bin9],Table4[[#This Row],[Bin2]])=0)*(MOD(Table6[Bin9],Table4[[#This Row],[Bin3]])=0)*(MOD(Table6[Bin9],Table4[[#This Row],[Bin4]])=0)*(MOD(Table6[Bin9],Table4[[#This Row],[Bin5]])=0)*(MOD(Table6[Bin9],Table4[[#This Row],[Bin6]])=0)*(MOD(Table6[Bin9],Table4[[#This Row],[Bin7]])=0)*(MOD(Table6[Bin9],Table4[[#This Row],[Bin8]])=0))) -> 4
B19: 5 | C19: 13 | J19: =COUNTA(Table4[[#This Row],[Bin1]:[Bin8]]) -> 2 | K19: =CHOOSE(Table4[[#This Row],[Bin9]],0,SUMPRODUCT((MOD(Table6[Bin9],Table4[[#This Row],[Bin1]])=0)*(MOD(Table6[Bin9],Table4[[#This Row],[Bin2]])=0)),SUMPRODUCT((MOD(Table6[Bin9],Table4[[#This Row],[Bin1]])=0)*(MOD(Table6[Bin9],Table4[[#This Row],[Bin2]])=0)*(MOD(Table6[Bin9],Table4[[#This Row],[Bin3]])=0)),SUMPRODUCT((MOD(Table6[Bin9],Table4[[#This Row],[Bin1]])=0)*(MOD(Table6[Bin9],Table4[[#This Row],[Bin2]])=0)*(MOD(Table6[Bin9],Table4[[#This Row],[Bin3]])=0)*(MOD(Table6[Bin9],Table4[[#This Row],[Bin4]])=0)),SUMPRODUCT((MOD(Table6[Bin9],Table4[[#This Row],[Bin1]])=0)*(MOD(Table6[Bin9],Table4[[#This Row],[Bin2]])=0)*(MOD(Table6[Bin9],Table4[[#This Row],[Bin3]])=0)*(MOD(Table6[Bin9],Table4[[#This Row],[Bin4]])=0)*(MOD(Table6[Bin9],Table4[[#This Row],[Bin5]])=0)),SUMPRODUCT((MOD(Table6[Bin9],Table4[[#This Row],[Bin1]])=0)*(MOD(Table6[Bin9],Table4[[#This Row],[Bin2]])=0)*(MOD(Table6[Bin9],Table4[[#This Row],[Bin3]])=0)*(MOD(Table6[Bin9],Table4[[#This Row],[Bin4]])=0)*(MOD(Table6[Bin9],Table4[[#This Row],[Bin5]])=0)*(MOD(Table6[Bin9],Table4[[#This Row],[Bin6]])=0)),SUMPRODUCT((MOD(Table6[Bin9],Table4[[#This Row],[Bin1]])=0)*(MOD(Table6[Bin9],Table4[[#This Row],[Bin2]])=0)*(MOD(Table6[Bin9],Table4[[#This Row],[Bin3]])=0)*(MOD(Table6[Bin9],Table4[[#This Row],[Bin4]])=0)*(MOD(Table6[Bin9],Table4[[#This Row],[Bin5]])=0)*(MOD(Table6[Bin9],Table4[[#This Row],[Bin6]])=0)*(MOD(Table6[Bin9],Table4[[#This Row],[Bin7]])=0)),SUMPRODUCT((MOD(Table6[Bin9],Table4[[#This Row],[Bin1]])=0)*(MOD(Table6[Bin9],Table4[[#This Row],[Bin2]])=0)*(MOD(Table6[Bin9],Table4[[#This Row],[Bin3]])=0)*(MOD(Table6[Bin9],Table4[[#This Row],[Bin4]])=0)*(MOD(Table6[Bin9],Table4[[#This Row],[Bin5]])=0)*(MOD(Table6[Bin9],Table4[[#This Row],[Bin6]])=0)*(MOD(Table6[Bin9],Table4[[#This Row],[Bin7]])=0)*(MOD(Table6[Bin9],Table4[[#This Row],[Bin8]])=0))) -> 4
B20: 7 | C20: 13 | J20: =COUNTA(Table4[[#This Row],[Bin1]:[Bin8]]) -> 2 | K20: =CHOOSE(Table4[[#This Row],[Bin9]],0,SUMPRODUCT((MOD(Table6[Bin9],Table4[[#This Row],[Bin1]])=0)*(MOD(Table6[Bin9],Table4[[#This Row],[Bin2]])=0)),SUMPRODUCT((MOD(Table6[Bin9],Table4[[#This Row],[Bin1]])=0)*(MOD(Table6[Bin9],Table4[[#This Row],[Bin2]])=0)*(MOD(Table6[Bin9],Table4[[#This Row],[Bin3]])=0)),SUMPRODUCT((MOD(Table6[Bin9],Table4[[#This Row],[Bin1]])=0)*(MOD(Table6[Bin9],Table4[[#This Row],[Bin2]])=0)*(MOD(Table6[Bin9],Table4[[#This Row],[Bin3]])=0)*(MOD(Table6[Bin9],Table4[[#This Row],[Bin4]])=0)),SUMPRODUCT((MOD(Table6[Bin9],Table4[[#This Row],[Bin1]])=0)*(MOD(Table6[Bin9],Table4[[#This Row],[Bin2]])=0)*(MOD(Table6[Bin9],Table4[[#This Row],[Bin3]])=0)*(MOD(Table6[Bin9],Table4[[#This Row],[Bin4]])=0)*(MOD(Table6[Bin9],Table4[[#This Row],[Bin5]])=0)),SUMPRODUCT((MOD(Table6[Bin9],Table4[[#This Row],[Bin1]])=0)*(MOD(Table6[Bin9],Table4[[#This Row],[Bin2]])=0)*(MOD(Table6[Bin9],Table4[[#This Row],[Bin3]])=0)*(MOD(Table6[Bin9],Table4[[#This Row],[Bin4]])=0)*(MOD(Table6[Bin9],Table4[[#This Row],[Bin5]])=0)*(MOD(Table6[Bin9],Table4[[#This Row],[Bin6]])=0)),SUMPRODUCT((MOD(Table6[Bin9],Table4[[#This Row],[Bin1]])=0)*(MOD(Table6[Bin9],Table4[[#This Row],[Bin2]])=0)*(MOD(Table6[Bin9],Table4[[#This Row],[Bin3]])=0)*(MOD(Table6[Bin9],Table4[[#This Row],[Bin4]])=0)*(MOD(Table6[Bin9],Table4[[#This Row],[Bin5]])=0)*(MOD(Table6[Bin9],Table4[[#This Row],[Bin6]])=0)*(MOD(Table6[Bin9],Table4[[#This Row],[Bin7]])=0)),SUMPRODUCT((MOD(Table6[Bin9],Table4[[#This Row],[Bin1]])=0)*(MOD(Table6[Bin9],Table4[[#This Row],[Bin2]])=0)*(MOD(Table6[Bin9],Table4[[#This Row],[Bin3]])=0)*(MOD(Table6[Bin9],Table4[[#This Row],[Bin4]])=0)*(MOD(Table6[Bin9],Table4[[#This Row],[Bin5]])=0)*(MOD(Table6[Bin9],Table4[[#This Row],[Bin6]])=0)*(MOD(Table6[Bin9],Table4[[#This Row],[Bin7]])=0)*(MOD(Table6[Bin9],Table4[[#This Row],[Bin8]])=0))) -> 8
B21: 11 | C21: 13 | J21: =COUNTA(Table4[[#This Row],[Bin1]:[Bin8]]) -> 2 | K21: =CHOOSE(Table4[[#This Row],[Bin9]],0,SUMPRODUCT((MOD(Table6[Bin9],Table4[[#This Row],[Bin1]])=0)*(MOD(Table6[Bin9],Table4[[#This Row],[Bin2]])=0)),SUMPRODUCT((MOD(Table6[Bin9],Table4[[#This Row],[Bin1]])=0)*(MOD(Table6[Bin9],Table4[[#This Row],[Bin2]])=0)*(MOD(Table6[Bin9],Table4[[#This Row],[Bin3]])=0)),SUMPRODUCT((MOD(Table6[Bin9],Table4[[#This Row],[Bin1]])=0)*(MOD(Table6[Bin9],Table4[[#This Row],[Bin2]])=0)*(MOD(Table6[Bin9],Table4[[#This Row],[Bin3]])=0)*(MOD(Table6[Bin9],Table4[[#This Row],[Bin4]])=0)),SUMPRODUCT((MOD(Table6[Bin9],Table4[[#This Row],[Bin1]])=0)*(MOD(Table6[Bin9],Table4[[#This Row],[Bin2]])=0)*(MOD(Table6[Bin9],Table4[[#This Row],[Bin3]])=0)*(MOD(Table6[Bin9],Table4[[#This Row],[Bin4]])=0)*(MOD(Table6[Bin9],Table4[[#This Row],[Bin5]])=0)),SUMPRODUCT((MOD(Table6[Bin9],Table4[[#This Row],[Bin1]])=0)*(MOD(Table6[Bin9],Table4[[#This Row],[Bin2]])=0)*(MOD(Table6[Bin9],Table4[[#This Row],[Bin3]])=0)*(MOD(Table6[Bin9],Table4[[#This Row],[Bin4]])=0)*(MOD(Table6[Bin9],Table4[[#This Row],[Bin5]])=0)*(MOD(Table6[Bin9],Table4[[#This Row],[Bin6]])=0)),SUMPRODUCT((MOD(Table6[Bin9],Table4[[#This Row],[Bin1]])=0)*(MOD(Table6[Bin9],Table4[[#This Row],[Bin2]])=0)*(MOD(Table6[Bin9],Table4[[#This Row],[Bin3]])=0)*(MOD(Table6[Bin9],Table4[[#This Row],[Bin4]])=0)*(MOD(Table6[Bin9],Table4[[#This Row],[Bin5]])=0)*(MOD(Table6[Bin9],Table4[[#This Row],[Bin6]])=0)*(MOD(Table6[Bin9],Table4[[#This Row],[Bin7]])=0)),SUMPRODUCT((MOD(Table6[Bin9],Table4[[#This Row],[Bin1]])=0)*(MOD(Table6[Bin9],Table4[[#This Row],[Bin2]])=0)*(MOD(Table6[Bin9],Table4[[#This Row],[Bin3]])=0)*(MOD(Table6[Bin9],Table4[[#This Row],[Bin4]])=0)*(MOD(Table6[Bin9],Table4[[#This Row],[Bin5]])=0)*(MOD(Table6[Bin9],Table4[[#This Row],[Bin6]])=0)*(MOD(Table6[Bin9],Table4[[#This Row],[Bin7]])=0)*(MOD(Table6[Bin9],Table4[[#This Row],[Bin8]])=0))) -> 6
B22: 3 | C22: 17 | J22: =COUNTA(Table4[[#This Row],[Bin1]:[Bin8]]) -> 2 | K22: =CHOOSE(Table4[[#This Row],[Bin9]],0,SUMPRODUCT((MOD(Table6[Bin9],Table4[[#This Row],[Bin1]])=0)*(MOD(Table6[Bin9],Table4[[#This Row],[Bin2]])=0)),SUMPRODUCT((MOD(Table6[Bin9],Table4[[#This Row],[Bin1]])=0)*(MOD(Table6[Bin9],Table4[[#This Row],[Bin2]])=0)*(MOD(Table6[Bin9],Table4[[#This Row],[Bin3]])=0)),SUMPRODUCT((MOD(Table6[Bin9],Table4[[#This Row],[Bin1]])=0)*(MOD(Table6[Bin9],Table4[[#This Row],[Bin2]])=0)*(MOD(Table6[Bin9],Table4[[#This Row],[Bin3]])=0)*(MOD(Table6[Bin9],Table4[[#This Row],[Bin4]])=0)),SUMPRODUCT((MOD(Table6[Bin9],Table4[[#This Row],[Bin1]])=0)*(MOD(Table6[Bin9],Table4[[#This Row],[Bin2]])=0)*(MOD(Table6[Bin9],Table4[[#This Row],[Bin3]])=0)*(MOD(Table6[Bin9],Table4[[#This Row],[Bin4]])=0)*(MOD(Table6[Bin9],Table4[[#This Row],[Bin5]])=0)),SUMPRODUCT((MOD(Table6[Bin9],Table4[[#This Row],[Bin1]])=0)*(MOD(Table6[Bin9],Table4[[#This Row],[Bin2]])=0)*(MOD(Table6[Bin9],Table4[[#This Row],[Bin3]])=0)*(MOD(Table6[Bin9],Table4[[#This Row],[Bin4]])=0)*(MOD(Table6[Bin9],Table4[[#This Row],[Bin5]])=0)*(MOD(Table6[Bin9],Table4[[#This Row],[Bin6]])=0)),SUMPRODUCT((MOD(Table6[Bin9],Table4[[#This Row],[Bin1]])=0)*(MOD(Table6[Bin9],Table4[[#This Row],[Bin2]])=0)*(MOD(Table6[Bin9],Table4[[#This Row],[Bin3]])=0)*(MOD(Table6[Bin9],Table4[[#This Row],[Bin4]])=0)*(MOD(Table6[Bin9],Table4[[#This Row],[Bin5]])=0)*(MOD(Table6[Bin9],Table4[[#This Row],[Bin6]])=0)*(MOD(Table6[Bin9],Table4[[#This Row],[Bin7]])=0)),SUMPRODUCT((MOD(Table6[Bin9],Table4[[#This Row],[Bin1]])=0)*(MOD(Table6[Bin9],Table4[[#This Row],[Bin2]])=0)*(MOD(Table6[Bin9],Table4[[#This Row],[Bin3]])=0)*(MOD(Table6[Bin9],Table4[[#This Row],[Bin4]])=0)*(MOD(Table6[Bin9],Table4[[#This Row],[Bin5]])=0)*(MOD(Table6[Bin9],Table4[[#This Row],[Bin6]])=0)*(MOD(Table6[Bin9],Table4[[#This Row],[Bin7]])=0)*(MOD(Table6[Bin9],Table4[[#This Row],[Bin8]])=0))) -> 4
B23: 5 | C23: 17 | J23: =COUNTA(Table4[[#This Row],[Bin1]:[Bin8]]) -> 2 | K23: =CHOOSE(Table4[[#This Row],[Bin9]],0,SUMPRODUCT((MOD(Table6[Bin9],Table4[[#This Row],[Bin1]])=0)*(MOD(Table6[Bin9],Table4[[#This Row],[Bin2]])=0)),SUMPRODUCT((MOD(Table6[Bin9],Table4[[#This Row],[Bin1]])=0)*(MOD(Table6[Bin9],Table4[[#This Row],[Bin2]])=0)*(MOD(Table6[Bin9],Table4[[#This Row],[Bin3]])=0)),SUMPRODUCT((MOD(Table6[Bin9],Table4[[#This Row],[Bin1]])=0)*(MOD(Table6[Bin9],Table4[[#This Row],[Bin2]])=0)*(MOD(Table6[Bin9],Table4[[#This Row],[Bin3]])=0)*(MOD(Table6[Bin9],Table4[[#This Row],[Bin4]])=0)),SUMPRODUCT((MOD(Table6[Bin9],Table4[[#This Row],[Bin1]])=0)*(MOD(Table6[Bin9],Table4[[#This Row],[Bin2]])=0)*(MOD(Table6[Bin9],Table4[[#This Row],[Bin3]])=0)*(MOD(Table6[Bin9],Table4[[#This Row],[Bin4]])=0)*(MOD(Table6[Bin9],Table4[[#This Row],[Bin5]])=0)),SUMPRODUCT((MOD(Table6[Bin9],Table4[[#This Row],[Bin1]])=0)*(MOD(Table6[Bin9],Table4[[#This Row],[Bin2]])=0)*(MOD(Table6[Bin9],Table4[[#This Row],[Bin3]])=0)*(MOD(Table6[Bin9],Table4[[#This Row],[Bin4]])=0)*(MOD(Table6[Bin9],Table4[[#This Row],[Bin5]])=0)*(MOD(Table6[Bin9],Table4[[#This Row],[Bin6]])=0)),SUMPRODUCT((MOD(Table6[Bin9],Table4[[#This Row],[Bin1]])=0)*(MOD(Table6[Bin9],Table4[[#This Row],[Bin2]])=0)*(MOD(Table6[Bin9],Table4[[#This Row],[Bin3]])=0)*(MOD(Table6[Bin9],Table4[[#This Row],[Bin4]])=0)*(MOD(Table6[Bin9],Table4[[#This Row],[Bin5]])=0)*(MOD(Table6[Bin9],Table4[[#This Row],[Bin6]])=0)*(MOD(Table6[Bin9],Table4[[#This Row],[Bin7]])=0)),SUMPRODUCT((MOD(Table6[Bin9],Table4[[#This Row],[Bin1]])=0)*(MOD(Table6[Bin9],Table4[[#This Row],[Bin2]])=0)*(MOD(Table6[Bin9],Table4[[#This Row],[Bin3]])=0)*(MOD(Table6[Bin9],Table4[[#This Row],[Bin4]])=0)*(MOD(Table6[Bin9],Table4[[#This Row],[Bin5]])=0)*(MOD(Table6[Bin9],Table4[[#This Row],[Bin6]])=0)*(MOD(Table6[Bin9],Table4[[#This Row],[Bin7]])=0)*(MOD(Table6[Bin9],Table4[[#This Row],[Bin8]])=0))) -> 3
B24: 7 | C24: 17 | J24: =COUNTA(Table4[[#This Row],[Bin1]:[Bin8]]) -> 2 | K24: =CHOOSE(Table4[[#This Row],[Bin9]],0,SUMPRODUCT((MOD(Table6[Bin9],Table4[[#This Row],[Bin1]])=0)*(MOD(Table6[Bin9],Table4[[#This Row],[Bin2]])=0)),SUMPRODUCT((MOD(Table6[Bin9],Table4[[#This Row],[Bin1]])=0)*(MOD(Table6[Bin9],Table4[[#This Row],[Bin2]])=0)*(MOD(Table6[Bin9],Table4[[#This Row],[Bin3]])=0)),SUMPRODUCT((MOD(Table6[Bin9],Table4[[#This Row],[Bin1]])=0)*(MOD(Table6[Bin9],Table4[[#This Row],[Bin2]])=0)*(MOD(Table6[Bin9],Table4[[#This Row],[Bin3]])=0)*(MOD(Table6[Bin9],Table4[[#This Row],[Bin4]])=0)),SUMPRODUCT((MOD(Table6[Bin9],Table4[[#This Row],[Bin1]])=0)*(MOD(Table6[Bin9],Table4[[#This Row],[Bin2]])=0)*(MOD(Table6[Bin9],Table4[[#This Row],[Bin3]])=0)*(MOD(Table6[Bin9],Table4[[#This Row],[Bin4]])=0)*(MOD(Table6[Bin9],Table4[[#This Row],[Bin5]])=0)),SUMPRODUCT((MOD(Table6[Bin9],Table4[[#This Row],[Bin1]])=0)*(MOD(Table6[Bin9],Table4[[#This Row],[Bin2]])=0)*(MOD(Table6[Bin9],Table4[[#This Row],[Bin3]])=0)*(MOD(Table6[Bin9],Table4[[#This Row],[Bin4]])=0)*(MOD(Table6[Bin9],Table4[[#This Row],[Bin5]])=0)*(MOD(Table6[Bin9],Table4[[#This Row],[Bin6]])=0)),SUMPRODUCT((MOD(Table6[Bin9],Table4[[#This Row],[Bin1]])=0)*(MOD(Table6[Bin9],Table4[[#This Row],[Bin2]])=0)*(MOD(Table6[Bin9],Table4[[#This Row],[Bin3]])=0)*(MOD(Table6[Bin9],Table4[[#This Row],[Bin4]])=0)*(MOD(Table6[Bin9],Table4[[#This Row],[Bin5]])=0)*(MOD(Table6[Bin9],Table4[[#This Row],[Bin6]])=0)*(MOD(Table6[Bin9],Table4[[#This Row],[Bin7]])=0)),SUMPRODUCT((MOD(Table6[Bin9],Table4[[#This Row],[Bin1]])=0)*(MOD(Table6[Bin9],Table4[[#This Row],[Bin2]])=0)*(MOD(Table6[Bin9],Table4[[#This Row],[Bin3]])=0)*(MOD(Table6[Bin9],Table4[[#This Row],[Bin4]])=0)*(MOD(Table6[Bin9],Table4[[#This Row],[Bin5]])=0)*(MOD(Table6[Bin9],Table4[[#This Row],[Bin6]])=0)*(MOD(Table6[Bin9],Table4[[#This Row],[Bin7]])=0)*(MOD(Table6[Bin9],Table4[[#This Row],[Bin8]])=0))) -> 5
B25: 11 | C25: 17 | J25: =COUNTA(Table4[[#This Row],[Bin1]:[Bin8]]) -> 2 | K25: =CHOOSE(Table4[[#This Row],[Bin9]],0,SUMPRODUCT((MOD(Table6[Bin9],Table4[[#This Row],[Bin1]])=0)*(MOD(Table6[Bin9],Table4[[#This Row],[Bin2]])=0)),SUMPRODUCT((MOD(Table6[Bin9],Table4[[#This Row],[Bin1]])=0)*(MOD(Table6[Bin9],Table4[[#This Row],[Bin2]])=0)*(MOD(Table6[Bin9],Table4[[#This Row],[Bin3]])=0)),SUMPRODUCT((MOD(Table6[Bin9],Table4[[#This Row],[Bin1]])=0)*(MOD(Table6[Bin9],Table4[[#This Row],[Bin2]])=0)*(MOD(Table6[Bin9],Table4[[#This Row],[Bin3]])=0)*(MOD(Table6[Bin9],Table4[[#This Row],[Bin4]])=0)),SUMPRODUCT((MOD(Table6[Bin9],Table4[[#This Row],[Bin1]])=0)*(MOD(Table6[Bin9],Table4[[#This Row],[Bin2]])=0)*(MOD(Table6[Bin9],Table4[[#This Row],[Bin3]])=0)*(MOD(Table6[Bin9],Table4[[#This Row],[Bin4]])=0)*(MOD(Table6[Bin9],Table4[[#This Row],[Bin5]])=0)),SUMPRODUCT((MOD(Table6[Bin9],Table4[[#This Row],[Bin1]])=0)*(MOD(Table6[Bin9],Table4[[#This Row],[Bin2]])=0)*(MOD(Table6[Bin9],Table4[[#This Row],[Bin3]])=0)*(MOD(Table6[Bin9],Table4[[#This Row],[Bin4]])=0)*(MOD(Table6[Bin9],Table4[[#This Row],[Bin5]])=0)*(MOD(Table6[Bin9],Table4[[#This Row],[Bin6]])=0)),SUMPRODUCT((MOD(Table6[Bin9],Table4[[#This Row],[Bin1]])=0)*(MOD(Table6[Bin9],Table4[[#This Row],[Bin2]])=0)*(MOD(Table6[Bin9],Table4[[#This Row],[Bin3]])=0)*(MOD(Table6[Bin9],Table4[[#This Row],[Bin4]])=0)*(MOD(Table6[Bin9],Table4[[#This Row],[Bin5]])=0)*(MOD(Table6[Bin9],Table4[[#This Row],[Bin6]])=0)*(MOD(Table6[Bin9],Table4[[#This Row],[Bin7]])=0)),SUMPRODUCT((MOD(Table6[Bin9],Table4[[#This Row],[Bin1]])=0)*(MOD(Table6[Bin9],Table4[[#This Row],[Bin2]])=0)*(MOD(Table6[Bin9],Table4[[#This Row],[Bin3]])=0)*(MOD(Table6[Bin9],Table4[[#This Row],[Bin4]])=0)*(MOD(Table6[Bin9],Table4[[#This Row],[Bin5]])=0)*(MOD(Table6[Bin9],Table4[[#This Row],[Bin6]])=0)*(MOD(Table6[Bin9],Table4[[#This Row],[Bin7]])=0)*(MOD(Table6[Bin9],Table4[[#This Row],[Bin8]])=0))) -> 7
B26: 13 | C26: 17 | J26: =COUNTA(Table4[[#This Row],[Bin1]:[Bin8]]) -> 2 | K26: =CHOOSE(Table4[[#This Row],[Bin9]],0,SUMPRODUCT((MOD(Table6[Bin9],Table4[[#This Row],[Bin1]])=0)*(MOD(Table6[Bin9],Table4[[#This Row],[Bin2]])=0)),SUMPRODUCT((MOD(Table6[Bin9],Table4[[#This Row],[Bin1]])=0)*(MOD(Table6[Bin9],Table4[[#This Row],[Bin2]])=0)*(MOD(Table6[Bin9],Table4[[#This Row],[Bin3]])=0)),SUMPRODUCT((MOD(Table6[Bin9],Table4[[#This Row],[Bin1]])=0)*(MOD(Table6[Bin9],Table4[[#This Row],[Bin2]])=0)*(MOD(Table6[Bin9],Table4[[#This Row],[Bin3]])=0)*(MOD(Table6[Bin9],Table4[[#This Row],[Bin4]])=0)),SUMPRODUCT((MOD(Table6[Bin9],Table4[[#This Row],[Bin1]])=0)*(MOD(Table6[Bin9],Table4[[#This Row],[Bin2]])=0)*(MOD(Table6[Bin9],Table4[[#This Row],[Bin3]])=0)*(MOD(Table6[Bin9],Table4[[#This Row],[Bin4]])=0)*(MOD(Table6[Bin9],Table4[[#This Row],[Bin5]])=0)),SUMPRODUCT((MOD(Table6[Bin9],Table4[[#This Row],[Bin1]])=0)*(MOD(Table6[Bin9],Table4[[#This Row],[Bin2]])=0)*(MOD(Table6[Bin9],Table4[[#This Row],[Bin3]])=0)*(MOD(Table6[Bin9],Table4[[#This Row],[Bin4]])=0)*(MOD(Table6[Bin9],Table4[[#This Row],[Bin5]])=0)*(MOD(Table6[Bin9],Table4[[#This Row],[Bin6]])=0)),SUMPRODUCT((MOD(Table6[Bin9],Table4[[#This Row],[Bin1]])=0)*(MOD(Table6[Bin9],Table4[[#This Row],[Bin2]])=0)*(MOD(Table6[Bin9],Table4[[#This Row],[Bin3]])=0)*(MOD(Table6[Bin9],Table4[[#This Row],[Bin4]])=0)*(MOD(Table6[Bin9],Table4[[#This Row],[Bin5]])=0)*(MOD(Table6[Bin9],Table4[[#This Row],[Bin6]])=0)*(MOD(Table6[Bin9],Table4[[#This Row],[Bin7]])=0)),SUMPRODUCT((MOD(Table6[Bin9],Table4[[#This Row],[Bin1]])=0)*(MOD(Table6[Bin9],Table4[[#This Row],[Bin2]])=0)*(MOD(Table6[Bin9],Table4[[#This Row],[Bin3]])=0)*(MOD(Table6[Bin9],Table4[[#This Row],[Bin4]])=0)*(MOD(Table6[Bin9],Table4[[#This Row],[Bin5]])=0)*(MOD(Table6[Bin9],Table4[[#This Row],[Bin6]])=0)*(MOD(Table6[Bin9],Table4[[#This Row],[Bin7]])=0)*(MOD(Table6[Bin9],Table4[[#This Row],[Bin8]])=0))) -> 4
B27: 3 | C27: 19 | J27: =COUNTA(Table4[[#This Row],[Bin1]:[Bin8]]) -> 2 | K27: =CHOOSE(Table4[[#This Row],[Bin9]],0,SUMPRODUCT((MOD(Table6[Bin9],Table4[[#This Row],[Bin1]])=0)*(MOD(Table6[Bin9],Table4[[#This Row],[Bin2]])=0)),SUMPRODUCT((MOD(Table6[Bin9],Table4[[#This Row],[Bin1]])=0)*(MOD(Table6[Bin9],Table4[[#This Row],[Bin2]])=0)*(MOD(Table6[Bin9],Table4[[#This Row],[Bin3]])=0)),SUMPRODUCT((MOD(Table6[Bin9],Table4[[#This Row],[Bin1]])=0)*(MOD(Table6[Bin9],Table4[[#This Row],[Bin2]])=0)*(MOD(Table6[Bin9],Table4[[#This Row],[Bin3]])=0)*(MOD(Table6[Bin9],Table4[[#This Row],[Bin4]])=0)),SUMPRODUCT((MOD(Table6[Bin9],Table4[[#This Row],[Bin1]])=0)*(MOD(Table6[Bin9],Table4[[#This Row],[Bin2]])=0)*(MOD(Table6[Bin9],Table4[[#This Row],[Bin3]])=0)*(MOD(Table6[Bin9],Table4[[#This Row],[Bin4]])=0)*(MOD(Table6[Bin9],Table4[[#This Row],[Bin5]])=0)),SUMPRODUCT((MOD(Table6[Bin9],Table4[[#This Row],[Bin1]])=0)*(MOD(Table6[Bin9],Table4[[#This Row],[Bin2]])=0)*(MOD(Table6[Bin9],Table4[[#This Row],[Bin3]])=0)*(MOD(Table6[Bin9],Table4[[#This Row],[Bin4]])=0)*(MOD(Table6[Bin9],Table4[[#This Row],[Bin5]])=0)*(MOD(Table6[Bin9],Table4[[#This Row],[Bin6]])=0)),SUMPRODUCT((MOD(Table6[Bin9],Table4[[#This Row],[Bin1]])=0)*(MOD(Table6[Bin9],Table4[[#This Row],[Bin2]])=0)*(MOD(Table6[Bin9],Table4[[#This Row],[Bin3]])=0)*(MOD(Table6[Bin9],Table4[[#This Row],[Bin4]])=0)*(MOD(Table6[Bin9],Table4[[#This Row],[Bin5]])=0)*(MOD(Table6[Bin9],Table4[[#This Row],[Bin6]])=0)*(MOD(Table6[Bin9],Table4[[#This Row],[Bin7]])=0)),SUMPRODUCT((MOD(Table6[Bin9],Table4[[#This Row],[Bin1]])=0)*(MOD(Table6[Bin9],Table4[[#This Row],[Bin2]])=0)*(MOD(Table6[Bin9],Table4[[#This Row],[Bin3]])=0)*(MOD(Table6[Bin9],Table4[[#This Row],[Bin4]])=0)*(MOD(Table6[Bin9],Table4[[#This Row],[Bin5]])=0)*(MOD(Table6[Bin9],Table4[[#This Row],[Bin6]])=0)*(MOD(Table6[Bin9],Table4[[#This Row],[Bin7]])=0)*(MOD(Table6[Bin9],Table4[[#This Row],[Bin8]])=0))) -> 4
B28: 5 | C28: 19 | J28: =COUNTA(Table4[[#This Row],[Bin1]:[Bin8]]) -> 2 | K28: =CHOOSE(Table4[[#This Row],[Bin9]],0,SUMPRODUCT((MOD(Table6[Bin9],Table4[[#This Row],[Bin1]])=0)*(MOD(Table6[Bin9],Table4[[#This Row],[Bin2]])=0)),SUMPRODUCT((MOD(Table6[Bin9],Table4[[#This Row],[Bin1]])=0)*(MOD(Table6[Bin9],Table4[[#This Row],[Bin2]])=0)*(MOD(Table6[Bin9],Table4[[#This Row],[Bin3]])=0)),SUMPRODUCT((MOD(Table6[Bin9],Table4[[#This Row],[Bin1]])=0)*(MOD(Table6[Bin9],Table4[[#This Row],[Bin2]])=0)*(MOD(Table6[Bin9],Table4[[#This Row],[Bin3]])=0)*(MOD(Table6[Bin9],Table4[[#This Row],[Bin4]])=0)),SUMPRODUCT((MOD(Table6[Bin9],Table4[[#This Row],[Bin1]])=0)*(MOD(Table6[Bin9],Table4[[#This Row],[Bin2]])=0)*(MOD(Table6[Bin9],Table4[[#This Row],[Bin3]])=0)*(MOD(Table6[Bin9],Table4[[#This Row],[Bin4]])=0)*(MOD(Table6[Bin9],Table4[[#This Row],[Bin5]])=0)),SUMPRODUCT((MOD(Table6[Bin9],Table4[[#This Row],[Bin1]])=0)*(MOD(Table6[Bin9],Table4[[#This Row],[Bin2]])=0)*(MOD(Table6[Bin9],Table4[[#This Row],[Bin3]])=0)*(MOD(Table6[Bin9],Table4[[#This Row],[Bin4]])=0)*(MOD(Table6[Bin9],Table4[[#This Row],[Bin5]])=0)*(MOD(Table6[Bin9],Table4[[#This Row],[Bin6]])=0)),SUMPRODUCT((MOD(Table6[Bin9],Table4[[#This Row],[Bin1]])=0)*(MOD(Table6[Bin9],Table4[[#This Row],[Bin2]])=0)*(MOD(Table6[Bin9],Table4[[#This Row],[Bin3]])=0)*(MOD(Table6[Bin9],Table4[[#This Row],[Bin4]])=0)*(MOD(Table6[Bin9],Table4[[#This Row],[Bin5]])=0)*(MOD(Table6[Bin9],Table4[[#This Row],[Bin6]])=0)*(MOD(Table6[Bin9],Table4[[#This Row],[Bin7]])=0)),SUMPRODUCT((MOD(Table6[Bin9],Table4[[#This Row],[Bin1]])=0)*(MOD(Table6[Bin9],Table4[[#This Row],[Bin2]])=0)*(MOD(Table6[Bin9],Table4[[#This Row],[Bin3]])=0)*(MOD(Table6[Bin9],Table4[[#This Row],[Bin4]])=0)*(MOD(Table6[Bin9],Table4[[#This Row],[Bin5]])=0)*(MOD(Table6[Bin9],Table4[[#This Row],[Bin6]])=0)*(MOD(Table6[Bin9],Table4[[#This Row],[Bin7]])=0)*(MOD(Table6[Bin9],Table4[[#This Row],[Bin8]])=0))) -> 5
B29: 7 | C29: 19 | J29: =COUNTA(Table4[[#This Row],[Bin1]:[Bin8]]) -> 2 | K29: =CHOOSE(Table4[[#This Row],[Bin9]],0,SUMPRODUCT((MOD(Table6[Bin9],Table4[[#This Row],[Bin1]])=0)*(MOD(Table6[Bin9],Table4[[#This Row],[Bin2]])=0)),SUMPRODUCT((MOD(Table6[Bin9],Table4[[#This Row],[Bin1]])=0)*(MOD(Table6[Bin9],Table4[[#This Row],[Bin2]])=0)*(MOD(Table6[Bin9],Table4[[#This Row],[Bin3]])=0)),SUMPRODUCT((MOD(Table6[Bin9],Table4[[#This Row],[Bin1]])=0)*(MOD(Table6[Bin9],Table4[[#This Row],[Bin2]])=0)*(MOD(Table6[Bin9],Table4[[#This Row],[Bin3]])=0)*(MOD(Table6[Bin9],Table4[[#This Row],[Bin4]])=0)),SUMPRODUCT((MOD(Table6[Bin9],Table4[[#This Row],[Bin1]])=0)*(MOD(Table6[Bin9],Table4[[#This Row],[Bin2]])=0)*(MOD(Table6[Bin9],Table4[[#This Row],[Bin3]])=0)*(MOD(Table6[Bin9],Table4[[#This Row],[Bin4]])=0)*(MOD(Table6[Bin9],Table4[[#This Row],[Bin5]])=0)),SUMPRODUCT((MOD(Table6[Bin9],Table4[[#This Row],[Bin1]])=0)*(MOD(Table6[Bin9],Table4[[#This Row],[Bin2]])=0)*(MOD(Table6[Bin9],Table4[[#This Row],[Bin3]])=0)*(MOD(Table6[Bin9],Table4[[#This Row],[Bin4]])=0)*(MOD(Table6[Bin9],Table4[[#This Row],[Bin5]])=0)*(MOD(Table6[Bin9],Table4[[#This Row],[Bin6]])=0)),SUMPRODUCT((MOD(Table6[Bin9],Table4[[#This Row],[Bin1]])=0)*(MOD(Table6[Bin9],Table4[[#This Row],[Bin2]])=0)*(MOD(Table6[Bin9],Table4[[#This Row],[Bin3]])=0)*(MOD(Table6[Bin9],Table4[[#This Row],[Bin4]])=0)*(MOD(Table6[Bin9],Table4[[#This Row],[Bin5]])=0)*(MOD(Table6[Bin9],Table4[[#This Row],[Bin6]])=0)*(MOD(Table6[Bin9],Table4[[#This Row],[Bin7]])=0)),SUMPRODUCT((MOD(Table6[Bin9],Table4[[#This Row],[Bin1]])=0)*(MOD(Table6[Bin9],Table4[[#This Row],[Bin2]])=0)*(MOD(Table6[Bin9],Table4[[#This Row],[Bin3]])=0)*(MOD(Table6[Bin9],Table4[[#This Row],[Bin4]])=0)*(MOD(Table6[Bin9],Table4[[#This Row],[Bin5]])=0)*(MOD(Table6[Bin9],Table4[[#This Row],[Bin6]])=0)*(MOD(Table6[Bin9],Table4[[#This Row],[Bin7]])=0)*(MOD(Table6[Bin9],Table4[[#This Row],[Bin8]])=0))) -> 10
B30: 11 | C30: 19 | J30: =COUNTA(Table4[[#This Row],[Bin1]:[Bin8]]) -> 2 | K30: =CHOOSE(Table4[[#This Row],[Bin9]],0,SUMPRODUCT((MOD(Table6[Bin9],Table4[[#This Row],[Bin1]])=0)*(MOD(Table6[Bin9],Table4[[#This Row],[Bin2]])=0)),SUMPRODUCT((MOD(Table6[Bin9],Table4[[#This Row],[Bin1]])=0)*(MOD(Table6[Bin9],Table4[[#This Row],[Bin2]])=0)*(MOD(Table6[Bin9],Table4[[#This Row],[Bin3]])=0)),SUMPRODUCT((MOD(Table6[Bin9],Table4[[#This Row],[Bin1]])=0)*(MOD(Table6[Bin9],Table4[[#This Row],[Bin2]])=0)*(MOD(Table6[Bin9],Table4[[#This Row],[Bin3]])=0)*(MOD(Table6[Bin9],Table4[[#This Row],[Bin4]])=0)),SUMPRODUCT((MOD(Table6[Bin9],Table4[[#This Row],[Bin1]])=0)*(MOD(Table6[Bin9],Table4[[#This Row],[Bin2]])=0)*(MOD(Table6[Bin9],Table4[[#This Row],[Bin3]])=0)*(MOD(Table6[Bin9],Table4[[#This Row],[Bin4]])=0)*(MOD(Table6[Bin9],Table4[[#This Row],[Bin5]])=0)),SUMPRODUCT((MOD(Table6[Bin9],Table4[[#This Row],[Bin1]])=0)*(MOD(Table6[Bin9],Table4[[#This Row],[Bin2]])=0)*(MOD(Table6[Bin9],Table4[[#This Row],[Bin3]])=0)*(MOD(Table6[Bin9],Table4[[#This Row],[Bin4]])=0)*(MOD(Table6[Bin9],Table4[[#This Row],[Bin5]])=0)*(MOD(Table6[Bin9],Table4[[#This Row],[Bin6]])=0)),SUMPRODUCT((MOD(Table6[Bin9],Table4[[#This Row],[Bin1]])=0)*(MOD(Table6[Bin9],Table4[[#This Row],[Bin2]])=0)*(MOD(Table6[Bin9],Table4[[#This Row],[Bin3]])=0)*(MOD(Table6[Bin9],Table4[[#This Row],[Bin4]])=0)*(MOD(Table6[Bin9],Table4[[#This Row],[Bin5]])=0)*(MOD(Table6[Bin9],Table4[[#This Row],[Bin6]])=0)*(MOD(Table6[Bin9],Table4[[#This Row],[Bin7]])=0)),SUMPRODUCT((MOD(Table6[Bin9],Table4[[#This Row],[Bin1]])=0)*(MOD(Table6[Bin9],Table4[[#This Row],[Bin2]])=0)*(MOD(Table6[Bin9],Table4[[#This Row],[Bin3]])=0)*(MOD(Table6[Bin9],Table4[[#This Row],[Bin4]])=0)*(MOD(Table6[Bin9],Table4[[#This Row],[Bin5]])=0)*(MOD(Table6[Bin9],Table4[[#This Row],[Bin6]])=0)*(MOD(Table6[Bin9],Table4[[#This Row],[Bin7]])=0)*(MOD(Table6[Bin9],Table4[[#This Row],[Bin8]])=0))) -> 7
B31: 13 | C31: 19 | J31: =COUNTA(Table4[[#This Row],[Bin1]:[Bin8]]) -> 2 | K31: =CHOOSE(Table4[[#This Row],[Bin9]],0,SUMPRODUCT((MOD(Table6[Bin9],Table4[[#This Row],[Bin1]])=0)*(MOD(Table6[Bin9],Table4[[#This Row],[Bin2]])=0)),SUMPRODUCT((MOD(Table6[Bin9],Table4[[#This Row],[Bin1]])=0)*(MOD(Table6[Bin9],Table4[[#This Row],[Bin2]])=0)*(MOD(Table6[Bin9],Table4[[#This Row],[Bin3]])=0)),SUMPRODUCT((MOD(Table6[Bin9],Table4[[#This Row],[Bin1]])=0)*(MOD(Table6[Bin9],Table4[[#This Row],[Bin2]])=0)*(MOD(Table6[Bin9],Table4[[#This Row],[Bin3]])=0)*(MOD(Table6[Bin9],Table4[[#This Row],[Bin4]])=0)),SUMPRODUCT((MOD(Table6[Bin9],Table4[[#This Row],[Bin1]])=0)*(MOD(Table6[Bin9],Table4[[#This Row],[Bin2]])=0)*(MOD(Table6[Bin9],Table4[[#This Row],[Bin3]])=0)*(MOD(Table6[Bin9],Table4[[#This Row],[Bin4]])=0)*(MOD(Table6[Bin9],Table4[[#This Row],[Bin5]])=0)),SUMPRODUCT((MOD(Table6[Bin9],Table4[[#This Row],[Bin1]])=0)*(MOD(Table6[Bin9],Table4[[#This Row],[Bin2]])=0)*(MOD(Table6[Bin9],Table4[[#This Row],[Bin3]])=0)*(MOD(Table6[Bin9],Table4[[#This Row],[Bin4]])=0)*(MOD(Table6[Bin9],Table4[[#This Row],[Bin5]])=0)*(MOD(Table6[Bin9],Table4[[#This Row],[Bin6]])=0)),SUMPRODUCT((MOD(Table6[Bin9],Table4[[#This Row],[Bin1]])=0)*(MOD(Table6[Bin9],Table4[[#This Row],[Bin2]])=0)*(MOD(Table6[Bin9],Table4[[#This Row],[Bin3]])=0)*(MOD(Table6[Bin9],Table4[[#This Row],[Bin4]])=0)*(MOD(Table6[Bin9],Table4[[#This Row],[Bin5]])=0)*(MOD(Table6[Bin9],Table4[[#This Row],[Bin6]])=0)*(MOD(Table6[Bin9],Table4[[#This Row],[Bin7]])=0)),SUMPRODUCT((MOD(Table6[Bin9],Table4[[#This Row],[Bin1]])=0)*(MOD(Table6[Bin9],Table4[[#This Row],[Bin2]])=0)*(MOD(Table6[Bin9],Table4[[#This Row],[Bin3]])=0)*(MOD(Table6[Bin9],Table4[[#This Row],[Bin4]])=0)*(MOD(Table6[Bin9],Table4[[#This Row],[Bin5]])=0)*(MOD(Table6[Bin9],Table4[[#This Row],[Bin6]])=0)*(MOD(Table6[Bin9],Table4[[#This Row],[Bin7]])=0)*(MOD(Table6[Bin9],Table4[[#This Row],[Bin8]])=0))) -> 6
B32: 17 | C32: 19 | J32: =COUNTA(Table4[[#This Row],[Bin1]:[Bin8]]) -> 2 | K32: =CHOOSE(Table4[[#This Row],[Bin9]],0,SUMPRODUCT((MOD(Table6[Bin9],Table4[[#This Row],[Bin1]])=0)*(MOD(Table6[Bin9],Table4[[#This Row],[Bin2]])=0)),SUMPRODUCT((MOD(Table6[Bin9],Table4[[#This Row],[Bin1]])=0)*(MOD(Table6[Bin9],Table4[[#This Row],[Bin2]])=0)*(MOD(Table6[Bin9],Table4[[#This Row],[Bin3]])=0)),SUMPRODUCT((MOD(Table6[Bin9],Table4[[#This Row],[Bin1]])=0)*(MOD(Table6[Bin9],Table4[[#This Row],[Bin2]])=0)*(MOD(Table6[Bin9],Table4[[#This Row],[Bin3]])=0)*(MOD(Table6[Bin9],Table4[[#This Row],[Bin4]])=0)),SUMPRODUCT((MOD(Table6[Bin9],Table4[[#This Row],[Bin1]])=0)*(MOD(Table6[Bin9],Table4[[#This Row],[Bin2]])=0)*(MOD(Table6[Bin9],Table4[[#This Row],[Bin3]])=0)*(MOD(Table6[Bin9],Table4[[#This Row],[Bin4]])=0)*(MOD(Table6[Bin9],Table4[[#This Row],[Bin5]])=0)),SUMPRODUCT((MOD(Table6[Bin9],Table4[[#This Row],[Bin1]])=0)*(MOD(Table6[Bin9],Table4[[#This Row],[Bin2]])=0)*(MOD(Table6[Bin9],Table4[[#This Row],[Bin3]])=0)*(MOD(Table6[Bin9],Table4[[#This Row],[Bin4]])=0)*(MOD(Table6[Bin9],Table4[[#This Row],[Bin5]])=0)*(MOD(Table6[Bin9],Table4[[#This Row],[Bin6]])=0)),SUMPRODUCT((MOD(Table6[Bin9],Table4[[#This Row],[Bin1]])=0)*(MOD(Table6[Bin9],Table4[[#This Row],[Bin2]])=0)*(MOD(Table6[Bin9],Table4[[#This Row],[Bin3]])=0)*(MOD(Table6[Bin9],Table4[[#This Row],[Bin4]])=0)*(MOD(Table6[Bin9],Table4[[#This Row],[Bin5]])=0)*(MOD(Table6[Bin9],Table4[[#This Row],[Bin6]])=0)*(MOD(Table6[Bin9],Table4[[#This Row],[Bin7]])=0)),SUMPRODUCT((MOD(Table6[Bin9],Table4[[#This Row],[Bin1]])=0)*(MOD(Table6[Bin9],Table4[[#This Row],[Bin2]])=0)*(MOD(Table6[Bin9],Table4[[#This Row],[Bin3]])=0)*(MOD(Table6[Bin9],Table4[[#This Row],[Bin4]])=0)*(MOD(Table6[Bin9],Table4[[#This Row],[Bin5]])=0)*(MOD(Table6[Bin9],Table4[[#This Row],[Bin6]])=0)*(MOD(Table6[Bin9],Table4[[#This Row],[Bin7]])=0)*(MOD(Table6[Bin9],Table4[[#This Row],[Bin8]])=0))) -> 4
B33: 3 | C33: 23 | J33: =COUNTA(Table4[[#This Row],[Bin1]:[Bin8]]) -> 2 | K33: =CHOOSE(Table4[[#This Row],[Bin9]],0,SUMPRODUCT((MOD(Table6[Bin9],Table4[[#This Row],[Bin1]])=0)*(MOD(Table6[Bin9],Table4[[#This Row],[Bin2]])=0)),SUMPRODUCT((MOD(Table6[Bin9],Table4[[#This Row],[Bin1]])=0)*(MOD(Table6[Bin9],Table4[[#This Row],[Bin2]])=0)*(MOD(Table6[Bin9],Table4[[#This Row],[Bin3]])=0)),SUMPRODUCT((MOD(Table6[Bin9],Table4[[#This Row],[Bin1]])=0)*(MOD(Table6[Bin9],Table4[[#This Row],[Bin2]])=0)*(MOD(Table6[Bin9],Table4[[#This Row],[Bin3]])=0)*(MOD(Table6[Bin9],Table4[[#This Row],[Bin4]])=0)),SUMPRODUCT((MOD(Table6[Bin9],Table4[[#This Row],[Bin1]])=0)*(MOD(Table6[Bin9],Table4[[#This Row],[Bin2]])=0)*(MOD(Table6[Bin9],Table4[[#This Row],[Bin3]])=0)*(MOD(Table6[Bin9],Table4[[#This Row],[Bin4]])=0)*(MOD(Table6[Bin9],Table4[[#This Row],[Bin5]])=0)),SUMPRODUCT((MOD(Table6[Bin9],Table4[[#This Row],[Bin1]])=0)*(MOD(Table6[Bin9],Table4[[#This Row],[Bin2]])=0)*(MOD(Table6[Bin9],Table4[[#This Row],[Bin3]])=0)*(MOD(Table6[Bin9],Table4[[#This Row],[Bin4]])=0)*(MOD(Table6[Bin9],Table4[[#This Row],[Bin5]])=0)*(MOD(Table6[Bin9],Table4[[#This Row],[Bin6]])=0)),SUMPRODUCT((MOD(Table6[Bin9],Table4[[#This Row],[Bin1]])=0)*(MOD(Table6[Bin9],Table4[[#This Row],[Bin2]])=0)*(MOD(Table6[Bin9],Table4[[#This Row],[Bin3]])=0)*(MOD(Table6[Bin9],Table4[[#This Row],[Bin4]])=0)*(MOD(Table6[Bin9],Table4[[#This Row],[Bin5]])=0)*(MOD(Table6[Bin9],Table4[[#This Row],[Bin6]])=0)*(MOD(Table6[Bin9],Table4[[#This Row],[Bin7]])=0)),SUMPRODUCT((MOD(Table6[Bin9],Table4[[#This Row],[Bin1]])=0)*(MOD(Table6[Bin9],Table4[[#This Row],[Bin2]])=0)*(MOD(Table6[Bin9],Table4[[#This Row],[Bin3]])=0)*(MOD(Table6[Bin9],Table4[[#This Row],[Bin4]])=0)*(MOD(Table6[Bin9],Table4[[#This Row],[Bin5]])=0)*(MOD(Table6[Bin9],Table4[[#This Row],[Bin6]])=0)*(MOD(Table6[Bin9],Table4[[#This Row],[Bin7]])=0)*(MOD(Table6[Bin9],Table4[[#This Row],[Bin8]])=0))) -> 5
B34: 5 | C34: 23 | J34: =COUNTA(Table4[[#This Row],[Bin1]:[Bin8]]) -> 2 | K34: =CHOOSE(Table4[[#This Row],[Bin9]],0,SUMPRODUCT((MOD(Table6[Bin9],Table4[[#This Row],[Bin1]])=0)*(MOD(Table6[Bin9],Table4[[#This Row],[Bin2]])=0)),SUMPRODUCT((MOD(Table6[Bin9],Table4[[#This Row],[Bin1]])=0)*(MOD(Table6[Bin9],Table4[[#This Row],[Bin2]])=0)*(MOD(Table6[Bin9],Table4[[#This Row],[Bin3]])=0)),SUMPRODUCT((MOD(Table6[Bin9],Table4[[#This Row],[Bin1]])=0)*(MOD(Table6[Bin9],Table4[[#This Row],[Bin2]])=0)*(MOD(Table6[Bin9],Table4[[#This Row],[Bin3]])=0)*(MOD(Table6[Bin9],Table4[[#This Row],[Bin4]])=0)),SUMPRODUCT((MOD(Table6[Bin9],Table4[[#This Row],[Bin1]])=0)*(MOD(Table6[Bin9],Table4[[#This Row],[Bin2]])=0)*(MOD(Table6[Bin9],Table4[[#This Row],[Bin3]])=0)*(MOD(Table6[Bin9],Table4[[#This Row],[Bin4]])=0)*(MOD(Table6[Bin9],Table4[[#This Row],[Bin5]])=0)),SUMPRODUCT((MOD(Table6[Bin9],Table4[[#This Row],[Bin1]])=0)*(MOD(Table6[Bin9],Table4[[#This Row],[Bin2]])=0)*(MOD(Table6[Bin9],Table4[[#This Row],[Bin3]])=0)*(MOD(Table6[Bin9],Table4[[#This Row],[Bin4]])=0)*(MOD(Table6[Bin9],Table4[[#This Row],[Bin5]])=0)*(MOD(Table6[Bin9],Table4[[#This Row],[Bin6]])=0)),SUMPRODUCT((MOD(Table6[Bin9],Table4[[#This Row],[Bin1]])=0)*(MOD(Table6[Bin9],Table4[[#This Row],[Bin2]])=0)*(MOD(Table6[Bin9],Table4[[#This Row],[Bin3]])=0)*(MOD(Table6[Bin9],Table4[[#This Row],[Bin4]])=0)*(MOD(Table6[Bin9],Table4[[#This Row],[Bin5]])=0)*(MOD(Table6[Bin9],Table4[[#This Row],[Bin6]])=0)*(MOD(Table6[Bin9],Table4[[#This Row],[Bin7]])=0)),SUMPRODUCT((MOD(Table6[Bin9],Table4[[#This Row],[Bin1]])=0)*(MOD(Table6[Bin9],Table4[[#This Row],[Bin2]])=0)*(MOD(Table6[Bin9],Table4[[#This Row],[Bin3]])=0)*(MOD(Table6[Bin9],Table4[[#This Row],[Bin4]])=0)*(MOD(Table6[Bin9],Table4[[#This Row],[Bin5]])=0)*(MOD(Table6[Bin9],Table4[[#This Row],[Bin6]])=0)*(MOD(Table6[Bin9],Table4[[#This Row],[Bin7]])=0)*(MOD(Table6[Bin9],Table4[[#This Row],[Bin8]])=0))) -> 3
B35: 7 | C35: 23 | J35: =COUNTA(Table4[[#This Row],[Bin1]:[Bin8]]) -> 2 | K35: =CHOOSE(Table4[[#This Row],[Bin9]],0,SUMPRODUCT((MOD(Table6[Bin9],Table4[[#This Row],[Bin1]])=0)*(MOD(Table6[Bin9],Table4[[#This Row],[Bin2]])=0)),SUMPRODUCT((MOD(Table6[Bin9],Table4[[#This Row],[Bin1]])=0)*(MOD(Table6[Bin9],Table4[[#This Row],[Bin2]])=0)*(MOD(Table6[Bin9],Table4[[#This Row],[Bin3]])=0)),SUMPRODUCT((MOD(Table6[Bin9],Table4[[#This Row],[Bin1]])=0)*(MOD(Table6[Bin9],Table4[[#This Row],[Bin2]])=0)*(MOD(Table6[Bin9],Table4[[#This Row],[Bin3]])=0)*(MOD(Table6[Bin9],Table4[[#This Row],[Bin4]])=0)),SUMPRODUCT((MOD(Table6[Bin9],Table4[[#This Row],[Bin1]])=0)*(MOD(Table6[Bin9],Table4[[#This Row],[Bin2]])=0)*(MOD(Table6[Bin9],Table4[[#This Row],[Bin3]])=0)*(MOD(Table6[Bin9],Table4[[#This Row],[Bin4]])=0)*(MOD(Table6[Bin9],Table4[[#This Row],[Bin5]])=0)),SUMPRODUCT((MOD(Table6[Bin9],Table4[[#This Row],[Bin1]])=0)*(MOD(Table6[Bin9],Table4[[#This Row],[Bin2]])=0)*(MOD(Table6[Bin9],Table4[[#This Row],[Bin3]])=0)*(MOD(Table6[Bin9],Table4[[#This Row],[Bin4]])=0)*(MOD(Table6[Bin9],Table4[[#This Row],[Bin5]])=0)*(MOD(Table6[Bin9],Table4[[#This Row],[Bin6]])=0)),SUMPRODUCT((MOD(Table6[Bin9],Table4[[#This Row],[Bin1]])=0)*(MOD(Table6[Bin9],Table4[[#This Row],[Bin2]])=0)*(MOD(Table6[Bin9],Table4[[#This Row],[Bin3]])=0)*(MOD(Table6[Bin9],Table4[[#This Row],[Bin4]])=0)*(MOD(Table6[Bin9],Table4[[#This Row],[Bin5]])=0)*(MOD(Table6[Bin9],Table4[[#This Row],[Bin6]])=0)*(MOD(Table6[Bin9],Table4[[#This Row],[Bin7]])=0)),SUMPRODUCT((MOD(Table6[Bin9],Table4[[#This Row],[Bin1]])=0)*(MOD(Table6[Bin9],Table4[[#This Row],[Bin2]])=0)*(MOD(Table6[Bin9],Table4[[#This Row],[Bin3]])=0)*(MOD(Table6[Bin9],Table4[[#This Row],[Bin4]])=0)*(MOD(Table6[Bin9],Table4[[#This Row],[Bin5]])=0)*(MOD(Table6[Bin9],Table4[[#This Row],[Bin6]])=0)*(MOD(Table6[Bin9],Table4[[#This Row],[Bin7]])=0)*(MOD(Table6[Bin9],Table4[[#This Row],[Bin8]])=0))) -> 7
B36: 11 | C36: 23 | J36: =COUNTA(Table4[[#This Row],[Bin1]:[Bin8]]) -> 2 | K36: =CHOOSE(Table4[[#This Row],[Bin9]],0,SUMPRODUCT((MOD(Table6[Bin9],Table4[[#This Row],[Bin1]])=0)*(MOD(Table6[Bin9],Table4[[#This Row],[Bin2]])=0)),SUMPRODUCT((MOD(Table6[Bin9],Table4[[#This Row],[Bin1]])=0)*(MOD(Table6[Bin9],Table4[[#This Row],[Bin2]])=0)*(MOD(Table6[Bin9],Table4[[#This Row],[Bin3]])=0)),SUMPRODUCT((MOD(Table6[Bin9],Table4[[#This Row],[Bin1]])=0)*(MOD(Table6[Bin9],Table4[[#This Row],[Bin2]])=0)*(MOD(Table6[Bin9],Table4[[#This Row],[Bin3]])=0)*(MOD(Table6[Bin9],Table4[[#This Row],[Bin4]])=0)),SUMPRODUCT((MOD(Table6[Bin9],Table4[[#This Row],[Bin1]])=0)*(MOD(Table6[Bin9],Table4[[#This Row],[Bin2]])=0)*(MOD(Table6[Bin9],Table4[[#This Row],[Bin3]])=0)*(MOD(Table6[Bin9],Table4[[#This Row],[Bin4]])=0)*(MOD(Table6[Bin9],Table4[[#This Row],[Bin5]])=0)),SUMPRODUCT((MOD(Table6[Bin9],Table4[[#This Row],[Bin1]])=0)*(MOD(Table6[Bin9],Table4[[#This Row],[Bin2]])=0)*(MOD(Table6[Bin9],Table4[[#This Row],[Bin3]])=0)*(MOD(Table6[Bin9],Table4[[#This Row],[Bin4]])=0)*(MOD(Table6[Bin9],Table4[[#This Row],[Bin5]])=0)*(MOD(Table6[Bin9],Table4[[#This Row],[Bin6]])=0)),SUMPRODUCT((MOD(Table6[Bin9],Table4[[#This Row],[Bin1]])=0)*(MOD(Table6[Bin9],Table4[[#This Row],[Bin2]])=0)*(MOD(Table6[Bin9],Table4[[#This Row],[Bin3]])=0)*(MOD(Table6[Bin9],Table4[[#This Row],[Bin4]])=0)*(MOD(Table6[Bin9],Table4[[#This Row],[Bin5]])=0)*(MOD(Table6[Bin9],Table4[[#This Row],[Bin6]])=0)*(MOD(Table6[Bin9],Table4[[#This Row],[Bin7]])=0)),SUMPRODUCT((MOD(Table6[Bin9],Table4[[#This Row],[Bin1]])=0)*(MOD(Table6[Bin9],Table4[[#This Row],[Bin2]])=0)*(MOD(Table6[Bin9],Table4[[#This Row],[Bin3]])=0)*(MOD(Table6[Bin9],Table4[[#This Row],[Bin4]])=0)*(MOD(Table6[Bin9],Table4[[#This Row],[Bin5]])=0)*(MOD(Table6[Bin9],Table4[[#This Row],[Bin6]])=0)*(MOD(Table6[Bin9],Table4[[#This Row],[Bin7]])=0)*(MOD(Table6[Bin9],Table4[[#This Row],[Bin8]])=0))) -> 6
B37: 13 | C37: 23 | J37: =COUNTA(Table4[[#This Row],[Bin1]:[Bin8]]) -> 2 | K37: =CHOOSE(Table4[[#This Row],[Bin9]],0,SUMPRODUCT((MOD(Table6[Bin9],Table4[[#This Row],[Bin1]])=0)*(MOD(Table6[Bin9],Table4[[#This Row],[Bin2]])=0)),SUMPRODUCT((MOD(Table6[Bin9],Table4[[#This Row],[Bin1]])=0)*(MOD(Table6[Bin9],Table4[[#This Row],[Bin2]])=0)*(MOD(Table6[Bin9],Table4[[#This Row],[Bin3]])=0)),SUMPRODUCT((MOD(Table6[Bin9],Table4[[#This Row],[Bin1]])=0)*(MOD(Table6[Bin9],Table4[[#This Row],[Bin2]])=0)*(MOD(Table6[Bin9],Table4[[#This Row],[Bin3]])=0)*(MOD(Table6[Bin9],Table4[[#This Row],[Bin4]])=0)),SUMPRODUCT((MOD(Table6[Bin9],Table4[[#This Row],[Bin1]])=0)*(MOD(Table6[Bin9],Table4[[#This Row],[Bin2]])=0)*(MOD(Table6[Bin9],Table4[[#This Row],[Bin3]])=0)*(MOD(Table6[Bin9],Table4[[#This Row],[Bin4]])=0)*(MOD(Table6[Bin9],Table4[[#This Row],[Bin5]])=0)),SUMPRODUCT((MOD(Table6[Bin9],Table4[[#This Row],[Bin1]])=0)*(MOD(Table6[Bin9],Table4[[#This Row],[Bin2]])=0)*(MOD(Table6[Bin9],Table4[[#This Row],[Bin3]])=0)*(MOD(Table6[Bin9],Table4[[#This Row],[Bin4]])=0)*(MOD(Table6[Bin9],Table4[[#This Row],[Bin5]])=0)*(MOD(Table6[Bin9],Table4[[#This Row],[Bin6]])=0)),SUMPRODUCT((MOD(Table6[Bin9],Table4[[#This Row],[Bin1]])=0)*(MOD(Table6[Bin9],Table4[[#This Row],[Bin2]])=0)*(MOD(Table6[Bin9],Table4[[#This Row],[Bin3]])=0)*(MOD(Table6[Bin9],Table4[[#This Row],[Bin4]])=0)*(MOD(Table6[Bin9],Table4[[#This Row],[Bin5]])=0)*(MOD(Table6[Bin9],Table4[[#This Row],[Bin6]])=0)*(MOD(Table6[Bin9],Table4[[#This Row],[Bin7]])=0)),SUMPRODUCT((MOD(Table6[Bin9],Table4[[#This Row],[Bin1]])=0)*(MOD(Table6[Bin9],Table4[[#This Row],[Bin2]])=0)*(MOD(Table6[Bin9],Table4[[#This Row],[Bin3]])=0)*(MOD(Table6[Bin9],Table4[[#This Row],[Bin4]])=0)*(MOD(Table6[Bin9],Table4[[#This Row],[Bin5]])=0)*(MOD(Table6[Bin9],Table4[[#This Row],[Bin6]])=0)*(MOD(Table6[Bin9],Table4[[#This Row],[Bin7]])=0)*(MOD(Table6[Bin9],Table4[[#This Row],[Bin8]])=0))) -> 4
B38: 17 | C38: 23 | J38: =COUNTA(Table4[[#This Row],[Bin1]:[Bin8]]) -> 2 | K38: =CHOOSE(Table4[[#This Row],[Bin9]],0,SUMPRODUCT((MOD(Table6[Bin9],Table4[[#This Row],[Bin1]])=0)*(MOD(Table6[Bin9],Table4[[#This Row],[Bin2]])=0)),SUMPRODUCT((MOD(Table6[Bin9],Table4[[#This Row],[Bin1]])=0)*(MOD(Table6[Bin9],Table4[[#This Row],[Bin2]])=0)*(MOD(Table6[Bin9],Table4[[#This Row],[Bin3]])=0)),SUMPRODUCT((MOD(Table6[Bin9],Table4[[#This Row],[Bin1]])=0)*(MOD(Table6[Bin9],Table4[[#This Row],[Bin2]])=0)*(MOD(Table6[Bin9],Table4[[#This Row],[Bin3]])=0)*(MOD(Table6[Bin9],Table4[[#This Row],[Bin4]])=0)),SUMPRODUCT((MOD(Table6[Bin9],Table4[[#This Row],[Bin1]])=0)*(MOD(Table6[Bin9],Table4[[#This Row],[Bin2]])=0)*(MOD(Table6[Bin9],Table4[[#This Row],[Bin3]])=0)*(MOD(Table6[Bin9],Table4[[#This Row],[Bin4]])=0)*(MOD(Table6[Bin9],Table4[[#This Row],[Bin5]])=0)),SUMPRODUCT((MOD(Table6[Bin9],Table4[[#This Row],[Bin1]])=0)*(MOD(Table6[Bin9],Table4[[#This Row],[Bin2]])=0)*(MOD(Table6[Bin9],Table4[[#This Row],[Bin3]])=0)*(MOD(Table6[Bin9],Table4[[#This Row],[Bin4]])=0)*(MOD(Table6[Bin9],Table4[[#This Row],[Bin5]])=0)*(MOD(Table6[Bin9],Table4[[#This Row],[Bin6]])=0)),SUMPRODUCT((MOD(Table6[Bin9],Table4[[#This Row],[Bin1]])=0)*(MOD(Table6[Bin9],Table4[[#This Row],[Bin2]])=0)*(MOD(Table6[Bin9],Table4[[#This Row],[Bin3]])=0)*(MOD(Table6[Bin9],Table4[[#This Row],[Bin4]])=0)*(MOD(Table6[Bin9],Table4[[#This Row],[Bin5]])=0)*(MOD(Table6[Bin9],Table4[[#This Row],[Bin6]])=0)*(MOD(Table6[Bin9],Table4[[#This Row],[Bin7]])=0)),SUMPRODUCT((MOD(Table6[Bin9],Table4[[#This Row],[Bin1]])=0)*(MOD(Table6[Bin9],Table4[[#This Row],[Bin2]])=0)*(MOD(Table6[Bin9],Table4[[#This Row],[Bin3]])=0)*(MOD(Table6[Bin9],Table4[[#This Row],[Bin4]])=0)*(MOD(Table6[Bin9],Table4[[#This Row],[Bin5]])=0)*(MOD(Table6[Bin9],Table4[[#This Row],[Bin6]])=0)*(MOD(Table6[Bin9],Table4[[#This Row],[Bin7]])=0)*(MOD(Table6[Bin9],Table4[[#This Row],[Bin8]])=0))) -> 5
B39: 19 | C39: 23 | J39: =COUNTA(Table4[[#This Row],[Bin1]:[Bin8]]) -> 2 | K39: =CHOOSE(Table4[[#This Row],[Bin9]],0,SUMPRODUCT((MOD(Table6[Bin9],Table4[[#This Row],[Bin1]])=0)*(MOD(Table6[Bin9],Table4[[#This Row],[Bin2]])=0)),SUMPRODUCT((MOD(Table6[Bin9],Table4[[#This Row],[Bin1]])=0)*(MOD(Table6[Bin9],Table4[[#This Row],[Bin2]])=0)*(MOD(Table6[Bin9],Table4[[#This Row],[Bin3]])=0)),SUMPRODUCT((MOD(Table6[Bin9],Table4[[#This Row],[Bin1]])=0)*(MOD(Table6[Bin9],Table4[[#This Row],[Bin2]])=0)*(MOD(Table6[Bin9],Table4[[#This Row],[Bin3]])=0)*(MOD(Table6[Bin9],Table4[[#This Row],[Bin4]])=0)),SUMPRODUCT((MOD(Table6[Bin9],Table4[[#This Row],[Bin1]])=0)*(MOD(Table6[Bin9],Table4[[#This Row],[Bin2]])=0)*(MOD(Table6[Bin9],Table4[[#This Row],[Bin3]])=0)*(MOD(Table6[Bin9],Table4[[#This Row],[Bin4]])=0)*(MOD(Table6[Bin9],Table4[[#This Row],[Bin5]])=0)),SUMPRODUCT((MOD(Table6[Bin9],Table4[[#This Row],[Bin1]])=0)*(MOD(Table6[Bin9],Table4[[#This Row],[Bin2]])=0)*(MOD(Table6[Bin9],Table4[[#This Row],[Bin3]])=0)*(MOD(Table6[Bin9],Table4[[#This Row],[Bin4]])=0)*(MOD(Table6[Bin9],Table4[[#This Row],[Bin5]])=0)*(MOD(Table6[Bin9],Table4[[#This Row],[Bin6]])=0)),SUMPRODUCT((MOD(Table6[Bin9],Table4[[#This Row],[Bin1]])=0)*(MOD(Table6[Bin9],Table4[[#This Row],[Bin2]])=0)*(MOD(Table6[Bin9],Table4[[#This Row],[Bin3]])=0)*(MOD(Table6[Bin9],Table4[[#This Row],[Bin4]])=0)*(MOD(Table6[Bin9],Table4[[#This Row],[Bin5]])=0)*(MOD(Table6[Bin9],Table4[[#This Row],[Bin6]])=0)*(MOD(Table6[Bin9],Table4[[#This Row],[Bin7]])=0)),SUMPRODUCT((MOD(Table6[Bin9],Table4[[#This Row],[Bin1]])=0)*(MOD(Table6[Bin9],Table4[[#This Row],[Bin2]])=0)*(MOD(Table6[Bin9],Table4[[#This Row],[Bin3]])=0)*(MOD(Table6[Bin9],Table4[[#This Row],[Bin4]])=0)*(MOD(Table6[Bin9],Table4[[#This Row],[Bin5]])=0)*(MOD(Table6[Bin9],Table4[[#This Row],[Bin6]])=0)*(MOD(Table6[Bin9],Table4[[#This Row],[Bin7]])=0)*(MOD(Table6[Bin9],Table4[[#This Row],[Bin8]])=0))) -> 5
B40: 3 | C40: 5 | D40: 7 | J40: =COUNTA(Table4[[#This Row],[Bin1]:[Bin8]]) -> 3 | K40: =CHOOSE(Table4[[#This Row],[Bin9]],0,SUMPRODUCT((MOD(Table6[Bin9],Table4[[#This Row],[Bin1]])=0)*(MOD(Table6[Bin9],Table4[[#This Row],[Bin2]])=0)),SUMPRODUCT((MOD(Table6[Bin9],Table4[[#This Row],[Bin1]])=0)*(MOD(Table6[Bin9],Table4[[#This Row],[Bin2]])=0)*(MOD(Table6[Bin9],Table4[[#This Row],[Bin3]])=0)),SUMPRODUCT((MOD(Table6[Bin9],Table4[[#This Row],[Bin1]])=0)*(MOD(Table6[Bin9],Table4[[#This Row],[Bin2]])=0)*(MOD(Table6[Bin9],Table4[[#This Row],[Bin3]])=0)*(MOD(Table6[Bin9],Table4[[#This Row],[Bin4]])=0)),SUMPRODUCT((MOD(Table6[Bin9],Table4[[#This Row],[Bin1]])=0)*(MOD(Table6[Bin9],Table4[[#This Row],[Bin2]])=0)*(MOD(Table6[Bin9],Table4[[#This Row],[Bin3]])=0)*(MOD(Table6[Bin9],Table4[[#This Row],[Bin4]])=0)*(MOD(Table6[Bin9],Table4[[#This Row],[Bin5]])=0)),SUMPRODUCT((MOD(Table6[Bin9],Table4[[#This Row],[Bin1]])=0)*(MOD(Table6[Bin9],Table4[[#This Row],[Bin2]])=0)*(MOD(Table6[Bin9],Table4[[#This Row],[Bin3]])=0)*(MOD(Table6[Bin9],Table4[[#This Row],[Bin4]])=0)*(MOD(Table6[Bin9],Table4[[#This Row],[Bin5]])=0)*(MOD(Table6[Bin9],Table4[[#This Row],[Bin6]])=0)),SUMPRODUCT((MOD(Table6[Bin9],Table4[[#This Row],[Bin1]])=0)*(MOD(Table6[Bin9],Table4[[#This Row],[Bin2]])=0)*(MOD(Table6[Bin9],Table4[[#This Row],[Bin3]])=0)*(MOD(Table6[Bin9],Table4[[#This Row],[Bin4]])=0)*(MOD(Table6[Bin9],Table4[[#This Row],[Bin5]])=0)*(MOD(Table6[Bin9],Table4[[#This Row],[Bin6]])=0)*(MOD(Table6[Bin9],Table4[[#This Row],[Bin7]])=0)),SUMPRODUCT((MOD(Table6[Bin9],Table4[[#This Row],[Bin1]])=0)*(MOD(Table6[Bin9],Table4[[#This Row],[Bin2]])=0)*(MOD(Table6[Bin9],Table4[[#This Row],[Bin3]])=0)*(MOD(Table6[Bin9],Table4[[#This Row],[Bin4]])=0)*(MOD(Table6[Bin9],Table4[[#This Row],[Bin5]])=0)*(MOD(Table6[Bin9],Table4[[#This Row],[Bin6]])=0)*(MOD(Table6[Bin9],Table4[[#This Row],[Bin7]])=0)*(MOD(Table6[Bin9],Table4[[#This Row],[Bin8]])=0))) -> 2
B41: 3 | C41: 5 | D41: 11 | J41: =COUNTA(Table4[[#This Row],[Bin1]:[Bin8]]) -> 3 | K41: =CHOOSE(Table4[[#This Row],[Bin9]],0,SUMPRODUCT((MOD(Table6[Bin9],Table4[[#This Row],[Bin1]])=0)*(MOD(Table6[Bin9],Table4[[#This Row],[Bin2]])=0)),SUMPRODUCT((MOD(Table6[Bin9],Table4[[#This Row],[Bin1]])=0)*(MOD(Table6[Bin9],Table4[[#This Row],[Bin2]])=0)*(MOD(Table6[Bin9],Table4[[#This Row],[Bin3]])=0)),SUMPRODUCT((MOD(Table6[Bin9],Table4[[#This Row],[Bin1]])=0)*(MOD(Table6[Bin9],Table4[[#This Row],[Bin2]])=0)*(MOD(Table6[Bin9],Table4[[#This Row],[Bin3]])=0)*(MOD(Table6[Bin9],Table4[[#This Row],[Bin4]])=0)),SUMPRODUCT((MOD(Table6[Bin9],Table4[[#This Row],[Bin1]])=0)*(MOD(Table6[Bin9],Table4[[#This Row],[Bin2]])=0)*(MOD(Table6[Bin9],Table4[[#This Row],[Bin3]])=0)*(MOD(Table6[Bin9],Table4[[#This Row],[Bin4]])=0)*(MOD(Table6[Bin9],Table4[[#This Row],[Bin5]])=0)),SUMPRODUCT((MOD(Table6[Bin9],Table4[[#This Row],[Bin1]])=0)*(MOD(Table6[Bin9],Table4[[#This Row],[Bin2]])=0)*(MOD(Table6[Bin9],Table4[[#This Row],[Bin3]])=0)*(MOD(Table6[Bin9],Table4[[#This Row],[Bin4]])=0)*(MOD(Table6[Bin9],Table4[[#This Row],[Bin5]])=0)*(MOD(Table6[Bin9],Table4[[#This Row],[Bin6]])=0)),SUMPRODUCT((MOD(Table6[Bin9],Table4[[#This Row],[Bin1]])=0)*(MOD(Table6[Bin9],Table4[[#This Row],[Bin2]])=0)*(MOD(Table6[Bin9],Table4[[#This Row],[Bin3]])=0)*(MOD(Table6[Bin9],Table4[[#This Row],[Bin4]])=0)*(MOD(Table6[Bin9],Table4[[#This Row],[Bin5]])=0)*(MOD(Table6[Bin9],Table4[[#This Row],[Bin6]])=0)*(MOD(Table6[Bin9],Table4[[#This Row],[Bin7]])=0)),SUMPRODUCT((MOD(Table6[Bin9],Table4[[#This Row],[Bin1]])=0)*(MOD(Table6[Bin9],Table4[[#This Row],[Bin2]])=0)*(MOD(Table6[Bin9],Table4[[#This Row],[Bin3]])=0)*(MOD(Table6[Bin9],Table4[[#This Row],[Bin4]])=0)*(MOD(Table6[Bin9],Table4[[#This Row],[Bin5]])=0)*(MOD(Table6[Bin9],Table4[[#This Row],[Bin6]])=0)*(MOD(Table6[Bin9],Table4[[#This Row],[Bin7]])=0)*(MOD(Table6[Bin9],Table4[[#This Row],[Bin8]])=0))) -> 2
B42: 3 | C42: 7 | D42: 11 | J42: =COUNTA(Table4[[#This Row],[Bin1]:[Bin8]]) -> 3 | K42: =CHOOSE(Table4[[#This Row],[Bin9]],0,SUMPRODUCT((MOD(Table6[Bin9],Table4[[#This Row],[Bin1]])=0)*(MOD(Table6[Bin9],Table4[[#This Row],[Bin2]])=0)),SUMPRODUCT((MOD(Table6[Bin9],Table4[[#This Row],[Bin1]])=0)*(MOD(Table6[Bin9],Table4[[#This Row],[Bin2]])=0)*(MOD(Table6[Bin9],Table4[[#This Row],[Bin3]])=0)),SUMPRODUCT((MOD(Table6[Bin9],Table4[[#This Row],[Bin1]])=0)*(MOD(Table6[Bin9],Table4[[#This Row],[Bin2]])=0)*(MOD(Table6[Bin9],Table4[[#This Row],[Bin3]])=0)*(MOD(Table6[Bin9],Table4[[#This Row],[Bin4]])=0)),SUMPRODUCT((MOD(Table6[Bin9],Table4[[#This Row],[Bin1]])=0)*(MOD(Table6[Bin9],Table4[[#This Row],[Bin2]])=0)*(MOD(Table6[Bin9],Table4[[#This Row],[Bin3]])=0)*(MOD(Table6[Bin9],Table4[[#This Row],[Bin4]])=0)*(MOD(Table6[Bin9],Table4[[#This Row],[Bin5]])=0)),SUMPRODUCT((MOD(Table6[Bin9],Table4[[#This Row],[Bin1]])=0)*(MOD(Table6[Bin9],Table4[[#This Row],[Bin2]])=0)*(MOD(Table6[Bin9],Table4[[#This Row],[Bin3]])=0)*(MOD(Table6[Bin9],Table4[[#This Row],[Bin4]])=0)*(MOD(Table6[Bin9],Table4[[#This Row],[Bin5]])=0)*(MOD(Table6[Bin9],Table4[[#This Row],[Bin6]])=0)),SUMPRODUCT((MOD(Table6[Bin9],Table4[[#This Row],[Bin1]])=0)*(MOD(Table6[Bin9],Table4[[#This Row],[Bin2]])=0)*(MOD(Table6[Bin9],Table4[[#This Row],[Bin3]])=0)*(MOD(Table6[Bin9],Table4[[#This Row],[Bin4]])=0)*(MOD(Table6[Bin9],Table4[[#This Row],[Bin5]])=0)*(MOD(Table6[Bin9],Table4[[#This Row],[Bin6]])=0)*(MOD(Table6[Bin9],Table4[[#This Row],[Bin7]])=0)),SUMPRODUCT((MOD(Table6[Bin9],Table4[[#This Row],[Bin1]])=0)*(MOD(Table6[Bin9],Table4[[#This Row],[Bin2]])=0)*(MOD(Table6[Bin9],Table4[[#This Row],[Bin3]])=0)*(MOD(Table6[Bin9],Table4[[#This Row],[Bin4]])=0)*(MOD(Table6[Bin9],Table4[[#This Row],[Bin5]])=0)*(MOD(Table6[Bin9],Table4[[#This Row],[Bin6]])=0)*(MOD(Table6[Bin9],Table4[[#This Row],[Bin7]])=0)*(MOD(Table6[Bin9],Table4[[#This Row],[Bin8]])=0))) -> 4
B43: 5 | C43: 7 | D43: 11 | J43: =COUNTA(Table4[[#This Row],[Bin1]:[Bin8]]) -> 3 | K43: =CHOOSE(Table4[[#This Row],[Bin9]],0,SUMPRODUCT((MOD(Table6[Bin9],Table4[[#This Row],[Bin1]])=0)*(MOD(Table6[Bin9],Table4[[#This Row],[Bin2]])=0)),SUMPRODUCT((MOD(Table6[Bin9],Table4[[#This Row],[Bin1]])=0)*(MOD(Table6[Bin9],Table4[[#This Row],[Bin2]])=0)*(MOD(Table6[Bin9],Table4[[#This Row],[Bin3]])=0)),SUMPRODUCT((MOD(Table6[Bin9],Table4[[#This Row],[Bin1]])=0)*(MOD(Table6[Bin9],Table4[[#This Row],[Bin2]])=0)*(MOD(Table6[Bin9],Table4[[#This Row],[Bin3]])=0)*(MOD(Table6[Bin9],Table4[[#This Row],[Bin4]])=0)),SUMPRODUCT((MOD(Table6[Bin9],Table4[[#This Row],[Bin1]])=0)*(MOD(Table6[Bin9],Table4[[#This Row],[Bin2]])=0)*(MOD(Table6[Bin9],Table4[[#This Row],[Bin3]])=0)*(MOD(Table6[Bin9],Table4[[#This Row],[Bin4]])=0)*(MOD(Table6[Bin9],Table4[[#This Row],[Bin5]])=0)),SUMPRODUCT((MOD(Table6[Bin9],Table4[[#This Row],[Bin1]])=0)*(MOD(Table6[Bin9],Table4[[#This Row],[Bin2]])=0)*(MOD(Table6[Bin9],Table4[[#This Row],[Bin3]])=0)*(MOD(Table6[Bin9],Table4[[#This Row],[Bin4]])=0)*(MOD(Table6[Bin9],Table4[[#This Row],[Bin5]])=0)*(MOD(Table6[Bin9],Table4[[#This Row],[Bin6]])=0)),SUMPRODUCT((MOD(Table6[Bin9],Table4[[#This Row],[Bin1]])=0)*(MOD(Table6[Bin9],Table4[[#This Row],[Bin2]])=0)*(MOD(Table6[Bin9],Table4[[#This Row],[Bin3]])=0)*(MOD(Table6[Bin9],Table4[[#This Row],[Bin4]])=0)*(MOD(Table6[Bin9],Table4[[#This Row],[Bin5]])=0)*(MOD(Table6[Bin9],Table4[[#This Row],[Bin6]])=0)*(MOD(Table6[Bin9],Table4[[#This Row],[Bin7]])=0)),SUMPRODUCT((MOD(Table6[Bin9],Table4[[#This Row],[Bin1]])=0)*(MOD(Table6[Bin9],Table4[[#This Row],[Bin2]])=0)*(MOD(Table6[Bin9],Table4[[#This Row],[Bin3]])=0)*(MOD(Table6[Bin9],Table4[[#This Row],[Bin4]])=0)*(MOD(Table6[Bin9],Table4[[#This Row],[Bin5]])=0)*(MOD(Table6[Bin9],Table4[[#This Row],[Bin6]])=0)*(MOD(Table6[Bin9],Table4[[#This Row],[Bin7]])=0)*(MOD(Table6[Bin9],Table4[[#This Row],[Bin8]])=0))) -> 6
B44: 3 | C44: 5 | D44: 13 | J44: =COUNTA(Table4[[#This Row],[Bin1]:[Bin8]]) -> 3 | K44: =CHOOSE(Table4[[#This Row],[Bin9]],0,SUMPRODUCT((MOD(Table6[Bin9],Table4[[#This Row],[Bin1]])=0)*(MOD(Table6[Bin9],Table4[[#This Row],[Bin2]])=0)),SUMPRODUCT((MOD(Table6[Bin9],Table4[[#This Row],[Bin1]])=0)*(MOD(Table6[Bin9],Table4[[#This Row],[Bin2]])=0)*(MOD(Table6[Bin9],Table4[[#This Row],[Bin3]])=0)),SUMPRODUCT((MOD(Table6[Bin9],Table4[[#This Row],[Bin1]])=0)*(MOD(Table6[Bin9],Table4[[#This Row],[Bin2]])=0)*(MOD(Table6[Bin9],Table4[[#This Row],[Bin3]])=0)*(MOD(Table6[Bin9],Table4[[#This Row],[Bin4]])=0)),SUMPRODUCT((MOD(Table6[Bin9],Table4[[#This Row],[Bin1]])=0)*(MOD(Table6[Bin9],Table4[[#This Row],[Bin2]])=0)*(MOD(Table6[Bin9],Table4[[#This Row],[Bin3]])=0)*(MOD(Table6[Bin9],Table4[[#This Row],[Bin4]])=0)*(MOD(Table6[Bin9],Table4[[#This Row],[Bin5]])=0)),SUMPRODUCT((MOD(Table6[Bin9],Table4[[#This Row],[Bin1]])=0)*(MOD(Table6[Bin9],Table4[[#This Row],[Bin2]])=0)*(MOD(Table6[Bin9],Table4[[#This Row],[Bin3]])=0)*(MOD(Table6[Bin9],Table4[[#This Row],[Bin4]])=0)*(MOD(Table6[Bin9],Table4[[#This Row],[Bin5]])=0)*(MOD(Table6[Bin9],Table4[[#This Row],[Bin6]])=0)),SUMPRODUCT((MOD(Table6[Bin9],Table4[[#This Row],[Bin1]])=0)*(MOD(Table6[Bin9],Table4[[#This Row],[Bin2]])=0)*(MOD(Table6[Bin9],Table4[[#This Row],[Bin3]])=0)*(MOD(Table6[Bin9],Table4[[#This Row],[Bin4]])=0)*(MOD(Table6[Bin9],Table4[[#This Row],[Bin5]])=0)*(MOD(Table6[Bin9],Table4[[#This Row],[Bin6]])=0)*(MOD(Table6[Bin9],Table4[[#This Row],[Bin7]])=0)),SUMPRODUCT((MOD(Table6[Bin9],Table4[[#This Row],[Bin1]])=0)*(MOD(Table6[Bin9],Table4[[#This Row],[Bin2]])=0)*(MOD(Table6[Bin9],Table4[[#This Row],[Bin3]])=0)*(MOD(Table6[Bin9],Table4[[#This Row],[Bin4]])=0)*(MOD(Table6[Bin9],Table4[[#This Row],[Bin5]])=0)*(MOD(Table6[Bin9],Table4[[#This Row],[Bin6]])=0)*(MOD(Table6[Bin9],Table4[[#This Row],[Bin7]])=0)*(MOD(Table6[Bin9],Table4[[#This Row],[Bin8]])=0))) -> 1
B45: 3 | C45: 7 | D45: 13 | J45: =COUNTA(Table4[[#This Row],[Bin1]:[Bin8]]) -> 3 | K45: =CHOOSE(Table4[[#This Row],[Bin9]],0,SUMPRODUCT((MOD(Table6[Bin9],Table4[[#This Row],[Bin1]])=0)*(MOD(Table6[Bin9],Table4[[#This Row],[Bin2]])=0)),SUMPRODUCT((MOD(Table6[Bin9],Table4[[#This Row],[Bin1]])=0)*(MOD(Table6[Bin9],Table4[[#This Row],[Bin2]])=0)*(MOD(Table6[Bin9],Table4[[#This Row],[Bin3]])=0)),SUMPRODUCT((MOD(Table6[Bin9],Table4[[#This Row],[Bin1]])=0)*(MOD(Table6[Bin9],Table4[[#This Row],[Bin2]])=0)*(MOD(Table6[Bin9],Table4[[#This Row],[Bin3]])=0)*(MOD(Table6[Bin9],Table4[[#This Row],[Bin4]])=0)),SUMPRODUCT((MOD(Table6[Bin9],Table4[[#This Row],[Bin1]])=0)*(MOD(Table6[Bin9],Table4[[#This Row],[Bin2]])=0)*(MOD(Table6[Bin9],Table4[[#This Row],[Bin3]])=0)*(MOD(Table6[Bin9],Table4[[#This Row],[Bin4]])=0)*(MOD(Table6[Bin9],Table4[[#This Row],[Bin5]])=0)),SUMPRODUCT((MOD(Table6[Bin9],Table4[[#This Row],[Bin1]])=0)*(MOD(Table6[Bin9],Table4[[#This Row],[Bin2]])=0)*(MOD(Table6[Bin9],Table4[[#This Row],[Bin3]])=0)*(MOD(Table6[Bin9],Table4[[#This Row],[Bin4]])=0)*(MOD(Table6[Bin9],Table4[[#This Row],[Bin5]])=0)*(MOD(Table6[Bin9],Table4[[#This Row],[Bin6]])=0)),SUMPRODUCT((MOD(Table6[Bin9],Table4[[#This Row],[Bin1]])=0)*(MOD(Table6[Bin9],Table4[[#This Row],[Bin2]])=0)*(MOD(Table6[Bin9],Table4[[#This Row],[Bin3]])=0)*(MOD(Table6[Bin9],Table4[[#This Row],[Bin4]])=0)*(MOD(Table6[Bin9],Table4[[#This Row],[Bin5]])=0)*(MOD(Table6[Bin9],Table4[[#This Row],[Bin6]])=0)*(MOD(Table6[Bin9],Table4[[#This Row],[Bin7]])=0)),SUMPRODUCT((MOD(Table6[Bin9],Table4[[#This Row],[Bin1]])=0)*(MOD(Table6[Bin9],Table4[[#This Row],[Bin2]])=0)*(MOD(Table6[Bin9],Table4[[#This Row],[Bin3]])=0)*(MOD(Table6[Bin9],Table4[[#This Row],[Bin4]])=0)*(MOD(Table6[Bin9],Table4[[#This Row],[Bin5]])=0)*(MOD(Table6[Bin9],Table4[[#This Row],[Bin6]])=0)*(MOD(Table6[Bin9],Table4[[#This Row],[Bin7]])=0)*(MOD(Table6[Bin9],Table4[[#This Row],[Bin8]])=0))) -> 4
B46: 5 | C46: 7 | D46: 13 | J46: =COUNTA(Table4[[#This Row],[Bin1]:[Bin8]]) -> 3 | K46: =CHOOSE(Table4[[#This Row],[Bin9]],0,SUMPRODUCT((MOD(Table6[Bin9],Table4[[#This Row],[Bin1]])=0)*(MOD(Table6[Bin9],Table4[[#This Row],[Bin2]])=0)),SUMPRODUCT((MOD(Table6[Bin9],Table4[[#This Row],[Bin1]])=0)*(MOD(Table6[Bin9],Table4[[#This Row],[Bin2]])=0)*(MOD(Table6[Bin9],Table4[[#This Row],[Bin3]])=0)),SUMPRODUCT((MOD(Table6[Bin9],Table4[[#This Row],[Bin1]])=0)*(MOD(Table6[Bin9],Table4[[#This Row],[Bin2]])=0)*(MOD(Table6[Bin9],Table4[[#This Row],[Bin3]])=0)*(MOD(Table6[Bin9],Table4[[#This Row],[Bin4]])=0)),SUMPRODUCT((MOD(Table6[Bin9],Table4[[#This Row],[Bin1]])=0)*(MOD(Table6[Bin9],Table4[[#This Row],[Bin2]])=0)*(MOD(Table6[Bin9],Table4[[#This Row],[Bin3]])=0)*(MOD(Table6[Bin9],Table4[[#This Row],[Bin4]])=0)*(MOD(Table6[Bin9],Table4[[#This Row],[Bin5]])=0)),SUMPRODUCT((MOD(Table6[Bin9],Table4[[#This Row],[Bin1]])=0)*(MOD(Table6[Bin9],Table4[[#This Row],[Bin2]])=0)*(MOD(Table6[Bin9],Table4[[#This Row],[Bin3]])=0)*(MOD(Table6[Bin9],Table4[[#This Row],[Bin4]])=0)*(MOD(Table6[Bin9],Table4[[#This Row],[Bin5]])=0)*(MOD(Table6[Bin9],Table4[[#This Row],[Bin6]])=0)),SUMPRODUCT((MOD(Table6[Bin9],Table4[[#This Row],[Bin1]])=0)*(MOD(Table6[Bin9],Table4[[#This Row],[Bin2]])=0)*(MOD(Table6[Bin9],Table4[[#This Row],[Bin3]])=0)*(MOD(Table6[Bin9],Table4[[#This Row],[Bin4]])=0)*(MOD(Table6[Bin9],Table4[[#This Row],[Bin5]])=0)*(MOD(Table6[Bin9],Table4[[#This Row],[Bin6]])=0)*(MOD(Table6[Bin9],Table4[[#This Row],[Bin7]])=0)),SUMPRODUCT((MOD(Table6[Bin9],Table4[[#This Row],[Bin1]])=0)*(MOD(Table6[Bin9],Table4[[#This Row],[Bin2]])=0)*(MOD(Table6[Bin9],Table4[[#This Row],[Bin3]])=0)*(MOD(Table6[Bin9],Table4[[#This Row],[Bin4]])=0)*(MOD(Table6[Bin9],Table4[[#This Row],[Bin5]])=0)*(MOD(Table6[Bin9],Table4[[#This Row],[Bin6]])=0)*(MOD(Table6[Bin9],Table4[[#This Row],[Bin7]])=0)*(MOD(Table6[Bin9],Table4[[#This Row],[Bin8]])=0))) -> 3
B47: 3 | C47: 11 | D47: 13 | J47: =COUNTA(Table4[[#This Row],[Bin1]:[Bin8]]) -> 3 | K47: =CHOOSE(Table4[[#This Row],[Bin9]],0,SUMPRODUCT((MOD(Table6[Bin9],Table4[[#This Row],[Bin1]])=0)*(MOD(Table6[Bin9],Table4[[#This Row],[Bin2]])=0)),SUMPRODUCT((MOD(Table6[Bin9],Table4[[#This Row],[Bin1]])=0)*(MOD(Table6[Bin9],Table4[[#This Row],[Bin2]])=0)*(MOD(Table6[Bin9],Table4[[#This Row],[Bin3]])=0)),SUMPRODUCT((MOD(Table6[Bin9],Table4[[#This Row],[Bin1]])=0)*(MOD(Table6[Bin9],Table4[[#This Row],[Bin2]])=0)*(MOD(Table6[Bin9],Table4[[#This Row],[Bin3]])=0)*(MOD(Table6[Bin9],Table4[[#This Row],[Bin4]])=0)),SUMPRODUCT((MOD(Table6[Bin9],Table4[[#This Row],[Bin1]])=0)*(MOD(Table6[Bin9],Table4[[#This Row],[Bin2]])=0)*(MOD(Table6[Bin9],Table4[[#This Row],[Bin3]])=0)*(MOD(Table6[Bin9],Table4[[#This Row],[Bin4]])=0)*(MOD(Table6[Bin9],Table4[[#This Row],[Bin5]])=0)),SUMPRODUCT((MOD(Table6[Bin9],Table4[[#This Row],[Bin1]])=0)*(MOD(Table6[Bin9],Table4[[#This Row],[Bin2]])=0)*(MOD(Table6[Bin9],Table4[[#This Row],[Bin3]])=0)*(MOD(Table6[Bin9],Table4[[#This Row],[Bin4]])=0)*(MOD(Table6[Bin9],Table4[[#This Row],[Bin5]])=0)*(MOD(Table6[Bin9],Table4[[#This Row],[Bin6]])=0)),SUMPRODUCT((MOD(Table6[Bin9],Table4[[#This Row],[Bin1]])=0)*(MOD(Table6[Bin9],Table4[[#This Row],[Bin2]])=0)*(MOD(Table6[Bin9],Table4[[#This Row],[Bin3]])=0)*(MOD(Table6[Bin9],Table4[[#This Row],[Bin4]])=0)*(MOD(Table6[Bin9],Table4[[#This Row],[Bin5]])=0)*(MOD(Table6[Bin9],Table4[[#This Row],[Bin6]])=0)*(MOD(Table6[Bin9],Table4[[#This Row],[Bin7]])=0)),SUMPRODUCT((MOD(Table6[Bin9],Table4[[#This Row],[Bin1]])=0)*(MOD(Table6[Bin9],Table4[[#This Row],[Bin2]])=0)*(MOD(Table6[Bin9],Table4[[#This Row],[Bin3]])=0)*(MOD(Table6[Bin9],Table4[[#This Row],[Bin4]])=0)*(MOD(Table6[Bin9],Table4[[#This Row],[Bin5]])=0)*(MOD(Table6[Bin9],Table4[[#This Row],[Bin6]])=0)*(MOD(Table6[Bin9],Table4[[#This Row],[Bin7]])=0)*(MOD(Table6[Bin9],Table4[[#This Row],[Bin8]])=0))) -> 3
B48: 5 | C48: 11 | D48: 13 | J48: =COUNTA(Table4[[#This Row],[Bin1]:[Bin8]]) -> 3 | K48: =CHOOSE(Table4[[#This Row],[Bin9]],0,SUMPRODUCT((MOD(Table6[Bin9],Table4[[#This Row],[Bin1]])=0)*(MOD(Table6[Bin9],Table4[[#This Row],[Bin2]])=0)),SUMPRODUCT((MOD(Table6[Bin9],Table4[[#This Row],[Bin1]])=0)*(MOD(Table6[Bin9],Table4[[#This Row],[Bin2]])=0)*(MOD(Table6[Bin9],Table4[[#This Row],[Bin3]])=0)),SUMPRODUCT((MOD(Table6[Bin9],Table4[[#This Row],[Bin1]])=0)*(MOD(Table6[Bin9],Table4[[#This Row],[Bin2]])=0)*(MOD(Table6[Bin9],Table4[[#This Row],[Bin3]])=0)*(MOD(Table6[Bin9],Table4[[#This Row],[Bin4]])=0)),SUMPRODUCT((MOD(Table6[Bin9],Table4[[#This Row],[Bin1]])=0)*(MOD(Table6[Bin9],Table4[[#This Row],[Bin2]])=0)*(MOD(Table6[Bin9],Table4[[#This Row],[Bin3]])=0)*(MOD(Table6[Bin9],Table4[[#This Row],[Bin4]])=0)*(MOD(Table6[Bin9],Table4[[#This Row],[Bin5]])=0)),SUMPRODUCT((MOD(Table6[Bin9],Table4[[#This Row],[Bin1]])=0)*(MOD(Table6[Bin9],Table4[[#This Row],[Bin2]])=0)*(MOD(Table6[Bin9],Table4[[#This Row],[Bin3]])=0)*(MOD(Table6[Bin9],Table4[[#This Row],[Bin4]])=0)*(MOD(Table6[Bin9],Table4[[#This Row],[Bin5]])=0)*(MOD(Table6[Bin9],Table4[[#This Row],[Bin6]])=0)),SUMPRODUCT((MOD(Table6[Bin9],Table4[[#This Row],[Bin1]])=0)*(MOD(Table6[Bin9],Table4[[#This Row],[Bin2]])=0)*(MOD(Table6[Bin9],Table4[[#This Row],[Bin3]])=0)*(MOD(Table6[Bin9],Table4[[#This Row],[Bin4]])=0)*(MOD(Table6[Bin9],Table4[[#This Row],[Bin5]])=0)*(MOD(Table6[Bin9],Table4[[#This Row],[Bin6]])=0)*(MOD(Table6[Bin9],Table4[[#This Row],[Bin7]])=0)),SUMPRODUCT((MOD(Table6[Bin9],Table4[[#This Row],[Bin1]])=0)*(MOD(Table6[Bin9],Table4[[#This Row],[Bin2]])=0)*(MOD(Table6[Bin9],Table4[[#This Row],[Bin3]])=0)*(MOD(Table6[Bin9],Table4[[#This Row],[Bin4]])=0)*(MOD(Table6[Bin9],Table4[[#This Row],[Bin5]])=0)*(MOD(Table6[Bin9],Table4[[#This Row],[Bin6]])=0)*(MOD(Table6[Bin9],Table4[[#This Row],[Bin7]])=0)*(MOD(Table6[Bin9],Table4[[#This Row],[Bin8]])=0))) -> 4
B49: 7 | C49: 11 | D49: 13 | J49: =COUNTA(Table4[[#This Row],[Bin1]:[Bin8]]) -> 3 | K49: =CHOOSE(Table4[[#This Row],[Bin9]],0,SUMPRODUCT((MOD(Table6[Bin9],Table4[[#This Row],[Bin1]])=0)*(MOD(Table6[Bin9],Table4[[#This Row],[Bin2]])=0)),SUMPRODUCT((MOD(Table6[Bin9],Table4[[#This Row],[Bin1]])=0)*(MOD(Table6[Bin9],Table4[[#This Row],[Bin2]])=0)*(MOD(Table6[Bin9],Table4[[#This Row],[Bin3]])=0)),SUMPRODUCT((MOD(Table6[Bin9],Table4[[#This Row],[Bin1]])=0)*(MOD(Table6[Bin9],Table4[[#This Row],[Bin2]])=0)*(MOD(Table6[Bin9],Table4[[#This Row],[Bin3]])=0)*(MOD(Table6[Bin9],Table4[[#This Row],[Bin4]])=0)),SUMPRODUCT((MOD(Table6[Bin9],Table4[[#This Row],[Bin1]])=0)*(MOD(Table6[Bin9],Table4[[#This Row],[Bin2]])=0)*(MOD(Table6[Bin9],Table4[[#This Row],[Bin3]])=0)*(MOD(Table6[Bin9],Table4[[#This Row],[Bin4]])=0)*(MOD(Table6[Bin9],Table4[[#This Row],[Bin5]])=0)),SUMPRODUCT((MOD(Table6[Bin9],Table4[[#This Row],[Bin1]])=0)*(MOD(Table6[Bin9],Table4[[#This Row],[Bin2]])=0)*(MOD(Table6[Bin9],Table4[[#This Row],[Bin3]])=0)*(MOD(Table6[Bin9],Table4[[#This Row],[Bin4]])=0)*(MOD(Table6[Bin9],Table4[[#This Row],[Bin5]])=0)*(MOD(Table6[Bin9],Table4[[#This Row],[Bin6]])=0)),SUMPRODUCT((MOD(Table6[Bin9],Table4[[#This Row],[Bin1]])=0)*(MOD(Table6[Bin9],Table4[[#This Row],[Bin2]])=0)*(MOD(Table6[Bin9],Table4[[#This Row],[Bin3]])=0)*(MOD(Table6[Bin9],Table4[[#This Row],[Bin4]])=0)*(MOD(Table6[Bin9],Table4[[#This Row],[Bin5]])=0)*(MOD(Table6[Bin9],Table4[[#This Row],[Bin6]])=0)*(MOD(Table6[Bin9],Table4[[#This Row],[Bin7]])=0)),SUMPRODUCT((MOD(Table6[Bin9],Table4[[#This Row],[Bin1]])=0)*(MOD(Table6[Bin9],Table4[[#This Row],[Bin2]])=0)*(MOD(Table6[Bin9],Table4[[#This Row],[Bin3]])=0)*(MOD(Table6[Bin9],Table4[[#This Row],[Bin4]])=0)*(MOD(Table6[Bin9],Table4[[#This Row],[Bin5]])=0)*(MOD(Table6[Bin9],Table4[[#This Row],[Bin6]])=0)*(MOD(Table6[Bin9],Table4[[#This Row],[Bin7]])=0)*(MOD(Table6[Bin9],Table4[[#This Row],[Bin8]])=0))) -> 5
B50: 3 | C50: 5 | D50: 17 | J50: =COUNTA(Table4[[#This Row],[Bin1]:[Bin8]]) -> 3 | K50: =CHOOSE(Table4[[#This Row],[Bin9]],0,SUMPRODUCT((MOD(Table6[Bin9],Table4[[#This Row],[Bin1]])=0)*(MOD(Table6[Bin9],Table4[[#This Row],[Bin2]])=0)),SUMPRODUCT((MOD(Table6[Bin9],Table4[[#This Row],[Bin1]])=0)*(MOD(Table6[Bin9],Table4[[#This Row],[Bin2]])=0)*(MOD(Table6[Bin9],Table4[[#This Row],[Bin3]])=0)),SUMPRODUCT((MOD(Table6[Bin9],Table4[[#This Row],[Bin1]])=0)*(MOD(Table6[Bin9],Table4[[#This Row],[Bin2]])=0)*(MOD(Table6[Bin9],Table4[[#This Row],[Bin3]])=0)*(MOD(Table6[Bin9],Table4[[#This Row],[Bin4]])=0)),SUMPRODUCT((MOD(Table6[Bin9],Table4[[#This Row],[Bin1]])=0)*(MOD(Table6[Bin9],Table4[[#This Row],[Bin2]])=0)*(MOD(Table6[Bin9],Table4[[#This Row],[Bin3]])=0)*(MOD(Table6[Bin9],Table4[[#This Row],[Bin4]])=0)*(MOD(Table6[Bin9],Table4[[#This Row],[Bin5]])=0)),SUMPRODUCT((MOD(Table6[Bin9],Table4[[#This Row],[Bin1]])=0)*(MOD(Table6[Bin9],Table4[[#This Row],[Bin2]])=0)*(MOD(Table6[Bin9],Table4[[#This Row],[Bin3]])=0)*(MOD(Table6[Bin9],Table4[[#This Row],[Bin4]])=0)*(MOD(Table6[Bin9],Table4[[#This Row],[Bin5]])=0)*(MOD(Table6[Bin9],Table4[[#This Row],[Bin6]])=0)),SUMPRODUCT((MOD(Table6[Bin9],Table4[[#This Row],[Bin1]])=0)*(MOD(Table6[Bin9],Table4[[#This Row],[Bin2]])=0)*(MOD(Table6[Bin9],Table4[[#This Row],[Bin3]])=0)*(MOD(Table6[Bin9],Table4[[#This Row],[Bin4]])=0)*(MOD(Table6[Bin9],Table4[[#This Row],[Bin5]])=0)*(MOD(Table6[Bin9],Table4[[#This Row],[Bin6]])=0)*(MOD(Table6[Bin9],Table4[[#This Row],[Bin7]])=0)),SUMPRODUCT((MOD(Table6[Bin9],Table4[[#This Row],[Bin1]])=0)*(MOD(Table6[Bin9],Table4[[#This Row],[Bin2]])=0)*(MOD(Table6[Bin9],Table4[[#This Row],[Bin3]])=0)*(MOD(Table6[Bin9],Table4[[#This Row],[Bin4]])=0)*(MOD(Table6[Bin9],Table4[[#This Row],[Bin5]])=0)*(MOD(Table6[Bin9],Table4[[#This Row],[Bin6]])=0)*(MOD(Table6[Bin9],Table4[[#This Row],[Bin7]])=0)*(MOD(Table6[Bin9],Table4[[#This Row],[Bin8]])=0))) -> 0
B51: 3 | C51: 7 | D51: 17 | J51: =COUNTA(Table4[[#This Row],[Bin1]:[Bin8]]) -> 3 | K51: =CHOOSE(Table4[[#This Row],[Bin9]],0,SUMPRODUCT((MOD(Table6[Bin9],Table4[[#This Row],[Bin1]])=0)*(MOD(Table6[Bin9],Table4[[#This Row],[Bin2]])=0)),SUMPRODUCT((MOD(Table6[Bin9],Table4[[#This Row],[Bin1]])=0)*(MOD(Table6[Bin9],Table4[[#This Row],[Bin2]])=0)*(MOD(Table6[Bin9],Table4[[#This Row],[Bin3]])=0)),SUMPRODUCT((MOD(Table6[Bin9],Table4[[#This Row],[Bin1]])=0)*(MOD(Table6[Bin9],Table4[[#This Row],[Bin2]])=0)*(MOD(Table6[Bin9],Table4[[#This Row],[Bin3]])=0)*(MOD(Table6[Bin9],Table4[[#This Row],[Bin4]])=0)),SUMPRODUCT((MOD(Table6[Bin9],Table4[[#This Row],[Bin1]])=0)*(MOD(Table6[Bin9],Table4[[#This Row],[Bin2]])=0)*(MOD(Table6[Bin9],Table4[[#This Row],[Bin3]])=0)*(MOD(Table6[Bin9],Table4[[#This Row],[Bin4]])=0)*(MOD(Table6[Bin9],Table4[[#This Row],[Bin5]])=0)),SUMPRODUCT((MOD(Table6[Bin9],Table4[[#This Row],[Bin1]])=0)*(MOD(Table6[Bin9],Table4[[#This Row],[Bin2]])=0)*(MOD(Table6[Bin9],Table4[[#This Row],[Bin3]])=0)*(MOD(Table6[Bin9],Table4[[#This Row],[Bin4]])=0)*(MOD(Table6[Bin9],Table4[[#This Row],[Bin5]])=0)*(MOD(Table6[Bin9],Table4[[#This Row],[Bin6]])=0)),SUMPRODUCT((MOD(Table6[Bin9],Table4[[#This Row],[Bin1]])=0)*(MOD(Table6[Bin9],Table4[[#This Row],[Bin2]])=0)*(MOD(Table6[Bin9],Table4[[#This Row],[Bin3]])=0)*(MOD(Table6[Bin9],Table4[[#This Row],[Bin4]])=0)*(MOD(Table6[Bin9],Table4[[#This Row],[Bin5]])=0)*(MOD(Table6[Bin9],Table4[[#This Row],[Bin6]])=0)*(MOD(Table6[Bin9],Table4[[#This Row],[Bin7]])=0)),SUMPRODUCT((MOD(Table6[Bin9],Table4[[#This Row],[Bin1]])=0)*(MOD(Table6[Bin9],Table4[[#This Row],[Bin2]])=0)*(MOD(Table6[Bin9],Table4[[#This Row],[Bin3]])=0)*(MOD(Table6[Bin9],Table4[[#This Row],[Bin4]])=0)*(MOD(Table6[Bin9],Table4[[#This Row],[Bin5]])=0)*(MOD(Table6[Bin9],Table4[[#This Row],[Bin6]])=0)*(MOD(Table6[Bin9],Table4[[#This Row],[Bin7]])=0)*(MOD(Table6[Bin9],Table4[[#This Row],[Bin8]])=0))) -> 2
B52: 5 | C52: 7 | D52: 17 | J52: =COUNTA(Table4[[#This Row],[Bin1]:[Bin8]]) -> 3 | K52: =CHOOSE(Table4[[#This Row],[Bin9]],0,SUMPRODUCT((MOD(Table6[Bin9],Table4[[#This Row],[Bin1]])=0)*(MOD(Table6[Bin9],Table4[[#This Row],[Bin2]])=0)),SUMPRODUCT((MOD(Table6[Bin9],Table4[[#This Row],[Bin1]])=0)*(MOD(Table6[Bin9],Table4[[#This Row],[Bin2]])=0)*(MOD(Table6[Bin9],Table4[[#This Row],[Bin3]])=0)),SUMPRODUCT((MOD(Table6[Bin9],Table4[[#This Row],[Bin1]])=0)*(MOD(Table6[Bin9],Table4[[#This Row],[Bin2]])=0)*(MOD(Table6[Bin9],Table4[[#This Row],[Bin3]])=0)*(MOD(Table6[Bin9],Table4[[#This Row],[Bin4]])=0)),SUMPRODUCT((MOD(Table6[Bin9],Table4[[#This Row],[Bin1]])=0)*(MOD(Table6[Bin9],Table4[[#This Row],[Bin2]])=0)*(MOD(Table6[Bin9],Table4[[#This Row],[Bin3]])=0)*(MOD(Table6[Bin9],Table4[[#This Row],[Bin4]])=0)*(MOD(Table6[Bin9],Table4[[#This Row],[Bin5]])=0)),SUMPRODUCT((MOD(Table6[Bin9],Table4[[#This Row],[Bin1]])=0)*(MOD(Table6[Bin9],Table4[[#This Row],[Bin2]])=0)*(MOD(Table6[Bin9],Table4[[#This Row],[Bin3]])=0)*(MOD(Table6[Bin9],Table4[[#This Row],[Bin4]])=0)*(MOD(Table6[Bin9],Table4[[#This Row],[Bin5]])=0)*(MOD(Table6[Bin9],Table4[[#This Row],[Bin6]])=0)),SUMPRODUCT((MOD(Table6[Bin9],Table4[[#This Row],[Bin1]])=0)*(MOD(Table6[Bin9],Table4[[#This Row],[Bin2]])=0)*(MOD(Table6[Bin9],Table4[[#This Row],[Bin3]])=0)*(MOD(Table6[Bin9],Table4[[#This Row],[Bin4]])=0)*(MOD(Table6[Bin9],Table4[[#This Row],[Bin5]])=0)*(MOD(Table6[Bin9],Table4[[#This Row],[Bin6]])=0)*(MOD(Table6[Bin9],Table4[[#This Row],[Bin7]])=0)),SUMPRODUCT((MOD(Table6[Bin9],Table4[[#This Row],[Bin1]])=0)*(MOD(Table6[Bin9],Table4[[#This Row],[Bin2]])=0)*(MOD(Table6[Bin9],Table4[[#This Row],[Bin3]])=0)*(MOD(Table6[Bin9],Table4[[#This Row],[Bin4]])=0)*(MOD(Table6[Bin9],Table4[[#This Row],[Bin5]])=0)*(MOD(Table6[Bin9],Table4[[#This Row],[Bin6]])=0)*(MOD(Table6[Bin9],Table4[[#This Row],[Bin7]])=0)*(MOD(Table6[Bin9],Table4[[#This Row],[Bin8]])=0))) -> 2
B53: 3 | C53: 11 | D53: 17 | J53: =COUNTA(Table4[[#This Row],[Bin1]:[Bin8]]) -> 3 | K53: =CHOOSE(Table4[[#This Row],[Bin9]],0,SUMPRODUCT((MOD(Table6[Bin9],Table4[[#This Row],[Bin1]])=0)*(MOD(Table6[Bin9],Table4[[#This Row],[Bin2]])=0)),SUMPRODUCT((MOD(Table6[Bin9],Table4[[#This Row],[Bin1]])=0)*(MOD(Table6[Bin9],Table4[[#This Row],[Bin2]])=0)*(MOD(Table6[Bin9],Table4[[#This Row],[Bin3]])=0)),SUMPRODUCT((MOD(Table6[Bin9],Table4[[#This Row],[Bin1]])=0)*(MOD(Table6[Bin9],Table4[[#This Row],[Bin2]])=0)*(MOD(Table6[Bin9],Table4[[#This Row],[Bin3]])=0)*(MOD(Table6[Bin9],Table4[[#This Row],[Bin4]])=0)),SUMPRODUCT((MOD(Table6[Bin9],Table4[[#This Row],[Bin1]])=0)*(MOD(Table6[Bin9],Table4[[#This Row],[Bin2]])=0)*(MOD(Table6[Bin9],Table4[[#This Row],[Bin3]])=0)*(MOD(Table6[Bin9],Table4[[#This Row],[Bin4]])=0)*(MOD(Table6[Bin9],Table4[[#This Row],[Bin5]])=0)),SUMPRODUCT((MOD(Table6[Bin9],Table4[[#This Row],[Bin1]])=0)*(MOD(Table6[Bin9],Table4[[#This Row],[Bin2]])=0)*(MOD(Table6[Bin9],Table4[[#This Row],[Bin3]])=0)*(MOD(Table6[Bin9],Table4[[#This Row],[Bin4]])=0)*(MOD(Table6[Bin9],Table4[[#This Row],[Bin5]])=0)*(MOD(Table6[Bin9],Table4[[#This Row],[Bin6]])=0)),SUMPRODUCT((MOD(Table6[Bin9],Table4[[#This Row],[Bin1]])=0)*(MOD(Table6[Bin9],Table4[[#This Row],[Bin2]])=0)*(MOD(Table6[Bin9],Table4[[#This Row],[Bin3]])=0)*(MOD(Table6[Bin9],Table4[[#This Row],[Bin4]])=0)*(MOD(Table6[Bin9],Table4[[#This Row],[Bin5]])=0)*(MOD(Table6[Bin9],Table4[[#This Row],[Bin6]])=0)*(MOD(Table6[Bin9],Table4[[#This Row],[Bin7]])=0)),SUMPRODUCT((MOD(Table6[Bin9],Table4[[#This Row],[Bin1]])=0)*(MOD(Table6[Bin9],Table4[[#This Row],[Bin2]])=0)*(MOD(Table6[Bin9],Table4[[#This Row],[Bin3]])=0)*(MOD(Table6[Bin9],Table4[[#This Row],[Bin4]])=0)*(MOD(Table6[Bin9],Table4[[#This Row],[Bin5]])=0)*(MOD(Table6[Bin9],Table4[[#This Row],[Bin6]])=0)*(MOD(Table6[Bin9],Table4[[#This Row],[Bin7]])=0)*(MOD(Table6[Bin9],Table4[[#This Row],[Bin8]])=0))) -> 3
B54: 5 | C54: 11 | D54: 17 | J54: =COUNTA(Table4[[#This Row],[Bin1]:[Bin8]]) -> 3 | K54: =CHOOSE(Table4[[#This Row],[Bin9]],0,SUMPRODUCT((MOD(Table6[Bin9],Table4[[#This Row],[Bin1]])=0)*(MOD(Table6[Bin9],Table4[[#This Row],[Bin2]])=0)),SUMPRODUCT((MOD(Table6[Bin9],Table4[[#This Row],[Bin1]])=0)*(MOD(Table6[Bin9],Table4[[#This Row],[Bin2]])=0)*(MOD(Table6[Bin9],Table4[[#This Row],[Bin3]])=0)),SUMPRODUCT((MOD(Table6[Bin9],Table4[[#This Row],[Bin1]])=0)*(MOD(Table6[Bin9],Table4[[#This Row],[Bin2]])=0)*(MOD(Table6[Bin9],Table4[[#This Row],[Bin3]])=0)*(MOD(Table6[Bin9],Table4[[#This Row],[Bin4]])=0)),SUMPRODUCT((MOD(Table6[Bin9],Table4[[#This Row],[Bin1]])=0)*(MOD(Table6[Bin9],Table4[[#This Row],[Bin2]])=0)*(MOD(Table6[Bin9],Table4[[#This Row],[Bin3]])=0)*(MOD(Table6[Bin9],Table4[[#This Row],[Bin4]])=0)*(MOD(Table6[Bin9],Table4[[#This Row],[Bin5]])=0)),SUMPRODUCT((MOD(Table6[Bin9],Table4[[#This Row],[Bin1]])=0)*(MOD(Table6[Bin9],Table4[[#This Row],[Bin2]])=0)*(MOD(Table6[Bin9],Table4[[#This Row],[Bin3]])=0)*(MOD(Table6[Bin9],Table4[[#This Row],[Bin4]])=0)*(MOD(Table6[Bin9],Table4[[#This Row],[Bin5]])=0)*(MOD(Table6[Bin9],Table4[[#This Row],[Bin6]])=0)),SUMPRODUCT((MOD(Table6[Bin9],Table4[[#This Row],[Bin1]])=0)*(MOD(Table6[Bin9],Table4[[#This Row],[Bin2]])=0)*(MOD(Table6[Bin9],Table4[[#This Row],[Bin3]])=0)*(MOD(Table6[Bin9],Table4[[#This Row],[Bin4]])=0)*(MOD(Table6[Bin9],Table4[[#This Row],[Bin5]])=0)*(MOD(Table6[Bin9],Table4[[#This Row],[Bin6]])=0)*(MOD(Table6[Bin9],Table4[[#This Row],[Bin7]])=0)),SUMPRODUCT((MOD(Table6[Bin9],Table4[[#This Row],[Bin1]])=0)*(MOD(Table6[Bin9],Table4[[#This Row],[Bin2]])=0)*(MOD(Table6[Bin9],Table4[[#This Row],[Bin3]])=0)*(MOD(Table6[Bin9],Table4[[#This Row],[Bin4]])=0)*(MOD(Table6[Bin9],Table4[[#This Row],[Bin5]])=0)*(MOD(Table6[Bin9],Table4[[#This Row],[Bin6]])=0)*(MOD(Table6[Bin9],Table4[[#This Row],[Bin7]])=0)*(MOD(Table6[Bin9],Table4[[#This Row],[Bin8]])=0))) -> 3
B55: 7 | C55: 11 | D55: 17 | J55: =COUNTA(Table4[[#This Row],[Bin1]:[Bin8]]) -> 3 | K55: =CHOOSE(Table4[[#This Row],[Bin9]],0,SUMPRODUCT((MOD(Table6[Bin9],Table4[[#This Row],[Bin1]])=0)*(MOD(Table6[Bin9],Table4[[#This Row],[Bin2]])=0)),SUMPRODUCT((MOD(Table6[Bin9],Table4[[#This Row],[Bin1]])=0)*(MOD(Table6[Bin9],Table4[[#This Row],[Bin2]])=0)*(MOD(Table6[Bin9],Table4[[#This Row],[Bin3]])=0)),SUMPRODUCT((MOD(Table6[Bin9],Table4[[#This Row],[Bin1]])=0)*(MOD(Table6[Bin9],Table4[[#This Row],[Bin2]])=0)*(MOD(Table6[Bin9],Table4[[#This Row],[Bin3]])=0)*(MOD(Table6[Bin9],Table4[[#This Row],[Bin4]])=0)),SUMPRODUCT((MOD(Table6[Bin9],Table4[[#This Row],[Bin1]])=0)*(MOD(Table6[Bin9],Table4[[#This Row],[Bin2]])=0)*(MOD(Table6[Bin9],Table4[[#This Row],[Bin3]])=0)*(MOD(Table6[Bin9],Table4[[#This Row],[Bin4]])=0)*(MOD(Table6[Bin9],Table4[[#This Row],[Bin5]])=0)),SUMPRODUCT((MOD(Table6[Bin9],Table4[[#This Row],[Bin1]])=0)*(MOD(Table6[Bin9],Table4[[#This Row],[Bin2]])=0)*(MOD(Table6[Bin9],Table4[[#This Row],[Bin3]])=0)*(MOD(Table6[Bin9],Table4[[#This Row],[Bin4]])=0)*(MOD(Table6[Bin9],Table4[[#This Row],[Bin5]])=0)*(MOD(Table6[Bin9],Table4[[#This Row],[Bin6]])=0)),SUMPRODUCT((MOD(Table6[Bin9],Table4[[#This Row],[Bin1]])=0)*(MOD(Table6[Bin9],Table4[[#This Row],[Bin2]])=0)*(MOD(Table6[Bin9],Table4[[#This Row],[Bin3]])=0)*(MOD(Table6[Bin9],Table4[[#This Row],[Bin4]])=0)*(MOD(Table6[Bin9],Table4[[#This Row],[Bin5]])=0)*(MOD(Table6[Bin9],Table4[[#This Row],[Bin6]])=0)*(MOD(Table6[Bin9],Table4[[#This Row],[Bin7]])=0)),SUMPRODUCT((MOD(Table6[Bin9],Table4[[#This Row],[Bin1]])=0)*(MOD(Table6[Bin9],Table4[[#This Row],[Bin2]])=0)*(MOD(Table6[Bin9],Table4[[#This Row],[Bin3]])=0)*(MOD(Table6[Bin9],Table4[[#This Row],[Bin4]])=0)*(MOD(Table6[Bin9],Table4[[#This Row],[Bin5]])=0)*(MOD(Table6[Bin9],Table4[[#This Row],[Bin6]])=0)*(MOD(Table6[Bin9],Table4[[#This Row],[Bin7]])=0)*(MOD(Table6[Bin9],Table4[[#This Row],[Bin8]])=0))) -> 5
B56: 3 | C56: 13 | D56: 17 | J56: =COUNTA(Table4[[#This Row],[Bin1]:[Bin8]]) -> 3 | K56: =CHOOSE(Table4[[#This Row],[Bin9]],0,SUMPRODUCT((MOD(Table6[Bin9],Table4[[#This Row],[Bin1]])=0)*(MOD(Table6[Bin9],Table4[[#This Row],[Bin2]])=0)),SUMPRODUCT((MOD(Table6[Bin9],Table4[[#This Row],[Bin1]])=0)*(MOD(Table6[Bin9],Table4[[#This Row],[Bin2]])=0)*(MOD(Table6[Bin9],Table4[[#This Row],[Bin3]])=0)),SUMPRODUCT((MOD(Table6[Bin9],Table4[[#This Row],[Bin1]])=0)*(MOD(Table6[Bin9],Table4[[#This Row],[Bin2]])=0)*(MOD(Table6[Bin9],Table4[[#This Row],[Bin3]])=0)*(MOD(Table6[Bin9],Table4[[#This Row],[Bin4]])=0)),SUMPRODUCT((MOD(Table6[Bin9],Table4[[#This Row],[Bin1]])=0)*(MOD(Table6[Bin9],Table4[[#This Row],[Bin2]])=0)*(MOD(Table6[Bin9],Table4[[#This Row],[Bin3]])=0)*(MOD(Table6[Bin9],Table4[[#This Row],[Bin4]])=0)*(MOD(Table6[Bin9],Table4[[#This Row],[Bin5]])=0)),SUMPRODUCT((MOD(Table6[Bin9],Table4[[#This Row],[Bin1]])=0)*(MOD(Table6[Bin9],Table4[[#This Row],[Bin2]])=0)*(MOD(Table6[Bin9],Table4[[#This Row],[Bin3]])=0)*(MOD(Table6[Bin9],Table4[[#This Row],[Bin4]])=0)*(MOD(Table6[Bin9],Table4[[#This Row],[Bin5]])=0)*(MOD(Table6[Bin9],Table4[[#This Row],[Bin6]])=0)),SUMPRODUCT((MOD(Table6[Bin9],Table4[[#This Row],[Bin1]])=0)*(MOD(Table6[Bin9],Table4[[#This Row],[Bin2]])=0)*(MOD(Table6[Bin9],Table4[[#This Row],[Bin3]])=0)*(MOD(Table6[Bin9],Table4[[#This Row],[Bin4]])=0)*(MOD(Table6[Bin9],Table4[[#This Row],[Bin5]])=0)*(MOD(Table6[Bin9],Table4[[#This Row],[Bin6]])=0)*(MOD(Table6[Bin9],Table4[[#This Row],[Bin7]])=0)),SUMPRODUCT((MOD(Table6[Bin9],Table4[[#This Row],[Bin1]])=0)*(MOD(Table6[Bin9],Table4[[#This Row],[Bin2]])=0)*(MOD(Table6[Bin9],Table4[[#This Row],[Bin3]])=0)*(MOD(Table6[Bin9],Table4[[#This Row],[Bin4]])=0)*(MOD(Table6[Bin9],Table4[[#This Row],[Bin5]])=0)*(MOD(Table6[Bin9],Table4[[#This Row],[Bin6]])=0)*(MOD(Table6[Bin9],Table4[[#This Row],[Bin7]])=0)*(MOD(Table6[Bin9],Table4[[#This Row],[Bin8]])=0))) -> 2
B57: 5 | C57: 13 | D57: 17 | J57: =COUNTA(Table4[[#This Row],[Bin1]:[Bin8]]) -> 3 | K57: =CHOOSE(Table4[[#This Row],[Bin9]],0,SUMPRODUCT((MOD(Table6[Bin9],Table4[[#This Row],[Bin1]])=0)*(MOD(Table6[Bin9],Table4[[#This Row],[Bin2]])=0)),SUMPRODUCT((MOD(Table6[Bin9],Table4[[#This Row],[Bin1]])=0)*(MOD(Table6[Bin9],Table4[[#This Row],[Bin2]])=0)*(MOD(Table6[Bin9],Table4[[#This Row],[Bin3]])=0)),SUMPRODUCT((MOD(Table6[Bin9],Table4[[#This Row],[Bin1]])=0)*(MOD(Table6[Bin9],Table4[[#This Row],[Bin2]])=0)*(MOD(Table6[Bin9],Table4[[#This Row],[Bin3]])=0)*(MOD(Table6[Bin9],Table4[[#This Row],[Bin4]])=0)),SUMPRODUCT((MOD(Table6[Bin9],Table4[[#This Row],[Bin1]])=0)*(MOD(Table6[Bin9],Table4[[#This Row],[Bin2]])=0)*(MOD(Table6[Bin9],Table4[[#This Row],[Bin3]])=0)*(MOD(Table6[Bin9],Table4[[#This Row],[Bin4]])=0)*(MOD(Table6[Bin9],Table4[[#This Row],[Bin5]])=0)),SUMPRODUCT((MOD(Table6[Bin9],Table4[[#This Row],[Bin1]])=0)*(MOD(Table6[Bin9],Table4[[#This Row],[Bin2]])=0)*(MOD(Table6[Bin9],Table4[[#This Row],[Bin3]])=0)*(MOD(Table6[Bin9],Table4[[#This Row],[Bin4]])=0)*(MOD(Table6[Bin9],Table4[[#This Row],[Bin5]])=0)*(MOD(Table6[Bin9],Table4[[#This Row],[Bin6]])=0)),SUMPRODUCT((MOD(Table6[Bin9],Table4[[#This Row],[Bin1]])=0)*(MOD(Table6[Bin9],Table4[[#This Row],[Bin2]])=0)*(MOD(Table6[Bin9],Table4[[#This Row],[Bin3]])=0)*(MOD(Table6[Bin9],Table4[[#This Row],[Bin4]])=0)*(MOD(Table6[Bin9],Table4[[#This Row],[Bin5]])=0)*(MOD(Table6[Bin9],Table4[[#This Row],[Bin6]])=0)*(MOD(Table6[Bin9],Table4[[#This Row],[Bin7]])=0)),SUMPRODUCT((MOD(Table6[Bin9],Table4[[#This Row],[Bin1]])=0)*(MOD(Table6[Bin9],Table4[[#This Row],[Bin2]])=0)*(MOD(Table6[Bin9],Table4[[#This Row],[Bin3]])=0)*(MOD(Table6[Bin9],Table4[[#This Row],[Bin4]])=0)*(MOD(Table6[Bin9],Table4[[#This Row],[Bin5]])=0)*(MOD(Table6[Bin9],Table4[[#This Row],[Bin6]])=0)*(MOD(Table6[Bin9],Table4[[#This Row],[Bin7]])=0)*(MOD(Table6[Bin9],Table4[[#This Row],[Bin8]])=0))) -> 2
B58: 7 | C58: 13 | D58: 17 | J58: =COUNTA(Table4[[#This Row],[Bin1]:[Bin8]]) -> 3 | K58: =CHOOSE(Table4[[#This Row],[Bin9]],0,SUMPRODUCT((MOD(Table6[Bin9],Table4[[#This Row],[Bin1]])=0)*(MOD(Table6[Bin9],Table4[[#This Row],[Bin2]])=0)),SUMPRODUCT((MOD(Table6[Bin9],Table4[[#This Row],[Bin1]])=0)*(MOD(Table6[Bin9],Table4[[#This Row],[Bin2]])=0)*(MOD(Table6[Bin9],Table4[[#This Row],[Bin3]])=0)),SUMPRODUCT((MOD(Table6[Bin9],Table4[[#This Row],[Bin1]])=0)*(MOD(Table6[Bin9],Table4[[#This Row],[Bin2]])=0)*(MOD(Table6[Bin9],Table4[[#This Row],[Bin3]])=0)*(MOD(Table6[Bin9],Table4[[#This Row],[Bin4]])=0)),SUMPRODUCT((MOD(Table6[Bin9],Table4[[#This Row],[Bin1]])=0)*(MOD(Table6[Bin9],Table4[[#This Row],[Bin2]])=0)*(MOD(Table6[Bin9],Table4[[#This Row],[Bin3]])=0)*(MOD(Table6[Bin9],Table4[[#This Row],[Bin4]])=0)*(MOD(Table6[Bin9],Table4[[#This Row],[Bin5]])=0)),SUMPRODUCT((MOD(Table6[Bin9],Table4[[#This Row],[Bin1]])=0)*(MOD(Table6[Bin9],Table4[[#This Row],[Bin2]])=0)*(MOD(Table6[Bin9],Table4[[#This Row],[Bin3]])=0)*(MOD(Table6[Bin9],Table4[[#This Row],[Bin4]])=0)*(MOD(Table6[Bin9],Table4[[#This Row],[Bin5]])=0)*(MOD(Table6[Bin9],Table4[[#This Row],[Bin6]])=0)),SUMPRODUCT((MOD(Table6[Bin9],Table4[[#This Row],[Bin1]])=0)*(MOD(Table6[Bin9],Table4[[#This Row],[Bin2]])=0)*(MOD(Table6[Bin9],Table4[[#This Row],[Bin3]])=0)*(MOD(Table6[Bin9],Table4[[#This Row],[Bin4]])=0)*(MOD(Table6[Bin9],Table4[[#This Row],[Bin5]])=0)*(MOD(Table6[Bin9],Table4[[#This Row],[Bin6]])=0)*(MOD(Table6[Bin9],Table4[[#This Row],[Bin7]])=0)),SUMPRODUCT((MOD(Table6[Bin9],Table4[[#This Row],[Bin1]])=0)*(MOD(Table6[Bin9],Table4[[#This Row],[Bin2]])=0)*(MOD(Table6[Bin9],Table4[[#This Row],[Bin3]])=0)*(MOD(Table6[Bin9],Table4[[#This Row],[Bin4]])=0)*(MOD(Table6[Bin9],Table4[[#This Row],[Bin5]])=0)*(MOD(Table6[Bin9],Table4[[#This Row],[Bin6]])=0)*(MOD(Table6[Bin9],Table4[[#This Row],[Bin7]])=0)*(MOD(Table6[Bin9],Table4[[#This Row],[Bin8]])=0))) -> 3
B59: 11 | C59: 13 | D59: 17 | J59: =COUNTA(Table4[[#This Row],[Bin1]:[Bin8]]) -> 3 | K59: =CHOOSE(Table4[[#This Row],[Bin9]],0,SUMPRODUCT((MOD(Table6[Bin9],Table4[[#This Row],[Bin1]])=0)*(MOD(Table6[Bin9],Table4[[#This Row],[Bin2]])=0)),SUMPRODUCT((MOD(Table6[Bin9],Table4[[#This Row],[Bin1]])=0)*(MOD(Table6[Bin9],Table4[[#This Row],[Bin2]])=0)*(MOD(Table6[Bin9],Table4[[#This Row],[Bin3]])=0)),SUMPRODUCT((MOD(Table6[Bin9],Table4[[#This Row],[Bin1]])=0)*(MOD(Table6[Bin9],Table4[[#This Row],[Bin2]])=0)*(MOD(Table6[Bin9],Table4[[#This Row],[Bin3]])=0)*(MOD(Table6[Bin9],Table4[[#This Row],[Bin4]])=0)),SUMPRODUCT((MOD(Table6[Bin9],Table4[[#This Row],[Bin1]])=0)*(MOD(Table6[Bin9],Table4[[#This Row],[Bin2]])=0)*(MOD(Table6[Bin9],Table4[[#This Row],[Bin3]])=0)*(MOD(Table6[Bin9],Table4[[#This Row],[Bin4]])=0)*(MOD(Table6[Bin9],Table4[[#This Row],[Bin5]])=0)),SUMPRODUCT((MOD(Table6[Bin9],Table4[[#This Row],[Bin1]])=0)*(MOD(Table6[Bin9],Table4[[#This Row],[Bin2]])=0)*(MOD(Table6[Bin9],Table4[[#This Row],[Bin3]])=0)*(MOD(Table6[Bin9],Table4[[#This Row],[Bin4]])=0)*(MOD(Table6[Bin9],Table4[[#This Row],[Bin5]])=0)*(MOD(Table6[Bin9],Table4[[#This Row],[Bin6]])=0)),SUMPRODUCT((MOD(Table6[Bin9],Table4[[#This Row],[Bin1]])=0)*(MOD(Table6[Bin9],Table4[[#This Row],[Bin2]])=0)*(MOD(Table6[Bin9],Table4[[#This Row],[Bin3]])=0)*(MOD(Table6[Bin9],Table4[[#This Row],[Bin4]])=0)*(MOD(Table6[Bin9],Table4[[#This Row],[Bin5]])=0)*(MOD(Table6[Bin9],Table4[[#This Row],[Bin6]])=0)*(MOD(Table6[Bin9],Table4[[#This Row],[Bin7]])=0)),SUMPRODUCT((MOD(Table6[Bin9],Table4[[#This Row],[Bin1]])=0)*(MOD(Table6[Bin9],Table4[[#This Row],[Bin2]])=0)*(MOD(Table6[Bin9],Table4[[#This Row],[Bin3]])=0)*(MOD(Table6[Bin9],Table4[[#This Row],[Bin4]])=0)*(MOD(Table6[Bin9],Table4[[#This Row],[Bin5]])=0)*(MOD(Table6[Bin9],Table4[[#This Row],[Bin6]])=0)*(MOD(Table6[Bin9],Table4[[#This Row],[Bin7]])=0)*(MOD(Table6[Bin9],Table4[[#This Row],[Bin8]])=0))) -> 4
B60: 3 | C60: 5 | D60: 19 | J60: =COUNTA(Table4[[#This Row],[Bin1]:[Bin8]]) -> 3 | K60: =CHOOSE(Table4[[#This Row],[Bin9]],0,SUMPRODUCT((MOD(Table6[Bin9],Table4[[#This Row],[Bin1]])=0)*(MOD(Table6[Bin9],Table4[[#This Row],[Bin2]])=0)),SUMPRODUCT((MOD(Table6[Bin9],Table4[[#This Row],[Bin1]])=0)*(MOD(Table6[Bin9],Table4[[#This Row],[Bin2]])=0)*(MOD(Table6[Bin9],Table4[[#This Row],[Bin3]])=0)),SUMPRODUCT((MOD(Table6[Bin9],Table4[[#This Row],[Bin1]])=0)*(MOD(Table6[Bin9],Table4[[#This Row],[Bin2]])=0)*(MOD(Table6[Bin9],Table4[[#This Row],[Bin3]])=0)*(MOD(Table6[Bin9],Table4[[#This Row],[Bin4]])=0)),SUMPRODUCT((MOD(Table6[Bin9],Table4[[#This Row],[Bin1]])=0)*(MOD(Table6[Bin9],Table4[[#This Row],[Bin2]])=0)*(MOD(Table6[Bin9],Table4[[#This Row],[Bin3]])=0)*(MOD(Table6[Bin9],Table4[[#This Row],[Bin4]])=0)*(MOD(Table6[Bin9],Table4[[#This Row],[Bin5]])=0)),SUMPRODUCT((MOD(Table6[Bin9],Table4[[#This Row],[Bin1]])=0)*(MOD(Table6[Bin9],Table4[[#This Row],[Bin2]])=0)*(MOD(Table6[Bin9],Table4[[#This Row],[Bin3]])=0)*(MOD(Table6[Bin9],Table4[[#This Row],[Bin4]])=0)*(MOD(Table6[Bin9],Table4[[#This Row],[Bin5]])=0)*(MOD(Table6[Bin9],Table4[[#This Row],[Bin6]])=0)),SUMPRODUCT((MOD(Table6[Bin9],Table4[[#This Row],[Bin1]])=0)*(MOD(Table6[Bin9],Table4[[#This Row],[Bin2]])=0)*(MOD(Table6[Bin9],Table4[[#This Row],[Bin3]])=0)*(MOD(Table6[Bin9],Table4[[#This Row],[Bin4]])=0)*(MOD(Table6[Bin9],Table4[[#This Row],[Bin5]])=0)*(MOD(Table6[Bin9],Table4[[#This Row],[Bin6]])=0)*(MOD(Table6[Bin9],Table4[[#This Row],[Bin7]])=0)),SUMPRODUCT((MOD(Table6[Bin9],Table4[[#This Row],[Bin1]])=0)*(MOD(Table6[Bin9],Table4[[#This Row],[Bin2]])=0)*(MOD(Table6[Bin9],Table4[[#This Row],[Bin3]])=0)*(MOD(Table6[Bin9],Table4[[#This Row],[Bin4]])=0)*(MOD(Table6[Bin9],Table4[[#This Row],[Bin5]])=0)*(MOD(Table6[Bin9],Table4[[#This Row],[Bin6]])=0)*(MOD(Table6[Bin9],Table4[[#This Row],[Bin7]])=0)*(MOD(Table6[Bin9],Table4[[#This Row],[Bin8]])=0))) -> 2
B61: 3 | C61: 7 | D61: 19 | J61: =COUNTA(Table4[[#This Row],[Bin1]:[Bin8]]) -> 3 | K61: =CHOOSE(Table4[[#This Row],[Bin9]],0,SUMPRODUCT((MOD(Table6[Bin9],Table4[[#This Row],[Bin1]])=0)*(MOD(Table6[Bin9],Table4[[#This Row],[Bin2]])=0)),SUMPRODUCT((MOD(Table6[Bin9],Table4[[#This Row],[Bin1]])=0)*(MOD(Table6[Bin9],Table4[[#This Row],[Bin2]])=0)*(MOD(Table6[Bin9],Table4[[#This Row],[Bin3]])=0)),SUMPRODUCT((MOD(Table6[Bin9],Table4[[#This Row],[Bin1]])=0)*(MOD(Table6[Bin9],Table4[[#This Row],[Bin2]])=0)*(MOD(Table6[Bin9],Table4[[#This Row],[Bin3]])=0)*(MOD(Table6[Bin9],Table4[[#This Row],[Bin4]])=0)),SUMPRODUCT((MOD(Table6[Bin9],Table4[[#This Row],[Bin1]])=0)*(MOD(Table6[Bin9],Table4[[#This Row],[Bin2]])=0)*(MOD(Table6[Bin9],Table4[[#This Row],[Bin3]])=0)*(MOD(Table6[Bin9],Table4[[#This Row],[Bin4]])=0)*(MOD(Table6[Bin9],Table4[[#This Row],[Bin5]])=0)),SUMPRODUCT((MOD(Table6[Bin9],Table4[[#This Row],[Bin1]])=0)*(MOD(Table6[Bin9],Table4[[#This Row],[Bin2]])=0)*(MOD(Table6[Bin9],Table4[[#This Row],[Bin3]])=0)*(MOD(Table6[Bin9],Table4[[#This Row],[Bin4]])=0)*(MOD(Table6[Bin9],Table4[[#This Row],[Bin5]])=0)*(MOD(Table6[Bin9],Table4[[#This Row],[Bin6]])=0)),SUMPRODUCT((MOD(Table6[Bin9],Table4[[#This Row],[Bin1]])=0)*(MOD(Table6[Bin9],Table4[[#This Row],[Bin2]])=0)*(MOD(Table6[Bin9],Table4[[#This Row],[Bin3]])=0)*(MOD(Table6[Bin9],Table4[[#This Row],[Bin4]])=0)*(MOD(Table6[Bin9],Table4[[#This Row],[Bin5]])=0)*(MOD(Table6[Bin9],Table4[[#This Row],[Bin6]])=0)*(MOD(Table6[Bin9],Table4[[#This Row],[Bin7]])=0)),SUMPRODUCT((MOD(Table6[Bin9],Table4[[#This Row],[Bin1]])=0)*(MOD(Table6[Bin9],Table4[[#This Row],[Bin2]])=0)*(MOD(Table6[Bin9],Table4[[#This Row],[Bin3]])=0)*(MOD(Table6[Bin9],Table4[[#This Row],[Bin4]])=0)*(MOD(Table6[Bin9],Table4[[#This Row],[Bin5]])=0)*(MOD(Table6[Bin9],Table4[[#This Row],[Bin6]])=0)*(MOD(Table6[Bin9],Table4[[#This Row],[Bin7]])=0)*(MOD(Table6[Bin9],Table4[[#This Row],[Bin8]])=0))) -> 4
B62: 5 | C62: 7 | D62: 19 | J62: =COUNTA(Table4[[#This Row],[Bin1]:[Bin8]]) -> 3 | K62: =CHOOSE(Table4[[#This Row],[Bin9]],0,SUMPRODUCT((MOD(Table6[Bin9],Table4[[#This Row],[Bin1]])=0)*(MOD(Table6[Bin9],Table4[[#This Row],[Bin2]])=0)),SUMPRODUCT((MOD(Table6[Bin9],Table4[[#This Row],[Bin1]])=0)*(MOD(Table6[Bin9],Table4[[#This Row],[Bin2]])=0)*(MOD(Table6[Bin9],Table4[[#This Row],[Bin3]])=0)),SUMPRODUCT((MOD(Table6[Bin9],Table4[[#This Row],[Bin1]])=0)*(MOD(Table6[Bin9],Table4[[#This Row],[Bin2]])=0)*(MOD(Table6[Bin9],Table4[[#This Row],[Bin3]])=0)*(MOD(Table6[Bin9],Table4[[#This Row],[Bin4]])=0)),SUMPRODUCT((MOD(Table6[Bin9],Table4[[#This Row],[Bin1]])=0)*(MOD(Table6[Bin9],Table4[[#This Row],[Bin2]])=0)*(MOD(Table6[Bin9],Table4[[#This Row],[Bin3]])=0)*(MOD(Table6[Bin9],Table4[[#This Row],[Bin4]])=0)*(MOD(Table6[Bin9],Table4[[#This Row],[Bin5]])=0)),SUMPRODUCT((MOD(Table6[Bin9],Table4[[#This Row],[Bin1]])=0)*(MOD(Table6[Bin9],Table4[[#This Row],[Bin2]])=0)*(MOD(Table6[Bin9],Table4[[#This Row],[Bin3]])=0)*(MOD(Table6[Bin9],Table4[[#This Row],[Bin4]])=0)*(MOD(Table6[Bin9],Table4[[#This Row],[Bin5]])=0)*(MOD(Table6[Bin9],Table4[[#This Row],[Bin6]])=0)),SUMPRODUCT((MOD(Table6[Bin9],Table4[[#This Row],[Bin1]])=0)*(MOD(Table6[Bin9],Table4[[#This Row],[Bin2]])=0)*(MOD(Table6[Bin9],Table4[[#This Row],[Bin3]])=0)*(MOD(Table6[Bin9],Table4[[#This Row],[Bin4]])=0)*(MOD(Table6[Bin9],Table4[[#This Row],[Bin5]])=0)*(MOD(Table6[Bin9],Table4[[#This Row],[Bin6]])=0)*(MOD(Table6[Bin9],Table4[[#This Row],[Bin7]])=0)),SUMPRODUCT((MOD(Table6[Bin9],Table4[[#This Row],[Bin1]])=0)*(MOD(Table6[Bin9],Table4[[#This Row],[Bin2]])=0)*(MOD(Table6[Bin9],Table4[[#This Row],[Bin3]])=0)*(MOD(Table6[Bin9],Table4[[#This Row],[Bin4]])=0)*(MOD(Table6[Bin9],Table4[[#This Row],[Bin5]])=0)*(MOD(Table6[Bin9],Table4[[#This Row],[Bin6]])=0)*(MOD(Table6[Bin9],Table4[[#This Row],[Bin7]])=0)*(MOD(Table6[Bin9],Table4[[#This Row],[Bin8]])=0))) -> 4
B63: 3 | C63: 11 | D63: 19 | J63: =COUNTA(Table4[[#This Row],[Bin1]:[Bin8]]) -> 3 | K63: =CHOOSE(Table4[[#This Row],[Bin9]],0,SUMPRODUCT((MOD(Table6[Bin9],Table4[[#This Row],[Bin1]])=0)*(MOD(Table6[Bin9],Table4[[#This Row],[Bin2]])=0)),SUMPRODUCT((MOD(Table6[Bin9],Table4[[#This Row],[Bin1]])=0)*(MOD(Table6[Bin9],Table4[[#This Row],[Bin2]])=0)*(MOD(Table6[Bin9],Table4[[#This Row],[Bin3]])=0)),SUMPRODUCT((MOD(Table6[Bin9],Table4[[#This Row],[Bin1]])=0)*(MOD(Table6[Bin9],Table4[[#This Row],[Bin2]])=0)*(MOD(Table6[Bin9],Table4[[#This Row],[Bin3]])=0)*(MOD(Table6[Bin9],Table4[[#This Row],[Bin4]])=0)),SUMPRODUCT((MOD(Table6[Bin9],Table4[[#This Row],[Bin1]])=0)*(MOD(Table6[Bin9],Table4[[#This Row],[Bin2]])=0)*(MOD(Table6[Bin9],Table4[[#This Row],[Bin3]])=0)*(MOD(Table6[Bin9],Table4[[#This Row],[Bin4]])=0)*(MOD(Table6[Bin9],Table4[[#This Row],[Bin5]])=0)),SUMPRODUCT((MOD(Table6[Bin9],Table4[[#This Row],[Bin1]])=0)*(MOD(Table6[Bin9],Table4[[#This Row],[Bin2]])=0)*(MOD(Table6[Bin9],Table4[[#This Row],[Bin3]])=0)*(MOD(Table6[Bin9],Table4[[#This Row],[Bin4]])=0)*(MOD(Table6[Bin9],Table4[[#This Row],[Bin5]])=0)*(MOD(Table6[Bin9],Table4[[#This Row],[Bin6]])=0)),SUMPRODUCT((MOD(Table6[Bin9],Table4[[#This Row],[Bin1]])=0)*(MOD(Table6[Bin9],Table4[[#This Row],[Bin2]])=0)*(MOD(Table6[Bin9],Table4[[#This Row],[Bin3]])=0)*(MOD(Table6[Bin9],Table4[[#This Row],[Bin4]])=0)*(MOD(Table6[Bin9],Table4[[#This Row],[Bin5]])=0)*(MOD(Table6[Bin9],Table4[[#This Row],[Bin6]])=0)*(MOD(Table6[Bin9],Table4[[#This Row],[Bin7]])=0)),SUMPRODUCT((MOD(Table6[Bin9],Table4[[#This Row],[Bin1]])=0)*(MOD(Table6[Bin9],Table4[[#This Row],[Bin2]])=0)*(MOD(Table6[Bin9],Table4[[#This Row],[Bin3]])=0)*(MOD(Table6[Bin9],Table4[[#This Row],[Bin4]])=0)*(MOD(Table6[Bin9],Table4[[#This Row],[Bin5]])=0)*(MOD(Table6[Bin9],Table4[[#This Row],[Bin6]])=0)*(MOD(Table6[Bin9],Table4[[#This Row],[Bin7]])=0)*(MOD(Table6[Bin9],Table4[[#This Row],[Bin8]])=0))) -> 3
B64: 5 | C64: 11 | D64: 19 | J64: =COUNTA(Table4[[#This Row],[Bin1]:[Bin8]]) -> 3 | K64: =CHOOSE(Table4[[#This Row],[Bin9]],0,SUMPRODUCT((MOD(Table6[Bin9],Table4[[#This Row],[Bin1]])=0)*(MOD(Table6[Bin9],Table4[[#This Row],[Bin2]])=0)),SUMPRODUCT((MOD(Table6[Bin9],Table4[[#This Row],[Bin1]])=0)*(MOD(Table6[Bin9],Table4[[#This Row],[Bin2]])=0)*(MOD(Table6[Bin9],Table4[[#This Row],[Bin3]])=0)),SUMPRODUCT((MOD(Table6[Bin9],Table4[[#This Row],[Bin1]])=0)*(MOD(Table6[Bin9],Table4[[#This Row],[Bin2]])=0)*(MOD(Table6[Bin9],Table4[[#This Row],[Bin3]])=0)*(MOD(Table6[Bin9],Table4[[#This Row],[Bin4]])=0)),SUMPRODUCT((MOD(Table6[Bin9],Table4[[#This Row],[Bin1]])=0)*(MOD(Table6[Bin9],Table4[[#This Row],[Bin2]])=0)*(MOD(Table6[Bin9],Table4[[#This Row],[Bin3]])=0)*(MOD(Table6[Bin9],Table4[[#This Row],[Bin4]])=0)*(MOD(Table6[Bin9],Table4[[#This Row],[Bin5]])=0)),SUMPRODUCT((MOD(Table6[Bin9],Table4[[#This Row],[Bin1]])=0)*(MOD(Table6[Bin9],Table4[[#This Row],[Bin2]])=0)*(MOD(Table6[Bin9],Table4[[#This Row],[Bin3]])=0)*(MOD(Table6[Bin9],Table4[[#This Row],[Bin4]])=0)*(MOD(Table6[Bin9],Table4[[#This Row],[Bin5]])=0)*(MOD(Table6[Bin9],Table4[[#This Row],[Bin6]])=0)),SUMPRODUCT((MOD(Table6[Bin9],Table4[[#This Row],[Bin1]])=0)*(MOD(Table6[Bin9],Table4[[#This Row],[Bin2]])=0)*(MOD(Table6[Bin9],Table4[[#This Row],[Bin3]])=0)*(MOD(Table6[Bin9],Table4[[#This Row],[Bin4]])=0)*(MOD(Table6[Bin9],Table4[[#This Row],[Bin5]])=0)*(MOD(Table6[Bin9],Table4[[#This Row],[Bin6]])=0)*(MOD(Table6[Bin9],Table4[[#This Row],[Bin7]])=0)),SUMPRODUCT((MOD(Table6[Bin9],Table4[[#This Row],[Bin1]])=0)*(MOD(Table6[Bin9],Table4[[#This Row],[Bin2]])=0)*(MOD(Table6[Bin9],Table4[[#This Row],[Bin3]])=0)*(MOD(Table6[Bin9],Table4[[#This Row],[Bin4]])=0)*(MOD(Table6[Bin9],Table4[[#This Row],[Bin5]])=0)*(MOD(Table6[Bin9],Table4[[#This Row],[Bin6]])=0)*(MOD(Table6[Bin9],Table4[[#This Row],[Bin7]])=0)*(MOD(Table6[Bin9],Table4[[#This Row],[Bin8]])=0))) -> 5
B65: 7 | C65: 11 | D65: 19 | J65: =COUNTA(Table4[[#This Row],[Bin1]:[Bin8]]) -> 3 | K65: =CHOOSE(Table4[[#This Row],[Bin9]],0,SUMPRODUCT((MOD(Table6[Bin9],Table4[[#This Row],[Bin1]])=0)*(MOD(Table6[Bin9],Table4[[#This Row],[Bin2]])=0)),SUMPRODUCT((MOD(Table6[Bin9],Table4[[#This Row],[Bin1]])=0)*(MOD(Table6[Bin9],Table4[[#This Row],[Bin2]])=0)*(MOD(Table6[Bin9],Table4[[#This Row],[Bin3]])=0)),SUMPRODUCT((MOD(Table6[Bin9],Table4[[#This Row],[Bin1]])=0)*(MOD(Table6[Bin9],Table4[[#This Row],[Bin2]])=0)*(MOD(Table6[Bin9],Table4[[#This Row],[Bin3]])=0)*(MOD(Table6[Bin9],Table4[[#This Row],[Bin4]])=0)),SUMPRODUCT((MOD(Table6[Bin9],Table4[[#This Row],[Bin1]])=0)*(MOD(Table6[Bin9],Table4[[#This Row],[Bin2]])=0)*(MOD(Table6[Bin9],Table4[[#This Row],[Bin3]])=0)*(MOD(Table6[Bin9],Table4[[#This Row],[Bin4]])=0)*(MOD(Table6[Bin9],Table4[[#This Row],[Bin5]])=0)),SUMPRODUCT((MOD(Table6[Bin9],Table4[[#This Row],[Bin1]])=0)*(MOD(Table6[Bin9],Table4[[#This Row],[Bin2]])=0)*(MOD(Table6[Bin9],Table4[[#This Row],[Bin3]])=0)*(MOD(Table6[Bin9],Table4[[#This Row],[Bin4]])=0)*(MOD(Table6[Bin9],Table4[[#This Row],[Bin5]])=0)*(MOD(Table6[Bin9],Table4[[#This Row],[Bin6]])=0)),SUMPRODUCT((MOD(Table6[Bin9],Table4[[#This Row],[Bin1]])=0)*(MOD(Table6[Bin9],Table4[[#This Row],[Bin2]])=0)*(MOD(Table6[Bin9],Table4[[#This Row],[Bin3]])=0)*(MOD(Table6[Bin9],Table4[[#This Row],[Bin4]])=0)*(MOD(Table6[Bin9],Table4[[#This Row],[Bin5]])=0)*(MOD(Table6[Bin9],Table4[[#This Row],[Bin6]])=0)*(MOD(Table6[Bin9],Table4[[#This Row],[Bin7]])=0)),SUMPRODUCT((MOD(Table6[Bin9],Table4[[#This Row],[Bin1]])=0)*(MOD(Table6[Bin9],Table4[[#This Row],[Bin2]])=0)*(MOD(Table6[Bin9],Table4[[#This Row],[Bin3]])=0)*(MOD(Table6[Bin9],Table4[[#This Row],[Bin4]])=0)*(MOD(Table6[Bin9],Table4[[#This Row],[Bin5]])=0)*(MOD(Table6[Bin9],Table4[[#This Row],[Bin6]])=0)*(MOD(Table6[Bin9],Table4[[#This Row],[Bin7]])=0)*(MOD(Table6[Bin9],Table4[[#This Row],[Bin8]])=0))) -> 6
B66: 3 | C66: 13 | D66: 19 | J66: =COUNTA(Table4[[#This Row],[Bin1]:[Bin8]]) -> 3 | K66: =CHOOSE(Table4[[#This Row],[Bin9]],0,SUMPRODUCT((MOD(Table6[Bin9],Table4[[#This Row],[Bin1]])=0)*(MOD(Table6[Bin9],Table4[[#This Row],[Bin2]])=0)),SUMPRODUCT((MOD(Table6[Bin9],Table4[[#This Row],[Bin1]])=0)*(MOD(Table6[Bin9],Table4[[#This Row],[Bin2]])=0)*(MOD(Table6[Bin9],Table4[[#This Row],[Bin3]])=0)),SUMPRODUCT((MOD(Table6[Bin9],Table4[[#This Row],[Bin1]])=0)*(MOD(Table6[Bin9],Table4[[#This Row],[Bin2]])=0)*(MOD(Table6[Bin9],Table4[[#This Row],[Bin3]])=0)*(MOD(Table6[Bin9],Table4[[#This Row],[Bin4]])=0)),SUMPRODUCT((MOD(Table6[Bin9],Table4[[#This Row],[Bin1]])=0)*(MOD(Table6[Bin9],Table4[[#This Row],[Bin2]])=0)*(MOD(Table6[Bin9],Table4[[#This Row],[Bin3]])=0)*(MOD(Table6[Bin9],Table4[[#This Row],[Bin4]])=0)*(MOD(Table6[Bin9],Table4[[#This Row],[Bin5]])=0)),SUMPRODUCT((MOD(Table6[Bin9],Table4[[#This Row],[Bin1]])=0)*(MOD(Table6[Bin9],Table4[[#This Row],[Bin2]])=0)*(MOD(Table6[Bin9],Table4[[#This Row],[Bin3]])=0)*(MOD(Table6[Bin9],Table4[[#This Row],[Bin4]])=0)*(MOD(Table6[Bin9],Table4[[#This Row],[Bin5]])=0)*(MOD(Table6[Bin9],Table4[[#This Row],[Bin6]])=0)),SUMPRODUCT((MOD(Table6[Bin9],Table4[[#This Row],[Bin1]])=0)*(MOD(Table6[Bin9],Table4[[#This Row],[Bin2]])=0)*(MOD(Table6[Bin9],Table4[[#This Row],[Bin3]])=0)*(MOD(Table6[Bin9],Table4[[#This Row],[Bin4]])=0)*(MOD(Table6[Bin9],Table4[[#This Row],[Bin5]])=0)*(MOD(Table6[Bin9],Table4[[#This Row],[Bin6]])=0)*(MOD(Table6[Bin9],Table4[[#This Row],[Bin7]])=0)),SUMPRODUCT((MOD(Table6[Bin9],Table4[[#This Row],[Bin1]])=0)*(MOD(Table6[Bin9],Table4[[#This Row],[Bin2]])=0)*(MOD(Table6[Bin9],Table4[[#This Row],[Bin3]])=0)*(MOD(Table6[Bin9],Table4[[#This Row],[Bin4]])=0)*(MOD(Table6[Bin9],Table4[[#This Row],[Bin5]])=0)*(MOD(Table6[Bin9],Table4[[#This Row],[Bin6]])=0)*(MOD(Table6[Bin9],Table4[[#This Row],[Bin7]])=0)*(MOD(Table6[Bin9],Table4[[#This Row],[Bin8]])=0))) -> 3
B67: 5 | C67: 13 | D67: 19 | J67: =COUNTA(Table4[[#This Row],[Bin1]:[Bin8]]) -> 3 | K67: =CHOOSE(Table4[[#This Row],[Bin9]],0,SUMPRODUCT((MOD(Table6[Bin9],Table4[[#This Row],[Bin1]])=0)*(MOD(Table6[Bin9],Table4[[#This Row],[Bin2]])=0)),SUMPRODUCT((MOD(Table6[Bin9],Table4[[#This Row],[Bin1]])=0)*(MOD(Table6[Bin9],Table4[[#This Row],[Bin2]])=0)*(MOD(Table6[Bin9],Table4[[#This Row],[Bin3]])=0)),SUMPRODUCT((MOD(Table6[Bin9],Table4[[#This Row],[Bin1]])=0)*(MOD(Table6[Bin9],Table4[[#This Row],[Bin2]])=0)*(MOD(Table6[Bin9],Table4[[#This Row],[Bin3]])=0)*(MOD(Table6[Bin9],Table4[[#This Row],[Bin4]])=0)),SUMPRODUCT((MOD(Table6[Bin9],Table4[[#This Row],[Bin1]])=0)*(MOD(Table6[Bin9],Table4[[#This Row],[Bin2]])=0)*(MOD(Table6[Bin9],Table4[[#This Row],[Bin3]])=0)*(MOD(Table6[Bin9],Table4[[#This Row],[Bin4]])=0)*(MOD(Table6[Bin9],Table4[[#This Row],[Bin5]])=0)),SUMPRODUCT((MOD(Table6[Bin9],Table4[[#This Row],[Bin1]])=0)*(MOD(Table6[Bin9],Table4[[#This Row],[Bin2]])=0)*(MOD(Table6[Bin9],Table4[[#This Row],[Bin3]])=0)*(MOD(Table6[Bin9],Table4[[#This Row],[Bin4]])=0)*(MOD(Table6[Bin9],Table4[[#This Row],[Bin5]])=0)*(MOD(Table6[Bin9],Table4[[#This Row],[Bin6]])=0)),SUMPRODUCT((MOD(Table6[Bin9],Table4[[#This Row],[Bin1]])=0)*(MOD(Table6[Bin9],Table4[[#This Row],[Bin2]])=0)*(MOD(Table6[Bin9],Table4[[#This Row],[Bin3]])=0)*(MOD(Table6[Bin9],Table4[[#This Row],[Bin4]])=0)*(MOD(Table6[Bin9],Table4[[#This Row],[Bin5]])=0)*(MOD(Table6[Bin9],Table4[[#This Row],[Bin6]])=0)*(MOD(Table6[Bin9],Table4[[#This Row],[Bin7]])=0)),SUMPRODUCT((MOD(Table6[Bin9],Table4[[#This Row],[Bin1]])=0)*(MOD(Table6[Bin9],Table4[[#This Row],[Bin2]])=0)*(MOD(Table6[Bin9],Table4[[#This Row],[Bin3]])=0)*(MOD(Table6[Bin9],Table4[[#This Row],[Bin4]])=0)*(MOD(Table6[Bin9],Table4[[#This Row],[Bin5]])=0)*(MOD(Table6[Bin9],Table4[[#This Row],[Bin6]])=0)*(MOD(Table6[Bin9],Table4[[#This Row],[Bin7]])=0)*(MOD(Table6[Bin9],Table4[[#This Row],[Bin8]])=0))) -> 2
B68: 7 | C68: 13 | D68: 19 | J68: =COUNTA(Table4[[#This Row],[Bin1]:[Bin8]]) -> 3 | K68: =CHOOSE(Table4[[#This Row],[Bin9]],0,SUMPRODUCT((MOD(Table6[Bin9],Table4[[#This Row],[Bin1]])=0)*(MOD(Table6[Bin9],Table4[[#This Row],[Bin2]])=0)),SUMPRODUCT((MOD(Table6[Bin9],Table4[[#This Row],[Bin1]])=0)*(MOD(Table6[Bin9],Table4[[#This Row],[Bin2]])=0)*(MOD(Table6[Bin9],Table4[[#This Row],[Bin3]])=0)),SUMPRODUCT((MOD(Table6[Bin9],Table4[[#This Row],[Bin1]])=0)*(MOD(Table6[Bin9],Table4[[#This Row],[Bin2]])=0)*(MOD(Table6[Bin9],Table4[[#This Row],[Bin3]])=0)*(MOD(Table6[Bin9],Table4[[#This Row],[Bin4]])=0)),SUMPRODUCT((MOD(Table6[Bin9],Table4[[#This Row],[Bin1]])=0)*(MOD(Table6[Bin9],Table4[[#This Row],[Bin2]])=0)*(MOD(Table6[Bin9],Table4[[#This Row],[Bin3]])=0)*(MOD(Table6[Bin9],Table4[[#This Row],[Bin4]])=0)*(MOD(Table6[Bin9],Table4[[#This Row],[Bin5]])=0)),SUMPRODUCT((MOD(Table6[Bin9],Table4[[#This Row],[Bin1]])=0)*(MOD(Table6[Bin9],Table4[[#This Row],[Bin2]])=0)*(MOD(Table6[Bin9],Table4[[#This Row],[Bin3]])=0)*(MOD(Table6[Bin9],Table4[[#This Row],[Bin4]])=0)*(MOD(Table6[Bin9],Table4[[#This Row],[Bin5]])=0)*(MOD(Table6[Bin9],Table4[[#This Row],[Bin6]])=0)),SUMPRODUCT((MOD(Table6[Bin9],Table4[[#This Row],[Bin1]])=0)*(MOD(Table6[Bin9],Table4[[#This Row],[Bin2]])=0)*(MOD(Table6[Bin9],Table4[[#This Row],[Bin3]])=0)*(MOD(Table6[Bin9],Table4[[#This Row],[Bin4]])=0)*(MOD(Table6[Bin9],Table4[[#This Row],[Bin5]])=0)*(MOD(Table6[Bin9],Table4[[#This Row],[Bin6]])=0)*(MOD(Table6[Bin9],Table4[[#This Row],[Bin7]])=0)),SUMPRODUCT((MOD(Table6[Bin9],Table4[[#This Row],[Bin1]])=0)*(MOD(Table6[Bin9],Table4[[#This Row],[Bin2]])=0)*(MOD(Table6[Bin9],Table4[[#This Row],[Bin3]])=0)*(MOD(Table6[Bin9],Table4[[#This Row],[Bin4]])=0)*(MOD(Table6[Bin9],Table4[[#This Row],[Bin5]])=0)*(MOD(Table6[Bin9],Table4[[#This Row],[Bin6]])=0)*(MOD(Table6[Bin9],Table4[[#This Row],[Bin7]])=0)*(MOD(Table6[Bin9],Table4[[#This Row],[Bin8]])=0))) -> 5
B69: 11 | C69: 13 | D69: 19 | J69: =COUNTA(Table4[[#This Row],[Bin1]:[Bin8]]) -> 3 | K69: =CHOOSE(Table4[[#This Row],[Bin9]],0,SUMPRODUCT((MOD(Table6[Bin9],Table4[[#This Row],[Bin1]])=0)*(MOD(Table6[Bin9],Table4[[#This Row],[Bin2]])=0)),SUMPRODUCT((MOD(Table6[Bin9],Table4[[#This Row],[Bin1]])=0)*(MOD(Table6[Bin9],Table4[[#This Row],[Bin2]])=0)*(MOD(Table6[Bin9],Table4[[#This Row],[Bin3]])=0)),SUMPRODUCT((MOD(Table6[Bin9],Table4[[#This Row],[Bin1]])=0)*(MOD(Table6[Bin9],Table4[[#This Row],[Bin2]])=0)*(MOD(Table6[Bin9],Table4[[#This Row],[Bin3]])=0)*(MOD(Table6[Bin9],Table4[[#This Row],[Bin4]])=0)),SUMPRODUCT((MOD(Table6[Bin9],Table4[[#This Row],[Bin1]])=0)*(MOD(Table6[Bin9],Table4[[#This Row],[Bin2]])=0)*(MOD(Table6[Bin9],Table4[[#This Row],[Bin3]])=0)*(MOD(Table6[Bin9],Table4[[#This Row],[Bin4]])=0)*(MOD(Table6[Bin9],Table4[[#This Row],[Bin5]])=0)),SUMPRODUCT((MOD(Table6[Bin9],Table4[[#This Row],[Bin1]])=0)*(MOD(Table6[Bin9],Table4[[#This Row],[Bin2]])=0)*(MOD(Table6[Bin9],Table4[[#This Row],[Bin3]])=0)*(MOD(Table6[Bin9],Table4[[#This Row],[Bin4]])=0)*(MOD(Table6[Bin9],Table4[[#This Row],[Bin5]])=0)*(MOD(Table6[Bin9],Table4[[#This Row],[Bin6]])=0)),SUMPRODUCT((MOD(Table6[Bin9],Table4[[#This Row],[Bin1]])=0)*(MOD(Table6[Bin9],Table4[[#This Row],[Bin2]])=0)*(MOD(Table6[Bin9],Table4[[#This Row],[Bin3]])=0)*(MOD(Table6[Bin9],Table4[[#This Row],[Bin4]])=0)*(MOD(Table6[Bin9],Table4[[#This Row],[Bin5]])=0)*(MOD(Table6[Bin9],Table4[[#This Row],[Bin6]])=0)*(MOD(Table6[Bin9],Table4[[#This Row],[Bin7]])=0)),SUMPRODUCT((MOD(Table6[Bin9],Table4[[#This Row],[Bin1]])=0)*(MOD(Table6[Bin9],Table4[[#This Row],[Bin2]])=0)*(MOD(Table6[Bin9],Table4[[#This Row],[Bin3]])=0)*(MOD(Table6[Bin9],Table4[[#This Row],[Bin4]])=0)*(MOD(Table6[Bin9],Table4[[#This Row],[Bin5]])=0)*(MOD(Table6[Bin9],Table4[[#This Row],[Bin6]])=0)*(MOD(Table6[Bin9],Table4[[#This Row],[Bin7]])=0)*(MOD(Table6[Bin9],Table4[[#This Row],[Bin8]])=0))) -> 3
B70: 3 | C70: 17 | D70: 19 | J70: =COUNTA(Table4[[#This Row],[Bin1]:[Bin8]]) -> 3 | K70: =CHOOSE(Table4[[#This Row],[Bin9]],0,SUMPRODUCT((MOD(Table6[Bin9],Table4[[#This Row],[Bin1]])=0)*(MOD(Table6[Bin9],Table4[[#This Row],[Bin2]])=0)),SUMPRODUCT((MOD(Table6[Bin9],Table4[[#This Row],[Bin1]])=0)*(MOD(Table6[Bin9],Table4[[#This Row],[Bin2]])=0)*(MOD(Table6[Bin9],Table4[[#This Row],[Bin3]])=0)),SUMPRODUCT((MOD(Table6[Bin9],Table4[[#This Row],[Bin1]])=0)*(MOD(Table6[Bin9],Table4[[#This Row],[Bin2]])=0)*(MOD(Table6[Bin9],Table4[[#This Row],[Bin3]])=0)*(MOD(Table6[Bin9],Table4[[#This Row],[Bin4]])=0)),SUMPRODUCT((MOD(Table6[Bin9],Table4[[#This Row],[Bin1]])=0)*(MOD(Table6[Bin9],Table4[[#This Row],[Bin2]])=0)*(MOD(Table6[Bin9],Table4[[#This Row],[Bin3]])=0)*(MOD(Table6[Bin9],Table4[[#This Row],[Bin4]])=0)*(MOD(Table6[Bin9],Table4[[#This Row],[Bin5]])=0)),SUMPRODUCT((MOD(Table6[Bin9],Table4[[#This Row],[Bin1]])=0)*(MOD(Table6[Bin9],Table4[[#This Row],[Bin2]])=0)*(MOD(Table6[Bin9],Table4[[#This Row],[Bin3]])=0)*(MOD(Table6[Bin9],Table4[[#This Row],[Bin4]])=0)*(MOD(Table6[Bin9],Table4[[#This Row],[Bin5]])=0)*(MOD(Table6[Bin9],Table4[[#This Row],[Bin6]])=0)),SUMPRODUCT((MOD(Table6[Bin9],Table4[[#This Row],[Bin1]])=0)*(MOD(Table6[Bin9],Table4[[#This Row],[Bin2]])=0)*(MOD(Table6[Bin9],Table4[[#This Row],[Bin3]])=0)*(MOD(Table6[Bin9],Table4[[#This Row],[Bin4]])=0)*(MOD(Table6[Bin9],Table4[[#This Row],[Bin5]])=0)*(MOD(Table6[Bin9],Table4[[#This Row],[Bin6]])=0)*(MOD(Table6[Bin9],Table4[[#This Row],[Bin7]])=0)),SUMPRODUCT((MOD(Table6[Bin9],Table4[[#This Row],[Bin1]])=0)*(MOD(Table6[Bin9],Table4[[#This Row],[Bin2]])=0)*(MOD(Table6[Bin9],Table4[[#This Row],[Bin3]])=0)*(MOD(Table6[Bin9],Table4[[#This Row],[Bin4]])=0)*(MOD(Table6[Bin9],Table4[[#This Row],[Bin5]])=0)*(MOD(Table6[Bin9],Table4[[#This Row],[Bin6]])=0)*(MOD(Table6[Bin9],Table4[[#This Row],[Bin7]])=0)*(MOD(Table6[Bin9],Table4[[#This Row],[Bin8]])=0))) -> 1
B71: 5 | C71: 17 | D71: 19 | J71: =COUNTA(Table4[[#This Row],[Bin1]:[Bin8]]) -> 3 | K71: =CHOOSE(Table4[[#This Row],[Bin9]],0,SUMPRODUCT((MOD(Table6[Bin9],Table4[[#This Row],[Bin1]])=0)*(MOD(Table6[Bin9],Table4[[#This Row],[Bin2]])=0)),SUMPRODUCT((MOD(Table6[Bin9],Table4[[#This Row],[Bin1]])=0)*(MOD(Table6[Bin9],Table4[[#This Row],[Bin2]])=0)*(MOD(Table6[Bin9],Table4[[#This Row],[Bin3]])=0)),SUMPRODUCT((MOD(Table6[Bin9],Table4[[#This Row],[Bin1]])=0)*(MOD(Table6[Bin9],Table4[[#This Row],[Bin2]])=0)*(MOD(Table6[Bin9],Table4[[#This Row],[Bin3]])=0)*(MOD(Table6[Bin9],Table4[[#This Row],[Bin4]])=0)),SUMPRODUCT((MOD(Table6[Bin9],Table4[[#This Row],[Bin1]])=0)*(MOD(Table6[Bin9],Table4[[#This Row],[Bin2]])=0)*(MOD(Table6[Bin9],Table4[[#This Row],[Bin3]])=0)*(MOD(Table6[Bin9],Table4[[#This Row],[Bin4]])=0)*(MOD(Table6[Bin9],Table4[[#This Row],[Bin5]])=0)),SUMPRODUCT((MOD(Table6[Bin9],Table4[[#This Row],[Bin1]])=0)*(MOD(Table6[Bin9],Table4[[#This Row],[Bin2]])=0)*(MOD(Table6[Bin9],Table4[[#This Row],[Bin3]])=0)*(MOD(Table6[Bin9],Table4[[#This Row],[Bin4]])=0)*(MOD(Table6[Bin9],Table4[[#This Row],[Bin5]])=0)*(MOD(Table6[Bin9],Table4[[#This Row],[Bin6]])=0)),SUMPRODUCT((MOD(Table6[Bin9],Table4[[#This Row],[Bin1]])=0)*(MOD(Table6[Bin9],Table4[[#This Row],[Bin2]])=0)*(MOD(Table6[Bin9],Table4[[#This Row],[Bin3]])=0)*(MOD(Table6[Bin9],Table4[[#This Row],[Bin4]])=0)*(MOD(Table6[Bin9],Table4[[#This Row],[Bin5]])=0)*(MOD(Table6[Bin9],Table4[[#This Row],[Bin6]])=0)*(MOD(Table6[Bin9],Table4[[#This Row],[Bin7]])=0)),SUMPRODUCT((MOD(Table6[Bin9],Table4[[#This Row],[Bin1]])=0)*(MOD(Table6[Bin9],Table4[[#This Row],[Bin2]])=0)*(MOD(Table6[Bin9],Table4[[#This Row],[Bin3]])=0)*(MOD(Table6[Bin9],Table4[[#This Row],[Bin4]])=0)*(MOD(Table6[Bin9],Table4[[#This Row],[Bin5]])=0)*(MOD(Table6[Bin9],Table4[[#This Row],[Bin6]])=0)*(MOD(Table6[Bin9],Table4[[#This Row],[Bin7]])=0)*(MOD(Table6[Bin9],Table4[[#This Row],[Bin8]])=0))) -> 2
B72: 7 | C72: 17 | D72: 19 | J72: =COUNTA(Table4[[#This Row],[Bin1]:[Bin8]]) -> 3 | K72: =CHOOSE(Table4[[#This Row],[Bin9]],0,SUMPRODUCT((MOD(Table6[Bin9],Table4[[#This Row],[Bin1]])=0)*(MOD(Table6[Bin9],Table4[[#This Row],[Bin2]])=0)),SUMPRODUCT((MOD(Table6[Bin9],Table4[[#This Row],[Bin1]])=0)*(MOD(Table6[Bin9],Table4[[#This Row],[Bin2]])=0)*(MOD(Table6[Bin9],Table4[[#This Row],[Bin3]])=0)),SUMPRODUCT((MOD(Table6[Bin9],Table4[[#This Row],[Bin1]])=0)*(MOD(Table6[Bin9],Table4[[#This Row],[Bin2]])=0)*(MOD(Table6[Bin9],Table4[[#This Row],[Bin3]])=0)*(MOD(Table6[Bin9],Table4[[#This Row],[Bin4]])=0)),SUMPRODUCT((MOD(Table6[Bin9],Table4[[#This Row],[Bin1]])=0)*(MOD(Table6[Bin9],Table4[[#This Row],[Bin2]])=0)*(MOD(Table6[Bin9],Table4[[#This Row],[Bin3]])=0)*(MOD(Table6[Bin9],Table4[[#This Row],[Bin4]])=0)*(MOD(Table6[Bin9],Table4[[#This Row],[Bin5]])=0)),SUMPRODUCT((MOD(Table6[Bin9],Table4[[#This Row],[Bin1]])=0)*(MOD(Table6[Bin9],Table4[[#This Row],[Bin2]])=0)*(MOD(Table6[Bin9],Table4[[#This Row],[Bin3]])=0)*(MOD(Table6[Bin9],Table4[[#This Row],[Bin4]])=0)*(MOD(Table6[Bin9],Table4[[#This Row],[Bin5]])=0)*(MOD(Table6[Bin9],Table4[[#This Row],[Bin6]])=0)),SUMPRODUCT((MOD(Table6[Bin9],Table4[[#This Row],[Bin1]])=0)*(MOD(Table6[Bin9],Table4[[#This Row],[Bin2]])=0)*(MOD(Table6[Bin9],Table4[[#This Row],[Bin3]])=0)*(MOD(Table6[Bin9],Table4[[#This Row],[Bin4]])=0)*(MOD(Table6[Bin9],Table4[[#This Row],[Bin5]])=0)*(MOD(Table6[Bin9],Table4[[#This Row],[Bin6]])=0)*(MOD(Table6[Bin9],Table4[[#This Row],[Bin7]])=0)),SUMPRODUCT((MOD(Table6[Bin9],Table4[[#This Row],[Bin1]])=0)*(MOD(Table6[Bin9],Table4[[#This Row],[Bin2]])=0)*(MOD(Table6[Bin9],Table4[[#This Row],[Bin3]])=0)*(MOD(Table6[Bin9],Table4[[#This Row],[Bin4]])=0)*(MOD(Table6[Bin9],Table4[[#This Row],[Bin5]])=0)*(MOD(Table6[Bin9],Table4[[#This Row],[Bin6]])=0)*(MOD(Table6[Bin9],Table4[[#This Row],[Bin7]])=0)*(MOD(Table6[Bin9],Table4[[#This Row],[Bin8]])=0))) -> 3
B73: 11 | C73: 17 | D73: 19 | J73: =COUNTA(Table4[[#This Row],[Bin1]:[Bin8]]) -> 3 | K73: =CHOOSE(Table4[[#This Row],[Bin9]],0,SUMPRODUCT((MOD(Table6[Bin9],Table4[[#This Row],[Bin1]])=0)*(MOD(Table6[Bin9],Table4[[#This Row],[Bin2]])=0)),SUMPRODUCT((MOD(Table6[Bin9],Table4[[#This Row],[Bin1]])=0)*(MOD(Table6[Bin9],Table4[[#This Row],[Bin2]])=0)*(MOD(Table6[Bin9],Table4[[#This Row],[Bin3]])=0)),SUMPRODUCT((MOD(Table6[Bin9],Table4[[#This Row],[Bin1]])=0)*(MOD(Table6[Bin9],Table4[[#This Row],[Bin2]])=0)*(MOD(Table6[Bin9],Table4[[#This Row],[Bin3]])=0)*(MOD(Table6[Bin9],Table4[[#This Row],[Bin4]])=0)),SUMPRODUCT((MOD(Table6[Bin9],Table4[[#This Row],[Bin1]])=0)*(MOD(Table6[Bin9],Table4[[#This Row],[Bin2]])=0)*(MOD(Table6[Bin9],Table4[[#This Row],[Bin3]])=0)*(MOD(Table6[Bin9],Table4[[#This Row],[Bin4]])=0)*(MOD(Table6[Bin9],Table4[[#This Row],[Bin5]])=0)),SUMPRODUCT((MOD(Table6[Bin9],Table4[[#This Row],[Bin1]])=0)*(MOD(Table6[Bin9],Table4[[#This Row],[Bin2]])=0)*(MOD(Table6[Bin9],Table4[[#This Row],[Bin3]])=0)*(MOD(Table6[Bin9],Table4[[#This Row],[Bin4]])=0)*(MOD(Table6[Bin9],Table4[[#This Row],[Bin5]])=0)*(MOD(Table6[Bin9],Table4[[#This Row],[Bin6]])=0)),SUMPRODUCT((MOD(Table6[Bin9],Table4[[#This Row],[Bin1]])=0)*(MOD(Table6[Bin9],Table4[[#This Row],[Bin2]])=0)*(MOD(Table6[Bin9],Table4[[#This Row],[Bin3]])=0)*(MOD(Table6[Bin9],Table4[[#This Row],[Bin4]])=0)*(MOD(Table6[Bin9],Table4[[#This Row],[Bin5]])=0)*(MOD(Table6[Bin9],Table4[[#This Row],[Bin6]])=0)*(MOD(Table6[Bin9],Table4[[#This Row],[Bin7]])=0)),SUMPRODUCT((MOD(Table6[Bin9],Table4[[#This Row],[Bin1]])=0)*(MOD(Table6[Bin9],Table4[[#This Row],[Bin2]])=0)*(MOD(Table6[Bin9],Table4[[#This Row],[Bin3]])=0)*(MOD(Table6[Bin9],Table4[[#This Row],[Bin4]])=0)*(MOD(Table6[Bin9],Table4[[#This Row],[Bin5]])=0)*(MOD(Table6[Bin9],Table4[[#This Row],[Bin6]])=0)*(MOD(Table6[Bin9],Table4[[#This Row],[Bin7]])=0)*(MOD(Table6[Bin9],Table4[[#This Row],[Bin8]])=0))) -> 4
B74: 13 | C74: 17 | D74: 19 | J74: =COUNTA(Table4[[#This Row],[Bin1]:[Bin8]]) -> 3 | K74: =CHOOSE(Table4[[#This Row],[Bin9]],0,SUMPRODUCT((MOD(Table6[Bin9],Table4[[#This Row],[Bin1]])=0)*(MOD(Table6[Bin9],Table4[[#This Row],[Bin2]])=0)),SUMPRODUCT((MOD(Table6[Bin9],Table4[[#This Row],[Bin1]])=0)*(MOD(Table6[Bin9],Table4[[#This Row],[Bin2]])=0)*(MOD(Table6[Bin9],Table4[[#This Row],[Bin3]])=0)),SUMPRODUCT((MOD(Table6[Bin9],Table4[[#This Row],[Bin1]])=0)*(MOD(Table6[Bin9],Table4[[#This Row],[Bin2]])=0)*(MOD(Table6[Bin9],Table4[[#This Row],[Bin3]])=0)*(MOD(Table6[Bin9],Table4[[#This Row],[Bin4]])=0)),SUMPRODUCT((MOD(Table6[Bin9],Table4[[#This Row],[Bin1]])=0)*(MOD(Table6[Bin9],Table4[[#This Row],[Bin2]])=0)*(MOD(Table6[Bin9],Table4[[#This Row],[Bin3]])=0)*(MOD(Table6[Bin9],Table4[[#This Row],[Bin4]])=0)*(MOD(Table6[Bin9],Table4[[#This Row],[Bin5]])=0)),SUMPRODUCT((MOD(Table6[Bin9],Table4[[#This Row],[Bin1]])=0)*(MOD(Table6[Bin9],Table4[[#This Row],[Bin2]])=0)*(MOD(Table6[Bin9],Table4[[#This Row],[Bin3]])=0)*(MOD(Table6[Bin9],Table4[[#This Row],[Bin4]])=0)*(MOD(Table6[Bin9],Table4[[#This Row],[Bin5]])=0)*(MOD(Table6[Bin9],Table4[[#This Row],[Bin6]])=0)),SUMPRODUCT((MOD(Table6[Bin9],Table4[[#This Row],[Bin1]])=0)*(MOD(Table6[Bin9],Table4[[#This Row],[Bin2]])=0)*(MOD(Table6[Bin9],Table4[[#This Row],[Bin3]])=0)*(MOD(Table6[Bin9],Table4[[#This Row],[Bin4]])=0)*(MOD(Table6[Bin9],Table4[[#This Row],[Bin5]])=0)*(MOD(Table6[Bin9],Table4[[#This Row],[Bin6]])=0)*(MOD(Table6[Bin9],Table4[[#This Row],[Bin7]])=0)),SUMPRODUCT((MOD(Table6[Bin9],Table4[[#This Row],[Bin1]])=0)*(MOD(Table6[Bin9],Table4[[#This Row],[Bin2]])=0)*(MOD(Table6[Bin9],Table4[[#This Row],[Bin3]])=0)*(MOD(Table6[Bin9],Table4[[#This Row],[Bin4]])=0)*(MOD(Table6[Bin9],Table4[[#This Row],[Bin5]])=0)*(MOD(Table6[Bin9],Table4[[#This Row],[Bin6]])=0)*(MOD(Table6[Bin9],Table4[[#This Row],[Bin7]])=0)*(MOD(Table6[Bin9],Table4[[#This Row],[Bin8]])=0))) -> 2
B75: 3 | C75: 5 | D75: 23 | J75: =COUNTA(Table4[[#This Row],[Bin1]:[Bin8]]) -> 3 | K75: =CHOOSE(Table4[[#This Row],[Bin9]],0,SUMPRODUCT((MOD(Table6[Bin9],Table4[[#This Row],[Bin1]])=0)*(MOD(Table6[Bin9],Table4[[#This Row],[Bin2]])=0)),SUMPRODUCT((MOD(Table6[Bin9],Table4[[#This Row],[Bin1]])=0)*(MOD(Table6[Bin9],Table4[[#This Row],[Bin2]])=0)*(MOD(Table6[Bin9],Table4[[#This Row],[Bin3]])=0)),SUMPRODUCT((MOD(Table6[Bin9],Table4[[#This Row],[Bin1]])=0)*(MOD(Table6[Bin9],Table4[[#This Row],[Bin2]])=0)*(MOD(Table6[Bin9],Table4[[#This Row],[Bin3]])=0)*(MOD(Table6[Bin9],Table4[[#This Row],[Bin4]])=0)),SUMPRODUCT((MOD(Table6[Bin9],Table4[[#This Row],[Bin1]])=0)*(MOD(Table6[Bin9],Table4[[#This Row],[Bin2]])=0)*(MOD(Table6[Bin9],Table4[[#This Row],[Bin3]])=0)*(MOD(Table6[Bin9],Table4[[#This Row],[Bin4]])=0)*(MOD(Table6[Bin9],Table4[[#This Row],[Bin5]])=0)),SUMPRODUCT((MOD(Table6[Bin9],Table4[[#This Row],[Bin1]])=0)*(MOD(Table6[Bin9],Table4[[#This Row],[Bin2]])=0)*(MOD(Table6[Bin9],Table4[[#This Row],[Bin3]])=0)*(MOD(Table6[Bin9],Table4[[#This Row],[Bin4]])=0)*(MOD(Table6[Bin9],Table4[[#This Row],[Bin5]])=0)*(MOD(Table6[Bin9],Table4[[#This Row],[Bin6]])=0)),SUMPRODUCT((MOD(Table6[Bin9],Table4[[#This Row],[Bin1]])=0)*(MOD(Table6[Bin9],Table4[[#This Row],[Bin2]])=0)*(MOD(Table6[Bin9],Table4[[#This Row],[Bin3]])=0)*(MOD(Table6[Bin9],Table4[[#This Row],[Bin4]])=0)*(MOD(Table6[Bin9],Table4[[#This Row],[Bin5]])=0)*(MOD(Table6[Bin9],Table4[[#This Row],[Bin6]])=0)*(MOD(Table6[Bin9],Table4[[#This Row],[Bin7]])=0)),SUMPRODUCT((MOD(Table6[Bin9],Table4[[#This Row],[Bin1]])=0)*(MOD(Table6[Bin9],Table4[[#This Row],[Bin2]])=0)*(MOD(Table6[Bin9],Table4[[#This Row],[Bin3]])=0)*(MOD(Table6[Bin9],Table4[[#This Row],[Bin4]])=0)*(MOD(Table6[Bin9],Table4[[#This Row],[Bin5]])=0)*(MOD(Table6[Bin9],Table4[[#This Row],[Bin6]])=0)*(MOD(Table6[Bin9],Table4[[#This Row],[Bin7]])=0)*(MOD(Table6[Bin9],Table4[[#This Row],[Bin8]])=0))) -> 1
B76: 3 | C76: 7 | D76: 23 | J76: =COUNTA(Table4[[#This Row],[Bin1]:[Bin8]]) -> 3 | K76: =CHOOSE(Table4[[#This Row],[Bin9]],0,SUMPRODUCT((MOD(Table6[Bin9],Table4[[#This Row],[Bin1]])=0)*(MOD(Table6[Bin9],Table4[[#This Row],[Bin2]])=0)),SUMPRODUCT((MOD(Table6[Bin9],Table4[[#This Row],[Bin1]])=0)*(MOD(Table6[Bin9],Table4[[#This Row],[Bin2]])=0)*(MOD(Table6[Bin9],Table4[[#This Row],[Bin3]])=0)),SUMPRODUCT((MOD(Table6[Bin9],Table4[[#This Row],[Bin1]])=0)*(MOD(Table6[Bin9],Table4[[#This Row],[Bin2]])=0)*(MOD(Table6[Bin9],Table4[[#This Row],[Bin3]])=0)*(MOD(Table6[Bin9],Table4[[#This Row],[Bin4]])=0)),SUMPRODUCT((MOD(Table6[Bin9],Table4[[#This Row],[Bin1]])=0)*(MOD(Table6[Bin9],Table4[[#This Row],[Bin2]])=0)*(MOD(Table6[Bin9],Table4[[#This Row],[Bin3]])=0)*(MOD(Table6[Bin9],Table4[[#This Row],[Bin4]])=0)*(MOD(Table6[Bin9],Table4[[#This Row],[Bin5]])=0)),SUMPRODUCT((MOD(Table6[Bin9],Table4[[#This Row],[Bin1]])=0)*(MOD(Table6[Bin9],Table4[[#This Row],[Bin2]])=0)*(MOD(Table6[Bin9],Table4[[#This Row],[Bin3]])=0)*(MOD(Table6[Bin9],Table4[[#This Row],[Bin4]])=0)*(MOD(Table6[Bin9],Table4[[#This Row],[Bin5]])=0)*(MOD(Table6[Bin9],Table4[[#This Row],[Bin6]])=0)),SUMPRODUCT((MOD(Table6[Bin9],Table4[[#This Row],[Bin1]])=0)*(MOD(Table6[Bin9],Table4[[#This Row],[Bin2]])=0)*(MOD(Table6[Bin9],Table4[[#This Row],[Bin3]])=0)*(MOD(Table6[Bin9],Table4[[#This Row],[Bin4]])=0)*(MOD(Table6[Bin9],Table4[[#This Row],[Bin5]])=0)*(MOD(Table6[Bin9],Table4[[#This Row],[Bin6]])=0)*(MOD(Table6[Bin9],Table4[[#This Row],[Bin7]])=0)),SUMPRODUCT((MOD(Table6[Bin9],Table4[[#This Row],[Bin1]])=0)*(MOD(Table6[Bin9],Table4[[#This Row],[Bin2]])=0)*(MOD(Table6[Bin9],Table4[[#This Row],[Bin3]])=0)*(MOD(Table6[Bin9],Table4[[#This Row],[Bin4]])=0)*(MOD(Table6[Bin9],Table4[[#This Row],[Bin5]])=0)*(MOD(Table6[Bin9],Table4[[#This Row],[Bin6]])=0)*(MOD(Table6[Bin9],Table4[[#This Row],[Bin7]])=0)*(MOD(Table6[Bin9],Table4[[#This Row],[Bin8]])=0))) -> 3
B77: 5 | C77: 7 | D77: 23 | J77: =COUNTA(Table4[[#This Row],[Bin1]:[Bin8]]) -> 3 | K77: =CHOOSE(Table4[[#This Row],[Bin9]],0,SUMPRODUCT((MOD(Table6[Bin9],Table4[[#This Row],[Bin1]])=0)*(MOD(Table6[Bin9],Table4[[#This Row],[Bin2]])=0)),SUMPRODUCT((MOD(Table6[Bin9],Table4[[#This Row],[Bin1]])=0)*(MOD(Table6[Bin9],Table4[[#This Row],[Bin2]])=0)*(MOD(Table6[Bin9],Table4[[#This Row],[Bin3]])=0)),SUMPRODUCT((MOD(Table6[Bin9],Table4[[#This Row],[Bin1]])=0)*(MOD(Table6[Bin9],Table4[[#This Row],[Bin2]])=0)*(MOD(Table6[Bin9],Table4[[#This Row],[Bin3]])=0)*(MOD(Table6[Bin9],Table4[[#This Row],[Bin4]])=0)),SUMPRODUCT((MOD(Table6[Bin9],Table4[[#This Row],[Bin1]])=0)*(MOD(Table6[Bin9],Table4[[#This Row],[Bin2]])=0)*(MOD(Table6[Bin9],Table4[[#This Row],[Bin3]])=0)*(MOD(Table6[Bin9],Table4[[#This Row],[Bin4]])=0)*(MOD(Table6[Bin9],Table4[[#This Row],[Bin5]])=0)),SUMPRODUCT((MOD(Table6[Bin9],Table4[[#This Row],[Bin1]])=0)*(MOD(Table6[Bin9],Table4[[#This Row],[Bin2]])=0)*(MOD(Table6[Bin9],Table4[[#This Row],[Bin3]])=0)*(MOD(Table6[Bin9],Table4[[#This Row],[Bin4]])=0)*(MOD(Table6[Bin9],Table4[[#This Row],[Bin5]])=0)*(MOD(Table6[Bin9],Table4[[#This Row],[Bin6]])=0)),SUMPRODUCT((MOD(Table6[Bin9],Table4[[#This Row],[Bin1]])=0)*(MOD(Table6[Bin9],Table4[[#This Row],[Bin2]])=0)*(MOD(Table6[Bin9],Table4[[#This Row],[Bin3]])=0)*(MOD(Table6[Bin9],Table4[[#This Row],[Bin4]])=0)*(MOD(Table6[Bin9],Table4[[#This Row],[Bin5]])=0)*(MOD(Table6[Bin9],Table4[[#This Row],[Bin6]])=0)*(MOD(Table6[Bin9],Table4[[#This Row],[Bin7]])=0)),SUMPRODUCT((MOD(Table6[Bin9],Table4[[#This Row],[Bin1]])=0)*(MOD(Table6[Bin9],Table4[[#This Row],[Bin2]])=0)*(MOD(Table6[Bin9],Table4[[#This Row],[Bin3]])=0)*(MOD(Table6[Bin9],Table4[[#This Row],[Bin4]])=0)*(MOD(Table6[Bin9],Table4[[#This Row],[Bin5]])=0)*(MOD(Table6[Bin9],Table4[[#This Row],[Bin6]])=0)*(MOD(Table6[Bin9],Table4[[#This Row],[Bin7]])=0)*(MOD(Table6[Bin9],Table4[[#This Row],[Bin8]])=0))) -> 3
B78: 3 | C78: 11 | D78: 23 | J78: =COUNTA(Table4[[#This Row],[Bin1]:[Bin8]]) -> 3 | K78: =CHOOSE(Table4[[#This Row],[Bin9]],0,SUMPRODUCT((MOD(Table6[Bin9],Table4[[#This Row],[Bin1]])=0)*(MOD(Table6[Bin9],Table4[[#This Row],[Bin2]])=0)),SUMPRODUCT((MOD(Table6[Bin9],Table4[[#This Row],[Bin1]])=0)*(MOD(Table6[Bin9],Table4[[#This Row],[Bin2]])=0)*(MOD(Table6[Bin9],Table4[[#This Row],[Bin3]])=0)),SUMPRODUCT((MOD(Table6[Bin9],Table4[[#This Row],[Bin1]])=0)*(MOD(Table6[Bin9],Table4[[#This Row],[Bin2]])=0)*(MOD(Table6[Bin9],Table4[[#This Row],[Bin3]])=0)*(MOD(Table6[Bin9],Table4[[#This Row],[Bin4]])=0)),SUMPRODUCT((MOD(Table6[Bin9],Table4[[#This Row],[Bin1]])=0)*(MOD(Table6[Bin9],Table4[[#This Row],[Bin2]])=0)*(MOD(Table6[Bin9],Table4[[#This Row],[Bin3]])=0)*(MOD(Table6[Bin9],Table4[[#This Row],[Bin4]])=0)*(MOD(Table6[Bin9],Table4[[#This Row],[Bin5]])=0)),SUMPRODUCT((MOD(Table6[Bin9],Table4[[#This Row],[Bin1]])=0)*(MOD(Table6[Bin9],Table4[[#This Row],[Bin2]])=0)*(MOD(Table6[Bin9],Table4[[#This Row],[Bin3]])=0)*(MOD(Table6[Bin9],Table4[[#This Row],[Bin4]])=0)*(MOD(Table6[Bin9],Table4[[#This Row],[Bin5]])=0)*(MOD(Table6[Bin9],Table4[[#This Row],[Bin6]])=0)),SUMPRODUCT((MOD(Table6[Bin9],Table4[[#This Row],[Bin1]])=0)*(MOD(Table6[Bin9],Table4[[#This Row],[Bin2]])=0)*(MOD(Table6[Bin9],Table4[[#This Row],[Bin3]])=0)*(MOD(Table6[Bin9],Table4[[#This Row],[Bin4]])=0)*(MOD(Table6[Bin9],Table4[[#This Row],[Bin5]])=0)*(MOD(Table6[Bin9],Table4[[#This Row],[Bin6]])=0)*(MOD(Table6[Bin9],Table4[[#This Row],[Bin7]])=0)),SUMPRODUCT((MOD(Table6[Bin9],Table4[[#This Row],[Bin1]])=0)*(MOD(Table6[Bin9],Table4[[#This Row],[Bin2]])=0)*(MOD(Table6[Bin9],Table4[[#This Row],[Bin3]])=0)*(MOD(Table6[Bin9],Table4[[#This Row],[Bin4]])=0)*(MOD(Table6[Bin9],Table4[[#This Row],[Bin5]])=0)*(MOD(Table6[Bin9],Table4[[#This Row],[Bin6]])=0)*(MOD(Table6[Bin9],Table4[[#This Row],[Bin7]])=0)*(MOD(Table6[Bin9],Table4[[#This Row],[Bin8]])=0))) -> 3
B79: 5 | C79: 11 | D79: 23 | J79: =COUNTA(Table4[[#This Row],[Bin1]:[Bin8]]) -> 3 | K79: =CHOOSE(Table4[[#This Row],[Bin9]],0,SUMPRODUCT((MOD(Table6[Bin9],Table4[[#This Row],[Bin1]])=0)*(MOD(Table6[Bin9],Table4[[#This Row],[Bin2]])=0)),SUMPRODUCT((MOD(Table6[Bin9],Table4[[#This Row],[Bin1]])=0)*(MOD(Table6[Bin9],Table4[[#This Row],[Bin2]])=0)*(MOD(Table6[Bin9],Table4[[#This Row],[Bin3]])=0)),SUMPRODUCT((MOD(Table6[Bin9],Table4[[#This Row],[Bin1]])=0)*(MOD(Table6[Bin9],Table4[[#This Row],[Bin2]])=0)*(MOD(Table6[Bin9],Table4[[#This Row],[Bin3]])=0)*(MOD(Table6[Bin9],Table4[[#This Row],[Bin4]])=0)),SUMPRODUCT((MOD(Table6[Bin9],Table4[[#This Row],[Bin1]])=0)*(MOD(Table6[Bin9],Table4[[#This Row],[Bin2]])=0)*(MOD(Table6[Bin9],Table4[[#This Row],[Bin3]])=0)*(MOD(Table6[Bin9],Table4[[#This Row],[Bin4]])=0)*(MOD(Table6[Bin9],Table4[[#This Row],[Bin5]])=0)),SUMPRODUCT((MOD(Table6[Bin9],Table4[[#This Row],[Bin1]])=0)*(MOD(Table6[Bin9],Table4[[#This Row],[Bin2]])=0)*(MOD(Table6[Bin9],Table4[[#This Row],[Bin3]])=0)*(MOD(Table6[Bin9],Table4[[#This Row],[Bin4]])=0)*(MOD(Table6[Bin9],Table4[[#This Row],[Bin5]])=0)*(MOD(Table6[Bin9],Table4[[#This Row],[Bin6]])=0)),SUMPRODUCT((MOD(Table6[Bin9],Table4[[#This Row],[Bin1]])=0)*(MOD(Table6[Bin9],Table4[[#This Row],[Bin2]])=0)*(MOD(Table6[Bin9],Table4[[#This Row],[Bin3]])=0)*(MOD(Table6[Bin9],Table4[[#This Row],[Bin4]])=0)*(MOD(Table6[Bin9],Table4[[#This Row],[Bin5]])=0)*(MOD(Table6[Bin9],Table4[[#This Row],[Bin6]])=0)*(MOD(Table6[Bin9],Table4[[#This Row],[Bin7]])=0)),SUMPRODUCT((MOD(Table6[Bin9],Table4[[#This Row],[Bin1]])=0)*(MOD(Table6[Bin9],Table4[[#This Row],[Bin2]])=0)*(MOD(Table6[Bin9],Table4[[#This Row],[Bin3]])=0)*(MOD(Table6[Bin9],Table4[[#This Row],[Bin4]])=0)*(MOD(Table6[Bin9],Table4[[#This Row],[Bin5]])=0)*(MOD(Table6[Bin9],Table4[[#This Row],[Bin6]])=0)*(MOD(Table6[Bin9],Table4[[#This Row],[Bin7]])=0)*(MOD(Table6[Bin9],Table4[[#This Row],[Bin8]])=0))) -> 3
B80: 7 | C80: 11 | D80: 23 | J80: =COUNTA(Table4[[#This Row],[Bin1]:[Bin8]]) -> 3 | K80: =CHOOSE(Table4[[#This Row],[Bin9]],0,SUMPRODUCT((MOD(Table6[Bin9],Table4[[#This Row],[Bin1]])=0)*(MOD(Table6[Bin9],Table4[[#This Row],[Bin2]])=0)),SUMPRODUCT((MOD(Table6[Bin9],Table4[[#This Row],[Bin1]])=0)*(MOD(Table6[Bin9],Table4[[#This Row],[Bin2]])=0)*(MOD(Table6[Bin9],Table4[[#This Row],[Bin3]])=0)),SUMPRODUCT((MOD(Table6[Bin9],Table4[[#This Row],[Bin1]])=0)*(MOD(Table6[Bin9],Table4[[#This Row],[Bin2]])=0)*(MOD(Table6[Bin9],Table4[[#This Row],[Bin3]])=0)*(MOD(Table6[Bin9],Table4[[#This Row],[Bin4]])=0)),SUMPRODUCT((MOD(Table6[Bin9],Table4[[#This Row],[Bin1]])=0)*(MOD(Table6[Bin9],Table4[[#This Row],[Bin2]])=0)*(MOD(Table6[Bin9],Table4[[#This Row],[Bin3]])=0)*(MOD(Table6[Bin9],Table4[[#This Row],[Bin4]])=0)*(MOD(Table6[Bin9],Table4[[#This Row],[Bin5]])=0)),SUMPRODUCT((MOD(Table6[Bin9],Table4[[#This Row],[Bin1]])=0)*(MOD(Table6[Bin9],Table4[[#This Row],[Bin2]])=0)*(MOD(Table6[Bin9],Table4[[#This Row],[Bin3]])=0)*(MOD(Table6[Bin9],Table4[[#This Row],[Bin4]])=0)*(MOD(Table6[Bin9],Table4[[#This Row],[Bin5]])=0)*(MOD(Table6[Bin9],Table4[[#This Row],[Bin6]])=0)),SUMPRODUCT((MOD(Table6[Bin9],Table4[[#This Row],[Bin1]])=0)*(MOD(Table6[Bin9],Table4[[#This Row],[Bin2]])=0)*(MOD(Table6[Bin9],Table4[[#This Row],[Bin3]])=0)*(MOD(Table6[Bin9],Table4[[#This Row],[Bin4]])=0)*(MOD(Table6[Bin9],Table4[[#This Row],[Bin5]])=0)*(MOD(Table6[Bin9],Table4[[#This Row],[Bin6]])=0)*(MOD(Table6[Bin9],Table4[[#This Row],[Bin7]])=0)),SUMPRODUCT((MOD(Table6[Bin9],Table4[[#This Row],[Bin1]])=0)*(MOD(Table6[Bin9],Table4[[#This Row],[Bin2]])=0)*(MOD(Table6[Bin9],Table4[[#This Row],[Bin3]])=0)*(MOD(Table6[Bin9],Table4[[#This Row],[Bin4]])=0)*(MOD(Table6[Bin9],Table4[[#This Row],[Bin5]])=0)*(MOD(Table6[Bin9],Table4[[#This Row],[Bin6]])=0)*(MOD(Table6[Bin9],Table4[[#This Row],[Bin7]])=0)*(MOD(Table6[Bin9],Table4[[#This Row],[Bin8]])=0))) -> 5
B81: 3 | C81: 13 | D81: 23 | J81: =COUNTA(Table4[[#This Row],[Bin1]:[Bin8]]) -> 3 | K81: =CHOOSE(Table4[[#This Row],[Bin9]],0,SUMPRODUCT((MOD(Table6[Bin9],Table4[[#This Row],[Bin1]])=0)*(MOD(Table6[Bin9],Table4[[#This Row],[Bin2]])=0)),SUMPRODUCT((MOD(Table6[Bin9],Table4[[#This Row],[Bin1]])=0)*(MOD(Table6[Bin9],Table4[[#This Row],[Bin2]])=0)*(MOD(Table6[Bin9],Table4[[#This Row],[Bin3]])=0)),SUMPRODUCT((MOD(Table6[Bin9],Table4[[#This Row],[Bin1]])=0)*(MOD(Table6[Bin9],Table4[[#This Row],[Bin2]])=0)*(MOD(Table6[Bin9],Table4[[#This Row],[Bin3]])=0)*(MOD(Table6[Bin9],Table4[[#This Row],[Bin4]])=0)),SUMPRODUCT((MOD(Table6[Bin9],Table4[[#This Row],[Bin1]])=0)*(MOD(Table6[Bin9],Table4[[#This Row],[Bin2]])=0)*(MOD(Table6[Bin9],Table4[[#This Row],[Bin3]])=0)*(MOD(Table6[Bin9],Table4[[#This Row],[Bin4]])=0)*(MOD(Table6[Bin9],Table4[[#This Row],[Bin5]])=0)),SUMPRODUCT((MOD(Table6[Bin9],Table4[[#This Row],[Bin1]])=0)*(MOD(Table6[Bin9],Table4[[#This Row],[Bin2]])=0)*(MOD(Table6[Bin9],Table4[[#This Row],[Bin3]])=0)*(MOD(Table6[Bin9],Table4[[#This Row],[Bin4]])=0)*(MOD(Table6[Bin9],Table4[[#This Row],[Bin5]])=0)*(MOD(Table6[Bin9],Table4[[#This Row],[Bin6]])=0)),SUMPRODUCT((MOD(Table6[Bin9],Table4[[#This Row],[Bin1]])=0)*(MOD(Table6[Bin9],Table4[[#This Row],[Bin2]])=0)*(MOD(Table6[Bin9],Table4[[#This Row],[Bin3]])=0)*(MOD(Table6[Bin9],Table4[[#This Row],[Bin4]])=0)*(MOD(Table6[Bin9],Table4[[#This Row],[Bin5]])=0)*(MOD(Table6[Bin9],Table4[[#This Row],[Bin6]])=0)*(MOD(Table6[Bin9],Table4[[#This Row],[Bin7]])=0)),SUMPRODUCT((MOD(Table6[Bin9],Table4[[#This Row],[Bin1]])=0)*(MOD(Table6[Bin9],Table4[[#This Row],[Bin2]])=0)*(MOD(Table6[Bin9],Table4[[#This Row],[Bin3]])=0)*(MOD(Table6[Bin9],Table4[[#This Row],[Bin4]])=0)*(MOD(Table6[Bin9],Table4[[#This Row],[Bin5]])=0)*(MOD(Table6[Bin9],Table4[[#This Row],[Bin6]])=0)*(MOD(Table6[Bin9],Table4[[#This Row],[Bin7]])=0)*(MOD(Table6[Bin9],Table4[[#This Row],[Bin8]])=0))) -> 3
B82: 5 | C82: 13 | D82: 23 | J82: =COUNTA(Table4[[#This Row],[Bin1]:[Bin8]]) -> 3 | K82: =CHOOSE(Table4[[#This Row],[Bin9]],0,SUMPRODUCT((MOD(Table6[Bin9],Table4[[#This Row],[Bin1]])=0)*(MOD(Table6[Bin9],Table4[[#This Row],[Bin2]])=0)),SUMPRODUCT((MOD(Table6[Bin9],Table4[[#This Row],[Bin1]])=0)*(MOD(Table6[Bin9],Table4[[#This Row],[Bin2]])=0)*(MOD(Table6[Bin9],Table4[[#This Row],[Bin3]])=0)),SUMPRODUCT((MOD(Table6[Bin9],Table4[[#This Row],[Bin1]])=0)*(MOD(Table6[Bin9],Table4[[#This Row],[Bin2]])=0)*(MOD(Table6[Bin9],Table4[[#This Row],[Bin3]])=0)*(MOD(Table6[Bin9],Table4[[#This Row],[Bin4]])=0)),SUMPRODUCT((MOD(Table6[Bin9],Table4[[#This Row],[Bin1]])=0)*(MOD(Table6[Bin9],Table4[[#This Row],[Bin2]])=0)*(MOD(Table6[Bin9],Table4[[#This Row],[Bin3]])=0)*(MOD(Table6[Bin9],Table4[[#This Row],[Bin4]])=0)*(MOD(Table6[Bin9],Table4[[#This Row],[Bin5]])=0)),SUMPRODUCT((MOD(Table6[Bin9],Table4[[#This Row],[Bin1]])=0)*(MOD(Table6[Bin9],Table4[[#This Row],[Bin2]])=0)*(MOD(Table6[Bin9],Table4[[#This Row],[Bin3]])=0)*(MOD(Table6[Bin9],Table4[[#This Row],[Bin4]])=0)*(MOD(Table6[Bin9],Table4[[#This Row],[Bin5]])=0)*(MOD(Table6[Bin9],Table4[[#This Row],[Bin6]])=0)),SUMPRODUCT((MOD(Table6[Bin9],Table4[[#This Row],[Bin1]])=0)*(MOD(Table6[Bin9],Table4[[#This Row],[Bin2]])=0)*(MOD(Table6[Bin9],Table4[[#This Row],[Bin3]])=0)*(MOD(Table6[Bin9],Table4[[#This Row],[Bin4]])=0)*(MOD(Table6[Bin9],Table4[[#This Row],[Bin5]])=0)*(MOD(Table6[Bin9],Table4[[#This Row],[Bin6]])=0)*(MOD(Table6[Bin9],Table4[[#This Row],[Bin7]])=0)),SUMPRODUCT((MOD(Table6[Bin9],Table4[[#This Row],[Bin1]])=0)*(MOD(Table6[Bin9],Table4[[#This Row],[Bin2]])=0)*(MOD(Table6[Bin9],Table4[[#This Row],[Bin3]])=0)*(MOD(Table6[Bin9],Table4[[#This Row],[Bin4]])=0)*(MOD(Table6[Bin9],Table4[[#This Row],[Bin5]])=0)*(MOD(Table6[Bin9],Table4[[#This Row],[Bin6]])=0)*(MOD(Table6[Bin9],Table4[[#This Row],[Bin7]])=0)*(MOD(Table6[Bin9],Table4[[#This Row],[Bin8]])=0))) -> 2
B83: 7 | C83: 13 | D83: 23 | J83: =COUNTA(Table4[[#This Row],[Bin1]:[Bin8]]) -> 3 | K83: =CHOOSE(Table4[[#This Row],[Bin9]],0,SUMPRODUCT((MOD(Table6[Bin9],Table4[[#This Row],[Bin1]])=0)*(MOD(Table6[Bin9],Table4[[#This Row],[Bin2]])=0)),SUMPRODUCT((MOD(Table6[Bin9],Table4[[#This Row],[Bin1]])=0)*(MOD(Table6[Bin9],Table4[[#This Row],[Bin2]])=0)*(MOD(Table6[Bin9],Table4[[#This Row],[Bin3]])=0)),SUMPRODUCT((MOD(Table6[Bin9],Table4[[#This Row],[Bin1]])=0)*(MOD(Table6[Bin9],Table4[[#This Row],[Bin2]])=0)*(MOD(Table6[Bin9],Table4[[#This Row],[Bin3]])=0)*(MOD(Table6[Bin9],Table4[[#This Row],[Bin4]])=0)),SUMPRODUCT((MOD(Table6[Bin9],Table4[[#This Row],[Bin1]])=0)*(MOD(Table6[Bin9],Table4[[#This Row],[Bin2]])=0)*(MOD(Table6[Bin9],Table4[[#This Row],[Bin3]])=0)*(MOD(Table6[Bin9],Table4[[#This Row],[Bin4]])=0)*(MOD(Table6[Bin9],Table4[[#This Row],[Bin5]])=0)),SUMPRODUCT((MOD(Table6[Bin9],Table4[[#This Row],[Bin1]])=0)*(MOD(Table6[Bin9],Table4[[#This Row],[Bin2]])=0)*(MOD(Table6[Bin9],Table4[[#This Row],[Bin3]])=0)*(MOD(Table6[Bin9],Table4[[#This Row],[Bin4]])=0)*(MOD(Table6[Bin9],Table4[[#This Row],[Bin5]])=0)*(MOD(Table6[Bin9],Table4[[#This Row],[Bin6]])=0)),SUMPRODUCT((MOD(Table6[Bin9],Table4[[#This Row],[Bin1]])=0)*(MOD(Table6[Bin9],Table4[[#This Row],[Bin2]])=0)*(MOD(Table6[Bin9],Table4[[#This Row],[Bin3]])=0)*(MOD(Table6[Bin9],Table4[[#This Row],[Bin4]])=0)*(MOD(Table6[Bin9],Table4[[#This Row],[Bin5]])=0)*(MOD(Table6[Bin9],Table4[[#This Row],[Bin6]])=0)*(MOD(Table6[Bin9],Table4[[#This Row],[Bin7]])=0)),SUMPRODUCT((MOD(Table6[Bin9],Table4[[#This Row],[Bin1]])=0)*(MOD(Table6[Bin9],Table4[[#This Row],[Bin2]])=0)*(MOD(Table6[Bin9],Table4[[#This Row],[Bin3]])=0)*(MOD(Table6[Bin9],Table4[[#This Row],[Bin4]])=0)*(MOD(Table6[Bin9],Table4[[#This Row],[Bin5]])=0)*(MOD(Table6[Bin9],Table4[[#This Row],[Bin6]])=0)*(MOD(Table6[Bin9],Table4[[#This Row],[Bin7]])=0)*(MOD(Table6[Bin9],Table4[[#This Row],[Bin8]])=0))) -> 4
B84: 11 | C84: 13 | D84: 23 | J84: =COUNTA(Table4[[#This Row],[Bin1]:[Bin8]]) -> 3 | K84: =CHOOSE(Table4[[#This Row],[Bin9]],0,SUMPRODUCT((MOD(Table6[Bin9],Table4[[#This Row],[Bin1]])=0)*(MOD(Table6[Bin9],Table4[[#This Row],[Bin2]])=0)),SUMPRODUCT((MOD(Table6[Bin9],Table4[[#This Row],[Bin1]])=0)*(MOD(Table6[Bin9],Table4[[#This Row],[Bin2]])=0)*(MOD(Table6[Bin9],Table4[[#This Row],[Bin3]])=0)),SUMPRODUCT((MOD(Table6[Bin9],Table4[[#This Row],[Bin1]])=0)*(MOD(Table6[Bin9],Table4[[#This Row],[Bin2]])=0)*(MOD(Table6[Bin9],Table4[[#This Row],[Bin3]])=0)*(MOD(Table6[Bin9],Table4[[#This Row],[Bin4]])=0)),SUMPRODUCT((MOD(Table6[Bin9],Table4[[#This Row],[Bin1]])=0)*(MOD(Table6[Bin9],Table4[[#This Row],[Bin2]])=0)*(MOD(Table6[Bin9],Table4[[#This Row],[Bin3]])=0)*(MOD(Table6[Bin9],Table4[[#This Row],[Bin4]])=0)*(MOD(Table6[Bin9],Table4[[#This Row],[Bin5]])=0)),SUMPRODUCT((MOD(Table6[Bin9],Table4[[#This Row],[Bin1]])=0)*(MOD(Table6[Bin9],Table4[[#This Row],[Bin2]])=0)*(MOD(Table6[Bin9],Table4[[#This Row],[Bin3]])=0)*(MOD(Table6[Bin9],Table4[[#This Row],[Bin4]])=0)*(MOD(Table6[Bin9],Table4[[#This Row],[Bin5]])=0)*(MOD(Table6[Bin9],Table4[[#This Row],[Bin6]])=0)),SUMPRODUCT((MOD(Table6[Bin9],Table4[[#This Row],[Bin1]])=0)*(MOD(Table6[Bin9],Table4[[#This Row],[Bin2]])=0)*(MOD(Table6[Bin9],Table4[[#This Row],[Bin3]])=0)*(MOD(Table6[Bin9],Table4[[#This Row],[Bin4]])=0)*(MOD(Table6[Bin9],Table4[[#This Row],[Bin5]])=0)*(MOD(Table6[Bin9],Table4[[#This Row],[Bin6]])=0)*(MOD(Table6[Bin9],Table4[[#This Row],[Bin7]])=0)),SUMPRODUCT((MOD(Table6[Bin9],Table4[[#This Row],[Bin1]])=0)*(MOD(Table6[Bin9],Table4[[#This Row],[Bin2]])=0)*(MOD(Table6[Bin9],Table4[[#This Row],[Bin3]])=0)*(MOD(Table6[Bin9],Table4[[#This Row],[Bin4]])=0)*(MOD(Table6[Bin9],Table4[[#This Row],[Bin5]])=0)*(MOD(Table6[Bin9],Table4[[#This Row],[Bin6]])=0)*(MOD(Table6[Bin9],Table4[[#This Row],[Bin7]])=0)*(MOD(Table6[Bin9],Table4[[#This Row],[Bin8]])=0))) -> 3
B85: 3 | C85: 17 | D85: 23 | J85: =COUNTA(Table4[[#This Row],[Bin1]:[Bin8]]) -> 3 | K85: =CHOOSE(Table4[[#This Row],[Bin9]],0,SUMPRODUCT((MOD(Table6[Bin9],Table4[[#This Row],[Bin1]])=0)*(MOD(Table6[Bin9],Table4[[#This Row],[Bin2]])=0)),SUMPRODUCT((MOD(Table6[Bin9],Table4[[#This Row],[Bin1]])=0)*(MOD(Table6[Bin9],Table4[[#This Row],[Bin2]])=0)*(MOD(Table6[Bin9],Table4[[#This Row],[Bin3]])=0)),SUMPRODUCT((MOD(Table6[Bin9],Table4[[#This Row],[Bin1]])=0)*(MOD(Table6[Bin9],Table4[[#This Row],[Bin2]])=0)*(MOD(Table6[Bin9],Table4[[#This Row],[Bin3]])=0)*(MOD(Table6[Bin9],Table4[[#This Row],[Bin4]])=0)),SUMPRODUCT((MOD(Table6[Bin9],Table4[[#This Row],[Bin1]])=0)*(MOD(Table6[Bin9],Table4[[#This Row],[Bin2]])=0)*(MOD(Table6[Bin9],Table4[[#This Row],[Bin3]])=0)*(MOD(Table6[Bin9],Table4[[#This Row],[Bin4]])=0)*(MOD(Table6[Bin9],Table4[[#This Row],[Bin5]])=0)),SUMPRODUCT((MOD(Table6[Bin9],Table4[[#This Row],[Bin1]])=0)*(MOD(Table6[Bin9],Table4[[#This Row],[Bin2]])=0)*(MOD(Table6[Bin9],Table4[[#This Row],[Bin3]])=0)*(MOD(Table6[Bin9],Table4[[#This Row],[Bin4]])=0)*(MOD(Table6[Bin9],Table4[[#This Row],[Bin5]])=0)*(MOD(Table6[Bin9],Table4[[#This Row],[Bin6]])=0)),SUMPRODUCT((MOD(Table6[Bin9],Table4[[#This Row],[Bin1]])=0)*(MOD(Table6[Bin9],Table4[[#This Row],[Bin2]])=0)*(MOD(Table6[Bin9],Table4[[#This Row],[Bin3]])=0)*(MOD(Table6[Bin9],Table4[[#This Row],[Bin4]])=0)*(MOD(Table6[Bin9],Table4[[#This Row],[Bin5]])=0)*(MOD(Table6[Bin9],Table4[[#This Row],[Bin6]])=0)*(MOD(Table6[Bin9],Table4[[#This Row],[Bin7]])=0)),SUMPRODUCT((MOD(Table6[Bin9],Table4[[#This Row],[Bin1]])=0)*(MOD(Table6[Bin9],Table4[[#This Row],[Bin2]])=0)*(MOD(Table6[Bin9],Table4[[#This Row],[Bin3]])=0)*(MOD(Table6[Bin9],Table4[[#This Row],[Bin4]])=0)*(MOD(Table6[Bin9],Table4[[#This Row],[Bin5]])=0)*(MOD(Table6[Bin9],Table4[[#This Row],[Bin6]])=0)*(MOD(Table6[Bin9],Table4[[#This Row],[Bin7]])=0)*(MOD(Table6[Bin9],Table4[[#This Row],[Bin8]])=0))) -> 3
B86: 5 | C86: 17 | D86: 23 | J86: =COUNTA(Table4[[#This Row],[Bin1]:[Bin8]]) -> 3 | K86: =CHOOSE(Table4[[#This Row],[Bin9]],0,SUMPRODUCT((MOD(Table6[Bin9],Table4[[#This Row],[Bin1]])=0)*(MOD(Table6[Bin9],Table4[[#This Row],[Bin2]])=0)),SUMPRODUCT((MOD(Table6[Bin9],Table4[[#This Row],[Bin1]])=0)*(MOD(Table6[Bin9],Table4[[#This Row],[Bin2]])=0)*(MOD(Table6[Bin9],Table4[[#This Row],[Bin3]])=0)),SUMPRODUCT((MOD(Table6[Bin9],Table4[[#This Row],[Bin1]])=0)*(MOD(Table6[Bin9],Table4[[#This Row],[Bin2]])=0)*(MOD(Table6[Bin9],Table4[[#This Row],[Bin3]])=0)*(MOD(Table6[Bin9],Table4[[#This Row],[Bin4]])=0)),SUMPRODUCT((MOD(Table6[Bin9],Table4[[#This Row],[Bin1]])=0)*(MOD(Table6[Bin9],Table4[[#This Row],[Bin2]])=0)*(MOD(Table6[Bin9],Table4[[#This Row],[Bin3]])=0)*(MOD(Table6[Bin9],Table4[[#This Row],[Bin4]])=0)*(MOD(Table6[Bin9],Table4[[#This Row],[Bin5]])=0)),SUMPRODUCT((MOD(Table6[Bin9],Table4[[#This Row],[Bin1]])=0)*(MOD(Table6[Bin9],Table4[[#This Row],[Bin2]])=0)*(MOD(Table6[Bin9],Table4[[#This Row],[Bin3]])=0)*(MOD(Table6[Bin9],Table4[[#This Row],[Bin4]])=0)*(MOD(Table6[Bin9],Table4[[#This Row],[Bin5]])=0)*(MOD(Table6[Bin9],Table4[[#This Row],[Bin6]])=0)),SUMPRODUCT((MOD(Table6[Bin9],Table4[[#This Row],[Bin1]])=0)*(MOD(Table6[Bin9],Table4[[#This Row],[Bin2]])=0)*(MOD(Table6[Bin9],Table4[[#This Row],[Bin3]])=0)*(MOD(Table6[Bin9],Table4[[#This Row],[Bin4]])=0)*(MOD(Table6[Bin9],Table4[[#This Row],[Bin5]])=0)*(MOD(Table6[Bin9],Table4[[#This Row],[Bin6]])=0)*(MOD(Table6[Bin9],Table4[[#This Row],[Bin7]])=0)),SUMPRODUCT((MOD(Table6[Bin9],Table4[[#This Row],[Bin1]])=0)*(MOD(Table6[Bin9],Table4[[#This Row],[Bin2]])=0)*(MOD(Table6[Bin9],Table4[[#This Row],[Bin3]])=0)*(MOD(Table6[Bin9],Table4[[#This Row],[Bin4]])=0)*(MOD(Table6[Bin9],Table4[[#This Row],[Bin5]])=0)*(MOD(Table6[Bin9],Table4[[#This Row],[Bin6]])=0)*(MOD(Table6[Bin9],Table4[[#This Row],[Bin7]])=0)*(MOD(Table6[Bin9],Table4[[#This Row],[Bin8]])=0))) -> 1
B87: 7 | C87: 17 | D87: 23 | J87: =COUNTA(Table4[[#This Row],[Bin1]:[Bin8]]) -> 3 | K87: =CHOOSE(Table4[[#This Row],[Bin9]],0,SUMPRODUCT((MOD(Table6[Bin9],Table4[[#This Row],[Bin1]])=0)*(MOD(Table6[Bin9],Table4[[#This Row],[Bin2]])=0)),SUMPRODUCT((MOD(Table6[Bin9],Table4[[#This Row],[Bin1]])=0)*(MOD(Table6[Bin9],Table4[[#This Row],[Bin2]])=0)*(MOD(Table6[Bin9],Table4[[#This Row],[Bin3]])=0)),SUMPRODUCT((MOD(Table6[Bin9],Table4[[#This Row],[Bin1]])=0)*(MOD(Table6[Bin9],Table4[[#This Row],[Bin2]])=0)*(MOD(Table6[Bin9],Table4[[#This Row],[Bin3]])=0)*(MOD(Table6[Bin9],Table4[[#This Row],[Bin4]])=0)),SUMPRODUCT((MOD(Table6[Bin9],Table4[[#This Row],[Bin1]])=0)*(MOD(Table6[Bin9],Table4[[#This Row],[Bin2]])=0)*(MOD(Table6[Bin9],Table4[[#This Row],[Bin3]])=0)*(MOD(Table6[Bin9],Table4[[#This Row],[Bin4]])=0)*(MOD(Table6[Bin9],Table4[[#This Row],[Bin5]])=0)),SUMPRODUCT((MOD(Table6[Bin9],Table4[[#This Row],[Bin1]])=0)*(MOD(Table6[Bin9],Table4[[#This Row],[Bin2]])=0)*(MOD(Table6[Bin9],Table4[[#This Row],[Bin3]])=0)*(MOD(Table6[Bin9],Table4[[#This Row],[Bin4]])=0)*(MOD(Table6[Bin9],Table4[[#This Row],[Bin5]])=0)*(MOD(Table6[Bin9],Table4[[#This Row],[Bin6]])=0)),SUMPRODUCT((MOD(Table6[Bin9],Table4[[#This Row],[Bin1]])=0)*(MOD(Table6[Bin9],Table4[[#This Row],[Bin2]])=0)*(MOD(Table6[Bin9],Table4[[#This Row],[Bin3]])=0)*(MOD(Table6[Bin9],Table4[[#This Row],[Bin4]])=0)*(MOD(Table6[Bin9],Table4[[#This Row],[Bin5]])=0)*(MOD(Table6[Bin9],Table4[[#This Row],[Bin6]])=0)*(MOD(Table6[Bin9],Table4[[#This Row],[Bin7]])=0)),SUMPRODUCT((MOD(Table6[Bin9],Table4[[#This Row],[Bin1]])=0)*(MOD(Table6[Bin9],Table4[[#This Row],[Bin2]])=0)*(MOD(Table6[Bin9],Table4[[#This Row],[Bin3]])=0)*(MOD(Table6[Bin9],Table4[[#This Row],[Bin4]])=0)*(MOD(Table6[Bin9],Table4[[#This Row],[Bin5]])=0)*(MOD(Table6[Bin9],Table4[[#This Row],[Bin6]])=0)*(MOD(Table6[Bin9],Table4[[#This Row],[Bin7]])=0)*(MOD(Table6[Bin9],Table4[[#This Row],[Bin8]])=0))) -> 3
B88: 11 | C88: 17 | D88: 23 | J88: =COUNTA(Table4[[#This Row],[Bin1]:[Bin8]]) -> 3 | K88: =CHOOSE(Table4[[#This Row],[Bin9]],0,SUMPRODUCT((MOD(Table6[Bin9],Table4[[#This Row],[Bin1]])=0)*(MOD(Table6[Bin9],Table4[[#This Row],[Bin2]])=0)),SUMPRODUCT((MOD(Table6[Bin9],Table4[[#This Row],[Bin1]])=0)*(MOD(Table6[Bin9],Table4[[#This Row],[Bin2]])=0)*(MOD(Table6[Bin9],Table4[[#This Row],[Bin3]])=0)),SUMPRODUCT((MOD(Table6[Bin9],Table4[[#This Row],[Bin1]])=0)*(MOD(Table6[Bin9],Table4[[#This Row],[Bin2]])=0)*(MOD(Table6[Bin9],Table4[[#This Row],[Bin3]])=0)*(MOD(Table6[Bin9],Table4[[#This Row],[Bin4]])=0)),SUMPRODUCT((MOD(Table6[Bin9],Table4[[#This Row],[Bin1]])=0)*(MOD(Table6[Bin9],Table4[[#This Row],[Bin2]])=0)*(MOD(Table6[Bin9],Table4[[#This Row],[Bin3]])=0)*(MOD(Table6[Bin9],Table4[[#This Row],[Bin4]])=0)*(MOD(Table6[Bin9],Table4[[#This Row],[Bin5]])=0)),SUMPRODUCT((MOD(Table6[Bin9],Table4[[#This Row],[Bin1]])=0)*(MOD(Table6[Bin9],Table4[[#This Row],[Bin2]])=0)*(MOD(Table6[Bin9],Table4[[#This Row],[Bin3]])=0)*(MOD(Table6[Bin9],Table4[[#This Row],[Bin4]])=0)*(MOD(Table6[Bin9],Table4[[#This Row],[Bin5]])=0)*(MOD(Table6[Bin9],Table4[[#This Row],[Bin6]])=0)),SUMPRODUCT((MOD(Table6[Bin9],Table4[[#This Row],[Bin1]])=0)*(MOD(Table6[Bin9],Table4[[#This Row],[Bin2]])=0)*(MOD(Table6[Bin9],Table4[[#This Row],[Bin3]])=0)*(MOD(Table6[Bin9],Table4[[#This Row],[Bin4]])=0)*(MOD(Table6[Bin9],Table4[[#This Row],[Bin5]])=0)*(MOD(Table6[Bin9],Table4[[#This Row],[Bin6]])=0)*(MOD(Table6[Bin9],Table4[[#This Row],[Bin7]])=0)),SUMPRODUCT((MOD(Table6[Bin9],Table4[[#This Row],[Bin1]])=0)*(MOD(Table6[Bin9],Table4[[#This Row],[Bin2]])=0)*(MOD(Table6[Bin9],Table4[[#This Row],[Bin3]])=0)*(MOD(Table6[Bin9],Table4[[#This Row],[Bin4]])=0)*(MOD(Table6[Bin9],Table4[[#This Row],[Bin5]])=0)*(MOD(Table6[Bin9],Table4[[#This Row],[Bin6]])=0)*(MOD(Table6[Bin9],Table4[[#This Row],[Bin7]])=0)*(MOD(Table6[Bin9],Table4[[#This Row],[Bin8]])=0))) -> 4
B89: 13 | C89: 17 | D89: 23 | J89: =COUNTA(Table4[[#This Row],[Bin1]:[Bin8]]) -> 3 | K89: =CHOOSE(Table4[[#This Row],[Bin9]],0,SUMPRODUCT((MOD(Table6[Bin9],Table4[[#This Row],[Bin1]])=0)*(MOD(Table6[Bin9],Table4[[#This Row],[Bin2]])=0)),SUMPRODUCT((MOD(Table6[Bin9],Table4[[#This Row],[Bin1]])=0)*(MOD(Table6[Bin9],Table4[[#This Row],[Bin2]])=0)*(MOD(Table6[Bin9],Table4[[#This Row],[Bin3]])=0)),SUMPRODUCT((MOD(Table6[Bin9],Table4[[#This Row],[Bin1]])=0)*(MOD(Table6[Bin9],Table4[[#This Row],[Bin2]])=0)*(MOD(Table6[Bin9],Table4[[#This Row],[Bin3]])=0)*(MOD(Table6[Bin9],Table4[[#This Row],[Bin4]])=0)),SUMPRODUCT((MOD(Table6[Bin9],Table4[[#This Row],[Bin1]])=0)*(MOD(Table6[Bin9],Table4[[#This Row],[Bin2]])=0)*(MOD(Table6[Bin9],Table4[[#This Row],[Bin3]])=0)*(MOD(Table6[Bin9],Table4[[#This Row],[Bin4]])=0)*(MOD(Table6[Bin9],Table4[[#This Row],[Bin5]])=0)),SUMPRODUCT((MOD(Table6[Bin9],Table4[[#This Row],[Bin1]])=0)*(MOD(Table6[Bin9],Table4[[#This Row],[Bin2]])=0)*(MOD(Table6[Bin9],Table4[[#This Row],[Bin3]])=0)*(MOD(Table6[Bin9],Table4[[#This Row],[Bin4]])=0)*(MOD(Table6[Bin9],Table4[[#This Row],[Bin5]])=0)*(MOD(Table6[Bin9],Table4[[#This Row],[Bin6]])=0)),SUMPRODUCT((MOD(Table6[Bin9],Table4[[#This Row],[Bin1]])=0)*(MOD(Table6[Bin9],Table4[[#This Row],[Bin2]])=0)*(MOD(Table6[Bin9],Table4[[#This Row],[Bin3]])=0)*(MOD(Table6[Bin9],Table4[[#This Row],[Bin4]])=0)*(MOD(Table6[Bin9],Table4[[#This Row],[Bin5]])=0)*(MOD(Table6[Bin9],Table4[[#This Row],[Bin6]])=0)*(MOD(Table6[Bin9],Table4[[#This Row],[Bin7]])=0)),SUMPRODUCT((MOD(Table6[Bin9],Table4[[#This Row],[Bin1]])=0)*(MOD(Table6[Bin9],Table4[[#This Row],[Bin2]])=0)*(MOD(Table6[Bin9],Table4[[#This Row],[Bin3]])=0)*(MOD(Table6[Bin9],Table4[[#This Row],[Bin4]])=0)*(MOD(Table6[Bin9],Table4[[#This Row],[Bin5]])=0)*(MOD(Table6[Bin9],Table4[[#This Row],[Bin6]])=0)*(MOD(Table6[Bin9],Table4[[#This Row],[Bin7]])=0)*(MOD(Table6[Bin9],Table4[[#This Row],[Bin8]])=0))) -> 2
B90: 3 | C90: 19 | D90: 23 | J90: =COUNTA(Table4[[#This Row],[Bin1]:[Bin8]]) -> 3 | K90: =CHOOSE(Table4[[#This Row],[Bin9]],0,SUMPRODUCT((MOD(Table6[Bin9],Table4[[#This Row],[Bin1]])=0)*(MOD(Table6[Bin9],Table4[[#This Row],[Bin2]])=0)),SUMPRODUCT((MOD(Table6[Bin9],Table4[[#This Row],[Bin1]])=0)*(MOD(Table6[Bin9],Table4[[#This Row],[Bin2]])=0)*(MOD(Table6[Bin9],Table4[[#This Row],[Bin3]])=0)),SUMPRODUCT((MOD(Table6[Bin9],Table4[[#This Row],[Bin1]])=0)*(MOD(Table6[Bin9],Table4[[#This Row],[Bin2]])=0)*(MOD(Table6[Bin9],Table4[[#This Row],[Bin3]])=0)*(MOD(Table6[Bin9],Table4[[#This Row],[Bin4]])=0)),SUMPRODUCT((MOD(Table6[Bin9],Table4[[#This Row],[Bin1]])=0)*(MOD(Table6[Bin9],Table4[[#This Row],[Bin2]])=0)*(MOD(Table6[Bin9],Table4[[#This Row],[Bin3]])=0)*(MOD(Table6[Bin9],Table4[[#This Row],[Bin4]])=0)*(MOD(Table6[Bin9],Table4[[#This Row],[Bin5]])=0)),SUMPRODUCT((MOD(Table6[Bin9],Table4[[#This Row],[Bin1]])=0)*(MOD(Table6[Bin9],Table4[[#This Row],[Bin2]])=0)*(MOD(Table6[Bin9],Table4[[#This Row],[Bin3]])=0)*(MOD(Table6[Bin9],Table4[[#This Row],[Bin4]])=0)*(MOD(Table6[Bin9],Table4[[#This Row],[Bin5]])=0)*(MOD(Table6[Bin9],Table4[[#This Row],[Bin6]])=0)),SUMPRODUCT((MOD(Table6[Bin9],Table4[[#This Row],[Bin1]])=0)*(MOD(Table6[Bin9],Table4[[#This Row],[Bin2]])=0)*(MOD(Table6[Bin9],Table4[[#This Row],[Bin3]])=0)*(MOD(Table6[Bin9],Table4[[#This Row],[Bin4]])=0)*(MOD(Table6[Bin9],Table4[[#This Row],[Bin5]])=0)*(MOD(Table6[Bin9],Table4[[#This Row],[Bin6]])=0)*(MOD(Table6[Bin9],Table4[[#This Row],[Bin7]])=0)),SUMPRODUCT((MOD(Table6[Bin9],Table4[[#This Row],[Bin1]])=0)*(MOD(Table6[Bin9],Table4[[#This Row],[Bin2]])=0)*(MOD(Table6[Bin9],Table4[[#This Row],[Bin3]])=0)*(MOD(Table6[Bin9],Table4[[#This Row],[Bin4]])=0)*(MOD(Table6[Bin9],Table4[[#This Row],[Bin5]])=0)*(MOD(Table6[Bin9],Table4[[#This Row],[Bin6]])=0)*(MOD(Table6[Bin9],Table4[[#This Row],[Bin7]])=0)*(MOD(Table6[Bin9],Table4[[#This Row],[Bin8]])=0))) -> 2
B91: 5 | C91: 19 | D91: 23 | J91: =COUNTA(Table4[[#This Row],[Bin1]:[Bin8]]) -> 3 | K91: =CHOOSE(Table4[[#This Row],[Bin9]],0,SUMPRODUCT((MOD(Table6[Bin9],Table4[[#This Row],[Bin1]])=0)*(MOD(Table6[Bin9],Table4[[#This Row],[Bin2]])=0)),SUMPRODUCT((MOD(Table6[Bin9],Table4[[#This Row],[Bin1]])=0)*(MOD(Table6[Bin9],Table4[[#This Row],[Bin2]])=0)*(MOD(Table6[Bin9],Table4[[#This Row],[Bin3]])=0)),SUMPRODUCT((MOD(Table6[Bin9],Table4[[#This Row],[Bin1]])=0)*(MOD(Table6[Bin9],Table4[[#This Row],[Bin2]])=0)*(MOD(Table6[Bin9],Table4[[#This Row],[Bin3]])=0)*(MOD(Table6[Bin9],Table4[[#This Row],[Bin4]])=0)),SUMPRODUCT((MOD(Table6[Bin9],Table4[[#This Row],[Bin1]])=0)*(MOD(Table6[Bin9],Table4[[#This Row],[Bin2]])=0)*(MOD(Table6[Bin9],Table4[[#This Row],[Bin3]])=0)*(MOD(Table6[Bin9],Table4[[#This Row],[Bin4]])=0)*(MOD(Table6[Bin9],Table4[[#This Row],[Bin5]])=0)),SUMPRODUCT((MOD(Table6[Bin9],Table4[[#This Row],[Bin1]])=0)*(MOD(Table6[Bin9],Table4[[#This Row],[Bin2]])=0)*(MOD(Table6[Bin9],Table4[[#This Row],[Bin3]])=0)*(MOD(Table6[Bin9],Table4[[#This Row],[Bin4]])=0)*(MOD(Table6[Bin9],Table4[[#This Row],[Bin5]])=0)*(MOD(Table6[Bin9],Table4[[#This Row],[Bin6]])=0)),SUMPRODUCT((MOD(Table6[Bin9],Table4[[#This Row],[Bin1]])=0)*(MOD(Table6[Bin9],Table4[[#This Row],[Bin2]])=0)*(MOD(Table6[Bin9],Table4[[#This Row],[Bin3]])=0)*(MOD(Table6[Bin9],Table4[[#This Row],[Bin4]])=0)*(MOD(Table6[Bin9],Table4[[#This Row],[Bin5]])=0)*(MOD(Table6[Bin9],Table4[[#This Row],[Bin6]])=0)*(MOD(Table6[Bin9],Table4[[#This Row],[Bin7]])=0)),SUMPRODUCT((MOD(Table6[Bin9],Table4[[#This Row],[Bin1]])=0)*(MOD(Table6[Bin9],Table4[[#This Row],[Bin2]])=0)*(MOD(Table6[Bin9],Table4[[#This Row],[Bin3]])=0)*(MOD(Table6[Bin9],Table4[[#This Row],[Bin4]])=0)*(MOD(Table6[Bin9],Table4[[#This Row],[Bin5]])=0)*(MOD(Table6[Bin9],Table4[[#This Row],[Bin6]])=0)*(MOD(Table6[Bin9],Table4[[#This Row],[Bin7]])=0)*(MOD(Table6[Bin9],Table4[[#This Row],[Bin8]])=0))) -> 2
B92: 7 | C92: 19 | D92: 23 | J92: =COUNTA(Table4[[#This Row],[Bin1]:[Bin8]]) -> 3 | K92: =CHOOSE(Table4[[#This Row],[Bin9]],0,SUMPRODUCT((MOD(Table6[Bin9],Table4[[#This Row],[Bin1]])=0)*(MOD(Table6[Bin9],Table4[[#This Row],[Bin2]])=0)),SUMPRODUCT((MOD(Table6[Bin9],Table4[[#This Row],[Bin1]])=0)*(MOD(Table6[Bin9],Table4[[#This Row],[Bin2]])=0)*(MOD(Table6[Bin9],Table4[[#This Row],[Bin3]])=0)),SUMPRODUCT((MOD(Table6[Bin9],Table4[[#This Row],[Bin1]])=0)*(MOD(Table6[Bin9],Table4[[#This Row],[Bin2]])=0)*(MOD(Table6[Bin9],Table4[[#This Row],[Bin3]])=0)*(MOD(Table6[Bin9],Table4[[#This Row],[Bin4]])=0)),SUMPRODUCT((MOD(Table6[Bin9],Table4[[#This Row],[Bin1]])=0)*(MOD(Table6[Bin9],Table4[[#This Row],[Bin2]])=0)*(MOD(Table6[Bin9],Table4[[#This Row],[Bin3]])=0)*(MOD(Table6[Bin9],Table4[[#This Row],[Bin4]])=0)*(MOD(Table6[Bin9],Table4[[#This Row],[Bin5]])=0)),SUMPRODUCT((MOD(Table6[Bin9],Table4[[#This Row],[Bin1]])=0)*(MOD(Table6[Bin9],Table4[[#This Row],[Bin2]])=0)*(MOD(Table6[Bin9],Table4[[#This Row],[Bin3]])=0)*(MOD(Table6[Bin9],Table4[[#This Row],[Bin4]])=0)*(MOD(Table6[Bin9],Table4[[#This Row],[Bin5]])=0)*(MOD(Table6[Bin9],Table4[[#This Row],[Bin6]])=0)),SUMPRODUCT((MOD(Table6[Bin9],Table4[[#This Row],[Bin1]])=0)*(MOD(Table6[Bin9],Table4[[#This Row],[Bin2]])=0)*(MOD(Table6[Bin9],Table4[[#This Row],[Bin3]])=0)*(MOD(Table6[Bin9],Table4[[#This Row],[Bin4]])=0)*(MOD(Table6[Bin9],Table4[[#This Row],[Bin5]])=0)*(MOD(Table6[Bin9],Table4[[#This Row],[Bin6]])=0)*(MOD(Table6[Bin9],Table4[[#This Row],[Bin7]])=0)),SUMPRODUCT((MOD(Table6[Bin9],Table4[[#This Row],[Bin1]])=0)*(MOD(Table6[Bin9],Table4[[#This Row],[Bin2]])=0)*(MOD(Table6[Bin9],Table4[[#This Row],[Bin3]])=0)*(MOD(Table6[Bin9],Table4[[#This Row],[Bin4]])=0)*(MOD(Table6[Bin9],Table4[[#This Row],[Bin5]])=0)*(MOD(Table6[Bin9],Table4[[#This Row],[Bin6]])=0)*(MOD(Table6[Bin9],Table4[[#This Row],[Bin7]])=0)*(MOD(Table6[Bin9],Table4[[#This Row],[Bin8]])=0))) -> 5
B93: 11 | C93: 19 | D93: 23 | J93: =COUNTA(Table4[[#This Row],[Bin1]:[Bin8]]) -> 3 | K93: =CHOOSE(Table4[[#This Row],[Bin9]],0,SUMPRODUCT((MOD(Table6[Bin9],Table4[[#This Row],[Bin1]])=0)*(MOD(Table6[Bin9],Table4[[#This Row],[Bin2]])=0)),SUMPRODUCT((MOD(Table6[Bin9],Table4[[#This Row],[Bin1]])=0)*(MOD(Table6[Bin9],Table4[[#This Row],[Bin2]])=0)*(MOD(Table6[Bin9],Table4[[#This Row],[Bin3]])=0)),SUMPRODUCT((MOD(Table6[Bin9],Table4[[#This Row],[Bin1]])=0)*(MOD(Table6[Bin9],Table4[[#This Row],[Bin2]])=0)*(MOD(Table6[Bin9],Table4[[#This Row],[Bin3]])=0)*(MOD(Table6[Bin9],Table4[[#This Row],[Bin4]])=0)),SUMPRODUCT((MOD(Table6[Bin9],Table4[[#This Row],[Bin1]])=0)*(MOD(Table6[Bin9],Table4[[#This Row],[Bin2]])=0)*(MOD(Table6[Bin9],Table4[[#This Row],[Bin3]])=0)*(MOD(Table6[Bin9],Table4[[#This Row],[Bin4]])=0)*(MOD(Table6[Bin9],Table4[[#This Row],[Bin5]])=0)),SUMPRODUCT((MOD(Table6[Bin9],Table4[[#This Row],[Bin1]])=0)*(MOD(Table6[Bin9],Table4[[#This Row],[Bin2]])=0)*(MOD(Table6[Bin9],Table4[[#This Row],[Bin3]])=0)*(MOD(Table6[Bin9],Table4[[#This Row],[Bin4]])=0)*(MOD(Table6[Bin9],Table4[[#This Row],[Bin5]])=0)*(MOD(Table6[Bin9],Table4[[#This Row],[Bin6]])=0)),SUMPRODUCT((MOD(Table6[Bin9],Table4[[#This Row],[Bin1]])=0)*(MOD(Table6[Bin9],Table4[[#This Row],[Bin2]])=0)*(MOD(Table6[Bin9],Table4[[#This Row],[Bin3]])=0)*(MOD(Table6[Bin9],Table4[[#This Row],[Bin4]])=0)*(MOD(Table6[Bin9],Table4[[#This Row],[Bin5]])=0)*(MOD(Table6[Bin9],Table4[[#This Row],[Bin6]])=0)*(MOD(Table6[Bin9],Table4[[#This Row],[Bin7]])=0)),SUMPRODUCT((MOD(Table6[Bin9],Table4[[#This Row],[Bin1]])=0)*(MOD(Table6[Bin9],Table4[[#This Row],[Bin2]])=0)*(MOD(Table6[Bin9],Table4[[#This Row],[Bin3]])=0)*(MOD(Table6[Bin9],Table4[[#This Row],[Bin4]])=0)*(MOD(Table6[Bin9],Table4[[#This Row],[Bin5]])=0)*(MOD(Table6[Bin9],Table4[[#This Row],[Bin6]])=0)*(MOD(Table6[Bin9],Table4[[#This Row],[Bin7]])=0)*(MOD(Table6[Bin9],Table4[[#This Row],[Bin8]])=0))) -> 3
B94: 13 | C94: 19 | D94: 23 | J94: =COUNTA(Table4[[#This Row],[Bin1]:[Bin8]]) -> 3 | K94: =CHOOSE(Table4[[#This Row],[Bin9]],0,SUMPRODUCT((MOD(Table6[Bin9],Table4[[#This Row],[Bin1]])=0)*(MOD(Table6[Bin9],Table4[[#This Row],[Bin2]])=0)),SUMPRODUCT((MOD(Table6[Bin9],Table4[[#This Row],[Bin1]])=0)*(MOD(Table6[Bin9],Table4[[#This Row],[Bin2]])=0)*(MOD(Table6[Bin9],Table4[[#This Row],[Bin3]])=0)),SUMPRODUCT((MOD(Table6[Bin9],Table4[[#This Row],[Bin1]])=0)*(MOD(Table6[Bin9],Table4[[#This Row],[Bin2]])=0)*(MOD(Table6[Bin9],Table4[[#This Row],[Bin3]])=0)*(MOD(Table6[Bin9],Table4[[#This Row],[Bin4]])=0)),SUMPRODUCT((MOD(Table6[Bin9],Table4[[#This Row],[Bin1]])=0)*(MOD(Table6[Bin9],Table4[[#This Row],[Bin2]])=0)*(MOD(Table6[Bin9],Table4[[#This Row],[Bin3]])=0)*(MOD(Table6[Bin9],Table4[[#This Row],[Bin4]])=0)*(MOD(Table6[Bin9],Table4[[#This Row],[Bin5]])=0)),SUMPRODUCT((MOD(Table6[Bin9],Table4[[#This Row],[Bin1]])=0)*(MOD(Table6[Bin9],Table4[[#This Row],[Bin2]])=0)*(MOD(Table6[Bin9],Table4[[#This Row],[Bin3]])=0)*(MOD(Table6[Bin9],Table4[[#This Row],[Bin4]])=0)*(MOD(Table6[Bin9],Table4[[#This Row],[Bin5]])=0)*(MOD(Table6[Bin9],Table4[[#This Row],[Bin6]])=0)),SUMPRODUCT((MOD(Table6[Bin9],Table4[[#This Row],[Bin1]])=0)*(MOD(Table6[Bin9],Table4[[#This Row],[Bin2]])=0)*(MOD(Table6[Bin9],Table4[[#This Row],[Bin3]])=0)*(MOD(Table6[Bin9],Table4[[#This Row],[Bin4]])=0)*(MOD(Table6[Bin9],Table4[[#This Row],[Bin5]])=0)*(MOD(Table6[Bin9],Table4[[#This Row],[Bin6]])=0)*(MOD(Table6[Bin9],Table4[[#This Row],[Bin7]])=0)),SUMPRODUCT((MOD(Table6[Bin9],Table4[[#This Row],[Bin1]])=0)*(MOD(Table6[Bin9],Table4[[#This Row],[Bin2]])=0)*(MOD(Table6[Bin9],Table4[[#This Row],[Bin3]])=0)*(MOD(Table6[Bin9],Table4[[#This Row],[Bin4]])=0)*(MOD(Table6[Bin9],Table4[[#This Row],[Bin5]])=0)*(MOD(Table6[Bin9],Table4[[#This Row],[Bin6]])=0)*(MOD(Table6[Bin9],Table4[[#This Row],[Bin7]])=0)*(MOD(Table6[Bin9],Table4[[#This Row],[Bin8]])=0))) -> 2
B95: 17 | C95: 19 | D95: 23 | J95: =COUNTA(Table4[[#This Row],[Bin1]:[Bin8]]) -> 3 | K95: =CHOOSE(Table4[[#This Row],[Bin9]],0,SUMPRODUCT((MOD(Table6[Bin9],Table4[[#This Row],[Bin1]])=0)*(MOD(Table6[Bin9],Table4[[#This Row],[Bin2]])=0)),SUMPRODUCT((MOD(Table6[Bin9],Table4[[#This Row],[Bin1]])=0)*(MOD(Table6[Bin9],Table4[[#This Row],[Bin2]])=0)*(MOD(Table6[Bin9],Table4[[#This Row],[Bin3]])=0)),SUMPRODUCT((MOD(Table6[Bin9],Table4[[#This Row],[Bin1]])=0)*(MOD(Table6[Bin9],Table4[[#This Row],[Bin2]])=0)*(MOD(Table6[Bin9],Table4[[#This Row],[Bin3]])=0)*(MOD(Table6[Bin9],Table4[[#This Row],[Bin4]])=0)),SUMPRODUCT((MOD(Table6[Bin9],Table4[[#This Row],[Bin1]])=0)*(MOD(Table6[Bin9],Table4[[#This Row],[Bin2]])=0)*(MOD(Table6[Bin9],Table4[[#This Row],[Bin3]])=0)*(MOD(Table6[Bin9],Table4[[#This Row],[Bin4]])=0)*(MOD(Table6[Bin9],Table4[[#This Row],[Bin5]])=0)),SUMPRODUCT((MOD(Table6[Bin9],Table4[[#This Row],[Bin1]])=0)*(MOD(Table6[Bin9],Table4[[#This Row],[Bin2]])=0)*(MOD(Table6[Bin9],Table4[[#This Row],[Bin3]])=0)*(MOD(Table6[Bin9],Table4[[#This Row],[Bin4]])=0)*(MOD(Table6[Bin9],Table4[[#This Row],[Bin5]])=0)*(MOD(Table6[Bin9],Table4[[#This Row],[Bin6]])=0)),SUMPRODUCT((MOD(Table6[Bin9],Table4[[#This Row],[Bin1]])=0)*(MOD(Table6[Bin9],Table4[[#This Row],[Bin2]])=0)*(MOD(Table6[Bin9],Table4[[#This Row],[Bin3]])=0)*(MOD(Table6[Bin9],Table4[[#This Row],[Bin4]])=0)*(MOD(Table6[Bin9],Table4[[#This Row],[Bin5]])=0)*(MOD(Table6[Bin9],Table4[[#This Row],[Bin6]])=0)*(MOD(Table6[Bin9],Table4[[#This Row],[Bin7]])=0)),SUMPRODUCT((MOD(Table6[Bin9],Table4[[#This Row],[Bin1]])=0)*(MOD(Table6[Bin9],Table4[[#This Row],[Bin2]])=0)*(MOD(Table6[Bin9],Table4[[#This Row],[Bin3]])=0)*(MOD(Table6[Bin9],Table4[[#This Row],[Bin4]])=0)*(MOD(Table6[Bin9],Table4[[#This Row],[Bin5]])=0)*(MOD(Table6[Bin9],Table4[[#This Row],[Bin6]])=0)*(MOD(Table6[Bin9],Table4[[#This Row],[Bin7]])=0)*(MOD(Table6[Bin9],Table4[[#This Row],[Bin8]])=0))) -> 1
B96: 3 | C96: 5 | D96: 7 | E96: 11 | J96: =COUNTA(Table4[[#This Row],[Bin1]:[Bin8]]) -> 4 | K96: =CHOOSE(Table4[[#This Row],[Bin9]],0,SUMPRODUCT((MOD(Table6[Bin9],Table4[[#This Row],[Bin1]])=0)*(MOD(Table6[Bin9],Table4[[#This Row],[Bin2]])=0)),SUMPRODUCT((MOD(Table6[Bin9],Table4[[#This Row],[Bin1]])=0)*(MOD(Table6[Bin9],Table4[[#This Row],[Bin2]])=0)*(MOD(Table6[Bin9],Table4[[#This Row],[Bin3]])=0)),SUMPRODUCT((MOD(Table6[Bin9],Table4[[#This Row],[Bin1]])=0)*(MOD(Table6[Bin9],Table4[[#This Row],[Bin2]])=0)*(MOD(Table6[Bin9],Table4[[#This Row],[Bin3]])=0)*(MOD(Table6[Bin9],Table4[[#This Row],[Bin4]])=0)),SUMPRODUCT((MOD(Table6[Bin9],Table4[[#This Row],[Bin1]])=0)*(MOD(Table6[Bin9],Table4[[#This Row],[Bin2]])=0)*(MOD(Table6[Bin9],Table4[[#This Row],[Bin3]])=0)*(MOD(Table6[Bin9],Table4[[#This Row],[Bin4]])=0)*(MOD(Table6[Bin9],Table4[[#This Row],[Bin5]])=0)),SUMPRODUCT((MOD(Table6[Bin9],Table4[[#This Row],[Bin1]])=0)*(MOD(Table6[Bin9],Table4[[#This Row],[Bin2]])=0)*(MOD(Table6[Bin9],Table4[[#This Row],[Bin3]])=0)*(MOD(Table6[Bin9],Table4[[#This Row],[Bin4]])=0)*(MOD(Table6[Bin9],Table4[[#This Row],[Bin5]])=0)*(MOD(Table6[Bin9],Table4[[#This Row],[Bin6]])=0)),SUMPRODUCT((MOD(Table6[Bin9],Table4[[#This Row],[Bin1]])=0)*(MOD(Table6[Bin9],Table4[[#This Row],[Bin2]])=0)*(MOD(Table6[Bin9],Table4[[#This Row],[Bin3]])=0)*(MOD(Table6[Bin9],Table4[[#This Row],[Bin4]])=0)*(MOD(Table6[Bin9],Table4[[#This Row],[Bin5]])=0)*(MOD(Table6[Bin9],Table4[[#This Row],[Bin6]])=0)*(MOD(Table6[Bin9],Table4[[#This Row],[Bin7]])=0)),SUMPRODUCT((MOD(Table6[Bin9],Table4[[#This Row],[Bin1]])=0)*(MOD(Table6[Bin9],Table4[[#This Row],[Bin2]])=0)*(MOD(Table6[Bin9],Table4[[#This Row],[Bin3]])=0)*(MOD(Table6[Bin9],Table4[[#This Row],[Bin4]])=0)*(MOD(Table6[Bin9],Table4[[#This Row],[Bin5]])=0)*(MOD(Table6[Bin9],Table4[[#This Row],[Bin6]])=0)*(MOD(Table6[Bin9],Table4[[#This Row],[Bin7]])=0)*(MOD(Table6[Bin9],Table4[[#This Row],[Bin8]])=0))) -> 2
B97: 3 | C97: 5 | D97: 7 | E97: 13 | J97: =COUNTA(Table4[[#This Row],[Bin1]:[Bin8]]) -> 4 | K97: =CHOOSE(Table4[[#This Row],[Bin9]],0,SUMPRODUCT((MOD(Table6[Bin9],Table4[[#This Row],[Bin1]])=0)*(MOD(Table6[Bin9],Table4[[#This Row],[Bin2]])=0)),SUMPRODUCT((MOD(Table6[Bin9],Table4[[#This Row],[Bin1]])=0)*(MOD(Table6[Bin9],Table4[[#This Row],[Bin2]])=0)*(MOD(Table6[Bin9],Table4[[#This Row],[Bin3]])=0)),SUMPRODUCT((MOD(Table6[Bin9],Table4[[#This Row],[Bin1]])=0)*(MOD(Table6[Bin9],Table4[[#This Row],[Bin2]])=0)*(MOD(Table6[Bin9],Table4[[#This Row],[Bin3]])=0)*(MOD(Table6[Bin9],Table4[[#This Row],[Bin4]])=0)),SUMPRODUCT((MOD(Table6[Bin9],Table4[[#This Row],[Bin1]])=0)*(MOD(Table6[Bin9],Table4[[#This Row],[Bin2]])=0)*(MOD(Table6[Bin9],Table4[[#This Row],[Bin3]])=0)*(MOD(Table6[Bin9],Table4[[#This Row],[Bin4]])=0)*(MOD(Table6[Bin9],Table4[[#This Row],[Bin5]])=0)),SUMPRODUCT((MOD(Table6[Bin9],Table4[[#This Row],[Bin1]])=0)*(MOD(Table6[Bin9],Table4[[#This Row],[Bin2]])=0)*(MOD(Table6[Bin9],Table4[[#This Row],[Bin3]])=0)*(MOD(Table6[Bin9],Table4[[#This Row],[Bin4]])=0)*(MOD(Table6[Bin9],Table4[[#This Row],[Bin5]])=0)*(MOD(Table6[Bin9],Table4[[#This Row],[Bin6]])=0)),SUMPRODUCT((MOD(Table6[Bin9],Table4[[#This Row],[Bin1]])=0)*(MOD(Table6[Bin9],Table4[[#This Row],[Bin2]])=0)*(MOD(Table6[Bin9],Table4[[#This Row],[Bin3]])=0)*(MOD(Table6[Bin9],Table4[[#This Row],[Bin4]])=0)*(MOD(Table6[Bin9],Table4[[#This Row],[Bin5]])=0)*(MOD(Table6[Bin9],Table4[[#This Row],[Bin6]])=0)*(MOD(Table6[Bin9],Table4[[#This Row],[Bin7]])=0)),SUMPRODUCT((MOD(Table6[Bin9],Table4[[#This Row],[Bin1]])=0)*(MOD(Table6[Bin9],Table4[[#This Row],[Bin2]])=0)*(MOD(Table6[Bin9],Table4[[#This Row],[Bin3]])=0)*(MOD(Table6[Bin9],Table4[[#This Row],[Bin4]])=0)*(MOD(Table6[Bin9],Table4[[#This Row],[Bin5]])=0)*(MOD(Table6[Bin9],Table4[[#This Row],[Bin6]])=0)*(MOD(Table6[Bin9],Table4[[#This Row],[Bin7]])=0)*(MOD(Table6[Bin9],Table4[[#This Row],[Bin8]])=0))) -> 1
B98: 3 | C98: 5 | D98: 11 | E98: 13 | J98: =COUNTA(Table4[[#This Row],[Bin1]:[Bin8]]) -> 4 | K98: =CHOOSE(Table4[[#This Row],[Bin9]],0,SUMPRODUCT((MOD(Table6[Bin9],Table4[[#This Row],[Bin1]])=0)*(MOD(Table6[Bin9],Table4[[#This Row],[Bin2]])=0)),SUMPRODUCT((MOD(Table6[Bin9],Table4[[#This Row],[Bin1]])=0)*(MOD(Table6[Bin9],Table4[[#This Row],[Bin2]])=0)*(MOD(Table6[Bin9],Table4[[#This Row],[Bin3]])=0)),SUMPRODUCT((MOD(Table6[Bin9],Table4[[#This Row],[Bin1]])=0)*(MOD(Table6[Bin9],Table4[[#This Row],[Bin2]])=0)*(MOD(Table6[Bin9],Table4[[#This Row],[Bin3]])=0)*(MOD(Table6[Bin9],Table4[[#This Row],[Bin4]])=0)),SUMPRODUCT((MOD(Table6[Bin9],Table4[[#This Row],[Bin1]])=0)*(MOD(Table6[Bin9],Table4[[#This Row],[Bin2]])=0)*(MOD(Table6[Bin9],Table4[[#This Row],[Bin3]])=0)*(MOD(Table6[Bin9],Table4[[#This Row],[Bin4]])=0)*(MOD(Table6[Bin9],Table4[[#This Row],[Bin5]])=0)),SUMPRODUCT((MOD(Table6[Bin9],Table4[[#This Row],[Bin1]])=0)*(MOD(Table6[Bin9],Table4[[#This Row],[Bin2]])=0)*(MOD(Table6[Bin9],Table4[[#This Row],[Bin3]])=0)*(MOD(Table6[Bin9],Table4[[#This Row],[Bin4]])=0)*(MOD(Table6[Bin9],Table4[[#This Row],[Bin5]])=0)*(MOD(Table6[Bin9],Table4[[#This Row],[Bin6]])=0)),SUMPRODUCT((MOD(Table6[Bin9],Table4[[#This Row],[Bin1]])=0)*(MOD(Table6[Bin9],Table4[[#This Row],[Bin2]])=0)*(MOD(Table6[Bin9],Table4[[#This Row],[Bin3]])=0)*(MOD(Table6[Bin9],Table4[[#This Row],[Bin4]])=0)*(MOD(Table6[Bin9],Table4[[#This Row],[Bin5]])=0)*(MOD(Table6[Bin9],Table4[[#This Row],[Bin6]])=0)*(MOD(Table6[Bin9],Table4[[#This Row],[Bin7]])=0)),SUMPRODUCT((MOD(Table6[Bin9],Table4[[#This Row],[Bin1]])=0)*(MOD(Table6[Bin9],Table4[[#This Row],[Bin2]])=0)*(MOD(Table6[Bin9],Table4[[#This Row],[Bin3]])=0)*(MOD(Table6[Bin9],Table4[[#This Row],[Bin4]])=0)*(MOD(Table6[Bin9],Table4[[#This Row],[Bin5]])=0)*(MOD(Table6[Bin9],Table4[[#This Row],[Bin6]])=0)*(MOD(Table6[Bin9],Table4[[#This Row],[Bin7]])=0)*(MOD(Table6[Bin9],Table4[[#This Row],[Bin8]])=0))) -> 1
B99: 3 | C99: 7 | D99: 11 | E99: 13 | J99: =COUNTA(Table4[[#This Row],[Bin1]:[Bin8]]) -> 4 | K99: =CHOOSE(Table4[[#This Row],[Bin9]],0,SUMPRODUCT((MOD(Table6[Bin9],Table4[[#This Row],[Bin1]])=0)*(MOD(Table6[Bin9],Table4[[#This Row],[Bin2]])=0)),SUMPRODUCT((MOD(Table6[Bin9],Table4[[#This Row],[Bin1]])=0)*(MOD(Table6[Bin9],Table4[[#This Row],[Bin2]])=0)*(MOD(Table6[Bin9],Table4[[#This Row],[Bin3]])=0)),SUMPRODUCT((MOD(Table6[Bin9],Table4[[#This Row],[Bin1]])=0)*(MOD(Table6[Bin9],Table4[[#This Row],[Bin2]])=0)*(MOD(Table6[Bin9],Table4[[#This Row],[Bin3]])=0)*(MOD(Table6[Bin9],Table4[[#This Row],[Bin4]])=0)),SUMPRODUCT((MOD(Table6[Bin9],Table4[[#This Row],[Bin1]])=0)*(MOD(Table6[Bin9],Table4[[#This Row],[Bin2]])=0)*(MOD(Table6[Bin9],Table4[[#This Row],[Bin3]])=0)*(MOD(Table6[Bin9],Table4[[#This Row],[Bin4]])=0)*(MOD(Table6[Bin9],Table4[[#This Row],[Bin5]])=0)),SUMPRODUCT((MOD(Table6[Bin9],Table4[[#This Row],[Bin1]])=0)*(MOD(Table6[Bin9],Table4[[#This Row],[Bin2]])=0)*(MOD(Table6[Bin9],Table4[[#This Row],[Bin3]])=0)*(MOD(Table6[Bin9],Table4[[#This Row],[Bin4]])=0)*(MOD(Table6[Bin9],Table4[[#This Row],[Bin5]])=0)*(MOD(Table6[Bin9],Table4[[#This Row],[Bin6]])=0)),SUMPRODUCT((MOD(Table6[Bin9],Table4[[#This Row],[Bin1]])=0)*(MOD(Table6[Bin9],Table4[[#This Row],[Bin2]])=0)*(MOD(Table6[Bin9],Table4[[#This Row],[Bin3]])=0)*(MOD(Table6[Bin9],Table4[[#This Row],[Bin4]])=0)*(MOD(Table6[Bin9],Table4[[#This Row],[Bin5]])=0)*(MOD(Table6[Bin9],Table4[[#This Row],[Bin6]])=0)*(MOD(Table6[Bin9],Table4[[#This Row],[Bin7]])=0)),SUMPRODUCT((MOD(Table6[Bin9],Table4[[#This Row],[Bin1]])=0)*(MOD(Table6[Bin9],Table4[[#This Row],[Bin2]])=0)*(MOD(Table6[Bin9],Table4[[#This Row],[Bin3]])=0)*(MOD(Table6[Bin9],Table4[[#This Row],[Bin4]])=0)*(MOD(Table6[Bin9],Table4[[#This Row],[Bin5]])=0)*(MOD(Table6[Bin9],Table4[[#This Row],[Bin6]])=0)*(MOD(Table6[Bin9],Table4[[#This Row],[Bin7]])=0)*(MOD(Table6[Bin9],Table4[[#This Row],[Bin8]])=0))) -> 3
B100: 5 | C100: 7 | D100: 11 | E100: 13 | J100: =COUNTA(Table4[[#This Row],[Bin1]:[Bin8]]) -> 4 | K100: =CHOOSE(Table4[[#This Row],[Bin9]],0,SUMPRODUCT((MOD(Table6[Bin9],Table4[[#This Row],[Bin1]])=0)*(MOD(Table6[Bin9],Table4[[#This Row],[Bin2]])=0)),SUMPRODUCT((MOD(Table6[Bin9],Table4[[#This Row],[Bin1]])=0)*(MOD(Table6[Bin9],Table4[[#This Row],[Bin2]])=0)*(MOD(Table6[Bin9],Table4[[#This Row],[Bin3]])=0)),SUMPRODUCT((MOD(Table6[Bin9],Table4[[#This Row],[Bin1]])=0)*(MOD(Table6[Bin9],Table4[[#This Row],[Bin2]])=0)*(MOD(Table6[Bin9],Table4[[#This Row],[Bin3]])=0)*(MOD(Table6[Bin9],Table4[[#This Row],[Bin4]])=0)),SUMPRODUCT((MOD(Table6[Bin9],Table4[[#This Row],[Bin1]])=0)*(MOD(Table6[Bin9],Table4[[#This Row],[Bin2]])=0)*(MOD(Table6[Bin9],Table4[[#This Row],[Bin3]])=0)*(MOD(Table6[Bin9],Table4[[#This Row],[Bin4]])=0)*(MOD(Table6[Bin9],Table4[[#This Row],[Bin5]])=0)),SUMPRODUCT((MOD(Table6[Bin9],Table4[[#This Row],[Bin1]])=0)*(MOD(Table6[Bin9],Table4[[#This Row],[Bin2]])=0)*(MOD(Table6[Bin9],Table4[[#This Row],[Bin3]])=0)*(MOD(Table6[Bin9],Table4[[#This Row],[Bin4]])=0)*(MOD(Table6[Bin9],Table4[[#This Row],[Bin5]])=0)*(MOD(Table6[Bin9],Table4[[#This Row],[Bin6]])=0)),SUMPRODUCT((MOD(Table6[Bin9],Table4[[#This Row],[Bin1]])=0)*(MOD(Table6[Bin9],Table4[[#This Row],[Bin2]])=0)*(MOD(Table6[Bin9],Table4[[#This Row],[Bin3]])=0)*(MOD(Table6[Bin9],Table4[[#This Row],[Bin4]])=0)*(MOD(Table6[Bin9],Table4[[#This Row],[Bin5]])=0)*(MOD(Table6[Bin9],Table4[[#This Row],[Bin6]])=0)*(MOD(Table6[Bin9],Table4[[#This Row],[Bin7]])=0)),SUMPRODUCT((MOD(Table6[Bin9],Table4[[#This Row],[Bin1]])=0)*(MOD(Table6[Bin9],Table4[[#This Row],[Bin2]])=0)*(MOD(Table6[Bin9],Table4[[#This Row],[Bin3]])=0)*(MOD(Table6[Bin9],Table4[[#This Row],[Bin4]])=0)*(MOD(Table6[Bin9],Table4[[#This Row],[Bin5]])=0)*(MOD(Table6[Bin9],Table4[[#This Row],[Bin6]])=0)*(MOD(Table6[Bin9],Table4[[#This Row],[Bin7]])=0)*(MOD(Table6[Bin9],Table4[[#This Row],[Bin8]])=0))) -> 3
B101: 3 | C101: 5 | D101: 7 | E101: 17 | J101: =COUNTA(Table4[[#This Row],[Bin1]:[Bin8]]) -> 4 | K101: =CHOOSE(Table4[[#This Row],[Bin9]],0,SUMPRODUCT((MOD(Table6[Bin9],Table4[[#This Row],[Bin1]])=0)*(MOD(Table6[Bin9],Table4[[#This Row],[Bin2]])=0)),SUMPRODUCT((MOD(Table6[Bin9],Table4[[#This Row],[Bin1]])=0)*(MOD(Table6[Bin9],Table4[[#This Row],[Bin2]])=0)*(MOD(Table6[Bin9],Table4[[#This Row],[Bin3]])=0)),SUMPRODUCT((MOD(Table6[Bin9],Table4[[#This Row],[Bin1]])=0)*(MOD(Table6[Bin9],Table4[[#This Row],[Bin2]])=0)*(MOD(Table6[Bin9],Table4[[#This Row],[Bin3]])=0)*(MOD(Table6[Bin9],Table4[[#This Row],[Bin4]])=0)),SUMPRODUCT((MOD(Table6[Bin9],Table4[[#This Row],[Bin1]])=0)*(MOD(Table6[Bin9],Table4[[#This Row],[Bin2]])=0)*(MOD(Table6[Bin9],Table4[[#This Row],[Bin3]])=0)*(MOD(Table6[Bin9],Table4[[#This Row],[Bin4]])=0)*(MOD(Table6[Bin9],Table4[[#This Row],[Bin5]])=0)),SUMPRODUCT((MOD(Table6[Bin9],Table4[[#This Row],[Bin1]])=0)*(MOD(Table6[Bin9],Table4[[#This Row],[Bin2]])=0)*(MOD(Table6[Bin9],Table4[[#This Row],[Bin3]])=0)*(MOD(Table6[Bin9],Table4[[#This Row],[Bin4]])=0)*(MOD(Table6[Bin9],Table4[[#This Row],[Bin5]])=0)*(MOD(Table6[Bin9],Table4[[#This Row],[Bin6]])=0)),SUMPRODUCT((MOD(Table6[Bin9],Table4[[#This Row],[Bin1]])=0)*(MOD(Table6[Bin9],Table4[[#This Row],[Bin2]])=0)*(MOD(Table6[Bin9],Table4[[#This Row],[Bin3]])=0)*(MOD(Table6[Bin9],Table4[[#This Row],[Bin4]])=0)*(MOD(Table6[Bin9],Table4[[#This Row],[Bin5]])=0)*(MOD(Table6[Bin9],Table4[[#This Row],[Bin6]])=0)*(MOD(Table6[Bin9],Table4[[#This Row],[Bin7]])=0)),SUMPRODUCT((MOD(Table6[Bin9],Table4[[#This Row],[Bin1]])=0)*(MOD(Table6[Bin9],Table4[[#This Row],[Bin2]])=0)*(MOD(Table6[Bin9],Table4[[#This Row],[Bin3]])=0)*(MOD(Table6[Bin9],Table4[[#This Row],[Bin4]])=0)*(MOD(Table6[Bin9],Table4[[#This Row],[Bin5]])=0)*(MOD(Table6[Bin9],Table4[[#This Row],[Bin6]])=0)*(MOD(Table6[Bin9],Table4[[#This Row],[Bin7]])=0)*(MOD(Table6[Bin9],Table4[[#This Row],[Bin8]])=0))) -> 0
B102: 3 | C102: 5 | D102: 11 | E102: 17 | J102: =COUNTA(Table4[[#This Row],[Bin1]:[Bin8]]) -> 4 | K102: =CHOOSE(Table4[[#This Row],[Bin9]],0,SUMPRODUCT((MOD(Table6[Bin9],Table4[[#This Row],[Bin1]])=0)*(MOD(Table6[Bin9],Table4[[#This Row],[Bin2]])=0)),SUMPRODUCT((MOD(Table6[Bin9],Table4[[#This Row],[Bin1]])=0)*(MOD(Table6[Bin9],Table4[[#This Row],[Bin2]])=0)*(MOD(Table6[Bin9],Table4[[#This Row],[Bin3]])=0)),SUMPRODUCT((MOD(Table6[Bin9],Table4[[#This Row],[Bin1]])=0)*(MOD(Table6[Bin9],Table4[[#This Row],[Bin2]])=0)*(MOD(Table6[Bin9],Table4[[#This Row],[Bin3]])=0)*(MOD(Table6[Bin9],Table4[[#This Row],[Bin4]])=0)),SUMPRODUCT((MOD(Table6[Bin9],Table4[[#This Row],[Bin1]])=0)*(MOD(Table6[Bin9],Table4[[#This Row],[Bin2]])=0)*(MOD(Table6[Bin9],Table4[[#This Row],[Bin3]])=0)*(MOD(Table6[Bin9],Table4[[#This Row],[Bin4]])=0)*(MOD(Table6[Bin9],Table4[[#This Row],[Bin5]])=0)),SUMPRODUCT((MOD(Table6[Bin9],Table4[[#This Row],[Bin1]])=0)*(MOD(Table6[Bin9],Table4[[#This Row],[Bin2]])=0)*(MOD(Table6[Bin9],Table4[[#This Row],[Bin3]])=0)*(MOD(Table6[Bin9],Table4[[#This Row],[Bin4]])=0)*(MOD(Table6[Bin9],Table4[[#This Row],[Bin5]])=0)*(MOD(Table6[Bin9],Table4[[#This Row],[Bin6]])=0)),SUMPRODUCT((MOD(Table6[Bin9],Table4[[#This Row],[Bin1]])=0)*(MOD(Table6[Bin9],Table4[[#This Row],[Bin2]])=0)*(MOD(Table6[Bin9],Table4[[#This Row],[Bin3]])=0)*(MOD(Table6[Bin9],Table4[[#This Row],[Bin4]])=0)*(MOD(Table6[Bin9],Table4[[#This Row],[Bin5]])=0)*(MOD(Table6[Bin9],Table4[[#This Row],[Bin6]])=0)*(MOD(Table6[Bin9],Table4[[#This Row],[Bin7]])=0)),SUMPRODUCT((MOD(Table6[Bin9],Table4[[#This Row],[Bin1]])=0)*(MOD(Table6[Bin9],Table4[[#This Row],[Bin2]])=0)*(MOD(Table6[Bin9],Table4[[#This Row],[Bin3]])=0)*(MOD(Table6[Bin9],Table4[[#This Row],[Bin4]])=0)*(MOD(Table6[Bin9],Table4[[#This Row],[Bin5]])=0)*(MOD(Table6[Bin9],Table4[[#This Row],[Bin6]])=0)*(MOD(Table6[Bin9],Table4[[#This Row],[Bin7]])=0)*(MOD(Table6[Bin9],Table4[[#This Row],[Bin8]])=0))) -> 0
B103: 3 | C103: 7 | D103: 11 | E103: 17 | J103: =COUNTA(Table4[[#This Row],[Bin1]:[Bin8]]) -> 4 | K103: =CHOOSE(Table4[[#This Row],[Bin9]],0,SUMPRODUCT((MOD(Table6[Bin9],Table4[[#This Row],[Bin1]])=0)*(MOD(Table6[Bin9],Table4[[#This Row],[Bin2]])=0)),SUMPRODUCT((MOD(Table6[Bin9],Table4[[#This Row],[Bin1]])=0)*(MOD(Table6[Bin9],Table4[[#This Row],[Bin2]])=0)*(MOD(Table6[Bin9],Table4[[#This Row],[Bin3]])=0)),SUMPRODUCT((MOD(Table6[Bin9],Table4[[#This Row],[Bin1]])=0)*(MOD(Table6[Bin9],Table4[[#This Row],[Bin2]])=0)*(MOD(Table6[Bin9],Table4[[#This Row],[Bin3]])=0)*(MOD(Table6[Bin9],Table4[[#This Row],[Bin4]])=0)),SUMPRODUCT((MOD(Table6[Bin9],Table4[[#This Row],[Bin1]])=0)*(MOD(Table6[Bin9],Table4[[#This Row],[Bin2]])=0)*(MOD(Table6[Bin9],Table4[[#This Row],[Bin3]])=0)*(MOD(Table6[Bin9],Table4[[#This Row],[Bin4]])=0)*(MOD(Table6[Bin9],Table4[[#This Row],[Bin5]])=0)),SUMPRODUCT((MOD(Table6[Bin9],Table4[[#This Row],[Bin1]])=0)*(MOD(Table6[Bin9],Table4[[#This Row],[Bin2]])=0)*(MOD(Table6[Bin9],Table4[[#This Row],[Bin3]])=0)*(MOD(Table6[Bin9],Table4[[#This Row],[Bin4]])=0)*(MOD(Table6[Bin9],Table4[[#This Row],[Bin5]])=0)*(MOD(Table6[Bin9],Table4[[#This Row],[Bin6]])=0)),SUMPRODUCT((MOD(Table6[Bin9],Table4[[#This Row],[Bin1]])=0)*(MOD(Table6[Bin9],Table4[[#This Row],[Bin2]])=0)*(MOD(Table6[Bin9],Table4[[#This Row],[Bin3]])=0)*(MOD(Table6[Bin9],Table4[[#This Row],[Bin4]])=0)*(MOD(Table6[Bin9],Table4[[#This Row],[Bin5]])=0)*(MOD(Table6[Bin9],Table4[[#This Row],[Bin6]])=0)*(MOD(Table6[Bin9],Table4[[#This Row],[Bin7]])=0)),SUMPRODUCT((MOD(Table6[Bin9],Table4[[#This Row],[Bin1]])=0)*(MOD(Table6[Bin9],Table4[[#This Row],[Bin2]])=0)*(MOD(Table6[Bin9],Table4[[#This Row],[Bin3]])=0)*(MOD(Table6[Bin9],Table4[[#This Row],[Bin4]])=0)*(MOD(Table6[Bin9],Table4[[#This Row],[Bin5]])=0)*(MOD(Table6[Bin9],Table4[[#This Row],[Bin6]])=0)*(MOD(Table6[Bin9],Table4[[#This Row],[Bin7]])=0)*(MOD(Table6[Bin9],Table4[[#This Row],[Bin8]])=0))) -> 2
B104: 5 | C104: 7 | D104: 11 | E104: 17 | J104: =COUNTA(Table4[[#This Row],[Bin1]:[Bin8]]) -> 4 | K104: =CHOOSE(Table4[[#This Row],[Bin9]],0,SUMPRODUCT((MOD(Table6[Bin9],Table4[[#This Row],[Bin1]])=0)*(MOD(Table6[Bin9],Table4[[#This Row],[Bin2]])=0)),SUMPRODUCT((MOD(Table6[Bin9],Table4[[#This Row],[Bin1]])=0)*(MOD(Table6[Bin9],Table4[[#This Row],[Bin2]])=0)*(MOD(Table6[Bin9],Table4[[#This Row],[Bin3]])=0)),SUMPRODUCT((MOD(Table6[Bin9],Table4[[#This Row],[Bin1]])=0)*(MOD(Table6[Bin9],Table4[[#This Row],[Bin2]])=0)*(MOD(Table6[Bin9],Table4[[#This Row],[Bin3]])=0)*(MOD(Table6[Bin9],Table4[[#This Row],[Bin4]])=0)),SUMPRODUCT((MOD(Table6[Bin9],Table4[[#This Row],[Bin1]])=0)*(MOD(Table6[Bin9],Table4[[#This Row],[Bin2]])=0)*(MOD(Table6[Bin9],Table4[[#This Row],[Bin3]])=0)*(MOD(Table6[Bin9],Table4[[#This Row],[Bin4]])=0)*(MOD(Table6[Bin9],Table4[[#This Row],[Bin5]])=0)),SUMPRODUCT((MOD(Table6[Bin9],Table4[[#This Row],[Bin1]])=0)*(MOD(Table6[Bin9],Table4[[#This Row],[Bin2]])=0)*(MOD(Table6[Bin9],Table4[[#This Row],[Bin3]])=0)*(MOD(Table6[Bin9],Table4[[#This Row],[Bin4]])=0)*(MOD(Table6[Bin9],Table4[[#This Row],[Bin5]])=0)*(MOD(Table6[Bin9],Table4[[#This Row],[Bin6]])=0)),SUMPRODUCT((MOD(Table6[Bin9],Table4[[#This Row],[Bin1]])=0)*(MOD(Table6[Bin9],Table4[[#This Row],[Bin2]])=0)*(MOD(Table6[Bin9],Table4[[#This Row],[Bin3]])=0)*(MOD(Table6[Bin9],Table4[[#This Row],[Bin4]])=0)*(MOD(Table6[Bin9],Table4[[#This Row],[Bin5]])=0)*(MOD(Table6[Bin9],Table4[[#This Row],[Bin6]])=0)*(MOD(Table6[Bin9],Table4[[#This Row],[Bin7]])=0)),SUMPRODUCT((MOD(Table6[Bin9],Table4[[#This Row],[Bin1]])=0)*(MOD(Table6[Bin9],Table4[[#This Row],[Bin2]])=0)*(MOD(Table6[Bin9],Table4[[#This Row],[Bin3]])=0)*(MOD(Table6[Bin9],Table4[[#This Row],[Bin4]])=0)*(MOD(Table6[Bin9],Table4[[#This Row],[Bin5]])=0)*(MOD(Table6[Bin9],Table4[[#This Row],[Bin6]])=0)*(MOD(Table6[Bin9],Table4[[#This Row],[Bin7]])=0)*(MOD(Table6[Bin9],Table4[[#This Row],[Bin8]])=0))) -> 2
B105: 3 | C105: 5 | D105: 13 | E105: 17 | J105: =COUNTA(Table4[[#This Row],[Bin1]:[Bin8]]) -> 4 | K105: =CHOOSE(Table4[[#This Row],[Bin9]],0,SUMPRODUCT((MOD(Table6[Bin9],Table4[[#This Row],[Bin1]])=0)*(MOD(Table6[Bin9],Table4[[#This Row],[Bin2]])=0)),SUMPRODUCT((MOD(Table6[Bin9],Table4[[#This Row],[Bin1]])=0)*(MOD(Table6[Bin9],Table4[[#This Row],[Bin2]])=0)*(MOD(Table6[Bin9],Table4[[#This Row],[Bin3]])=0)),SUMPRODUCT((MOD(Table6[Bin9],Table4[[#This Row],[Bin1]])=0)*(MOD(Table6[Bin9],Table4[[#This Row],[Bin2]])=0)*(MOD(Table6[Bin9],Table4[[#This Row],[Bin3]])=0)*(MOD(Table6[Bin9],Table4[[#This Row],[Bin4]])=0)),SUMPRODUCT((MOD(Table6[Bin9],Table4[[#This Row],[Bin1]])=0)*(MOD(Table6[Bin9],Table4[[#This Row],[Bin2]])=0)*(MOD(Table6[Bin9],Table4[[#This Row],[Bin3]])=0)*(MOD(Table6[Bin9],Table4[[#This Row],[Bin4]])=0)*(MOD(Table6[Bin9],Table4[[#This Row],[Bin5]])=0)),SUMPRODUCT((MOD(Table6[Bin9],Table4[[#This Row],[Bin1]])=0)*(MOD(Table6[Bin9],Table4[[#This Row],[Bin2]])=0)*(MOD(Table6[Bin9],Table4[[#This Row],[Bin3]])=0)*(MOD(Table6[Bin9],Table4[[#This Row],[Bin4]])=0)*(MOD(Table6[Bin9],Table4[[#This Row],[Bin5]])=0)*(MOD(Table6[Bin9],Table4[[#This Row],[Bin6]])=0)),SUMPRODUCT((MOD(Table6[Bin9],Table4[[#This Row],[Bin1]])=0)*(MOD(Table6[Bin9],Table4[[#This Row],[Bin2]])=0)*(MOD(Table6[Bin9],Table4[[#This Row],[Bin3]])=0)*(MOD(Table6[Bin9],Table4[[#This Row],[Bin4]])=0)*(MOD(Table6[Bin9],Table4[[#This Row],[Bin5]])=0)*(MOD(Table6[Bin9],Table4[[#This Row],[Bin6]])=0)*(MOD(Table6[Bin9],Table4[[#This Row],[Bin7]])=0)),SUMPRODUCT((MOD(Table6[Bin9],Table4[[#This Row],[Bin1]])=0)*(MOD(Table6[Bin9],Table4[[#This Row],[Bin2]])=0)*(MOD(Table6[Bin9],Table4[[#This Row],[Bin3]])=0)*(MOD(Table6[Bin9],Table4[[#This Row],[Bin4]])=0)*(MOD(Table6[Bin9],Table4[[#This Row],[Bin5]])=0)*(MOD(Table6[Bin9],Table4[[#This Row],[Bin6]])=0)*(MOD(Table6[Bin9],Table4[[#This Row],[Bin7]])=0)*(MOD(Table6[Bin9],Table4[[#This Row],[Bin8]])=0))) -> 0
B106: 3 | C106: 7 | D106: 13 | E106: 17 | J106: =COUNTA(Table4[[#This Row],[Bin1]:[Bin8]]) -> 4 | K106: =CHOOSE(Table4[[#This Row],[Bin9]],0,SUMPRODUCT((MOD(Table6[Bin9],Table4[[#This Row],[Bin1]])=0)*(MOD(Table6[Bin9],Table4[[#This Row],[Bin2]])=0)),SUMPRODUCT((MOD(Table6[Bin9],Table4[[#This Row],[Bin1]])=0)*(MOD(Table6[Bin9],Table4[[#This Row],[Bin2]])=0)*(MOD(Table6[Bin9],Table4[[#This Row],[Bin3]])=0)),SUMPRODUCT((MOD(Table6[Bin9],Table4[[#This Row],[Bin1]])=0)*(MOD(Table6[Bin9],Table4[[#This Row],[Bin2]])=0)*(MOD(Table6[Bin9],Table4[[#This Row],[Bin3]])=0)*(MOD(Table6[Bin9],Table4[[#This Row],[Bin4]])=0)),SUMPRODUCT((MOD(Table6[Bin9],Table4[[#This Row],[Bin1]])=0)*(MOD(Table6[Bin9],Table4[[#This Row],[Bin2]])=0)*(MOD(Table6[Bin9],Table4[[#This Row],[Bin3]])=0)*(MOD(Table6[Bin9],Table4[[#This Row],[Bin4]])=0)*(MOD(Table6[Bin9],Table4[[#This Row],[Bin5]])=0)),SUMPRODUCT((MOD(Table6[Bin9],Table4[[#This Row],[Bin1]])=0)*(MOD(Table6[Bin9],Table4[[#This Row],[Bin2]])=0)*(MOD(Table6[Bin9],Table4[[#This Row],[Bin3]])=0)*(MOD(Table6[Bin9],Table4[[#This Row],[Bin4]])=0)*(MOD(Table6[Bin9],Table4[[#This Row],[Bin5]])=0)*(MOD(Table6[Bin9],Table4[[#This Row],[Bin6]])=0)),SUMPRODUCT((MOD(Table6[Bin9],Table4[[#This Row],[Bin1]])=0)*(MOD(Table6[Bin9],Table4[[#This Row],[Bin2]])=0)*(MOD(Table6[Bin9],Table4[[#This Row],[Bin3]])=0)*(MOD(Table6[Bin9],Table4[[#This Row],[Bin4]])=0)*(MOD(Table6[Bin9],Table4[[#This Row],[Bin5]])=0)*(MOD(Table6[Bin9],Table4[[#This Row],[Bin6]])=0)*(MOD(Table6[Bin9],Table4[[#This Row],[Bin7]])=0)),SUMPRODUCT((MOD(Table6[Bin9],Table4[[#This Row],[Bin1]])=0)*(MOD(Table6[Bin9],Table4[[#This Row],[Bin2]])=0)*(MOD(Table6[Bin9],Table4[[#This Row],[Bin3]])=0)*(MOD(Table6[Bin9],Table4[[#This Row],[Bin4]])=0)*(MOD(Table6[Bin9],Table4[[#This Row],[Bin5]])=0)*(MOD(Table6[Bin9],Table4[[#This Row],[Bin6]])=0)*(MOD(Table6[Bin9],Table4[[#This Row],[Bin7]])=0)*(MOD(Table6[Bin9],Table4[[#This Row],[Bin8]])=0))) -> 2
B107: 5 | C107: 7 | D107: 13 | E107: 17 | J107: =COUNTA(Table4[[#This Row],[Bin1]:[Bin8]]) -> 4 | K107: =CHOOSE(Table4[[#This Row],[Bin9]],0,SUMPRODUCT((MOD(Table6[Bin9],Table4[[#This Row],[Bin1]])=0)*(MOD(Table6[Bin9],Table4[[#This Row],[Bin2]])=0)),SUMPRODUCT((MOD(Table6[Bin9],Table4[[#This Row],[Bin1]])=0)*(MOD(Table6[Bin9],Table4[[#This Row],[Bin2]])=0)*(MOD(Table6[Bin9],Table4[[#This Row],[Bin3]])=0)),SUMPRODUCT((MOD(Table6[Bin9],Table4[[#This Row],[Bin1]])=0)*(MOD(Table6[Bin9],Table4[[#This Row],[Bin2]])=0)*(MOD(Table6[Bin9],Table4[[#This Row],[Bin3]])=0)*(MOD(Table6[Bin9],Table4[[#This Row],[Bin4]])=0)),SUMPRODUCT((MOD(Table6[Bin9],Table4[[#This Row],[Bin1]])=0)*(MOD(Table6[Bin9],Table4[[#This Row],[Bin2]])=0)*(MOD(Table6[Bin9],Table4[[#This Row],[Bin3]])=0)*(MOD(Table6[Bin9],Table4[[#This Row],[Bin4]])=0)*(MOD(Table6[Bin9],Table4[[#This Row],[Bin5]])=0)),SUMPRODUCT((MOD(Table6[Bin9],Table4[[#This Row],[Bin1]])=0)*(MOD(Table6[Bin9],Table4[[#This Row],[Bin2]])=0)*(MOD(Table6[Bin9],Table4[[#This Row],[Bin3]])=0)*(MOD(Table6[Bin9],Table4[[#This Row],[Bin4]])=0)*(MOD(Table6[Bin9],Table4[[#This Row],[Bin5]])=0)*(MOD(Table6[Bin9],Table4[[#This Row],[Bin6]])=0)),SUMPRODUCT((MOD(Table6[Bin9],Table4[[#This Row],[Bin1]])=0)*(MOD(Table6[Bin9],Table4[[#This Row],[Bin2]])=0)*(MOD(Table6[Bin9],Table4[[#This Row],[Bin3]])=0)*(MOD(Table6[Bin9],Table4[[#This Row],[Bin4]])=0)*(MOD(Table6[Bin9],Table4[[#This Row],[Bin5]])=0)*(MOD(Table6[Bin9],Table4[[#This Row],[Bin6]])=0)*(MOD(Table6[Bin9],Table4[[#This Row],[Bin7]])=0)),SUMPRODUCT((MOD(Table6[Bin9],Table4[[#This Row],[Bin1]])=0)*(MOD(Table6[Bin9],Table4[[#This Row],[Bin2]])=0)*(MOD(Table6[Bin9],Table4[[#This Row],[Bin3]])=0)*(MOD(Table6[Bin9],Table4[[#This Row],[Bin4]])=0)*(MOD(Table6[Bin9],Table4[[#This Row],[Bin5]])=0)*(MOD(Table6[Bin9],Table4[[#This Row],[Bin6]])=0)*(MOD(Table6[Bin9],Table4[[#This Row],[Bin7]])=0)*(MOD(Table6[Bin9],Table4[[#This Row],[Bin8]])=0))) -> 1
B108: 3 | C108: 11 | D108: 13 | E108: 17 | J108: =COUNTA(Table4[[#This Row],[Bin1]:[Bin8]]) -> 4 | K108: =CHOOSE(Table4[[#This Row],[Bin9]],0,SUMPRODUCT((MOD(Table6[Bin9],Table4[[#This Row],[Bin1]])=0)*(MOD(Table6[Bin9],Table4[[#This Row],[Bin2]])=0)),SUMPRODUCT((MOD(Table6[Bin9],Table4[[#This Row],[Bin1]])=0)*(MOD(Table6[Bin9],Table4[[#This Row],[Bin2]])=0)*(MOD(Table6[Bin9],Table4[[#This Row],[Bin3]])=0)),SUMPRODUCT((MOD(Table6[Bin9],Table4[[#This Row],[Bin1]])=0)*(MOD(Table6[Bin9],Table4[[#This Row],[Bin2]])=0)*(MOD(Table6[Bin9],Table4[[#This Row],[Bin3]])=0)*(MOD(Table6[Bin9],Table4[[#This Row],[Bin4]])=0)),SUMPRODUCT((MOD(Table6[Bin9],Table4[[#This Row],[Bin1]])=0)*(MOD(Table6[Bin9],Table4[[#This Row],[Bin2]])=0)*(MOD(Table6[Bin9],Table4[[#This Row],[Bin3]])=0)*(MOD(Table6[Bin9],Table4[[#This Row],[Bin4]])=0)*(MOD(Table6[Bin9],Table4[[#This Row],[Bin5]])=0)),SUMPRODUCT((MOD(Table6[Bin9],Table4[[#This Row],[Bin1]])=0)*(MOD(Table6[Bin9],Table4[[#This Row],[Bin2]])=0)*(MOD(Table6[Bin9],Table4[[#This Row],[Bin3]])=0)*(MOD(Table6[Bin9],Table4[[#This Row],[Bin4]])=0)*(MOD(Table6[Bin9],Table4[[#This Row],[Bin5]])=0)*(MOD(Table6[Bin9],Table4[[#This Row],[Bin6]])=0)),SUMPRODUCT((MOD(Table6[Bin9],Table4[[#This Row],[Bin1]])=0)*(MOD(Table6[Bin9],Table4[[#This Row],[Bin2]])=0)*(MOD(Table6[Bin9],Table4[[#This Row],[Bin3]])=0)*(MOD(Table6[Bin9],Table4[[#This Row],[Bin4]])=0)*(MOD(Table6[Bin9],Table4[[#This Row],[Bin5]])=0)*(MOD(Table6[Bin9],Table4[[#This Row],[Bin6]])=0)*(MOD(Table6[Bin9],Table4[[#This Row],[Bin7]])=0)),SUMPRODUCT((MOD(Table6[Bin9],Table4[[#This Row],[Bin1]])=0)*(MOD(Table6[Bin9],Table4[[#This Row],[Bin2]])=0)*(MOD(Table6[Bin9],Table4[[#This Row],[Bin3]])=0)*(MOD(Table6[Bin9],Table4[[#This Row],[Bin4]])=0)*(MOD(Table6[Bin9],Table4[[#This Row],[Bin5]])=0)*(MOD(Table6[Bin9],Table4[[#This Row],[Bin6]])=0)*(MOD(Table6[Bin9],Table4[[#This Row],[Bin7]])=0)*(MOD(Table6[Bin9],Table4[[#This Row],[Bin8]])=0))) -> 2
B109: 5 | C109: 11 | D109: 13 | E109: 17 | J109: =COUNTA(Table4[[#This Row],[Bin1]:[Bin8]]) -> 4 | K109: =CHOOSE(Table4[[#This Row],[Bin9]],0,SUMPRODUCT((MOD(Table6[Bin9],Table4[[#This Row],[Bin1]])=0)*(MOD(Table6[Bin9],Table4[[#This Row],[Bin2]])=0)),SUMPRODUCT((MOD(Table6[Bin9],Table4[[#This Row],[Bin1]])=0)*(MOD(Table6[Bin9],Table4[[#This Row],[Bin2]])=0)*(MOD(Table6[Bin9],Table4[[#This Row],[Bin3]])=0)),SUMPRODUCT((MOD(Table6[Bin9],Table4[[#This Row],[Bin1]])=0)*(MOD(Table6[Bin9],Table4[[#This Row],[Bin2]])=0)*(MOD(Table6[Bin9],Table4[[#This Row],[Bin3]])=0)*(MOD(Table6[Bin9],Table4[[#This Row],[Bin4]])=0)),SUMPRODUCT((MOD(Table6[Bin9],Table4[[#This Row],[Bin1]])=0)*(MOD(Table6[Bin9],Table4[[#This Row],[Bin2]])=0)*(MOD(Table6[Bin9],Table4[[#This Row],[Bin3]])=0)*(MOD(Table6[Bin9],Table4[[#This Row],[Bin4]])=0)*(MOD(Table6[Bin9],Table4[[#This Row],[Bin5]])=0)),SUMPRODUCT((MOD(Table6[Bin9],Table4[[#This Row],[Bin1]])=0)*(MOD(Table6[Bin9],Table4[[#This Row],[Bin2]])=0)*(MOD(Table6[Bin9],Table4[[#This Row],[Bin3]])=0)*(MOD(Table6[Bin9],Table4[[#This Row],[Bin4]])=0)*(MOD(Table6[Bin9],Table4[[#This Row],[Bin5]])=0)*(MOD(Table6[Bin9],Table4[[#This Row],[Bin6]])=0)),SUMPRODUCT((MOD(Table6[Bin9],Table4[[#This Row],[Bin1]])=0)*(MOD(Table6[Bin9],Table4[[#This Row],[Bin2]])=0)*(MOD(Table6[Bin9],Table4[[#This Row],[Bin3]])=0)*(MOD(Table6[Bin9],Table4[[#This Row],[Bin4]])=0)*(MOD(Table6[Bin9],Table4[[#This Row],[Bin5]])=0)*(MOD(Table6[Bin9],Table4[[#This Row],[Bin6]])=0)*(MOD(Table6[Bin9],Table4[[#This Row],[Bin7]])=0)),SUMPRODUCT((MOD(Table6[Bin9],Table4[[#This Row],[Bin1]])=0)*(MOD(Table6[Bin9],Table4[[#This Row],[Bin2]])=0)*(MOD(Table6[Bin9],Table4[[#This Row],[Bin3]])=0)*(MOD(Table6[Bin9],Table4[[#This Row],[Bin4]])=0)*(MOD(Table6[Bin9],Table4[[#This Row],[Bin5]])=0)*(MOD(Table6[Bin9],Table4[[#This Row],[Bin6]])=0)*(MOD(Table6[Bin9],Table4[[#This Row],[Bin7]])=0)*(MOD(Table6[Bin9],Table4[[#This Row],[Bin8]])=0))) -> 2
B110: 7 | C110: 11 | D110: 13 | E110: 17 | J110: =COUNTA(Table4[[#This Row],[Bin1]:[Bin8]]) -> 4 | K110: =CHOOSE(Table4[[#This Row],[Bin9]],0,SUMPRODUCT((MOD(Table6[Bin9],Table4[[#This Row],[Bin1]])=0)*(MOD(Table6[Bin9],Table4[[#This Row],[Bin2]])=0)),SUMPRODUCT((MOD(Table6[Bin9],Table4[[#This Row],[Bin1]])=0)*(MOD(Table6[Bin9],Table4[[#This Row],[Bin2]])=0)*(MOD(Table6[Bin9],Table4[[#This Row],[Bin3]])=0)),SUMPRODUCT((MOD(Table6[Bin9],Table4[[#This Row],[Bin1]])=0)*(MOD(Table6[Bin9],Table4[[#This Row],[Bin2]])=0)*(MOD(Table6[Bin9],Table4[[#This Row],[Bin3]])=0)*(MOD(Table6[Bin9],Table4[[#This Row],[Bin4]])=0)),SUMPRODUCT((MOD(Table6[Bin9],Table4[[#This Row],[Bin1]])=0)*(MOD(Table6[Bin9],Table4[[#This Row],[Bin2]])=0)*(MOD(Table6[Bin9],Table4[[#This Row],[Bin3]])=0)*(MOD(Table6[Bin9],Table4[[#This Row],[Bin4]])=0)*(MOD(Table6[Bin9],Table4[[#This Row],[Bin5]])=0)),SUMPRODUCT((MOD(Table6[Bin9],Table4[[#This Row],[Bin1]])=0)*(MOD(Table6[Bin9],Table4[[#This Row],[Bin2]])=0)*(MOD(Table6[Bin9],Table4[[#This Row],[Bin3]])=0)*(MOD(Table6[Bin9],Table4[[#This Row],[Bin4]])=0)*(MOD(Table6[Bin9],Table4[[#This Row],[Bin5]])=0)*(MOD(Table6[Bin9],Table4[[#This Row],[Bin6]])=0)),SUMPRODUCT((MOD(Table6[Bin9],Table4[[#This Row],[Bin1]])=0)*(MOD(Table6[Bin9],Table4[[#This Row],[Bin2]])=0)*(MOD(Table6[Bin9],Table4[[#This Row],[Bin3]])=0)*(MOD(Table6[Bin9],Table4[[#This Row],[Bin4]])=0)*(MOD(Table6[Bin9],Table4[[#This Row],[Bin5]])=0)*(MOD(Table6[Bin9],Table4[[#This Row],[Bin6]])=0)*(MOD(Table6[Bin9],Table4[[#This Row],[Bin7]])=0)),SUMPRODUCT((MOD(Table6[Bin9],Table4[[#This Row],[Bin1]])=0)*(MOD(Table6[Bin9],Table4[[#This Row],[Bin2]])=0)*(MOD(Table6[Bin9],Table4[[#This Row],[Bin3]])=0)*(MOD(Table6[Bin9],Table4[[#This Row],[Bin4]])=0)*(MOD(Table6[Bin9],Table4[[#This Row],[Bin5]])=0)*(MOD(Table6[Bin9],Table4[[#This Row],[Bin6]])=0)*(MOD(Table6[Bin9],Table4[[#This Row],[Bin7]])=0)*(MOD(Table6[Bin9],Table4[[#This Row],[Bin8]])=0))) -> 3
B111: 3 | C111: 5 | D111: 7 | E111: 19 | J111: =COUNTA(Table4[[#This Row],[Bin1]:[Bin8]]) -> 4 | K111: =CHOOSE(Table4[[#This Row],[Bin9]],0,SUMPRODUCT((MOD(Table6[Bin9],Table4[[#This Row],[Bin1]])=0)*(MOD(Table6[Bin9],Table4[[#This Row],[Bin2]])=0)),SUMPRODUCT((MOD(Table6[Bin9],Table4[[#This Row],[Bin1]])=0)*(MOD(Table6[Bin9],Table4[[#This Row],[Bin2]])=0)*(MOD(Table6[Bin9],Table4[[#This Row],[Bin3]])=0)),SUMPRODUCT((MOD(Table6[Bin9],Table4[[#This Row],[Bin1]])=0)*(MOD(Table6[Bin9],Table4[[#This Row],[Bin2]])=0)*(MOD(Table6[Bin9],Table4[[#This Row],[Bin3]])=0)*(MOD(Table6[Bin9],Table4[[#This Row],[Bin4]])=0)),SUMPRODUCT((MOD(Table6[Bin9],Table4[[#This Row],[Bin1]])=0)*(MOD(Table6[Bin9],Table4[[#This Row],[Bin2]])=0)*(MOD(Table6[Bin9],Table4[[#This Row],[Bin3]])=0)*(MOD(Table6[Bin9],Table4[[#This Row],[Bin4]])=0)*(MOD(Table6[Bin9],Table4[[#This Row],[Bin5]])=0)),SUMPRODUCT((MOD(Table6[Bin9],Table4[[#This Row],[Bin1]])=0)*(MOD(Table6[Bin9],Table4[[#This Row],[Bin2]])=0)*(MOD(Table6[Bin9],Table4[[#This Row],[Bin3]])=0)*(MOD(Table6[Bin9],Table4[[#This Row],[Bin4]])=0)*(MOD(Table6[Bin9],Table4[[#This Row],[Bin5]])=0)*(MOD(Table6[Bin9],Table4[[#This Row],[Bin6]])=0)),SUMPRODUCT((MOD(Table6[Bin9],Table4[[#This Row],[Bin1]])=0)*(MOD(Table6[Bin9],Table4[[#This Row],[Bin2]])=0)*(MOD(Table6[Bin9],Table4[[#This Row],[Bin3]])=0)*(MOD(Table6[Bin9],Table4[[#This Row],[Bin4]])=0)*(MOD(Table6[Bin9],Table4[[#This Row],[Bin5]])=0)*(MOD(Table6[Bin9],Table4[[#This Row],[Bin6]])=0)*(MOD(Table6[Bin9],Table4[[#This Row],[Bin7]])=0)),SUMPRODUCT((MOD(Table6[Bin9],Table4[[#This Row],[Bin1]])=0)*(MOD(Table6[Bin9],Table4[[#This Row],[Bin2]])=0)*(MOD(Table6[Bin9],Table4[[#This Row],[Bin3]])=0)*(MOD(Table6[Bin9],Table4[[#This Row],[Bin4]])=0)*(MOD(Table6[Bin9],Table4[[#This Row],[Bin5]])=0)*(MOD(Table6[Bin9],Table4[[#This Row],[Bin6]])=0)*(MOD(Table6[Bin9],Table4[[#This Row],[Bin7]])=0)*(MOD(Table6[Bin9],Table4[[#This Row],[Bin8]])=0))) -> 2
B112: 3 | C112: 5 | D112: 11 | E112: 19 | J112: =COUNTA(Table4[[#This Row],[Bin1]:[Bin8]]) -> 4 | K112: =CHOOSE(Table4[[#This Row],[Bin9]],0,SUMPRODUCT((MOD(Table6[Bin9],Table4[[#This Row],[Bin1]])=0)*(MOD(Table6[Bin9],Table4[[#This Row],[Bin2]])=0)),SUMPRODUCT((MOD(Table6[Bin9],Table4[[#This Row],[Bin1]])=0)*(MOD(Table6[Bin9],Table4[[#This Row],[Bin2]])=0)*(MOD(Table6[Bin9],Table4[[#This Row],[Bin3]])=0)),SUMPRODUCT((MOD(Table6[Bin9],Table4[[#This Row],[Bin1]])=0)*(MOD(Table6[Bin9],Table4[[#This Row],[Bin2]])=0)*(MOD(Table6[Bin9],Table4[[#This Row],[Bin3]])=0)*(MOD(Table6[Bin9],Table4[[#This Row],[Bin4]])=0)),SUMPRODUCT((MOD(Table6[Bin9],Table4[[#This Row],[Bin1]])=0)*(MOD(Table6[Bin9],Table4[[#This Row],[Bin2]])=0)*(MOD(Table6[Bin9],Table4[[#This Row],[Bin3]])=0)*(MOD(Table6[Bin9],Table4[[#This Row],[Bin4]])=0)*(MOD(Table6[Bin9],Table4[[#This Row],[Bin5]])=0)),SUMPRODUCT((MOD(Table6[Bin9],Table4[[#This Row],[Bin1]])=0)*(MOD(Table6[Bin9],Table4[[#This Row],[Bin2]])=0)*(MOD(Table6[Bin9],Table4[[#This Row],[Bin3]])=0)*(MOD(Table6[Bin9],Table4[[#This Row],[Bin4]])=0)*(MOD(Table6[Bin9],Table4[[#This Row],[Bin5]])=0)*(MOD(Table6[Bin9],Table4[[#This Row],[Bin6]])=0)),SUMPRODUCT((MOD(Table6[Bin9],Table4[[#This Row],[Bin1]])=0)*(MOD(Table6[Bin9],Table4[[#This Row],[Bin2]])=0)*(MOD(Table6[Bin9],Table4[[#This Row],[Bin3]])=0)*(MOD(Table6[Bin9],Table4[[#This Row],[Bin4]])=0)*(MOD(Table6[Bin9],Table4[[#This Row],[Bin5]])=0)*(MOD(Table6[Bin9],Table4[[#This Row],[Bin6]])=0)*(MOD(Table6[Bin9],Table4[[#This Row],[Bin7]])=0)),SUMPRODUCT((MOD(Table6[Bin9],Table4[[#This Row],[Bin1]])=0)*(MOD(Table6[Bin9],Table4[[#This Row],[Bin2]])=0)*(MOD(Table6[Bin9],Table4[[#This Row],[Bin3]])=0)*(MOD(Table6[Bin9],Table4[[#This Row],[Bin4]])=0)*(MOD(Table6[Bin9],Table4[[#This Row],[Bin5]])=0)*(MOD(Table6[Bin9],Table4[[#This Row],[Bin6]])=0)*(MOD(Table6[Bin9],Table4[[#This Row],[Bin7]])=0)*(MOD(Table6[Bin9],Table4[[#This Row],[Bin8]])=0))) -> 2
B113: 3 | C113: 7 | D113: 11 | E113: 19 | J113: =COUNTA(Table4[[#This Row],[Bin1]:[Bin8]]) -> 4 | K113: =CHOOSE(Table4[[#This Row],[Bin9]],0,SUMPRODUCT((MOD(Table6[Bin9],Table4[[#This Row],[Bin1]])=0)*(MOD(Table6[Bin9],Table4[[#This Row],[Bin2]])=0)),SUMPRODUCT((MOD(Table6[Bin9],Table4[[#This Row],[Bin1]])=0)*(MOD(Table6[Bin9],Table4[[#This Row],[Bin2]])=0)*(MOD(Table6[Bin9],Table4[[#This Row],[Bin3]])=0)),SUMPRODUCT((MOD(Table6[Bin9],Table4[[#This Row],[Bin1]])=0)*(MOD(Table6[Bin9],Table4[[#This Row],[Bin2]])=0)*(MOD(Table6[Bin9],Table4[[#This Row],[Bin3]])=0)*(MOD(Table6[Bin9],Table4[[#This Row],[Bin4]])=0)),SUMPRODUCT((MOD(Table6[Bin9],Table4[[#This Row],[Bin1]])=0)*(MOD(Table6[Bin9],Table4[[#This Row],[Bin2]])=0)*(MOD(Table6[Bin9],Table4[[#This Row],[Bin3]])=0)*(MOD(Table6[Bin9],Table4[[#This Row],[Bin4]])=0)*(MOD(Table6[Bin9],Table4[[#This Row],[Bin5]])=0)),SUMPRODUCT((MOD(Table6[Bin9],Table4[[#This Row],[Bin1]])=0)*(MOD(Table6[Bin9],Table4[[#This Row],[Bin2]])=0)*(MOD(Table6[Bin9],Table4[[#This Row],[Bin3]])=0)*(MOD(Table6[Bin9],Table4[[#This Row],[Bin4]])=0)*(MOD(Table6[Bin9],Table4[[#This Row],[Bin5]])=0)*(MOD(Table6[Bin9],Table4[[#This Row],[Bin6]])=0)),SUMPRODUCT((MOD(Table6[Bin9],Table4[[#This Row],[Bin1]])=0)*(MOD(Table6[Bin9],Table4[[#This Row],[Bin2]])=0)*(MOD(Table6[Bin9],Table4[[#This Row],[Bin3]])=0)*(MOD(Table6[Bin9],Table4[[#This Row],[Bin4]])=0)*(MOD(Table6[Bin9],Table4[[#This Row],[Bin5]])=0)*(MOD(Table6[Bin9],Table4[[#This Row],[Bin6]])=0)*(MOD(Table6[Bin9],Table4[[#This Row],[Bin7]])=0)),SUMPRODUCT((MOD(Table6[Bin9],Table4[[#This Row],[Bin1]])=0)*(MOD(Table6[Bin9],Table4[[#This Row],[Bin2]])=0)*(MOD(Table6[Bin9],Table4[[#This Row],[Bin3]])=0)*(MOD(Table6[Bin9],Table4[[#This Row],[Bin4]])=0)*(MOD(Table6[Bin9],Table4[[#This Row],[Bin5]])=0)*(MOD(Table6[Bin9],Table4[[#This Row],[Bin6]])=0)*(MOD(Table6[Bin9],Table4[[#This Row],[Bin7]])=0)*(MOD(Table6[Bin9],Table4[[#This Row],[Bin8]])=0))) -> 3
B114: 5 | C114: 7 | D114: 11 | E114: 19 | J114: =COUNTA(Table4[[#This Row],[Bin1]:[Bin8]]) -> 4 | K114: =CHOOSE(Table4[[#This Row],[Bin9]],0,SUMPRODUCT((MOD(Table6[Bin9],Table4[[#This Row],[Bin1]])=0)*(MOD(Table6[Bin9],Table4[[#This Row],[Bin2]])=0)),SUMPRODUCT((MOD(Table6[Bin9],Table4[[#This Row],[Bin1]])=0)*(MOD(Table6[Bin9],Table4[[#This Row],[Bin2]])=0)*(MOD(Table6[Bin9],Table4[[#This Row],[Bin3]])=0)),SUMPRODUCT((MOD(Table6[Bin9],Table4[[#This Row],[Bin1]])=0)*(MOD(Table6[Bin9],Table4[[#This Row],[Bin2]])=0)*(MOD(Table6[Bin9],Table4[[#This Row],[Bin3]])=0)*(MOD(Table6[Bin9],Table4[[#This Row],[Bin4]])=0)),SUMPRODUCT((MOD(Table6[Bin9],Table4[[#This Row],[Bin1]])=0)*(MOD(Table6[Bin9],Table4[[#This Row],[Bin2]])=0)*(MOD(Table6[Bin9],Table4[[#This Row],[Bin3]])=0)*(MOD(Table6[Bin9],Table4[[#This Row],[Bin4]])=0)*(MOD(Table6[Bin9],Table4[[#This Row],[Bin5]])=0)),SUMPRODUCT((MOD(Table6[Bin9],Table4[[#This Row],[Bin1]])=0)*(MOD(Table6[Bin9],Table4[[#This Row],[Bin2]])=0)*(MOD(Table6[Bin9],Table4[[#This Row],[Bin3]])=0)*(MOD(Table6[Bin9],Table4[[#This Row],[Bin4]])=0)*(MOD(Table6[Bin9],Table4[[#This Row],[Bin5]])=0)*(MOD(Table6[Bin9],Table4[[#This Row],[Bin6]])=0)),SUMPRODUCT((MOD(Table6[Bin9],Table4[[#This Row],[Bin1]])=0)*(MOD(Table6[Bin9],Table4[[#This Row],[Bin2]])=0)*(MOD(Table6[Bin9],Table4[[#This Row],[Bin3]])=0)*(MOD(Table6[Bin9],Table4[[#This Row],[Bin4]])=0)*(MOD(Table6[Bin9],Table4[[#This Row],[Bin5]])=0)*(MOD(Table6[Bin9],Table4[[#This Row],[Bin6]])=0)*(MOD(Table6[Bin9],Table4[[#This Row],[Bin7]])=0)),SUMPRODUCT((MOD(Table6[Bin9],Table4[[#This Row],[Bin1]])=0)*(MOD(Table6[Bin9],Table4[[#This Row],[Bin2]])=0)*(MOD(Table6[Bin9],Table4[[#This Row],[Bin3]])=0)*(MOD(Table6[Bin9],Table4[[#This Row],[Bin4]])=0)*(MOD(Table6[Bin9],Table4[[#This Row],[Bin5]])=0)*(MOD(Table6[Bin9],Table4[[#This Row],[Bin6]])=0)*(MOD(Table6[Bin9],Table4[[#This Row],[Bin7]])=0)*(MOD(Table6[Bin9],Table4[[#This Row],[Bin8]])=0))) -> 4
B115: 3 | C115: 5 | D115: 13 | E115: 19 | J115: =COUNTA(Table4[[#This Row],[Bin1]:[Bin8]]) -> 4 | K115: =CHOOSE(Table4[[#This Row],[Bin9]],0,SUMPRODUCT((MOD(Table6[Bin9],Table4[[#This Row],[Bin1]])=0)*(MOD(Table6[Bin9],Table4[[#This Row],[Bin2]])=0)),SUMPRODUCT((MOD(Table6[Bin9],Table4[[#This Row],[Bin1]])=0)*(MOD(Table6[Bin9],Table4[[#This Row],[Bin2]])=0)*(MOD(Table6[Bin9],Table4[[#This Row],[Bin3]])=0)),SUMPRODUCT((MOD(Table6[Bin9],Table4[[#This Row],[Bin1]])=0)*(MOD(Table6[Bin9],Table4[[#This Row],[Bin2]])=0)*(MOD(Table6[Bin9],Table4[[#This Row],[Bin3]])=0)*(MOD(Table6[Bin9],Table4[[#This Row],[Bin4]])=0)),SUMPRODUCT((MOD(Table6[Bin9],Table4[[#This Row],[Bin1]])=0)*(MOD(Table6[Bin9],Table4[[#This Row],[Bin2]])=0)*(MOD(Table6[Bin9],Table4[[#This Row],[Bin3]])=0)*(MOD(Table6[Bin9],Table4[[#This Row],[Bin4]])=0)*(MOD(Table6[Bin9],Table4[[#This Row],[Bin5]])=0)),SUMPRODUCT((MOD(Table6[Bin9],Table4[[#This Row],[Bin1]])=0)*(MOD(Table6[Bin9],Table4[[#This Row],[Bin2]])=0)*(MOD(Table6[Bin9],Table4[[#This Row],[Bin3]])=0)*(MOD(Table6[Bin9],Table4[[#This Row],[Bin4]])=0)*(MOD(Table6[Bin9],Table4[[#This Row],[Bin5]])=0)*(MOD(Table6[Bin9],Table4[[#This Row],[Bin6]])=0)),SUMPRODUCT((MOD(Table6[Bin9],Table4[[#This Row],[Bin1]])=0)*(MOD(Table6[Bin9],Table4[[#This Row],[Bin2]])=0)*(MOD(Table6[Bin9],Table4[[#This Row],[Bin3]])=0)*(MOD(Table6[Bin9],Table4[[#This Row],[Bin4]])=0)*(MOD(Table6[Bin9],Table4[[#This Row],[Bin5]])=0)*(MOD(Table6[Bin9],Table4[[#This Row],[Bin6]])=0)*(MOD(Table6[Bin9],Table4[[#This Row],[Bin7]])=0)),SUMPRODUCT((MOD(Table6[Bin9],Table4[[#This Row],[Bin1]])=0)*(MOD(Table6[Bin9],Table4[[#This Row],[Bin2]])=0)*(MOD(Table6[Bin9],Table4[[#This Row],[Bin3]])=0)*(MOD(Table6[Bin9],Table4[[#This Row],[Bin4]])=0)*(MOD(Table6[Bin9],Table4[[#This Row],[Bin5]])=0)*(MOD(Table6[Bin9],Table4[[#This Row],[Bin6]])=0)*(MOD(Table6[Bin9],Table4[[#This Row],[Bin7]])=0)*(MOD(Table6[Bin9],Table4[[#This Row],[Bin8]])=0))) -> 1
B116: 3 | C116: 7 | D116: 13 | E116: 19 | J116: =COUNTA(Table4[[#This Row],[Bin1]:[Bin8]]) -> 4 | K116: =CHOOSE(Table4[[#This Row],[Bin9]],0,SUMPRODUCT((MOD(Table6[Bin9],Table4[[#This Row],[Bin1]])=0)*(MOD(Table6[Bin9],Table4[[#This Row],[Bin2]])=0)),SUMPRODUCT((MOD(Table6[Bin9],Table4[[#This Row],[Bin1]])=0)*(MOD(Table6[Bin9],Table4[[#This Row],[Bin2]])=0)*(MOD(Table6[Bin9],Table4[[#This Row],[Bin3]])=0)),SUMPRODUCT((MOD(Table6[Bin9],Table4[[#This Row],[Bin1]])=0)*(MOD(Table6[Bin9],Table4[[#This Row],[Bin2]])=0)*(MOD(Table6[Bin9],Table4[[#This Row],[Bin3]])=0)*(MOD(Table6[Bin9],Table4[[#This Row],[Bin4]])=0)),SUMPRODUCT((MOD(Table6[Bin9],Table4[[#This Row],[Bin1]])=0)*(MOD(Table6[Bin9],Table4[[#This Row],[Bin2]])=0)*(MOD(Table6[Bin9],Table4[[#This Row],[Bin3]])=0)*(MOD(Table6[Bin9],Table4[[#This Row],[Bin4]])=0)*(MOD(Table6[Bin9],Table4[[#This Row],[Bin5]])=0)),SUMPRODUCT((MOD(Table6[Bin9],Table4[[#This Row],[Bin1]])=0)*(MOD(Table6[Bin9],Table4[[#This Row],[Bin2]])=0)*(MOD(Table6[Bin9],Table4[[#This Row],[Bin3]])=0)*(MOD(Table6[Bin9],Table4[[#This Row],[Bin4]])=0)*(MOD(Table6[Bin9],Table4[[#This Row],[Bin5]])=0)*(MOD(Table6[Bin9],Table4[[#This Row],[Bin6]])=0)),SUMPRODUCT((MOD(Table6[Bin9],Table4[[#This Row],[Bin1]])=0)*(MOD(Table6[Bin9],Table4[[#This Row],[Bin2]])=0)*(MOD(Table6[Bin9],Table4[[#This Row],[Bin3]])=0)*(MOD(Table6[Bin9],Table4[[#This Row],[Bin4]])=0)*(MOD(Table6[Bin9],Table4[[#This Row],[Bin5]])=0)*(MOD(Table6[Bin9],Table4[[#This Row],[Bin6]])=0)*(MOD(Table6[Bin9],Table4[[#This Row],[Bin7]])=0)),SUMPRODUCT((MOD(Table6[Bin9],Table4[[#This Row],[Bin1]])=0)*(MOD(Table6[Bin9],Table4[[#This Row],[Bin2]])=0)*(MOD(Table6[Bin9],Table4[[#This Row],[Bin3]])=0)*(MOD(Table6[Bin9],Table4[[#This Row],[Bin4]])=0)*(MOD(Table6[Bin9],Table4[[#This Row],[Bin5]])=0)*(MOD(Table6[Bin9],Table4[[#This Row],[Bin6]])=0)*(MOD(Table6[Bin9],Table4[[#This Row],[Bin7]])=0)*(MOD(Table6[Bin9],Table4[[#This Row],[Bin8]])=0))) -> 3
B117: 5 | C117: 7 | D117: 13 | E117: 19 | J117: =COUNTA(Table4[[#This Row],[Bin1]:[Bin8]]) -> 4 | K117: =CHOOSE(Table4[[#This Row],[Bin9]],0,SUMPRODUCT((MOD(Table6[Bin9],Table4[[#This Row],[Bin1]])=0)*(MOD(Table6[Bin9],Table4[[#This Row],[Bin2]])=0)),SUMPRODUCT((MOD(Table6[Bin9],Table4[[#This Row],[Bin1]])=0)*(MOD(Table6[Bin9],Table4[[#This Row],[Bin2]])=0)*(MOD(Table6[Bin9],Table4[[#This Row],[Bin3]])=0)),SUMPRODUCT((MOD(Table6[Bin9],Table4[[#This Row],[Bin1]])=0)*(MOD(Table6[Bin9],Table4[[#This Row],[Bin2]])=0)*(MOD(Table6[Bin9],Table4[[#This Row],[Bin3]])=0)*(MOD(Table6[Bin9],Table4[[#This Row],[Bin4]])=0)),SUMPRODUCT((MOD(Table6[Bin9],Table4[[#This Row],[Bin1]])=0)*(MOD(Table6[Bin9],Table4[[#This Row],[Bin2]])=0)*(MOD(Table6[Bin9],Table4[[#This Row],[Bin3]])=0)*(MOD(Table6[Bin9],Table4[[#This Row],[Bin4]])=0)*(MOD(Table6[Bin9],Table4[[#This Row],[Bin5]])=0)),SUMPRODUCT((MOD(Table6[Bin9],Table4[[#This Row],[Bin1]])=0)*(MOD(Table6[Bin9],Table4[[#This Row],[Bin2]])=0)*(MOD(Table6[Bin9],Table4[[#This Row],[Bin3]])=0)*(MOD(Table6[Bin9],Table4[[#This Row],[Bin4]])=0)*(MOD(Table6[Bin9],Table4[[#This Row],[Bin5]])=0)*(MOD(Table6[Bin9],Table4[[#This Row],[Bin6]])=0)),SUMPRODUCT((MOD(Table6[Bin9],Table4[[#This Row],[Bin1]])=0)*(MOD(Table6[Bin9],Table4[[#This Row],[Bin2]])=0)*(MOD(Table6[Bin9],Table4[[#This Row],[Bin3]])=0)*(MOD(Table6[Bin9],Table4[[#This Row],[Bin4]])=0)*(MOD(Table6[Bin9],Table4[[#This Row],[Bin5]])=0)*(MOD(Table6[Bin9],Table4[[#This Row],[Bin6]])=0)*(MOD(Table6[Bin9],Table4[[#This Row],[Bin7]])=0)),SUMPRODUCT((MOD(Table6[Bin9],Table4[[#This Row],[Bin1]])=0)*(MOD(Table6[Bin9],Table4[[#This Row],[Bin2]])=0)*(MOD(Table6[Bin9],Table4[[#This Row],[Bin3]])=0)*(MOD(Table6[Bin9],Table4[[#This Row],[Bin4]])=0)*(MOD(Table6[Bin9],Table4[[#This Row],[Bin5]])=0)*(MOD(Table6[Bin9],Table4[[#This Row],[Bin6]])=0)*(MOD(Table6[Bin9],Table4[[#This Row],[Bin7]])=0)*(MOD(Table6[Bin9],Table4[[#This Row],[Bin8]])=0))) -> 1
B118: 3 | C118: 11 | D118: 13 | E118: 19 | J118: =COUNTA(Table4[[#This Row],[Bin1]:[Bin8]]) -> 4 | K118: =CHOOSE(Table4[[#This Row],[Bin9]],0,SUMPRODUCT((MOD(Table6[Bin9],Table4[[#This Row],[Bin1]])=0)*(MOD(Table6[Bin9],Table4[[#This Row],[Bin2]])=0)),SUMPRODUCT((MOD(Table6[Bin9],Table4[[#This Row],[Bin1]])=0)*(MOD(Table6[Bin9],Table4[[#This Row],[Bin2]])=0)*(MOD(Table6[Bin9],Table4[[#This Row],[Bin3]])=0)),SUMPRODUCT((MOD(Table6[Bin9],Table4[[#This Row],[Bin1]])=0)*(MOD(Table6[Bin9],Table4[[#This Row],[Bin2]])=0)*(MOD(Table6[Bin9],Table4[[#This Row],[Bin3]])=0)*(MOD(Table6[Bin9],Table4[[#This Row],[Bin4]])=0)),SUMPRODUCT((MOD(Table6[Bin9],Table4[[#This Row],[Bin1]])=0)*(MOD(Table6[Bin9],Table4[[#This Row],[Bin2]])=0)*(MOD(Table6[Bin9],Table4[[#This Row],[Bin3]])=0)*(MOD(Table6[Bin9],Table4[[#This Row],[Bin4]])=0)*(MOD(Table6[Bin9],Table4[[#This Row],[Bin5]])=0)),SUMPRODUCT((MOD(Table6[Bin9],Table4[[#This Row],[Bin1]])=0)*(MOD(Table6[Bin9],Table4[[#This Row],[Bin2]])=0)*(MOD(Table6[Bin9],Table4[[#This Row],[Bin3]])=0)*(MOD(Table6[Bin9],Table4[[#This Row],[Bin4]])=0)*(MOD(Table6[Bin9],Table4[[#This Row],[Bin5]])=0)*(MOD(Table6[Bin9],Table4[[#This Row],[Bin6]])=0)),SUMPRODUCT((MOD(Table6[Bin9],Table4[[#This Row],[Bin1]])=0)*(MOD(Table6[Bin9],Table4[[#This Row],[Bin2]])=0)*(MOD(Table6[Bin9],Table4[[#This Row],[Bin3]])=0)*(MOD(Table6[Bin9],Table4[[#This Row],[Bin4]])=0)*(MOD(Table6[Bin9],Table4[[#This Row],[Bin5]])=0)*(MOD(Table6[Bin9],Table4[[#This Row],[Bin6]])=0)*(MOD(Table6[Bin9],Table4[[#This Row],[Bin7]])=0)),SUMPRODUCT((MOD(Table6[Bin9],Table4[[#This Row],[Bin1]])=0)*(MOD(Table6[Bin9],Table4[[#This Row],[Bin2]])=0)*(MOD(Table6[Bin9],Table4[[#This Row],[Bin3]])=0)*(MOD(Table6[Bin9],Table4[[#This Row],[Bin4]])=0)*(MOD(Table6[Bin9],Table4[[#This Row],[Bin5]])=0)*(MOD(Table6[Bin9],Table4[[#This Row],[Bin6]])=0)*(MOD(Table6[Bin9],Table4[[#This Row],[Bin7]])=0)*(MOD(Table6[Bin9],Table4[[#This Row],[Bin8]])=0))) -> 2
B119: 5 | C119: 11 | D119: 13 | E119: 19 | J119: =COUNTA(Table4[[#This Row],[Bin1]:[Bin8]]) -> 4 | K119: =CHOOSE(Table4[[#This Row],[Bin9]],0,SUMPRODUCT((MOD(Table6[Bin9],Table4[[#This Row],[Bin1]])=0)*(MOD(Table6[Bin9],Table4[[#This Row],[Bin2]])=0)),SUMPRODUCT((MOD(Table6[Bin9],Table4[[#This Row],[Bin1]])=0)*(MOD(Table6[Bin9],Table4[[#This Row],[Bin2]])=0)*(MOD(Table6[Bin9],Table4[[#This Row],[Bin3]])=0)),SUMPRODUCT((MOD(Table6[Bin9],Table4[[#This Row],[Bin1]])=0)*(MOD(Table6[Bin9],Table4[[#This Row],[Bin2]])=0)*(MOD(Table6[Bin9],Table4[[#This Row],[Bin3]])=0)*(MOD(Table6[Bin9],Table4[[#This Row],[Bin4]])=0)),SUMPRODUCT((MOD(Table6[Bin9],Table4[[#This Row],[Bin1]])=0)*(MOD(Table6[Bin9],Table4[[#This Row],[Bin2]])=0)*(MOD(Table6[Bin9],Table4[[#This Row],[Bin3]])=0)*(MOD(Table6[Bin9],Table4[[#This Row],[Bin4]])=0)*(MOD(Table6[Bin9],Table4[[#This Row],[Bin5]])=0)),SUMPRODUCT((MOD(Table6[Bin9],Table4[[#This Row],[Bin1]])=0)*(MOD(Table6[Bin9],Table4[[#This Row],[Bin2]])=0)*(MOD(Table6[Bin9],Table4[[#This Row],[Bin3]])=0)*(MOD(Table6[Bin9],Table4[[#This Row],[Bin4]])=0)*(MOD(Table6[Bin9],Table4[[#This Row],[Bin5]])=0)*(MOD(Table6[Bin9],Table4[[#This Row],[Bin6]])=0)),SUMPRODUCT((MOD(Table6[Bin9],Table4[[#This Row],[Bin1]])=0)*(MOD(Table6[Bin9],Table4[[#This Row],[Bin2]])=0)*(MOD(Table6[Bin9],Table4[[#This Row],[Bin3]])=0)*(MOD(Table6[Bin9],Table4[[#This Row],[Bin4]])=0)*(MOD(Table6[Bin9],Table4[[#This Row],[Bin5]])=0)*(MOD(Table6[Bin9],Table4[[#This Row],[Bin6]])=0)*(MOD(Table6[Bin9],Table4[[#This Row],[Bin7]])=0)),SUMPRODUCT((MOD(Table6[Bin9],Table4[[#This Row],[Bin1]])=0)*(MOD(Table6[Bin9],Table4[[#This Row],[Bin2]])=0)*(MOD(Table6[Bin9],Table4[[#This Row],[Bin3]])=0)*(MOD(Table6[Bin9],Table4[[#This Row],[Bin4]])=0)*(MOD(Table6[Bin9],Table4[[#This Row],[Bin5]])=0)*(MOD(Table6[Bin9],Table4[[#This Row],[Bin6]])=0)*(MOD(Table6[Bin9],Table4[[#This Row],[Bin7]])=0)*(MOD(Table6[Bin9],Table4[[#This Row],[Bin8]])=0))) -> 2
B120: 7 | C120: 11 | D120: 13 | E120: 19 | J120: =COUNTA(Table4[[#This Row],[Bin1]:[Bin8]]) -> 4 | K120: =CHOOSE(Table4[[#This Row],[Bin9]],0,SUMPRODUCT((MOD(Table6[Bin9],Table4[[#This Row],[Bin1]])=0)*(MOD(Table6[Bin9],Table4[[#This Row],[Bin2]])=0)),SUMPRODUCT((MOD(Table6[Bin9],Table4[[#This Row],[Bin1]])=0)*(MOD(Table6[Bin9],Table4[[#This Row],[Bin2]])=0)*(MOD(Table6[Bin9],Table4[[#This Row],[Bin3]])=0)),SUMPRODUCT((MOD(Table6[Bin9],Table4[[#This Row],[Bin1]])=0)*(MOD(Table6[Bin9],Table4[[#This Row],[Bin2]])=0)*(MOD(Table6[Bin9],Table4[[#This Row],[Bin3]])=0)*(MOD(Table6[Bin9],Table4[[#This Row],[Bin4]])=0)),SUMPRODUCT((MOD(Table6[Bin9],Table4[[#This Row],[Bin1]])=0)*(MOD(Table6[Bin9],Table4[[#This Row],[Bin2]])=0)*(MOD(Table6[Bin9],Table4[[#This Row],[Bin3]])=0)*(MOD(Table6[Bin9],Table4[[#This Row],[Bin4]])=0)*(MOD(Table6[Bin9],Table4[[#This Row],[Bin5]])=0)),SUMPRODUCT((MOD(Table6[Bin9],Table4[[#This Row],[Bin1]])=0)*(MOD(Table6[Bin9],Table4[[#This Row],[Bin2]])=0)*(MOD(Table6[Bin9],Table4[[#This Row],[Bin3]])=0)*(MOD(Table6[Bin9],Table4[[#This Row],[Bin4]])=0)*(MOD(Table6[Bin9],Table4[[#This Row],[Bin5]])=0)*(MOD(Table6[Bin9],Table4[[#This Row],[Bin6]])=0)),SUMPRODUCT((MOD(Table6[Bin9],Table4[[#This Row],[Bin1]])=0)*(MOD(Table6[Bin9],Table4[[#This Row],[Bin2]])=0)*(MOD(Table6[Bin9],Table4[[#This Row],[Bin3]])=0)*(MOD(Table6[Bin9],Table4[[#This Row],[Bin4]])=0)*(MOD(Table6[Bin9],Table4[[#This Row],[Bin5]])=0)*(MOD(Table6[Bin9],Table4[[#This Row],[Bin6]])=0)*(MOD(Table6[Bin9],Table4[[#This Row],[Bin7]])=0)),SUMPRODUCT((MOD(Table6[Bin9],Table4[[#This Row],[Bin1]])=0)*(MOD(Table6[Bin9],Table4[[#This Row],[Bin2]])=0)*(MOD(Table6[Bin9],Table4[[#This Row],[Bin3]])=0)*(MOD(Table6[Bin9],Table4[[#This Row],[Bin4]])=0)*(MOD(Table6[Bin9],Table4[[#This Row],[Bin5]])=0)*(MOD(Table6[Bin9],Table4[[#This Row],[Bin6]])=0)*(MOD(Table6[Bin9],Table4[[#This Row],[Bin7]])=0)*(MOD(Table6[Bin9],Table4[[#This Row],[Bin8]])=0))) -> 2
B121: 3 | C121: 5 | D121: 17 | E121: 19 | J121: =COUNTA(Table4[[#This Row],[Bin1]:[Bin8]]) -> 4 | K121: =CHOOSE(Table4[[#This Row],[Bin9]],0,SUMPRODUCT((MOD(Table6[Bin9],Table4[[#This Row],[Bin1]])=0)*(MOD(Table6[Bin9],Table4[[#This Row],[Bin2]])=0)),SUMPRODUCT((MOD(Table6[Bin9],Table4[[#This Row],[Bin1]])=0)*(MOD(Table6[Bin9],Table4[[#This Row],[Bin2]])=0)*(MOD(Table6[Bin9],Table4[[#This Row],[Bin3]])=0)),SUMPRODUCT((MOD(Table6[Bin9],Table4[[#This Row],[Bin1]])=0)*(MOD(Table6[Bin9],Table4[[#This Row],[Bin2]])=0)*(MOD(Table6[Bin9],Table4[[#This Row],[Bin3]])=0)*(MOD(Table6[Bin9],Table4[[#This Row],[Bin4]])=0)),SUMPRODUCT((MOD(Table6[Bin9],Table4[[#This Row],[Bin1]])=0)*(MOD(Table6[Bin9],Table4[[#This Row],[Bin2]])=0)*(MOD(Table6[Bin9],Table4[[#This Row],[Bin3]])=0)*(MOD(Table6[Bin9],Table4[[#This Row],[Bin4]])=0)*(MOD(Table6[Bin9],Table4[[#This Row],[Bin5]])=0)),SUMPRODUCT((MOD(Table6[Bin9],Table4[[#This Row],[Bin1]])=0)*(MOD(Table6[Bin9],Table4[[#This Row],[Bin2]])=0)*(MOD(Table6[Bin9],Table4[[#This Row],[Bin3]])=0)*(MOD(Table6[Bin9],Table4[[#This Row],[Bin4]])=0)*(MOD(Table6[Bin9],Table4[[#This Row],[Bin5]])=0)*(MOD(Table6[Bin9],Table4[[#This Row],[Bin6]])=0)),SUMPRODUCT((MOD(Table6[Bin9],Table4[[#This Row],[Bin1]])=0)*(MOD(Table6[Bin9],Table4[[#This Row],[Bin2]])=0)*(MOD(Table6[Bin9],Table4[[#This Row],[Bin3]])=0)*(MOD(Table6[Bin9],Table4[[#This Row],[Bin4]])=0)*(MOD(Table6[Bin9],Table4[[#This Row],[Bin5]])=0)*(MOD(Table6[Bin9],Table4[[#This Row],[Bin6]])=0)*(MOD(Table6[Bin9],Table4[[#This Row],[Bin7]])=0)),SUMPRODUCT((MOD(Table6[Bin9],Table4[[#This Row],[Bin1]])=0)*(MOD(Table6[Bin9],Table4[[#This Row],[Bin2]])=0)*(MOD(Table6[Bin9],Table4[[#This Row],[Bin3]])=0)*(MOD(Table6[Bin9],Table4[[#This Row],[Bin4]])=0)*(MOD(Table6[Bin9],Table4[[#This Row],[Bin5]])=0)*(MOD(Table6[Bin9],Table4[[#This Row],[Bin6]])=0)*(MOD(Table6[Bin9],Table4[[#This Row],[Bin7]])=0)*(MOD(Table6[Bin9],Table4[[#This Row],[Bin8]])=0))) -> 0
B122: 3 | C122: 7 | D122: 17 | E122: 19 | J122: =COUNTA(Table4[[#This Row],[Bin1]:[Bin8]]) -> 4 | K122: =CHOOSE(Table4[[#This Row],[Bin9]],0,SUMPRODUCT((MOD(Table6[Bin9],Table4[[#This Row],[Bin1]])=0)*(MOD(Table6[Bin9],Table4[[#This Row],[Bin2]])=0)),SUMPRODUCT((MOD(Table6[Bin9],Table4[[#This Row],[Bin1]])=0)*(MOD(Table6[Bin9],Table4[[#This Row],[Bin2]])=0)*(MOD(Table6[Bin9],Table4[[#This Row],[Bin3]])=0)),SUMPRODUCT((MOD(Table6[Bin9],Table4[[#This Row],[Bin1]])=0)*(MOD(Table6[Bin9],Table4[[#This Row],[Bin2]])=0)*(MOD(Table6[Bin9],Table4[[#This Row],[Bin3]])=0)*(MOD(Table6[Bin9],Table4[[#This Row],[Bin4]])=0)),SUMPRODUCT((MOD(Table6[Bin9],Table4[[#This Row],[Bin1]])=0)*(MOD(Table6[Bin9],Table4[[#This Row],[Bin2]])=0)*(MOD(Table6[Bin9],Table4[[#This Row],[Bin3]])=0)*(MOD(Table6[Bin9],Table4[[#This Row],[Bin4]])=0)*(MOD(Table6[Bin9],Table4[[#This Row],[Bin5]])=0)),SUMPRODUCT((MOD(Table6[Bin9],Table4[[#This Row],[Bin1]])=0)*(MOD(Table6[Bin9],Table4[[#This Row],[Bin2]])=0)*(MOD(Table6[Bin9],Table4[[#This Row],[Bin3]])=0)*(MOD(Table6[Bin9],Table4[[#This Row],[Bin4]])=0)*(MOD(Table6[Bin9],Table4[[#This Row],[Bin5]])=0)*(MOD(Table6[Bin9],Table4[[#This Row],[Bin6]])=0)),SUMPRODUCT((MOD(Table6[Bin9],Table4[[#This Row],[Bin1]])=0)*(MOD(Table6[Bin9],Table4[[#This Row],[Bin2]])=0)*(MOD(Table6[Bin9],Table4[[#This Row],[Bin3]])=0)*(MOD(Table6[Bin9],Table4[[#This Row],[Bin4]])=0)*(MOD(Table6[Bin9],Table4[[#This Row],[Bin5]])=0)*(MOD(Table6[Bin9],Table4[[#This Row],[Bin6]])=0)*(MOD(Table6[Bin9],Table4[[#This Row],[Bin7]])=0)),SUMPRODUCT((MOD(Table6[Bin9],Table4[[#This Row],[Bin1]])=0)*(MOD(Table6[Bin9],Table4[[#This Row],[Bin2]])=0)*(MOD(Table6[Bin9],Table4[[#This Row],[Bin3]])=0)*(MOD(Table6[Bin9],Table4[[#This Row],[Bin4]])=0)*(MOD(Table6[Bin9],Table4[[#This Row],[Bin5]])=0)*(MOD(Table6[Bin9],Table4[[#This Row],[Bin6]])=0)*(MOD(Table6[Bin9],Table4[[#This Row],[Bin7]])=0)*(MOD(Table6[Bin9],Table4[[#This Row],[Bin8]])=0))) -> 1
B123: 5 | C123: 7 | D123: 17 | E123: 19 | J123: =COUNTA(Table4[[#This Row],[Bin1]:[Bin8]]) -> 4 | K123: =CHOOSE(Table4[[#This Row],[Bin9]],0,SUMPRODUCT((MOD(Table6[Bin9],Table4[[#This Row],[Bin1]])=0)*(MOD(Table6[Bin9],Table4[[#This Row],[Bin2]])=0)),SUMPRODUCT((MOD(Table6[Bin9],Table4[[#This Row],[Bin1]])=0)*(MOD(Table6[Bin9],Table4[[#This Row],[Bin2]])=0)*(MOD(Table6[Bin9],Table4[[#This Row],[Bin3]])=0)),SUMPRODUCT((MOD(Table6[Bin9],Table4[[#This Row],[Bin1]])=0)*(MOD(Table6[Bin9],Table4[[#This Row],[Bin2]])=0)*(MOD(Table6[Bin9],Table4[[#This Row],[Bin3]])=0)*(MOD(Table6[Bin9],Table4[[#This Row],[Bin4]])=0)),SUMPRODUCT((MOD(Table6[Bin9],Table4[[#This Row],[Bin1]])=0)*(MOD(Table6[Bin9],Table4[[#This Row],[Bin2]])=0)*(MOD(Table6[Bin9],Table4[[#This Row],[Bin3]])=0)*(MOD(Table6[Bin9],Table4[[#This Row],[Bin4]])=0)*(MOD(Table6[Bin9],Table4[[#This Row],[Bin5]])=0)),SUMPRODUCT((MOD(Table6[Bin9],Table4[[#This Row],[Bin1]])=0)*(MOD(Table6[Bin9],Table4[[#This Row],[Bin2]])=0)*(MOD(Table6[Bin9],Table4[[#This Row],[Bin3]])=0)*(MOD(Table6[Bin9],Table4[[#This Row],[Bin4]])=0)*(MOD(Table6[Bin9],Table4[[#This Row],[Bin5]])=0)*(MOD(Table6[Bin9],Table4[[#This Row],[Bin6]])=0)),SUMPRODUCT((MOD(Table6[Bin9],Table4[[#This Row],[Bin1]])=0)*(MOD(Table6[Bin9],Table4[[#This Row],[Bin2]])=0)*(MOD(Table6[Bin9],Table4[[#This Row],[Bin3]])=0)*(MOD(Table6[Bin9],Table4[[#This Row],[Bin4]])=0)*(MOD(Table6[Bin9],Table4[[#This Row],[Bin5]])=0)*(MOD(Table6[Bin9],Table4[[#This Row],[Bin6]])=0)*(MOD(Table6[Bin9],Table4[[#This Row],[Bin7]])=0)),SUMPRODUCT((MOD(Table6[Bin9],Table4[[#This Row],[Bin1]])=0)*(MOD(Table6[Bin9],Table4[[#This Row],[Bin2]])=0)*(MOD(Table6[Bin9],Table4[[#This Row],[Bin3]])=0)*(MOD(Table6[Bin9],Table4[[#This Row],[Bin4]])=0)*(MOD(Table6[Bin9],Table4[[#This Row],[Bin5]])=0)*(MOD(Table6[Bin9],Table4[[#This Row],[Bin6]])=0)*(MOD(Table6[Bin9],Table4[[#This Row],[Bin7]])=0)*(MOD(Table6[Bin9],Table4[[#This Row],[Bin8]])=0))) -> 1
B124: 3 | C124: 11 | D124: 17 | E124: 19 | J124: =COUNTA(Table4[[#This Row],[Bin1]:[Bin8]]) -> 4 | K124: =CHOOSE(Table4[[#This Row],[Bin9]],0,SUMPRODUCT((MOD(Table6[Bin9],Table4[[#This Row],[Bin1]])=0)*(MOD(Table6[Bin9],Table4[[#This Row],[Bin2]])=0)),SUMPRODUCT((MOD(Table6[Bin9],Table4[[#This Row],[Bin1]])=0)*(MOD(Table6[Bin9],Table4[[#This Row],[Bin2]])=0)*(MOD(Table6[Bin9],Table4[[#This Row],[Bin3]])=0)),SUMPRODUCT((MOD(Table6[Bin9],Table4[[#This Row],[Bin1]])=0)*(MOD(Table6[Bin9],Table4[[#This Row],[Bin2]])=0)*(MOD(Table6[Bin9],Table4[[#This Row],[Bin3]])=0)*(MOD(Table6[Bin9],Table4[[#This Row],[Bin4]])=0)),SUMPRODUCT((MOD(Table6[Bin9],Table4[[#This Row],[Bin1]])=0)*(MOD(Table6[Bin9],Table4[[#This Row],[Bin2]])=0)*(MOD(Table6[Bin9],Table4[[#This Row],[Bin3]])=0)*(MOD(Table6[Bin9],Table4[[#This Row],[Bin4]])=0)*(MOD(Table6[Bin9],Table4[[#This Row],[Bin5]])=0)),SUMPRODUCT((MOD(Table6[Bin9],Table4[[#This Row],[Bin1]])=0)*(MOD(Table6[Bin9],Table4[[#This Row],[Bin2]])=0)*(MOD(Table6[Bin9],Table4[[#This Row],[Bin3]])=0)*(MOD(Table6[Bin9],Table4[[#This Row],[Bin4]])=0)*(MOD(Table6[Bin9],Table4[[#This Row],[Bin5]])=0)*(MOD(Table6[Bin9],Table4[[#This Row],[Bin6]])=0)),SUMPRODUCT((MOD(Table6[Bin9],Table4[[#This Row],[Bin1]])=0)*(MOD(Table6[Bin9],Table4[[#This Row],[Bin2]])=0)*(MOD(Table6[Bin9],Table4[[#This Row],[Bin3]])=0)*(MOD(Table6[Bin9],Table4[[#This Row],[Bin4]])=0)*(MOD(Table6[Bin9],Table4[[#This Row],[Bin5]])=0)*(MOD(Table6[Bin9],Table4[[#This Row],[Bin6]])=0)*(MOD(Table6[Bin9],Table4[[#This Row],[Bin7]])=0)),SUMPRODUCT((MOD(Table6[Bin9],Table4[[#This Row],[Bin1]])=0)*(MOD(Table6[Bin9],Table4[[#This Row],[Bin2]])=0)*(MOD(Table6[Bin9],Table4[[#This Row],[Bin3]])=0)*(MOD(Table6[Bin9],Table4[[#This Row],[Bin4]])=0)*(MOD(Table6[Bin9],Table4[[#This Row],[Bin5]])=0)*(MOD(Table6[Bin9],Table4[[#This Row],[Bin6]])=0)*(MOD(Table6[Bin9],Table4[[#This Row],[Bin7]])=0)*(MOD(Table6[Bin9],Table4[[#This Row],[Bin8]])=0))) -> 1
B125: 5 | C125: 11 | D125: 17 | E125: 19 | J125: =COUNTA(Table4[[#This Row],[Bin1]:[Bin8]]) -> 4 | K125: =CHOOSE(Table4[[#This Row],[Bin9]],0,SUMPRODUCT((MOD(Table6[Bin9],Table4[[#This Row],[Bin1]])=0)*(MOD(Table6[Bin9],Table4[[#This Row],[Bin2]])=0)),SUMPRODUCT((MOD(Table6[Bin9],Table4[[#This Row],[Bin1]])=0)*(MOD(Table6[Bin9],Table4[[#This Row],[Bin2]])=0)*(MOD(Table6[Bin9],Table4[[#This Row],[Bin3]])=0)),SUMPRODUCT((MOD(Table6[Bin9],Table4[[#This Row],[Bin1]])=0)*(MOD(Table6[Bin9],Table4[[#This Row],[Bin2]])=0)*(MOD(Table6[Bin9],Table4[[#This Row],[Bin3]])=0)*(MOD(Table6[Bin9],Table4[[#This Row],[Bin4]])=0)),SUMPRODUCT((MOD(Table6[Bin9],Table4[[#This Row],[Bin1]])=0)*(MOD(Table6[Bin9],Table4[[#This Row],[Bin2]])=0)*(MOD(Table6[Bin9],Table4[[#This Row],[Bin3]])=0)*(MOD(Table6[Bin9],Table4[[#This Row],[Bin4]])=0)*(MOD(Table6[Bin9],Table4[[#This Row],[Bin5]])=0)),SUMPRODUCT((MOD(Table6[Bin9],Table4[[#This Row],[Bin1]])=0)*(MOD(Table6[Bin9],Table4[[#This Row],[Bin2]])=0)*(MOD(Table6[Bin9],Table4[[#This Row],[Bin3]])=0)*(MOD(Table6[Bin9],Table4[[#This Row],[Bin4]])=0)*(MOD(Table6[Bin9],Table4[[#This Row],[Bin5]])=0)*(MOD(Table6[Bin9],Table4[[#This Row],[Bin6]])=0)),SUMPRODUCT((MOD(Table6[Bin9],Table4[[#This Row],[Bin1]])=0)*(MOD(Table6[Bin9],Table4[[#This Row],[Bin2]])=0)*(MOD(Table6[Bin9],Table4[[#This Row],[Bin3]])=0)*(MOD(Table6[Bin9],Table4[[#This Row],[Bin4]])=0)*(MOD(Table6[Bin9],Table4[[#This Row],[Bin5]])=0)*(MOD(Table6[Bin9],Table4[[#This Row],[Bin6]])=0)*(MOD(Table6[Bin9],Table4[[#This Row],[Bin7]])=0)),SUMPRODUCT((MOD(Table6[Bin9],Table4[[#This Row],[Bin1]])=0)*(MOD(Table6[Bin9],Table4[[#This Row],[Bin2]])=0)*(MOD(Table6[Bin9],Table4[[#This Row],[Bin3]])=0)*(MOD(Table6[Bin9],Table4[[#This Row],[Bin4]])=0)*(MOD(Table6[Bin9],Table4[[#This Row],[Bin5]])=0)*(MOD(Table6[Bin9],Table4[[#This Row],[Bin6]])=0)*(MOD(Table6[Bin9],Table4[[#This Row],[Bin7]])=0)*(MOD(Table6[Bin9],Table4[[#This Row],[Bin8]])=0))) -> 2
B126: 7 | C126: 11 | D126: 17 | E126: 19 | J126: =COUNTA(Table4[[#This Row],[Bin1]:[Bin8]]) -> 4 | K126: =CHOOSE(Table4[[#This Row],[Bin9]],0,SUMPRODUCT((MOD(Table6[Bin9],Table4[[#This Row],[Bin1]])=0)*(MOD(Table6[Bin9],Table4[[#This Row],[Bin2]])=0)),SUMPRODUCT((MOD(Table6[Bin9],Table4[[#This Row],[Bin1]])=0)*(MOD(Table6[Bin9],Table4[[#This Row],[Bin2]])=0)*(MOD(Table6[Bin9],Table4[[#This Row],[Bin3]])=0)),SUMPRODUCT((MOD(Table6[Bin9],Table4[[#This Row],[Bin1]])=0)*(MOD(Table6[Bin9],Table4[[#This Row],[Bin2]])=0)*(MOD(Table6[Bin9],Table4[[#This Row],[Bin3]])=0)*(MOD(Table6[Bin9],Table4[[#This Row],[Bin4]])=0)),SUMPRODUCT((MOD(Table6[Bin9],Table4[[#This Row],[Bin1]])=0)*(MOD(Table6[Bin9],Table4[[#This Row],[Bin2]])=0)*(MOD(Table6[Bin9],Table4[[#This Row],[Bin3]])=0)*(MOD(Table6[Bin9],Table4[[#This Row],[Bin4]])=0)*(MOD(Table6[Bin9],Table4[[#This Row],[Bin5]])=0)),SUMPRODUCT((MOD(Table6[Bin9],Table4[[#This Row],[Bin1]])=0)*(MOD(Table6[Bin9],Table4[[#This Row],[Bin2]])=0)*(MOD(Table6[Bin9],Table4[[#This Row],[Bin3]])=0)*(MOD(Table6[Bin9],Table4[[#This Row],[Bin4]])=0)*(MOD(Table6[Bin9],Table4[[#This Row],[Bin5]])=0)*(MOD(Table6[Bin9],Table4[[#This Row],[Bin6]])=0)),SUMPRODUCT((MOD(Table6[Bin9],Table4[[#This Row],[Bin1]])=0)*(MOD(Table6[Bin9],Table4[[#This Row],[Bin2]])=0)*(MOD(Table6[Bin9],Table4[[#This Row],[Bin3]])=0)*(MOD(Table6[Bin9],Table4[[#This Row],[Bin4]])=0)*(MOD(Table6[Bin9],Table4[[#This Row],[Bin5]])=0)*(MOD(Table6[Bin9],Table4[[#This Row],[Bin6]])=0)*(MOD(Table6[Bin9],Table4[[#This Row],[Bin7]])=0)),SUMPRODUCT((MOD(Table6[Bin9],Table4[[#This Row],[Bin1]])=0)*(MOD(Table6[Bin9],Table4[[#This Row],[Bin2]])=0)*(MOD(Table6[Bin9],Table4[[#This Row],[Bin3]])=0)*(MOD(Table6[Bin9],Table4[[#This Row],[Bin4]])=0)*(MOD(Table6[Bin9],Table4[[#This Row],[Bin5]])=0)*(MOD(Table6[Bin9],Table4[[#This Row],[Bin6]])=0)*(MOD(Table6[Bin9],Table4[[#This Row],[Bin7]])=0)*(MOD(Table6[Bin9],Table4[[#This Row],[Bin8]])=0))) -> 3
B127: 3 | C127: 13 | D127: 17 | E127: 19 | J127: =COUNTA(Table4[[#This Row],[Bin1]:[Bin8]]) -> 4 | K127: =CHOOSE(Table4[[#This Row],[Bin9]],0,SUMPRODUCT((MOD(Table6[Bin9],Table4[[#This Row],[Bin1]])=0)*(MOD(Table6[Bin9],Table4[[#This Row],[Bin2]])=0)),SUMPRODUCT((MOD(Table6[Bin9],Table4[[#This Row],[Bin1]])=0)*(MOD(Table6[Bin9],Table4[[#This Row],[Bin2]])=0)*(MOD(Table6[Bin9],Table4[[#This Row],[Bin3]])=0)),SUMPRODUCT((MOD(Table6[Bin9],Table4[[#This Row],[Bin1]])=0)*(MOD(Table6[Bin9],Table4[[#This Row],[Bin2]])=0)*(MOD(Table6[Bin9],Table4[[#This Row],[Bin3]])=0)*(MOD(Table6[Bin9],Table4[[#This Row],[Bin4]])=0)),SUMPRODUCT((MOD(Table6[Bin9],Table4[[#This Row],[Bin1]])=0)*(MOD(Table6[Bin9],Table4[[#This Row],[Bin2]])=0)*(MOD(Table6[Bin9],Table4[[#This Row],[Bin3]])=0)*(MOD(Table6[Bin9],Table4[[#This Row],[Bin4]])=0)*(MOD(Table6[Bin9],Table4[[#This Row],[Bin5]])=0)),SUMPRODUCT((MOD(Table6[Bin9],Table4[[#This Row],[Bin1]])=0)*(MOD(Table6[Bin9],Table4[[#This Row],[Bin2]])=0)*(MOD(Table6[Bin9],Table4[[#This Row],[Bin3]])=0)*(MOD(Table6[Bin9],Table4[[#This Row],[Bin4]])=0)*(MOD(Table6[Bin9],Table4[[#This Row],[Bin5]])=0)*(MOD(Table6[Bin9],Table4[[#This Row],[Bin6]])=0)),SUMPRODUCT((MOD(Table6[Bin9],Table4[[#This Row],[Bin1]])=0)*(MOD(Table6[Bin9],Table4[[#This Row],[Bin2]])=0)*(MOD(Table6[Bin9],Table4[[#This Row],[Bin3]])=0)*(MOD(Table6[Bin9],Table4[[#This Row],[Bin4]])=0)*(MOD(Table6[Bin9],Table4[[#This Row],[Bin5]])=0)*(MOD(Table6[Bin9],Table4[[#This Row],[Bin6]])=0)*(MOD(Table6[Bin9],Table4[[#This Row],[Bin7]])=0)),SUMPRODUCT((MOD(Table6[Bin9],Table4[[#This Row],[Bin1]])=0)*(MOD(Table6[Bin9],Table4[[#This Row],[Bin2]])=0)*(MOD(Table6[Bin9],Table4[[#This Row],[Bin3]])=0)*(MOD(Table6[Bin9],Table4[[#This Row],[Bin4]])=0)*(MOD(Table6[Bin9],Table4[[#This Row],[Bin5]])=0)*(MOD(Table6[Bin9],Table4[[#This Row],[Bin6]])=0)*(MOD(Table6[Bin9],Table4[[#This Row],[Bin7]])=0)*(MOD(Table6[Bin9],Table4[[#This Row],[Bin8]])=0))) -> 1
